Workbook

Sheet League Table
I1: Club League 2013
B3: Name | C3: Memberno | D3: Parkrun # | E3: # Events | F3: Gender | G3: Group | H3: Club Rank | I3: Gents Rank | J3: Ladies Rank | K3: Total Points | L3: XC | M3: Parkrun | N3: Club5K | O3: HalfMarathon | P3: Marathon or Ultra | Q3: 10 Miles | R3: 10K | S3: Thunder Run
B4: Andrew Cripps | C4: =IFERROR(VLOOKUP(League[[#This Row],[Name]],members,2,FALSE),"") -> 212 | D4: 332519 | E4: =COUNT(League[[#This Row],[XC]:[Thunder Run]]) -> 7 | F4: M | G4: =VLOOKUP(League[[#This Row],[Memberno]],Allmembers[],7,FALSE) -> MV40 | H4: =RANK(League[[#This Row],[Total Points]],League[Total Points]) -> 1 | I4: =IF(League[[#This Row],[Gender]]="M",RANK(League[Total Points],mrank),"") -> 1 | J4: =IF(League[[#This Row],[Gender]]="F",RANK(League[Total Points],wrank),"") ->  | K4: =SUM(League[[#This Row],[XC]:[Thunder Run]]) -> 519 | L4: =IFERROR(VLOOKUP(League[[#This Row],[Memberno]],XC[[Mem]:[Total Points]],5,0),"") -> 212 | M4: =IFERROR(VLOOKUP(League[[#This Row],[Parkrun '#]],Parkrun[],7,FALSE),"") -> 38 | N4: =IFERROR(VLOOKUP(League[[#This Row],[Memberno]],Club5k[],5,FALSE),"") -> 25 | O4: =IFERROR(VLOOKUP(League[[#This Row],[Memberno]],Halfmarathon[Mem]:Halfmarathon[Points],4,0),"") -> 86 | P4: =IFERROR(VLOOKUP(League[[#This Row],[Memberno]],Marathon[],4,FALSE),"") -> 30 | Q4: =IFERROR(VLOOKUP(League[[#This Row],[Memberno]],Table18[],5,FALSE),"") -> 44 | R4: =IFERROR(VLOOKUP(League[[#This Row],[Memberno]],tenK[[Member '#]:[Total Points]],2,FALSE),"") -> 84 | S4: =IFERROR(VLOOKUP(League[[#This Row],[Memberno]],Thunderrun[],3,FALSE),"") -> 
B5: Andy Jordan | C5: =IFERROR(VLOOKUP(League[[#This Row],[Name]],members,2,FALSE),"") -> 239 | D5: 237510 | E5: =COUNT(League[[#This Row],[XC]:[Thunder Run]]) -> 7 | F5: M | G5: =VLOOKUP(League[[#This Row],[Memberno]],Allmembers[],7,FALSE) -> MV50 | H5: =RANK(League[[#This Row],[Total Points]],League[Total Points]) -> 2 | I5: =IF(League[[#This Row],[Gender]]="M",RANK(League[Total Points],mrank),"") -> 2 | J5: =IF(League[[#This Row],[Gender]]="F",RANK(League[Total Points],wrank),"") ->  | K5: =SUM(League[[#This Row],[XC]:[Thunder Run]]) -> 504 | L5: =IFERROR(VLOOKUP(League[[#This Row],[Memberno]],XC[[Mem]:[Total Points]],5,0),"") -> 172 | M5: =IFERROR(VLOOKUP(League[[#This Row],[Parkrun '#]],Parkrun[],7,FALSE),"") -> 43 | N5: =IFERROR(VLOOKUP(League[[#This Row],[Memberno]],Club5k[],5,FALSE),"") -> 20 | O5: =IFERROR(VLOOKUP(League[[#This Row],[Memberno]],Halfmarathon[Mem]:Halfmarathon[Points],4,0),"") -> 96 | P5: =IFERROR(VLOOKUP(League[[#This Row],[Memberno]],Marathon[],4,FALSE),"") -> 30 | Q5: =IFERROR(VLOOKUP(League[[#This Row],[Memberno]],Table18[],5,FALSE),"") -> 49 | R5: =IFERROR(VLOOKUP(League[[#This Row],[Memberno]],tenK[[Member '#]:[Total Points]],2,FALSE),"") -> 94 | S5: =IFERROR(VLOOKUP(League[[#This Row],[Memberno]],Thunderrun[],3,FALSE),"") -> 
B6: David Green | C6: =IFERROR(VLOOKUP(League[[#This Row],[Name]],members,2,FALSE),"") -> 73 | D6: 309770 | E6: =COUNT(League[[#This Row],[XC]:[Thunder Run]]) -> 6 | F6: M | G6: =VLOOKUP(League[[#This Row],[Memberno]],Allmembers[],7,FALSE) -> MV50 | H6: =RANK(League[[#This Row],[Total Points]],League[Total Points]) -> 3 | I6: =IF(League[[#This Row],[Gender]]="M",RANK(League[Total Points],mrank),"") -> 3 | J6: =IF(League[[#This Row],[Gender]]="F",RANK(League[Total Points],wrank),"") ->  | K6: =SUM(League[[#This Row],[XC]:[Thunder Run]]) -> 501 | L6: =IFERROR(VLOOKUP(League[[#This Row],[Memberno]],XC[[Mem]:[Total Points]],5,0),"") -> 194 | M6: =IFERROR(VLOOKUP(League[[#This Row],[Parkrun '#]],Parkrun[],7,FALSE),"") -> 49 | N6: =IFERROR(VLOOKUP(League[[#This Row],[Memberno]],Club5k[],5,FALSE),"") -> 30 | O6: =IFERROR(VLOOKUP(League[[#This Row],[Memberno]],Halfmarathon[Mem]:Halfmarathon[Points],4,0),"") -> 99 | P6: =IFERROR(VLOOKUP(League[[#This Row],[Memberno]],Marathon[],4,FALSE),"") -> 30 | Q6: =IFERROR(VLOOKUP(League[[#This Row],[Memberno]],Table18[],5,FALSE),"") ->  | R6: =IFERROR(VLOOKUP(League[[#This Row],[Memberno]],tenK[[Member '#]:[Total Points]],2,FALSE),"") -> 99 | S6: =IFERROR(VLOOKUP(League[[#This Row],[Memberno]],Thunderrun[],3,FALSE),"") -> 
B7: Jennifer Finlay | C7: =IFERROR(VLOOKUP(League[[#This Row],[Name]],members,2,FALSE),"") -> 97 | D7: 141774 | E7: =COUNT(League[[#This Row],[XC]:[Thunder Run]]) -> 7 | F7: F | G7: =VLOOKUP(League[[#This Row],[Memberno]],Allmembers[],7,FALSE) -> FV35 | H7: =RANK(League[[#This Row],[Total Points]],League[Total Points]) -> 4 | I7: =IF(League[[#This Row],[Gender]]="M",RANK(League[Total Points],mrank),"") ->  | J7: =IF(League[[#This Row],[Gender]]="F",RANK(League[Total Points],wrank),"") -> 1 | K7: =SUM(League[[#This Row],[XC]:[Thunder Run]]) -> 475 | L7: =IFERROR(VLOOKUP(League[[#This Row],[Memberno]],XC[[Mem]:[Total Points]],5,0),"") -> 241 | M7: =IFERROR(VLOOKUP(League[[#This Row],[Parkrun '#]],Parkrun[],7,FALSE),"") -> 49 | N7: =IFERROR(VLOOKUP(League[[#This Row],[Memberno]],Club5k[],5,FALSE),"") -> 10 | O7: =IFERROR(VLOOKUP(League[[#This Row],[Memberno]],Halfmarathon[Mem]:Halfmarathon[Points],4,0),"") -> 48 | P7: =IFERROR(VLOOKUP(League[[#This Row],[Memberno]],Marathon[],4,FALSE),"") -> 30 | Q7: =IFERROR(VLOOKUP(League[[#This Row],[Memberno]],Table18[],5,FALSE),"") -> 48 | R7: =IFERROR(VLOOKUP(League[[#This Row],[Memberno]],tenK[[Member '#]:[Total Points]],2,FALSE),"") -> 49 | S7: =IFERROR(VLOOKUP(League[[#This Row],[Memberno]],Thunderrun[],3,FALSE),"") -> 
B8: Hannah Turner | C8: =IFERROR(VLOOKUP(League[[#This Row],[Name]],members,2,FALSE),"") -> 54 | D8: 350062 | E8: =COUNT(League[[#This Row],[XC]:[Thunder Run]]) -> 8 | F8: F | G8: =VLOOKUP(League[[#This Row],[Memberno]],Allmembers[],7,FALSE) -> FV35 | H8: =RANK(League[[#This Row],[Total Points]],League[Total Points]) -> 5 | I8: =IF(League[[#This Row],[Gender]]="M",RANK(League[Total Points],mrank),"") ->  | J8: =IF(League[[#This Row],[Gender]]="F",RANK(League[Total Points],wrank),"") -> 2 | K8: =SUM(League[[#This Row],[XC]:[Thunder Run]]) -> 464 | L8: =IFERROR(VLOOKUP(League[[#This Row],[Memberno]],XC[[Mem]:[Total Points]],5,0),"") -> 249 | M8: =IFERROR(VLOOKUP(League[[#This Row],[Parkrun '#]],Parkrun[],7,FALSE),"") -> 50 | N8: =IFERROR(VLOOKUP(League[[#This Row],[Memberno]],Club5k[],5,FALSE),"") -> 5 | O8: =IFERROR(VLOOKUP(League[[#This Row],[Memberno]],Halfmarathon[Mem]:Halfmarathon[Points],4,0),"") -> 50 | P8: =IFERROR(VLOOKUP(League[[#This Row],[Memberno]],Marathon[],4,FALSE),"") -> 30 | Q8: =IFERROR(VLOOKUP(League[[#This Row],[Memberno]],Table18[],5,FALSE),"") -> 50 | R8: =IFERROR(VLOOKUP(League[[#This Row],[Memberno]],tenK[[Member '#]:[Total Points]],2,FALSE),"") -> 0 | S8: =IFERROR(VLOOKUP(League[[#This Row],[Memberno]],Thunderrun[],3,FALSE),"") -> 30
B9: Louise Crosby | C9: =IFERROR(VLOOKUP(League[[#This Row],[Name]],members,2,FALSE),"") -> 119 | D9: 287650 | E9: =COUNT(League[[#This Row],[XC]:[Thunder Run]]) -> 8 | F9: F | G9: =VLOOKUP(League[[#This Row],[Memberno]],Allmembers[],7,FALSE) -> FV45 | H9: =RANK(League[[#This Row],[Total Points]],League[Total Points]) -> 6 | I9: =IF(League[[#This Row],[Gender]]="M",RANK(League[Total Points],mrank),"") ->  | J9: =IF(League[[#This Row],[Gender]]="F",RANK(League[Total Points],wrank),"") -> 3 | K9: =SUM(League[[#This Row],[XC]:[Thunder Run]]) -> 463 | L9: =IFERROR(VLOOKUP(League[[#This Row],[Memberno]],XC[[Mem]:[Total Points]],5,0),"") -> 181 | M9: =IFERROR(VLOOKUP(League[[#This Row],[Parkrun '#]],Parkrun[],7,FALSE),"") -> 46 | N9: =IFERROR(VLOOKUP(League[[#This Row],[Memberno]],Club5k[],5,FALSE),"") -> 35 | O9: =IFERROR(VLOOKUP(League[[#This Row],[Memberno]],Halfmarathon[Mem]:Halfmarathon[Points],4,0),"") -> 50 | P9: =IFERROR(VLOOKUP(League[[#This Row],[Memberno]],Marathon[],4,FALSE),"") -> 30 | Q9: =IFERROR(VLOOKUP(League[[#This Row],[Memberno]],Table18[],5,FALSE),"") -> 45 | R9: =IFERROR(VLOOKUP(League[[#This Row],[Memberno]],tenK[[Member '#]:[Total Points]],2,FALSE),"") -> 46 | S9: =IFERROR(VLOOKUP(League[[#This Row],[Memberno]],Thunderrun[],3,FALSE),"") -> 30
B10: Sarah Chilvers | C10: =IFERROR(VLOOKUP(League[[#This Row],[Name]],members,2,FALSE),"") -> 257 | D10: 418961 | E10: =COUNT(League[[#This Row],[XC]:[Thunder Run]]) -> 6 | F10: F | G10: =VLOOKUP(League[[#This Row],[Memberno]],Allmembers[],7,FALSE) -> FV55 | H10: =RANK(League[[#This Row],[Total Points]],League[Total Points]) -> 7 | I10: =IF(League[[#This Row],[Gender]]="M",RANK(League[Total Points],mrank),"") ->  | J10: =IF(League[[#This Row],[Gender]]="F",RANK(League[Total Points],wrank),"") -> 4 | K10: =SUM(League[[#This Row],[XC]:[Thunder Run]]) -> 450 | L10: =IFERROR(VLOOKUP(League[[#This Row],[Memberno]],XC[[Mem]:[Total Points]],5,0),"") -> 229 | M10: =IFERROR(VLOOKUP(League[[#This Row],[Parkrun '#]],Parkrun[],7,FALSE),"") -> 43 | N10: =IFERROR(VLOOKUP(League[[#This Row],[Memberno]],Club5k[],5,FALSE),"") -> 15 | O10: =IFERROR(VLOOKUP(League[[#This Row],[Memberno]],Halfmarathon[Mem]:Halfmarathon[Points],4,0),"") -> 92 | P10: =IFERROR(VLOOKUP(League[[#This Row],[Memberno]],Marathon[],4,FALSE),"") -> 30 | Q10: =IFERROR(VLOOKUP(League[[#This Row],[Memberno]],Table18[],5,FALSE),"") -> 41 | R10: =IFERROR(VLOOKUP(League[[#This Row],[Memberno]],tenK[[Member '#]:[Total Points]],2,FALSE),"") ->  | S10: =IFERROR(VLOOKUP(League[[#This Row],[Memberno]],Thunderrun[],3,FALSE),"") -> 
B11: Georgie Hamilton | C11: 12 | D11: 224770 | E11: =COUNT(League[[#This Row],[XC]:[Thunder Run]]) -> 7 | F11: F | G11: =VLOOKUP(League[[#This Row],[Memberno]],Allmembers[],7,FALSE) -> FV65 | H11: =RANK(League[[#This Row],[Total Points]],League[Total Points]) -> 8 | I11: =IF(League[[#This Row],[Gender]]="M",RANK(League[Total Points],mrank),"") ->  | J11: =IF(League[[#This Row],[Gender]]="F",RANK(League[Total Points],wrank),"") -> 5 | K11: =SUM(League[[#This Row],[XC]:[Thunder Run]]) -> 449 | L11: =IFERROR(VLOOKUP(League[[#This Row],[Memberno]],XC[[Mem]:[Total Points]],5,0),"") -> 163 | M11: =IFERROR(VLOOKUP(League[[#This Row],[Parkrun '#]],Parkrun[],7,FALSE),"") -> 39 | N11: =IFERROR(VLOOKUP(League[[#This Row],[Memberno]],Club5k[],5,FALSE),"") -> 55 | O11: =IFERROR(VLOOKUP(League[[#This Row],[Memberno]],Halfmarathon[Mem]:Halfmarathon[Points],4,0),"") -> 45 | P11: =IFERROR(VLOOKUP(League[[#This Row],[Memberno]],Marathon[],4,FALSE),"") -> 30 | Q11: =IFERROR(VLOOKUP(League[[#This Row],[Memberno]],Table18[],5,FALSE),"") -> 38 | R11: =IFERROR(VLOOKUP(League[[#This Row],[Memberno]],tenK[[Member '#]:[Total Points]],2,FALSE),"") -> 79 | S11: =IFERROR(VLOOKUP(League[[#This Row],[Memberno]],Thunderrun[],3,FALSE),"") -> 
B12: Simon Speirs | C12: =IFERROR(VLOOKUP(League[[#This Row],[Name]],members,2,FALSE),"") -> 53 | D12: 214862 | E12: =COUNT(League[[#This Row],[XC]:[Thunder Run]]) -> 7 | F12: M | G12: =VLOOKUP(League[[#This Row],[Memberno]],Allmembers[],7,FALSE) -> MV40 | H12: =RANK(League[[#This Row],[Total Points]],League[Total Points]) -> 9 | I12: =IF(League[[#This Row],[Gender]]="M",RANK(League[Total Points],mrank),"") -> 4 | J12: =IF(League[[#This Row],[Gender]]="F",RANK(League[Total Points],wrank),"") ->  | K12: =SUM(League[[#This Row],[XC]:[Thunder Run]]) -> 444 | L12: =IFERROR(VLOOKUP(League[[#This Row],[Memberno]],XC[[Mem]:[Total Points]],5,0),"") -> 249 | M12: =IFERROR(VLOOKUP(League[[#This Row],[Parkrun '#]],Parkrun[],7,FALSE),"") -> 50 | N12: =IFERROR(VLOOKUP(League[[#This Row],[Memberno]],Club5k[],5,FALSE),"") -> 15 | O12: =IFERROR(VLOOKUP(League[[#This Row],[Memberno]],Halfmarathon[Mem]:Halfmarathon[Points],4,0),"") -> 50 | P12: =IFERROR(VLOOKUP(League[[#This Row],[Memberno]],Marathon[],4,FALSE),"") -> 0 | Q12: =IFERROR(VLOOKUP(League[[#This Row],[Memberno]],Table18[],5,FALSE),"") ->  | R12: =IFERROR(VLOOKUP(League[[#This Row],[Memberno]],tenK[[Member '#]:[Total Points]],2,FALSE),"") -> 50 | S12: =IFERROR(VLOOKUP(League[[#This Row],[Memberno]],Thunderrun[],3,FALSE),"") -> 30
B13: Lee Scott | C13: =IFERROR(VLOOKUP(League[[#This Row],[Name]],members,2,FALSE),"") -> 57 | D13: 295914 | E13: =COUNT(League[[#This Row],[XC]:[Thunder Run]]) -> 7 | F13: M | G13: =VLOOKUP(League[[#This Row],[Memberno]],Allmembers[],7,FALSE) -> MV40 | H13: =RANK(League[[#This Row],[Total Points]],League[Total Points]) -> 10 | I13: =IF(League[[#This Row],[Gender]]="M",RANK(League[Total Points],mrank),"") -> 5 | J13: =IF(League[[#This Row],[Gender]]="F",RANK(League[Total Points],wrank),"") ->  | K13: =SUM(League[[#This Row],[XC]:[Thunder Run]]) -> 435 | L13: =IFERROR(VLOOKUP(League[[#This Row],[Memberno]],XC[[Mem]:[Total Points]],5,0),"") -> 133 | M13: =IFERROR(VLOOKUP(League[[#This Row],[Parkrun '#]],Parkrun[],7,FALSE),"") -> 46 | N13: =IFERROR(VLOOKUP(League[[#This Row],[Memberno]],Club5k[],5,FALSE),"") -> 40 | O13: =IFERROR(VLOOKUP(League[[#This Row],[Memberno]],Halfmarathon[Mem]:Halfmarathon[Points],4,0),"") -> 43 | P13: =IFERROR(VLOOKUP(League[[#This Row],[Memberno]],Marathon[],4,FALSE),"") -> 30 | Q13: =IFERROR(VLOOKUP(League[[#This Row],[Memberno]],Table18[],5,FALSE),"") -> 48 | R13: =IFERROR(VLOOKUP(League[[#This Row],[Memberno]],tenK[[Member '#]:[Total Points]],2,FALSE),"") -> 95 | S13: =IFERROR(VLOOKUP(League[[#This Row],[Memberno]],Thunderrun[],3,FALSE),"") -> 
B14: Joanne Richards | C14: =IFERROR(VLOOKUP(League[[#This Row],[Name]],members,2,FALSE),"") -> 149 | D14: 341924 | E14: =COUNT(League[[#This Row],[XC]:[Thunder Run]]) -> 7 | F14: F | G14: =VLOOKUP(League[[#This Row],[Memberno]],Allmembers[],7,FALSE) -> FV35 | H14: =RANK(League[[#This Row],[Total Points]],League[Total Points]) -> 11 | I14: =IF(League[[#This Row],[Gender]]="M",RANK(League[Total Points],mrank),"") ->  | J14: =IF(League[[#This Row],[Gender]]="F",RANK(League[Total Points],wrank),"") -> 6 | K14: =SUM(League[[#This Row],[XC]:[Thunder Run]]) -> 429 | L14: =IFERROR(VLOOKUP(League[[#This Row],[Memberno]],XC[[Mem]:[Total Points]],5,0),"") -> 176 | M14: =IFERROR(VLOOKUP(League[[#This Row],[Parkrun '#]],Parkrun[],7,FALSE),"") -> 42 | N14: =IFERROR(VLOOKUP(League[[#This Row],[Memberno]],Club5k[],5,FALSE),"") -> 5 | O14: =IFERROR(VLOOKUP(League[[#This Row],[Memberno]],Halfmarathon[Mem]:Halfmarathon[Points],4,0),"") -> 47 | P14: =IFERROR(VLOOKUP(League[[#This Row],[Memberno]],Marathon[],4,FALSE),"") ->  | Q14: =IFERROR(VLOOKUP(League[[#This Row],[Memberno]],Table18[],5,FALSE),"") -> 42 | R14: =IFERROR(VLOOKUP(League[[#This Row],[Memberno]],tenK[[Member '#]:[Total Points]],2,FALSE),"") -> 87 | S14: =IFERROR(VLOOKUP(League[[#This Row],[Memberno]],Thunderrun[],3,FALSE),"") -> 30
B15: Phil Jacobs | C15: =IFERROR(VLOOKUP(League[[#This Row],[Name]],members,2,FALSE),"") -> 100 | D15: 349302 | E15: =COUNT(League[[#This Row],[XC]:[Thunder Run]]) -> 7 | F15: M | G15: =VLOOKUP(League[[#This Row],[Memberno]],Allmembers[],7,FALSE) -> MV40 | H15: =RANK(League[[#This Row],[Total Points]],League[Total Points]) -> 12 | I15: =IF(League[[#This Row],[Gender]]="M",RANK(League[Total Points],mrank),"") -> 6 | J15: =IF(League[[#This Row],[Gender]]="F",RANK(League[Total Points],wrank),"") ->  | K15: =SUM(League[[#This Row],[XC]:[Thunder Run]]) -> 428 | L15: =IFERROR(VLOOKUP(League[[#This Row],[Memberno]],XC[[Mem]:[Total Points]],5,0),"") -> 213 | M15: =IFERROR(VLOOKUP(League[[#This Row],[Parkrun '#]],Parkrun[],7,FALSE),"") -> 41 | N15: =IFERROR(VLOOKUP(League[[#This Row],[Memberno]],Club5k[],5,FALSE),"") -> 10 | O15: =IFERROR(VLOOKUP(League[[#This Row],[Memberno]],Halfmarathon[Mem]:Halfmarathon[Points],4,0),"") -> 41 | P15: =IFERROR(VLOOKUP(League[[#This Row],[Memberno]],Marathon[],4,FALSE),"") -> 30 | Q15: =IFERROR(VLOOKUP(League[[#This Row],[Memberno]],Table18[],5,FALSE),"") -> 50 | R15: =IFERROR(VLOOKUP(League[[#This Row],[Memberno]],tenK[[Member '#]:[Total Points]],2,FALSE),"") -> 43 | S15: =IFERROR(VLOOKUP(League[[#This Row],[Memberno]],Thunderrun[],3,FALSE),"") -> 
B16: Steve Bowran | C16: =IFERROR(VLOOKUP(League[[#This Row],[Name]],members,2,FALSE),"") -> 223 | D16: 406813 | E16: =COUNT(League[[#This Row],[XC]:[Thunder Run]]) -> 6 | F16: M | G16: =VLOOKUP(League[[#This Row],[Memberno]],Allmembers[],7,FALSE) -> MV40 | H16: =RANK(League[[#This Row],[Total Points]],League[Total Points]) -> 13 | I16: =IF(League[[#This Row],[Gender]]="M",RANK(League[Total Points],mrank),"") -> 7 | J16: =IF(League[[#This Row],[Gender]]="F",RANK(League[Total Points],wrank),"") ->  | K16: =SUM(League[[#This Row],[XC]:[Thunder Run]]) -> 373 | L16: =IFERROR(VLOOKUP(League[[#This Row],[Memberno]],XC[[Mem]:[Total Points]],5,0),"") -> 226 | M16: =IFERROR(VLOOKUP(League[[#This Row],[Parkrun '#]],Parkrun[],7,FALSE),"") -> 39 | N16: =IFERROR(VLOOKUP(League[[#This Row],[Memberno]],Club5k[],5,FALSE),"") -> 20 | O16: =IFERROR(VLOOKUP(League[[#This Row],[Memberno]],Halfmarathon[Mem]:Halfmarathon[Points],4,0),"") -> 40 | P16: =IFERROR(VLOOKUP(League[[#This Row],[Memberno]],Marathon[],4,FALSE),"") -> 30 | Q16: =IFERROR(VLOOKUP(League[[#This Row],[Memberno]],Table18[],5,FALSE),"") ->  | R16: =IFERROR(VLOOKUP(League[[#This Row],[Memberno]],tenK[[Member '#]:[Total Points]],2,FALSE),"") -> 18 | S16: =IFERROR(VLOOKUP(League[[#This Row],[Memberno]],Thunderrun[],3,FALSE),"") -> 
B17: Jamie Davies | C17: =IFERROR(VLOOKUP(League[[#This Row],[Name]],members,2,FALSE),"") -> 240 | D17: 357345 | E17: =COUNT(League[[#This Row],[XC]:[Thunder Run]]) -> 6 | F17: M | G17: =VLOOKUP(League[[#This Row],[Memberno]],Allmembers[],7,FALSE) -> MS | H17: =RANK(League[[#This Row],[Total Points]],League[Total Points]) -> 14 | I17: =IF(League[[#This Row],[Gender]]="M",RANK(League[Total Points],mrank),"") -> 8 | J17: =IF(League[[#This Row],[Gender]]="F",RANK(League[Total Points],wrank),"") ->  | K17: =SUM(League[[#This Row],[XC]:[Thunder Run]]) -> 370 | L17: =IFERROR(VLOOKUP(League[[#This Row],[Memberno]],XC[[Mem]:[Total Points]],5,0),"") -> 156 | M17: =IFERROR(VLOOKUP(League[[#This Row],[Parkrun '#]],Parkrun[],7,FALSE),"") -> 21 | N17: =IFERROR(VLOOKUP(League[[#This Row],[Memberno]],Club5k[],5,FALSE),"") -> 45 | O17: =IFERROR(VLOOKUP(League[[#This Row],[Memberno]],Halfmarathon[Mem]:Halfmarathon[Points],4,0),"") -> 65 | P17: =IFERROR(VLOOKUP(League[[#This Row],[Memberno]],Marathon[],4,FALSE),"") ->  | Q17: =IFERROR(VLOOKUP(League[[#This Row],[Memberno]],Table18[],5,FALSE),"") -> 34 | R17: =IFERROR(VLOOKUP(League[[#This Row],[Memberno]],tenK[[Member '#]:[Total Points]],2,FALSE),"") -> 49 | S17: =IFERROR(VLOOKUP(League[[#This Row],[Memberno]],Thunderrun[],3,FALSE),"") -> 
B18: Graham Harper | C18: =IFERROR(VLOOKUP(League[[#This Row],[Name]],members,2,FALSE),"") -> 39 | D18: 287478 | E18: =COUNT(League[[#This Row],[XC]:[Thunder Run]]) -> 7 | F18: M | G18: =VLOOKUP(League[[#This Row],[Memberno]],Allmembers[],7,FALSE) -> MV50 | H18: =RANK(League[[#This Row],[Total Points]],League[Total Points]) -> 15 | I18: =IF(League[[#This Row],[Gender]]="M",RANK(League[Total Points],mrank),"") -> 9 | J18: =IF(League[[#This Row],[Gender]]="F",RANK(League[Total Points],wrank),"") ->  | K18: =SUM(League[[#This Row],[XC]:[Thunder Run]]) -> 368 | L18: =IFERROR(VLOOKUP(League[[#This Row],[Memberno]],XC[[Mem]:[Total Points]],5,0),"") -> 127 | M18: =IFERROR(VLOOKUP(League[[#This Row],[Parkrun '#]],Parkrun[],7,FALSE),"") -> 23 | N18: =IFERROR(VLOOKUP(League[[#This Row],[Memberno]],Club5k[],5,FALSE),"") -> 50 | O18: =IFERROR(VLOOKUP(League[[#This Row],[Memberno]],Halfmarathon[Mem]:Halfmarathon[Points],4,0),"") -> 68 | P18: =IFERROR(VLOOKUP(League[[#This Row],[Memberno]],Marathon[],4,FALSE),"") -> 30 | Q18: =IFERROR(VLOOKUP(League[[#This Row],[Memberno]],Table18[],5,FALSE),"") -> 37 | R18: =IFERROR(VLOOKUP(League[[#This Row],[Memberno]],tenK[[Member '#]:[Total Points]],2,FALSE),"") -> 33 | S18: =IFERROR(VLOOKUP(League[[#This Row],[Memberno]],Thunderrun[],3,FALSE),"") -> 
B19: Richard Johnstone | C19: =IFERROR(VLOOKUP(League[[#This Row],[Name]],members,2,FALSE),"") -> 122 | D19: 284465 | E19: =COUNT(League[[#This Row],[XC]:[Thunder Run]]) -> 6 | F19: M | G19: =VLOOKUP(League[[#This Row],[Memberno]],Allmembers[],7,FALSE) -> MV40 | H19: =RANK(League[[#This Row],[Total Points]],League[Total Points]) -> 16 | I19: =IF(League[[#This Row],[Gender]]="M",RANK(League[Total Points],mrank),"") -> 10 | J19: =IF(League[[#This Row],[Gender]]="F",RANK(League[Total Points],wrank),"") ->  | K19: =SUM(League[[#This Row],[XC]:[Thunder Run]]) -> 347 | L19: =IFERROR(VLOOKUP(League[[#This Row],[Memberno]],XC[[Mem]:[Total Points]],5,0),"") -> 195 | M19: =IFERROR(VLOOKUP(League[[#This Row],[Parkrun '#]],Parkrun[],7,FALSE),"") -> 35 | N19: =IFERROR(VLOOKUP(League[[#This Row],[Memberno]],Club5k[],5,FALSE),"") -> 5 | O19: =IFERROR(VLOOKUP(League[[#This Row],[Memberno]],Halfmarathon[Mem]:Halfmarathon[Points],4,0),"") -> 36 | P19: =IFERROR(VLOOKUP(League[[#This Row],[Memberno]],Marathon[],4,FALSE),"") ->  | Q19: =IFERROR(VLOOKUP(League[[#This Row],[Memberno]],Table18[],5,FALSE),"") -> 41 | R19: =IFERROR(VLOOKUP(League[[#This Row],[Memberno]],tenK[[Member '#]:[Total Points]],2,FALSE),"") -> 35 | S19: =IFERROR(VLOOKUP(League[[#This Row],[Memberno]],Thunderrun[],3,FALSE),"") -> 
B20: Elliott Lamb | C20: =IFERROR(VLOOKUP(League[[#This Row],[Name]],members,2,FALSE),"") -> 110 | E20: =COUNT(League[[#This Row],[XC]:[Thunder Run]]) -> 4 | F20: M | G20: =VLOOKUP(League[[#This Row],[Memberno]],Allmembers[],7,FALSE) -> MV50 | H20: =RANK(League[[#This Row],[Total Points]],League[Total Points]) -> 17 | I20: =IF(League[[#This Row],[Gender]]="M",RANK(League[Total Points],mrank),"") -> 11 | J20: =IF(League[[#This Row],[Gender]]="F",RANK(League[Total Points],wrank),"") ->  | K20: =SUM(League[[#This Row],[XC]:[Thunder Run]]) -> 345 | L20: =IFERROR(VLOOKUP(League[[#This Row],[Memberno]],XC[[Mem]:[Total Points]],5,0),"") -> 202 | M20: =IFERROR(VLOOKUP(League[[#This Row],[Parkrun '#]],Parkrun[],7,FALSE),"") ->  | N20: =IFERROR(VLOOKUP(League[[#This Row],[Memberno]],Club5k[],5,FALSE),"") -> 20 | O20: =IFERROR(VLOOKUP(League[[#This Row],[Memberno]],Halfmarathon[Mem]:Halfmarathon[Points],4,0),"") -> 44 | P20: =IFERROR(VLOOKUP(League[[#This Row],[Memberno]],Marathon[],4,FALSE),"") ->  | Q20: =IFERROR(VLOOKUP(League[[#This Row],[Memberno]],Table18[],5,FALSE),"") ->  | R20: =IFERROR(VLOOKUP(League[[#This Row],[Memberno]],tenK[[Member '#]:[Total Points]],2,FALSE),"") -> 79 | S20: =IFERROR(VLOOKUP(League[[#This Row],[Memberno]],Thunderrun[],3,FALSE),"") -> 
B21: Sarah Dumbrill | C21: =IFERROR(VLOOKUP(League[[#This Row],[Name]],members,2,FALSE),"") -> 77 | D21: 610402 | E21: =COUNT(League[[#This Row],[XC]:[Thunder Run]]) -> 5 | F21: F | G21: =VLOOKUP(League[[#This Row],[Memberno]],Allmembers[],7,FALSE) -> FV35 | H21: =RANK(League[[#This Row],[Total Points]],League[Total Points]) -> 18 | I21: =IF(League[[#This Row],[Gender]]="M",RANK(League[Total Points],mrank),"") ->  | J21: =IF(League[[#This Row],[Gender]]="F",RANK(League[Total Points],wrank),"") -> 7 | K21: =SUM(League[[#This Row],[XC]:[Thunder Run]]) -> 333 | L21: =IFERROR(VLOOKUP(League[[#This Row],[Memberno]],XC[[Mem]:[Total Points]],5,0),"") -> 95 | M21: =IFERROR(VLOOKUP(League[[#This Row],[Parkrun '#]],Parkrun[],7,FALSE),"") -> 47 | N21: =IFERROR(VLOOKUP(League[[#This Row],[Memberno]],Club5k[],5,FALSE),"") -> 50 | O21: =IFERROR(VLOOKUP(League[[#This Row],[Memberno]],Halfmarathon[Mem]:Halfmarathon[Points],4,0),"") ->  | P21: =IFERROR(VLOOKUP(League[[#This Row],[Memberno]],Marathon[],4,FALSE),"") ->  | Q21: =IFERROR(VLOOKUP(League[[#This Row],[Memberno]],Table18[],5,FALSE),"") -> 46 | R21: =IFERROR(VLOOKUP(League[[#This Row],[Memberno]],tenK[[Member '#]:[Total Points]],2,FALSE),"") -> 95 | S21: =IFERROR(VLOOKUP(League[[#This Row],[Memberno]],Thunderrun[],3,FALSE),"") -> 
B22: Emily Hooper | C22: =IFERROR(VLOOKUP(League[[#This Row],[Name]],members,2,FALSE),"") -> 138 | D22: 318081 | E22: =COUNT(League[[#This Row],[XC]:[Thunder Run]]) -> 7 | F22: F | G22: =VLOOKUP(League[[#This Row],[Memberno]],Allmembers[],7,FALSE) -> FV35 | H22: =RANK(League[[#This Row],[Total Points]],League[Total Points]) -> 19 | I22: =IF(League[[#This Row],[Gender]]="M",RANK(League[Total Points],mrank),"") ->  | J22: =IF(League[[#This Row],[Gender]]="F",RANK(League[Total Points],wrank),"") -> 8 | K22: =SUM(League[[#This Row],[XC]:[Thunder Run]]) -> 312 | L22: =IFERROR(VLOOKUP(League[[#This Row],[Memberno]],XC[[Mem]:[Total Points]],5,0),"") -> 45 | M22: =IFERROR(VLOOKUP(League[[#This Row],[Parkrun '#]],Parkrun[],7,FALSE),"") -> 45 | N22: =IFERROR(VLOOKUP(League[[#This Row],[Memberno]],Club5k[],5,FALSE),"") -> 5 | O22: =IFERROR(VLOOKUP(League[[#This Row],[Memberno]],Halfmarathon[Mem]:Halfmarathon[Points],4,0),"") -> 48 | P22: =IFERROR(VLOOKUP(League[[#This Row],[Memberno]],Marathon[],4,FALSE),"") ->  | Q22: =IFERROR(VLOOKUP(League[[#This Row],[Memberno]],Table18[],5,FALSE),"") -> 44 | R22: =IFERROR(VLOOKUP(League[[#This Row],[Memberno]],tenK[[Member '#]:[Total Points]],2,FALSE),"") -> 95 | S22: =IFERROR(VLOOKUP(League[[#This Row],[Memberno]],Thunderrun[],3,FALSE),"") -> 30
B23: Julian Jones | C23: =IFERROR(VLOOKUP(League[[#This Row],[Name]],members,2,FALSE),"") -> 243 | D23: 295116 | E23: =COUNT(League[[#This Row],[XC]:[Thunder Run]]) -> 6 | F23: M | G23: =VLOOKUP(League[[#This Row],[Memberno]],Allmembers[],7,FALSE) -> MV40 | H23: =RANK(League[[#This Row],[Total Points]],League[Total Points]) -> 19 | I23: =IF(League[[#This Row],[Gender]]="M",RANK(League[Total Points],mrank),"") -> 12 | J23: =IF(League[[#This Row],[Gender]]="F",RANK(League[Total Points],wrank),"") ->  | K23: =SUM(League[[#This Row],[XC]:[Thunder Run]]) -> 312 | L23: =IFERROR(VLOOKUP(League[[#This Row],[Memberno]],XC[[Mem]:[Total Points]],5,0),"") -> 123 | M23: =IFERROR(VLOOKUP(League[[#This Row],[Parkrun '#]],Parkrun[],7,FALSE),"") -> 40 | N23: =IFERROR(VLOOKUP(League[[#This Row],[Memberno]],Club5k[],5,FALSE),"") -> 25 | O23: =IFERROR(VLOOKUP(League[[#This Row],[Memberno]],Halfmarathon[Mem]:Halfmarathon[Points],4,0),"") -> 44 | P23: =IFERROR(VLOOKUP(League[[#This Row],[Memberno]],Marathon[],4,FALSE),"") ->  | Q23: =IFERROR(VLOOKUP(League[[#This Row],[Memberno]],Table18[],5,FALSE),"") -> 38 | R23: =IFERROR(VLOOKUP(League[[#This Row],[Memberno]],tenK[[Member '#]:[Total Points]],2,FALSE),"") -> 42 | S23: =IFERROR(VLOOKUP(League[[#This Row],[Memberno]],Thunderrun[],3,FALSE),"") -> 
B24: Patrick McGuinness | C24: 269 | D24: 561973 | E24: =COUNT(League[[#This Row],[XC]:[Thunder Run]]) -> 7 | F24: M | G24: =VLOOKUP(League[[#This Row],[Memberno]],Allmembers[],7,FALSE) -> MV40 | H24: =RANK(League[[#This Row],[Total Points]],League[Total Points]) -> 19 | I24: =IF(League[[#This Row],[Gender]]="M",RANK(League[Total Points],mrank),"") -> 12 | J24: =IF(League[[#This Row],[Gender]]="F",RANK(League[Total Points],wrank),"") ->  | K24: =SUM(League[[#This Row],[XC]:[Thunder Run]]) -> 312 | L24: =IFERROR(VLOOKUP(League[[#This Row],[Memberno]],XC[[Mem]:[Total Points]],5,0),"") -> 39 | M24: =IFERROR(VLOOKUP(League[[#This Row],[Parkrun '#]],Parkrun[],7,FALSE),"") -> 42 | N24: =IFERROR(VLOOKUP(League[[#This Row],[Memberno]],Club5k[],5,FALSE),"") -> 20 | O24: =IFERROR(VLOOKUP(League[[#This Row],[Memberno]],Halfmarathon[Mem]:Halfmarathon[Points],4,0),"") -> 94 | P24: =IFERROR(VLOOKUP(League[[#This Row],[Memberno]],Marathon[],4,FALSE),"") -> 30 | Q24: =IFERROR(VLOOKUP(League[[#This Row],[Memberno]],Table18[],5,FALSE),"") -> 47 | R24: =IFERROR(VLOOKUP(League[[#This Row],[Memberno]],tenK[[Member '#]:[Total Points]],2,FALSE),"") -> 40 | S24: =IFERROR(VLOOKUP(League[[#This Row],[Memberno]],Thunderrun[],3,FALSE),"") -> 
B25: Brian Yates | C25: =IFERROR(VLOOKUP(League[[#This Row],[Name]],members,2,FALSE),"") -> 120 | D25: 327723 | E25: =COUNT(League[[#This Row],[XC]:[Thunder Run]]) -> 5 | F25: M | G25: =VLOOKUP(League[[#This Row],[Memberno]],Allmembers[],7,FALSE) -> MV60 | H25: =RANK(League[[#This Row],[Total Points]],League[Total Points]) -> 22 | I25: =IF(League[[#This Row],[Gender]]="M",RANK(League[Total Points],mrank),"") -> 14 | J25: =IF(League[[#This Row],[Gender]]="F",RANK(League[Total Points],wrank),"") ->  | K25: =SUM(League[[#This Row],[XC]:[Thunder Run]]) -> 306 | L25: =IFERROR(VLOOKUP(League[[#This Row],[Memberno]],XC[[Mem]:[Total Points]],5,0),"") -> 196 | M25: =IFERROR(VLOOKUP(League[[#This Row],[Parkrun '#]],Parkrun[],7,FALSE),"") -> 17 | N25: =IFERROR(VLOOKUP(League[[#This Row],[Memberno]],Club5k[],5,FALSE),"") -> 30 | O25: =IFERROR(VLOOKUP(League[[#This Row],[Memberno]],Halfmarathon[Mem]:Halfmarathon[Points],4,0),"") ->  | P25: =IFERROR(VLOOKUP(League[[#This Row],[Memberno]],Marathon[],4,FALSE),"") -> 30 | Q25: =IFERROR(VLOOKUP(League[[#This Row],[Memberno]],Table18[],5,FALSE),"") -> 33 | R25: =IFERROR(VLOOKUP(League[[#This Row],[Memberno]],tenK[[Member '#]:[Total Points]],2,FALSE),"") ->  | S25: =IFERROR(VLOOKUP(League[[#This Row],[Memberno]],Thunderrun[],3,FALSE),"") -> 
B26: James Bentall | C26: =IFERROR(VLOOKUP(League[[#This Row],[Name]],members,2,FALSE),"") -> 141 | D26: 506127 | E26: =COUNT(League[[#This Row],[XC]:[Thunder Run]]) -> 5 | F26: M | G26: =VLOOKUP(League[[#This Row],[Memberno]],Allmembers[],7,FALSE) -> MV40 | H26: =RANK(League[[#This Row],[Total Points]],League[Total Points]) -> 23 | I26: =IF(League[[#This Row],[Gender]]="M",RANK(League[Total Points],mrank),"") -> 15 | J26: =IF(League[[#This Row],[Gender]]="F",RANK(League[Total Points],wrank),"") ->  | K26: =SUM(League[[#This Row],[XC]:[Thunder Run]]) -> 298 | L26: =IFERROR(VLOOKUP(League[[#This Row],[Memberno]],XC[[Mem]:[Total Points]],5,0),"") -> 113 | M26: =IFERROR(VLOOKUP(League[[#This Row],[Parkrun '#]],Parkrun[],7,FALSE),"") -> 24 | N26: =IFERROR(VLOOKUP(League[[#This Row],[Memberno]],Club5k[],5,FALSE),"") -> 15 | O26: =IFERROR(VLOOKUP(League[[#This Row],[Memberno]],Halfmarathon[Mem]:Halfmarathon[Points],4,0),"") -> 80 | P26: =IFERROR(VLOOKUP(League[[#This Row],[Memberno]],Marathon[],4,FALSE),"") ->  | Q26: =IFERROR(VLOOKUP(League[[#This Row],[Memberno]],Table18[],5,FALSE),"") ->  | R26: =IFERROR(VLOOKUP(League[[#This Row],[Memberno]],tenK[[Member '#]:[Total Points]],2,FALSE),"") -> 66 | S26: =IFERROR(VLOOKUP(League[[#This Row],[Memberno]],Thunderrun[],3,FALSE),"") -> 
B27: Darren McGrath | C27: =IFERROR(VLOOKUP(League[[#This Row],[Name]],members,2,FALSE),"") -> 28 | D27: 226876 | E27: =COUNT(League[[#This Row],[XC]:[Thunder Run]]) -> 4 | F27: M | G27: =VLOOKUP(League[[#This Row],[Memberno]],Allmembers[],7,FALSE) -> MV40 | H27: =RANK(League[[#This Row],[Total Points]],League[Total Points]) -> 24 | I27: =IF(League[[#This Row],[Gender]]="M",RANK(League[Total Points],mrank),"") -> 16 | J27: =IF(League[[#This Row],[Gender]]="F",RANK(League[Total Points],wrank),"") ->  | K27: =SUM(League[[#This Row],[XC]:[Thunder Run]]) -> 297 | L27: =IFERROR(VLOOKUP(League[[#This Row],[Memberno]],XC[[Mem]:[Total Points]],5,0),"") -> 177 | M27: =IFERROR(VLOOKUP(League[[#This Row],[Parkrun '#]],Parkrun[],7,FALSE),"") ->  | N27: =IFERROR(VLOOKUP(League[[#This Row],[Memberno]],Club5k[],5,FALSE),"") ->  | O27: =IFERROR(VLOOKUP(League[[#This Row],[Memberno]],Halfmarathon[Mem]:Halfmarathon[Points],4,0),"") -> 45 | P27: =IFERROR(VLOOKUP(League[[#This Row],[Memberno]],Marathon[],4,FALSE),"") -> 30 | Q27: =IFERROR(VLOOKUP(League[[#This Row],[Memberno]],Table18[],5,FALSE),"") -> 45 | R27: =IFERROR(VLOOKUP(League[[#This Row],[Memberno]],tenK[[Member '#]:[Total Points]],2,FALSE),"") ->  | S27: =IFERROR(VLOOKUP(League[[#This Row],[Memberno]],Thunderrun[],3,FALSE),"") -> 
B28: Paul Goodwin | C28: =IFERROR(VLOOKUP(League[[#This Row],[Name]],members,2,FALSE),"") -> 222 | D28: 489298 | E28: =COUNT(League[[#This Row],[XC]:[Thunder Run]]) -> 5 | F28: M | G28: =VLOOKUP(League[[#This Row],[Memberno]],Allmembers[],7,FALSE) -> MS | H28: =RANK(League[[#This Row],[Total Points]],League[Total Points]) -> 25 | I28: =IF(League[[#This Row],[Gender]]="M",RANK(League[Total Points],mrank),"") -> 17 | J28: =IF(League[[#This Row],[Gender]]="F",RANK(League[Total Points],wrank),"") ->  | K28: =SUM(League[[#This Row],[XC]:[Thunder Run]]) -> 269 | L28: =IFERROR(VLOOKUP(League[[#This Row],[Memberno]],XC[[Mem]:[Total Points]],5,0),"") -> 98 | M28: =IFERROR(VLOOKUP(League[[#This Row],[Parkrun '#]],Parkrun[],7,FALSE),"") -> 47 | N28: =IFERROR(VLOOKUP(League[[#This Row],[Memberno]],Club5k[],5,FALSE),"") ->  | O28: =IFERROR(VLOOKUP(League[[#This Row],[Memberno]],Halfmarathon[Mem]:Halfmarathon[Points],4,0),"") -> 48 | P28: =IFERROR(VLOOKUP(League[[#This Row],[Memberno]],Marathon[],4,FALSE),"") -> 30 | Q28: =IFERROR(VLOOKUP(League[[#This Row],[Memberno]],Table18[],5,FALSE),"") ->  | R28: =IFERROR(VLOOKUP(League[[#This Row],[Memberno]],tenK[[Member '#]:[Total Points]],2,FALSE),"") -> 46 | S28: =IFERROR(VLOOKUP(League[[#This Row],[Memberno]],Thunderrun[],3,FALSE),"") -> 
B29: Ed Rhodes | C29: 231 | D29: 640951 | E29: =COUNT(League[[#This Row],[XC]:[Thunder Run]]) -> 6 | F29: M | G29: =VLOOKUP(League[[#This Row],[Memberno]],Allmembers[],7,FALSE) -> MV40 | H29: =RANK(League[[#This Row],[Total Points]],League[Total Points]) -> 26 | I29: =IF(League[[#This Row],[Gender]]="M",RANK(League[Total Points],mrank),"") -> 18 | J29: =IF(League[[#This Row],[Gender]]="F",RANK(League[Total Points],wrank),"") ->  | K29: =SUM(League[[#This Row],[XC]:[Thunder Run]]) -> 268 | L29: =IFERROR(VLOOKUP(League[[#This Row],[Memberno]],XC[[Mem]:[Total Points]],5,0),"") -> 79 | M29: =IFERROR(VLOOKUP(League[[#This Row],[Parkrun '#]],Parkrun[],7,FALSE),"") -> 34 | N29: =IFERROR(VLOOKUP(League[[#This Row],[Memberno]],Club5k[],5,FALSE),"") -> 45 | O29: =IFERROR(VLOOKUP(League[[#This Row],[Memberno]],Halfmarathon[Mem]:Halfmarathon[Points],4,0),"") ->  | P29: =IFERROR(VLOOKUP(League[[#This Row],[Memberno]],Marathon[],4,FALSE),"") -> 30 | Q29: =IFERROR(VLOOKUP(League[[#This Row],[Memberno]],Table18[],5,FALSE),"") -> 43 | R29: =IFERROR(VLOOKUP(League[[#This Row],[Memberno]],tenK[[Member '#]:[Total Points]],2,FALSE),"") -> 37 | S29: =IFERROR(VLOOKUP(League[[#This Row],[Memberno]],Thunderrun[],3,FALSE),"") -> 
B30: Andy Wilkins | C30: =IFERROR(VLOOKUP(League[[#This Row],[Name]],members,2,FALSE),"") -> 107 | D30: 350198 | E30: =COUNT(League[[#This Row],[XC]:[Thunder Run]]) -> 6 | F30: M | G30: =VLOOKUP(League[[#This Row],[Memberno]],Allmembers[],7,FALSE) -> MV40 | H30: =RANK(League[[#This Row],[Total Points]],League[Total Points]) -> 27 | I30: =IF(League[[#This Row],[Gender]]="M",RANK(League[Total Points],mrank),"") -> 19 | J30: =IF(League[[#This Row],[Gender]]="F",RANK(League[Total Points],wrank),"") ->  | K30: =SUM(League[[#This Row],[XC]:[Thunder Run]]) -> 264 | L30: =IFERROR(VLOOKUP(League[[#This Row],[Memberno]],XC[[Mem]:[Total Points]],5,0),"") ->  | M30: =IFERROR(VLOOKUP(League[[#This Row],[Parkrun '#]],Parkrun[],7,FALSE),"") -> 37 | N30: =IFERROR(VLOOKUP(League[[#This Row],[Memberno]],Club5k[],5,FALSE),"") -> 25 | O30: =IFERROR(VLOOKUP(League[[#This Row],[Memberno]],Halfmarathon[Mem]:Halfmarathon[Points],4,0),"") -> 42 | P30: =IFERROR(VLOOKUP(League[[#This Row],[Memberno]],Marathon[],4,FALSE),"") -> 30 | Q30: =IFERROR(VLOOKUP(League[[#This Row],[Memberno]],Table18[],5,FALSE),"") -> 46 | R30: =IFERROR(VLOOKUP(League[[#This Row],[Memberno]],tenK[[Member '#]:[Total Points]],2,FALSE),"") -> 84 | S30: =IFERROR(VLOOKUP(League[[#This Row],[Memberno]],Thunderrun[],3,FALSE),"") -> 
B31: Philippa O'Donovan | C31: =IFERROR(VLOOKUP(League[[#This Row],[Name]],members,2,FALSE),"") -> 232 | D31: 345899 | E31: =COUNT(League[[#This Row],[XC]:[Thunder Run]]) -> 4 | F31: F | G31: =VLOOKUP(League[[#This Row],[Memberno]],Allmembers[],7,FALSE) -> FS | H31: =RANK(League[[#This Row],[Total Points]],League[Total Points]) -> 27 | I31: =IF(League[[#This Row],[Gender]]="M",RANK(League[Total Points],mrank),"") ->  | J31: =IF(League[[#This Row],[Gender]]="F",RANK(League[Total Points],wrank),"") -> 9 | K31: =SUM(League[[#This Row],[XC]:[Thunder Run]]) -> 264 | L31: =IFERROR(VLOOKUP(League[[#This Row],[Memberno]],XC[[Mem]:[Total Points]],5,0),"") -> 175 | M31: =IFERROR(VLOOKUP(League[[#This Row],[Parkrun '#]],Parkrun[],7,FALSE),"") -> 44 | N31: =IFERROR(VLOOKUP(League[[#This Row],[Memberno]],Club5k[],5,FALSE),"") -> 15 | O31: =IFERROR(VLOOKUP(League[[#This Row],[Memberno]],Halfmarathon[Mem]:Halfmarathon[Points],4,0),"") ->  | P31: =IFERROR(VLOOKUP(League[[#This Row],[Memberno]],Marathon[],4,FALSE),"") ->  | Q31: =IFERROR(VLOOKUP(League[[#This Row],[Memberno]],Table18[],5,FALSE),"") ->  | R31: =IFERROR(VLOOKUP(League[[#This Row],[Memberno]],tenK[[Member '#]:[Total Points]],2,FALSE),"") ->  | S31: =IFERROR(VLOOKUP(League[[#This Row],[Memberno]],Thunderrun[],3,FALSE),"") -> 30
B32: Gordon Alexander | C32: =IFERROR(VLOOKUP(League[[#This Row],[Name]],members,2,FALSE),"") -> 262 | D32: 462397 | E32: =COUNT(League[[#This Row],[XC]:[Thunder Run]]) -> 4 | F32: M | G32: =VLOOKUP(League[[#This Row],[Memberno]],Allmembers[],7,FALSE) -> MV40 | H32: =RANK(League[[#This Row],[Total Points]],League[Total Points]) -> 29 | I32: =IF(League[[#This Row],[Gender]]="M",RANK(League[Total Points],mrank),"") -> 20 | J32: =IF(League[[#This Row],[Gender]]="F",RANK(League[Total Points],wrank),"") ->  | K32: =SUM(League[[#This Row],[XC]:[Thunder Run]]) -> 251 | L32: =IFERROR(VLOOKUP(League[[#This Row],[Memberno]],XC[[Mem]:[Total Points]],5,0),"") -> 169 | M32: =IFERROR(VLOOKUP(League[[#This Row],[Parkrun '#]],Parkrun[],7,FALSE),"") -> 36 | N32: =IFERROR(VLOOKUP(League[[#This Row],[Memberno]],Club5k[],5,FALSE),"") -> 5 | O32: =IFERROR(VLOOKUP(League[[#This Row],[Memberno]],Halfmarathon[Mem]:Halfmarathon[Points],4,0),"") ->  | P32: =IFERROR(VLOOKUP(League[[#This Row],[Memberno]],Marathon[],4,FALSE),"") ->  | Q32: =IFERROR(VLOOKUP(League[[#This Row],[Memberno]],Table18[],5,FALSE),"") ->  | R32: =IFERROR(VLOOKUP(League[[#This Row],[Memberno]],tenK[[Member '#]:[Total Points]],2,FALSE),"") -> 41 | S32: =IFERROR(VLOOKUP(League[[#This Row],[Memberno]],Thunderrun[],3,FALSE),"") -> 
B33: Simon Townsend | C33: =IFERROR(VLOOKUP(League[[#This Row],[Name]],members,2,FALSE),"") -> 208 | D33: 353174 | E33: =COUNT(League[[#This Row],[XC]:[Thunder Run]]) -> 7 | F33: M | G33: =VLOOKUP(League[[#This Row],[Memberno]],Allmembers[],7,FALSE) -> MV40 | H33: =RANK(League[[#This Row],[Total Points]],League[Total Points]) -> 30 | I33: =IF(League[[#This Row],[Gender]]="M",RANK(League[Total Points],mrank),"") -> 21 | J33: =IF(League[[#This Row],[Gender]]="F",RANK(League[Total Points],wrank),"") ->  | K33: =SUM(League[[#This Row],[XC]:[Thunder Run]]) -> 246 | L33: =IFERROR(VLOOKUP(League[[#This Row],[Memberno]],XC[[Mem]:[Total Points]],5,0),"") -> 72 | M33: =IFERROR(VLOOKUP(League[[#This Row],[Parkrun '#]],Parkrun[],7,FALSE),"") -> 26 | N33: =IFERROR(VLOOKUP(League[[#This Row],[Memberno]],Club5k[],5,FALSE),"") -> 20 | O33: =IFERROR(VLOOKUP(League[[#This Row],[Memberno]],Halfmarathon[Mem]:Halfmarathon[Points],4,0),"") -> 31 | P33: =IFERROR(VLOOKUP(League[[#This Row],[Memberno]],Marathon[],4,FALSE),"") -> 30 | Q33: =IFERROR(VLOOKUP(League[[#This Row],[Memberno]],Table18[],5,FALSE),"") ->  | R33: =IFERROR(VLOOKUP(League[[#This Row],[Memberno]],tenK[[Member '#]:[Total Points]],2,FALSE),"") -> 37 | S33: =IFERROR(VLOOKUP(League[[#This Row],[Memberno]],Thunderrun[],3,FALSE),"") -> 30
B34: Paul Savage | C34: =IFERROR(VLOOKUP(League[[#This Row],[Name]],members,2,FALSE),"") -> 192 | D34: 637644 | E34: =COUNT(League[[#This Row],[XC]:[Thunder Run]]) -> 3 | F34: M | G34: =VLOOKUP(League[[#This Row],[Memberno]],Allmembers[],7,FALSE) -> MV40 | H34: =RANK(League[[#This Row],[Total Points]],League[Total Points]) -> 31 | I34: =IF(League[[#This Row],[Gender]]="M",RANK(League[Total Points],mrank),"") -> 22 | J34: =IF(League[[#This Row],[Gender]]="F",RANK(League[Total Points],wrank),"") ->  | K34: =SUM(League[[#This Row],[XC]:[Thunder Run]]) -> 219 | L34: =IFERROR(VLOOKUP(League[[#This Row],[Memberno]],XC[[Mem]:[Total Points]],5,0),"") -> 184 | M34: =IFERROR(VLOOKUP(League[[#This Row],[Parkrun '#]],Parkrun[],7,FALSE),"") -> 30 | N34: =IFERROR(VLOOKUP(League[[#This Row],[Memberno]],Club5k[],5,FALSE),"") -> 5 | O34: =IFERROR(VLOOKUP(League[[#This Row],[Memberno]],Halfmarathon[Mem]:Halfmarathon[Points],4,0),"") ->  | P34: =IFERROR(VLOOKUP(League[[#This Row],[Memberno]],Marathon[],4,FALSE),"") ->  | Q34: =IFERROR(VLOOKUP(League[[#This Row],[Memberno]],Table18[],5,FALSE),"") ->  | R34: =IFERROR(VLOOKUP(League[[#This Row],[Memberno]],tenK[[Member '#]:[Total Points]],2,FALSE),"") ->  | S34: =IFERROR(VLOOKUP(League[[#This Row],[Memberno]],Thunderrun[],3,FALSE),"") -> 
B35: Dawn Burr | C35: =IFERROR(VLOOKUP(League[[#This Row],[Name]],members,2,FALSE),"") -> 140 | E35: =COUNT(League[[#This Row],[XC]:[Thunder Run]]) -> 4 | F35: F | G35: =VLOOKUP(League[[#This Row],[Memberno]],Allmembers[],7,FALSE) -> FV35 | H35: =RANK(League[[#This Row],[Total Points]],League[Total Points]) -> 32 | I35: =IF(League[[#This Row],[Gender]]="M",RANK(League[Total Points],mrank),"") ->  | J35: =IF(League[[#This Row],[Gender]]="F",RANK(League[Total Points],wrank),"") -> 10 | K35: =SUM(League[[#This Row],[XC]:[Thunder Run]]) -> 218 | L35: =IFERROR(VLOOKUP(League[[#This Row],[Memberno]],XC[[Mem]:[Total Points]],5,0),"") -> 46 | M35: =IFERROR(VLOOKUP(League[[#This Row],[Parkrun '#]],Parkrun[],7,FALSE),"") ->  | N35: =IFERROR(VLOOKUP(League[[#This Row],[Memberno]],Club5k[],5,FALSE),"") ->  | O35: =IFERROR(VLOOKUP(League[[#This Row],[Memberno]],Halfmarathon[Mem]:Halfmarathon[Points],4,0),"") -> 96 | P35: =IFERROR(VLOOKUP(League[[#This Row],[Memberno]],Marathon[],4,FALSE),"") -> 30 | Q35: =IFERROR(VLOOKUP(League[[#This Row],[Memberno]],Table18[],5,FALSE),"") ->  | R35: =IFERROR(VLOOKUP(League[[#This Row],[Memberno]],tenK[[Member '#]:[Total Points]],2,FALSE),"") -> 46 | S35: =IFERROR(VLOOKUP(League[[#This Row],[Memberno]],Thunderrun[],3,FALSE),"") -> 
B36: Ronjon Chakraverty | C36: 72 | D36: 285599 | E36: =COUNT(League[[#This Row],[XC]:[Thunder Run]]) -> 5 | F36: M | G36: =VLOOKUP(League[[#This Row],[Memberno]],Allmembers[],7,FALSE) -> MV40 | H36: =RANK(League[[#This Row],[Total Points]],League[Total Points]) -> 33 | I36: =IF(League[[#This Row],[Gender]]="M",RANK(League[Total Points],mrank),"") -> 23 | J36: =IF(League[[#This Row],[Gender]]="F",RANK(League[Total Points],wrank),"") ->  | K36: =SUM(League[[#This Row],[XC]:[Thunder Run]]) -> 214 | L36: =IFERROR(VLOOKUP(League[[#This Row],[Memberno]],XC[[Mem]:[Total Points]],5,0),"") -> 69 | M36: =IFERROR(VLOOKUP(League[[#This Row],[Parkrun '#]],Parkrun[],7,FALSE),"") -> 32 | N36: =IFERROR(VLOOKUP(League[[#This Row],[Memberno]],Club5k[],5,FALSE),"") ->  | O36: =IFERROR(VLOOKUP(League[[#This Row],[Memberno]],Halfmarathon[Mem]:Halfmarathon[Points],4,0),"") -> 37 | P36: =IFERROR(VLOOKUP(League[[#This Row],[Memberno]],Marathon[],4,FALSE),"") ->  | Q36: =IFERROR(VLOOKUP(League[[#This Row],[Memberno]],Table18[],5,FALSE),"") -> 42 | R36: =IFERROR(VLOOKUP(League[[#This Row],[Memberno]],tenK[[Member '#]:[Total Points]],2,FALSE),"") -> 34 | S36: =IFERROR(VLOOKUP(League[[#This Row],[Memberno]],Thunderrun[],3,FALSE),"") -> 
B37: Ammon Piepgrass | C37: 311 | D37: 652961 | E37: =COUNT(League[[#This Row],[XC]:[Thunder Run]]) -> 2 | F37: M | G37: =VLOOKUP(League[[#This Row],[Memberno]],Allmembers[],7,FALSE) -> MS | H37: =RANK(League[[#This Row],[Total Points]],League[Total Points]) -> 34 | I37: =IF(League[[#This Row],[Gender]]="M",RANK(League[Total Points],mrank),"") -> 24 | J37: =IF(League[[#This Row],[Gender]]="F",RANK(League[Total Points],wrank),"") ->  | K37: =SUM(League[[#This Row],[XC]:[Thunder Run]]) -> 190 | L37: =IFERROR(VLOOKUP(League[[#This Row],[Memberno]],XC[[Mem]:[Total Points]],5,0),"") -> 142 | M37: =IFERROR(VLOOKUP(League[[#This Row],[Parkrun '#]],Parkrun[],7,FALSE),"") -> 48 | N37: =IFERROR(VLOOKUP(League[[#This Row],[Memberno]],Club5k[],5,FALSE),"") ->  | O37: =IFERROR(VLOOKUP(League[[#This Row],[Memberno]],Halfmarathon[Mem]:Halfmarathon[Points],4,0),"") ->  | P37: =IFERROR(VLOOKUP(League[[#This Row],[Memberno]],Marathon[],4,FALSE),"") ->  | Q37: =IFERROR(VLOOKUP(League[[#This Row],[Memberno]],Table18[],5,FALSE),"") ->  | R37: =IFERROR(VLOOKUP(League[[#This Row],[Memberno]],tenK[[Member '#]:[Total Points]],2,FALSE),"") ->  | S37: =IFERROR(VLOOKUP(League[[#This Row],[Memberno]],Thunderrun[],3,FALSE),"") -> 
B38: Adrian James | C38: =IFERROR(VLOOKUP(League[[#This Row],[Name]],members,2,FALSE),"") -> 236 | E38: =COUNT(League[[#This Row],[XC]:[Thunder Run]]) -> 2 | F38: M | G38: =VLOOKUP(League[[#This Row],[Memberno]],Allmembers[],7,FALSE) -> MV40 | H38: =RANK(League[[#This Row],[Total Points]],League[Total Points]) -> 35 | I38: =IF(League[[#This Row],[Gender]]="M",RANK(League[Total Points],mrank),"") -> 25 | J38: =IF(League[[#This Row],[Gender]]="F",RANK(League[Total Points],wrank),"") ->  | K38: =SUM(League[[#This Row],[XC]:[Thunder Run]]) -> 183 | L38: =IFERROR(VLOOKUP(League[[#This Row],[Memberno]],XC[[Mem]:[Total Points]],5,0),"") -> 139 | M38: =IFERROR(VLOOKUP(League[[#This Row],[Parkrun '#]],Parkrun[],7,FALSE),"") ->  | N38: =IFERROR(VLOOKUP(League[[#This Row],[Memberno]],Club5k[],5,FALSE),"") ->  | O38: =IFERROR(VLOOKUP(League[[#This Row],[Memberno]],Halfmarathon[Mem]:Halfmarathon[Points],4,0),"") ->  | P38: =IFERROR(VLOOKUP(League[[#This Row],[Memberno]],Marathon[],4,FALSE),"") ->  | Q38: =IFERROR(VLOOKUP(League[[#This Row],[Memberno]],Table18[],5,FALSE),"") ->  | R38: =IFERROR(VLOOKUP(League[[#This Row],[Memberno]],tenK[[Member '#]:[Total Points]],2,FALSE),"") -> 44 | S38: =IFERROR(VLOOKUP(League[[#This Row],[Memberno]],Thunderrun[],3,FALSE),"") -> 
B39: Camilla Davidson | C39: =IFERROR(VLOOKUP(League[[#This Row],[Name]],members,2,FALSE),"") -> 74 | E39: =COUNT(League[[#This Row],[XC]:[Thunder Run]]) -> 4 | F39: F | G39: =VLOOKUP(League[[#This Row],[Memberno]],Allmembers[],7,FALSE) -> FS | H39: =RANK(League[[#This Row],[Total Points]],League[Total Points]) -> 36 | I39: =IF(League[[#This Row],[Gender]]="M",RANK(League[Total Points],mrank),"") ->  | J39: =IF(League[[#This Row],[Gender]]="F",RANK(League[Total Points],wrank),"") -> 11 | K39: =SUM(League[[#This Row],[XC]:[Thunder Run]]) -> 179 | L39: =IFERROR(VLOOKUP(League[[#This Row],[Memberno]],XC[[Mem]:[Total Points]],5,0),"") -> 50 | M39: =IFERROR(VLOOKUP(League[[#This Row],[Parkrun '#]],Parkrun[],7,FALSE),"") ->  | N39: =IFERROR(VLOOKUP(League[[#This Row],[Memberno]],Club5k[],5,FALSE),"") ->  | O39: =IFERROR(VLOOKUP(League[[#This Row],[Memberno]],Halfmarathon[Mem]:Halfmarathon[Points],4,0),"") ->  | P39: =IFERROR(VLOOKUP(League[[#This Row],[Memberno]],Marathon[],4,FALSE),"") -> 30 | Q39: =IFERROR(VLOOKUP(League[[#This Row],[Memberno]],Table18[],5,FALSE),"") -> 49 | R39: =IFERROR(VLOOKUP(League[[#This Row],[Memberno]],tenK[[Member '#]:[Total Points]],2,FALSE),"") -> 50 | S39: =IFERROR(VLOOKUP(League[[#This Row],[Memberno]],Thunderrun[],3,FALSE),"") -> 
B40: Michael Hessey | C40: =IFERROR(VLOOKUP(League[[#This Row],[Name]],members,2,FALSE),"") -> 32 | D40: 353523 | E40: =COUNT(League[[#This Row],[XC]:[Thunder Run]]) -> 6 | F40: M | G40: =VLOOKUP(League[[#This Row],[Memberno]],Allmembers[],7,FALSE) -> MV40 | H40: =RANK(League[[#This Row],[Total Points]],League[Total Points]) -> 37 | I40: =IF(League[[#This Row],[Gender]]="M",RANK(League[Total Points],mrank),"") -> 26 | J40: =IF(League[[#This Row],[Gender]]="F",RANK(League[Total Points],wrank),"") ->  | K40: =SUM(League[[#This Row],[XC]:[Thunder Run]]) -> 170 | L40: =IFERROR(VLOOKUP(League[[#This Row],[Memberno]],XC[[Mem]:[Total Points]],5,0),"") -> 32 | M40: =IFERROR(VLOOKUP(League[[#This Row],[Parkrun '#]],Parkrun[],7,FALSE),"") -> 27 | N40: =IFERROR(VLOOKUP(League[[#This Row],[Memberno]],Club5k[],5,FALSE),"") -> 10 | O40: =IFERROR(VLOOKUP(League[[#This Row],[Memberno]],Halfmarathon[Mem]:Halfmarathon[Points],4,0),"") -> 32 | P40: =IFERROR(VLOOKUP(League[[#This Row],[Memberno]],Marathon[],4,FALSE),"") -> 30 | Q40: =IFERROR(VLOOKUP(League[[#This Row],[Memberno]],Table18[],5,FALSE),"") -> 39 | R40: =IFERROR(VLOOKUP(League[[#This Row],[Memberno]],tenK[[Member '#]:[Total Points]],2,FALSE),"") ->  | S40: =IFERROR(VLOOKUP(League[[#This Row],[Memberno]],Thunderrun[],3,FALSE),"") -> 
B41: Paul Geary | C41: =IFERROR(VLOOKUP(League[[#This Row],[Name]],members,2,FALSE),"") -> 187 | E41: =COUNT(League[[#This Row],[XC]:[Thunder Run]]) -> 4 | F41: M | G41: =VLOOKUP(League[[#This Row],[Memberno]],Allmembers[],7,FALSE) -> MV40 | H41: =RANK(League[[#This Row],[Total Points]],League[Total Points]) -> 37 | I41: =IF(League[[#This Row],[Gender]]="M",RANK(League[Total Points],mrank),"") -> 26 | J41: =IF(League[[#This Row],[Gender]]="F",RANK(League[Total Points],wrank),"") ->  | K41: =SUM(League[[#This Row],[XC]:[Thunder Run]]) -> 170 | L41: =IFERROR(VLOOKUP(League[[#This Row],[Memberno]],XC[[Mem]:[Total Points]],5,0),"") ->  | M41: =IFERROR(VLOOKUP(League[[#This Row],[Parkrun '#]],Parkrun[],7,FALSE),"") ->  | N41: =IFERROR(VLOOKUP(League[[#This Row],[Memberno]],Club5k[],5,FALSE),"") -> 5 | O41: =IFERROR(VLOOKUP(League[[#This Row],[Memberno]],Halfmarathon[Mem]:Halfmarathon[Points],4,0),"") -> 72 | P41: =IFERROR(VLOOKUP(League[[#This Row],[Memberno]],Marathon[],4,FALSE),"") -> 30 | Q41: =IFERROR(VLOOKUP(League[[#This Row],[Memberno]],Table18[],5,FALSE),"") ->  | R41: =IFERROR(VLOOKUP(League[[#This Row],[Memberno]],tenK[[Member '#]:[Total Points]],2,FALSE),"") -> 63 | S41: =IFERROR(VLOOKUP(League[[#This Row],[Memberno]],Thunderrun[],3,FALSE),"") -> 
B42: Jillian Russell | C42: =IFERROR(VLOOKUP(League[[#This Row],[Name]],members,2,FALSE),"") -> 44 | D42: 738705 | E42: =COUNT(League[[#This Row],[XC]:[Thunder Run]]) -> 4 | F42: F | G42: =VLOOKUP(League[[#This Row],[Memberno]],Allmembers[],7,FALSE) -> FV45 | H42: =RANK(League[[#This Row],[Total Points]],League[Total Points]) -> 39 | I42: =IF(League[[#This Row],[Gender]]="M",RANK(League[Total Points],mrank),"") ->  | J42: =IF(League[[#This Row],[Gender]]="F",RANK(League[Total Points],wrank),"") -> 12 | K42: =SUM(League[[#This Row],[XC]:[Thunder Run]]) -> 167 | L42: =IFERROR(VLOOKUP(League[[#This Row],[Memberno]],XC[[Mem]:[Total Points]],5,0),"") -> 44 | M42: =IFERROR(VLOOKUP(League[[#This Row],[Parkrun '#]],Parkrun[],7,FALSE),"") -> 41 | N42: =IFERROR(VLOOKUP(League[[#This Row],[Memberno]],Club5k[],5,FALSE),"") ->  | O42: =IFERROR(VLOOKUP(League[[#This Row],[Memberno]],Halfmarathon[Mem]:Halfmarathon[Points],4,0),"") ->  | P42: =IFERROR(VLOOKUP(League[[#This Row],[Memberno]],Marathon[],4,FALSE),"") ->  | Q42: =IFERROR(VLOOKUP(League[[#This Row],[Memberno]],Table18[],5,FALSE),"") -> 40 | R42: =IFERROR(VLOOKUP(League[[#This Row],[Memberno]],tenK[[Member '#]:[Total Points]],2,FALSE),"") -> 42 | S42: =IFERROR(VLOOKUP(League[[#This Row],[Memberno]],Thunderrun[],3,FALSE),"") -> 
B43: John Mercer | C43: =IFERROR(VLOOKUP(League[[#This Row],[Name]],members,2,FALSE),"") -> 252 | E43: =COUNT(League[[#This Row],[XC]:[Thunder Run]]) -> 4 | F43: M | G43: =VLOOKUP(League[[#This Row],[Memberno]],Allmembers[],7,FALSE) -> MV50 | H43: =RANK(League[[#This Row],[Total Points]],League[Total Points]) -> 40 | I43: =IF(League[[#This Row],[Gender]]="M",RANK(League[Total Points],mrank),"") -> 28 | J43: =IF(League[[#This Row],[Gender]]="F",RANK(League[Total Points],wrank),"") ->  | K43: =SUM(League[[#This Row],[XC]:[Thunder Run]]) -> 161 | L43: =IFERROR(VLOOKUP(League[[#This Row],[Memberno]],XC[[Mem]:[Total Points]],5,0),"") -> 36 | M43: =IFERROR(VLOOKUP(League[[#This Row],[Parkrun '#]],Parkrun[],7,FALSE),"") ->  | N43: =IFERROR(VLOOKUP(League[[#This Row],[Memberno]],Club5k[],5,FALSE),"") -> 25 | O43: =IFERROR(VLOOKUP(League[[#This Row],[Memberno]],Halfmarathon[Mem]:Halfmarathon[Points],4,0),"") -> 68 | P43: =IFERROR(VLOOKUP(League[[#This Row],[Memberno]],Marathon[],4,FALSE),"") ->  | Q43: =IFERROR(VLOOKUP(League[[#This Row],[Memberno]],Table18[],5,FALSE),"") ->  | R43: =IFERROR(VLOOKUP(League[[#This Row],[Memberno]],tenK[[Member '#]:[Total Points]],2,FALSE),"") -> 32 | S43: =IFERROR(VLOOKUP(League[[#This Row],[Memberno]],Thunderrun[],3,FALSE),"") -> 
B44: Chitra Dunn | C44: =IFERROR(VLOOKUP(League[[#This Row],[Name]],members,2,FALSE),"") -> 238 | D44: 346162 | E44: =COUNT(League[[#This Row],[XC]:[Thunder Run]]) -> 4 | F44: M | G44: =VLOOKUP(League[[#This Row],[Memberno]],Allmembers[],7,FALSE) -> MV50 | H44: =RANK(League[[#This Row],[Total Points]],League[Total Points]) -> 41 | I44: =IF(League[[#This Row],[Gender]]="M",RANK(League[Total Points],mrank),"") -> 29 | J44: =IF(League[[#This Row],[Gender]]="F",RANK(League[Total Points],wrank),"") ->  | K44: =SUM(League[[#This Row],[XC]:[Thunder Run]]) -> 159 | L44: =IFERROR(VLOOKUP(League[[#This Row],[Memberno]],XC[[Mem]:[Total Points]],5,0),"") ->  | M44: =IFERROR(VLOOKUP(League[[#This Row],[Parkrun '#]],Parkrun[],7,FALSE),"") -> 20 | N44: =IFERROR(VLOOKUP(League[[#This Row],[Memberno]],Club5k[],5,FALSE),"") -> 55 | O44: =IFERROR(VLOOKUP(League[[#This Row],[Memberno]],Halfmarathon[Mem]:Halfmarathon[Points],4,0),"") ->  | P44: =IFERROR(VLOOKUP(League[[#This Row],[Memberno]],Marathon[],4,FALSE),"") ->  | Q44: =IFERROR(VLOOKUP(League[[#This Row],[Memberno]],Table18[],5,FALSE),"") -> 35 | R44: =IFERROR(VLOOKUP(League[[#This Row],[Memberno]],tenK[[Member '#]:[Total Points]],2,FALSE),"") -> 49 | S44: =IFERROR(VLOOKUP(League[[#This Row],[Memberno]],Thunderrun[],3,FALSE),"") -> 
B45: Richard Moreton | C45: 283 | D45: 646541 | E45: =COUNT(League[[#This Row],[XC]:[Thunder Run]]) -> 4 | F45: M | G45: =VLOOKUP(League[[#This Row],[Memberno]],Allmembers[],7,FALSE) -> MV40 | H45: =RANK(League[[#This Row],[Total Points]],League[Total Points]) -> 42 | I45: =IF(League[[#This Row],[Gender]]="M",RANK(League[Total Points],mrank),"") -> 30 | J45: =IF(League[[#This Row],[Gender]]="F",RANK(League[Total Points],wrank),"") ->  | K45: =SUM(League[[#This Row],[XC]:[Thunder Run]]) -> 151 | L45: =IFERROR(VLOOKUP(League[[#This Row],[Memberno]],XC[[Mem]:[Total Points]],5,0),"") -> 68 | M45: =IFERROR(VLOOKUP(League[[#This Row],[Parkrun '#]],Parkrun[],7,FALSE),"") -> 28 | N45: =IFERROR(VLOOKUP(League[[#This Row],[Memberno]],Club5k[],5,FALSE),"") -> 30 | O45: =IFERROR(VLOOKUP(League[[#This Row],[Memberno]],Halfmarathon[Mem]:Halfmarathon[Points],4,0),"") ->  | P45: =IFERROR(VLOOKUP(League[[#This Row],[Memberno]],Marathon[],4,FALSE),"") ->  | Q45: =IFERROR(VLOOKUP(League[[#This Row],[Memberno]],Table18[],5,FALSE),"") ->  | R45: =IFERROR(VLOOKUP(League[[#This Row],[Memberno]],tenK[[Member '#]:[Total Points]],2,FALSE),"") -> 25 | S45: =IFERROR(VLOOKUP(League[[#This Row],[Memberno]],Thunderrun[],3,FALSE),"") -> 
B46: Jennifer Cunniff | C46: =IFERROR(VLOOKUP(League[[#This Row],[Name]],members,2,FALSE),"") -> 225 | E46: =COUNT(League[[#This Row],[XC]:[Thunder Run]]) -> 3 | F46: F | G46: =VLOOKUP(League[[#This Row],[Memberno]],Allmembers[],7,FALSE) -> FS | H46: =RANK(League[[#This Row],[Total Points]],League[Total Points]) -> 43 | I46: =IF(League[[#This Row],[Gender]]="M",RANK(League[Total Points],mrank),"") ->  | J46: =IF(League[[#This Row],[Gender]]="F",RANK(League[Total Points],wrank),"") -> 13 | K46: =SUM(League[[#This Row],[XC]:[Thunder Run]]) -> 146 | L46: =IFERROR(VLOOKUP(League[[#This Row],[Memberno]],XC[[Mem]:[Total Points]],5,0),"") -> 86 | M46: =IFERROR(VLOOKUP(League[[#This Row],[Parkrun '#]],Parkrun[],7,FALSE),"") ->  | N46: =IFERROR(VLOOKUP(League[[#This Row],[Memberno]],Club5k[],5,FALSE),"") -> 15 | O46: =IFERROR(VLOOKUP(League[[#This Row],[Memberno]],Halfmarathon[Mem]:Halfmarathon[Points],4,0),"") ->  | P46: =IFERROR(VLOOKUP(League[[#This Row],[Memberno]],Marathon[],4,FALSE),"") ->  | Q46: =IFERROR(VLOOKUP(League[[#This Row],[Memberno]],Table18[],5,FALSE),"") ->  | R46: =IFERROR(VLOOKUP(League[[#This Row],[Memberno]],tenK[[Member '#]:[Total Points]],2,FALSE),"") -> 45 | S46: =IFERROR(VLOOKUP(League[[#This Row],[Memberno]],Thunderrun[],3,FALSE),"") -> 
B47: Karen Wilkins | C47: =IFERROR(VLOOKUP(League[[#This Row],[Name]],members,2,FALSE),"") -> 116 | D47: 350193 | E47: =COUNT(League[[#This Row],[XC]:[Thunder Run]]) -> 4 | F47: F | G47: =VLOOKUP(League[[#This Row],[Memberno]],Allmembers[],7,FALSE) -> FV35 | H47: =RANK(League[[#This Row],[Total Points]],League[Total Points]) -> 44 | I47: =IF(League[[#This Row],[Gender]]="M",RANK(League[Total Points],mrank),"") ->  | J47: =IF(League[[#This Row],[Gender]]="F",RANK(League[Total Points],wrank),"") -> 14 | K47: =SUM(League[[#This Row],[XC]:[Thunder Run]]) -> 137 | L47: =IFERROR(VLOOKUP(League[[#This Row],[Memberno]],XC[[Mem]:[Total Points]],5,0),"") -> 48 | M47: =IFERROR(VLOOKUP(League[[#This Row],[Parkrun '#]],Parkrun[],7,FALSE),"") ->  | N47: =IFERROR(VLOOKUP(League[[#This Row],[Memberno]],Club5k[],5,FALSE),"") -> 10 | O47: =IFERROR(VLOOKUP(League[[#This Row],[Memberno]],Halfmarathon[Mem]:Halfmarathon[Points],4,0),"") -> 49 | P47: =IFERROR(VLOOKUP(League[[#This Row],[Memberno]],Marathon[],4,FALSE),"") -> 30 | Q47: =IFERROR(VLOOKUP(League[[#This Row],[Memberno]],Table18[],5,FALSE),"") ->  | R47: =IFERROR(VLOOKUP(League[[#This Row],[Memberno]],tenK[[Member '#]:[Total Points]],2,FALSE),"") ->  | S47: =IFERROR(VLOOKUP(League[[#This Row],[Memberno]],Thunderrun[],3,FALSE),"") -> 
B48: Ian Long | C48: =IFERROR(VLOOKUP(League[[#This Row],[Name]],members,2,FALSE),"") -> 167 | D48: 220217 | E48: =COUNT(League[[#This Row],[XC]:[Thunder Run]]) -> 4 | F48: M | G48: =VLOOKUP(League[[#This Row],[Memberno]],Allmembers[],7,FALSE) -> MV40 | H48: =RANK(League[[#This Row],[Total Points]],League[Total Points]) -> 45 | I48: =IF(League[[#This Row],[Gender]]="M",RANK(League[Total Points],mrank),"") -> 31 | J48: =IF(League[[#This Row],[Gender]]="F",RANK(League[Total Points],wrank),"") ->  | K48: =SUM(League[[#This Row],[XC]:[Thunder Run]]) -> 130 | L48: =IFERROR(VLOOKUP(League[[#This Row],[Memberno]],XC[[Mem]:[Total Points]],5,0),"") -> 70 | M48: =IFERROR(VLOOKUP(League[[#This Row],[Parkrun '#]],Parkrun[],7,FALSE),"") -> 25 | N48: =IFERROR(VLOOKUP(League[[#This Row],[Memberno]],Club5k[],5,FALSE),"") -> 5 | O48: =IFERROR(VLOOKUP(League[[#This Row],[Memberno]],Halfmarathon[Mem]:Halfmarathon[Points],4,0),"") ->  | P48: =IFERROR(VLOOKUP(League[[#This Row],[Memberno]],Marathon[],4,FALSE),"") -> 30 | Q48: =IFERROR(VLOOKUP(League[[#This Row],[Memberno]],Table18[],5,FALSE),"") ->  | R48: =IFERROR(VLOOKUP(League[[#This Row],[Memberno]],tenK[[Member '#]:[Total Points]],2,FALSE),"") ->  | S48: =IFERROR(VLOOKUP(League[[#This Row],[Memberno]],Thunderrun[],3,FALSE),"") -> 
B49: Laura Nathan | C49: =IFERROR(VLOOKUP(League[[#This Row],[Name]],members,2,FALSE),"") -> 13 | D49: 287836 | E49: =COUNT(League[[#This Row],[XC]:[Thunder Run]]) -> 4 | F49: F | G49: =VLOOKUP(League[[#This Row],[Memberno]],Allmembers[],7,FALSE) -> FV35 | H49: =RANK(League[[#This Row],[Total Points]],League[Total Points]) -> 46 | I49: =IF(League[[#This Row],[Gender]]="M",RANK(League[Total Points],mrank),"") ->  | J49: =IF(League[[#This Row],[Gender]]="F",RANK(League[Total Points],wrank),"") -> 15 | K49: =SUM(League[[#This Row],[XC]:[Thunder Run]]) -> 128 | L49: =IFERROR(VLOOKUP(League[[#This Row],[Memberno]],XC[[Mem]:[Total Points]],5,0),"") -> 45 | M49: =IFERROR(VLOOKUP(League[[#This Row],[Parkrun '#]],Parkrun[],7,FALSE),"") ->  | N49: =IFERROR(VLOOKUP(League[[#This Row],[Memberno]],Club5k[],5,FALSE),"") -> 10 | O49: =IFERROR(VLOOKUP(League[[#This Row],[Memberno]],Halfmarathon[Mem]:Halfmarathon[Points],4,0),"") ->  | P49: =IFERROR(VLOOKUP(League[[#This Row],[Memberno]],Marathon[],4,FALSE),"") -> 30 | Q49: =IFERROR(VLOOKUP(League[[#This Row],[Memberno]],Table18[],5,FALSE),"") ->  | R49: =IFERROR(VLOOKUP(League[[#This Row],[Memberno]],tenK[[Member '#]:[Total Points]],2,FALSE),"") -> 43 | S49: =IFERROR(VLOOKUP(League[[#This Row],[Memberno]],Thunderrun[],3,FALSE),"") -> 
B50: John Rowlands | C50: =IFERROR(VLOOKUP(League[[#This Row],[Name]],members,2,FALSE),"") -> 185 | D50: 248706 | E50: =COUNT(League[[#This Row],[XC]:[Thunder Run]]) -> 5 | F50: M | G50: =VLOOKUP(League[[#This Row],[Memberno]],Allmembers[],7,FALSE) -> MV60 | H50: =RANK(League[[#This Row],[Total Points]],League[Total Points]) -> 47 | I50: =IF(League[[#This Row],[Gender]]="M",RANK(League[Total Points],mrank),"") -> 32 | J50: =IF(League[[#This Row],[Gender]]="F",RANK(League[Total Points],wrank),"") ->  | K50: =SUM(League[[#This Row],[XC]:[Thunder Run]]) -> 126 | L50: =IFERROR(VLOOKUP(League[[#This Row],[Memberno]],XC[[Mem]:[Total Points]],5,0),"") -> 28 | M50: =IFERROR(VLOOKUP(League[[#This Row],[Parkrun '#]],Parkrun[],7,FALSE),"") -> 22 | N50: =IFERROR(VLOOKUP(League[[#This Row],[Memberno]],Club5k[],5,FALSE),"") -> 10 | O50: =IFERROR(VLOOKUP(League[[#This Row],[Memberno]],Halfmarathon[Mem]:Halfmarathon[Points],4,0),"") ->  | P50: =IFERROR(VLOOKUP(League[[#This Row],[Memberno]],Marathon[],4,FALSE),"") ->  | Q50: =IFERROR(VLOOKUP(League[[#This Row],[Memberno]],Table18[],5,FALSE),"") -> 36 | R50: =IFERROR(VLOOKUP(League[[#This Row],[Memberno]],tenK[[Member '#]:[Total Points]],2,FALSE),"") -> 30 | S50: =IFERROR(VLOOKUP(League[[#This Row],[Memberno]],Thunderrun[],3,FALSE),"") -> 
B51: Craig Harper | C51: =IFERROR(VLOOKUP(League[[#This Row],[Name]],members,2,FALSE),"") -> 114 | E51: =COUNT(League[[#This Row],[XC]:[Thunder Run]]) -> 3 | F51: M | G51: =VLOOKUP(League[[#This Row],[Memberno]],Allmembers[],7,FALSE) -> MS | H51: =RANK(League[[#This Row],[Total Points]],League[Total Points]) -> 48 | I51: =IF(League[[#This Row],[Gender]]="M",RANK(League[Total Points],mrank),"") -> 33 | J51: =IF(League[[#This Row],[Gender]]="F",RANK(League[Total Points],wrank),"") ->  | K51: =SUM(League[[#This Row],[XC]:[Thunder Run]]) -> 125 | L51: =IFERROR(VLOOKUP(League[[#This Row],[Memberno]],XC[[Mem]:[Total Points]],5,0),"") -> 78 | M51: =IFERROR(VLOOKUP(League[[#This Row],[Parkrun '#]],Parkrun[],7,FALSE),"") ->  | N51: =IFERROR(VLOOKUP(League[[#This Row],[Memberno]],Club5k[],5,FALSE),"") -> 5 | O51: =IFERROR(VLOOKUP(League[[#This Row],[Memberno]],Halfmarathon[Mem]:Halfmarathon[Points],4,0),"") ->  | P51: =IFERROR(VLOOKUP(League[[#This Row],[Memberno]],Marathon[],4,FALSE),"") ->  | Q51: =IFERROR(VLOOKUP(League[[#This Row],[Memberno]],Table18[],5,FALSE),"") ->  | R51: =IFERROR(VLOOKUP(League[[#This Row],[Memberno]],tenK[[Member '#]:[Total Points]],2,FALSE),"") -> 42 | S51: =IFERROR(VLOOKUP(League[[#This Row],[Memberno]],Thunderrun[],3,FALSE),"") -> 
B52: Richard Bruce | C52: =IFERROR(VLOOKUP(League[[#This Row],[Name]],members,2,FALSE),"") -> 152 | E52: =COUNT(League[[#This Row],[XC]:[Thunder Run]]) -> 2 | F52: M | G52: =VLOOKUP(League[[#This Row],[Memberno]],Allmembers[],7,FALSE) -> MV40 | H52: =RANK(League[[#This Row],[Total Points]],League[Total Points]) -> 49 | I52: =IF(League[[#This Row],[Gender]]="M",RANK(League[Total Points],mrank),"") -> 34 | J52: =IF(League[[#This Row],[Gender]]="F",RANK(League[Total Points],wrank),"") ->  | K52: =SUM(League[[#This Row],[XC]:[Thunder Run]]) -> 123 | L52: =IFERROR(VLOOKUP(League[[#This Row],[Memberno]],XC[[Mem]:[Total Points]],5,0),"") -> 93 | M52: =IFERROR(VLOOKUP(League[[#This Row],[Parkrun '#]],Parkrun[],7,FALSE),"") ->  | N52: =IFERROR(VLOOKUP(League[[#This Row],[Memberno]],Club5k[],5,FALSE),"") ->  | O52: =IFERROR(VLOOKUP(League[[#This Row],[Memberno]],Halfmarathon[Mem]:Halfmarathon[Points],4,0),"") ->  | P52: =IFERROR(VLOOKUP(League[[#This Row],[Memberno]],Marathon[],4,FALSE),"") -> 30 | Q52: =IFERROR(VLOOKUP(League[[#This Row],[Memberno]],Table18[],5,FALSE),"") ->  | R52: =IFERROR(VLOOKUP(League[[#This Row],[Memberno]],tenK[[Member '#]:[Total Points]],2,FALSE),"") ->  | S52: =IFERROR(VLOOKUP(League[[#This Row],[Memberno]],Thunderrun[],3,FALSE),"") -> 
B53: Colette Pidgeon | C53: =IFERROR(VLOOKUP(League[[#This Row],[Name]],members,2,FALSE),"") -> 124 | D53: 422513 | E53: =COUNT(League[[#This Row],[XC]:[Thunder Run]]) -> 3 | F53: F | G53: =VLOOKUP(League[[#This Row],[Memberno]],Allmembers[],7,FALSE) -> FV35 | H53: =RANK(League[[#This Row],[Total Points]],League[Total Points]) -> 50 | I53: =IF(League[[#This Row],[Gender]]="M",RANK(League[Total Points],mrank),"") ->  | J53: =IF(League[[#This Row],[Gender]]="F",RANK(League[Total Points],wrank),"") -> 16 | K53: =SUM(League[[#This Row],[XC]:[Thunder Run]]) -> 122 | L53: =IFERROR(VLOOKUP(League[[#This Row],[Memberno]],XC[[Mem]:[Total Points]],5,0),"") ->  | M53: =IFERROR(VLOOKUP(League[[#This Row],[Parkrun '#]],Parkrun[],7,FALSE),"") -> 40 | N53: =IFERROR(VLOOKUP(League[[#This Row],[Memberno]],Club5k[],5,FALSE),"") -> 45 | O53: =IFERROR(VLOOKUP(League[[#This Row],[Memberno]],Halfmarathon[Mem]:Halfmarathon[Points],4,0),"") ->  | P53: =IFERROR(VLOOKUP(League[[#This Row],[Memberno]],Marathon[],4,FALSE),"") ->  | Q53: =IFERROR(VLOOKUP(League[[#This Row],[Memberno]],Table18[],5,FALSE),"") ->  | R53: =IFERROR(VLOOKUP(League[[#This Row],[Memberno]],tenK[[Member '#]:[Total Points]],2,FALSE),"") -> 37 | S53: =IFERROR(VLOOKUP(League[[#This Row],[Memberno]],Thunderrun[],3,FALSE),"") -> 
B54: Joolz Scott | C54: =IFERROR(VLOOKUP(League[[#This Row],[Name]],members,2,FALSE),"") -> 178 | D54: 295917 | E54: =COUNT(League[[#This Row],[XC]:[Thunder Run]]) -> 3 | F54: F | G54: =VLOOKUP(League[[#This Row],[Memberno]],Allmembers[],7,FALSE) -> FV45 | H54: =RANK(League[[#This Row],[Total Points]],League[Total Points]) -> 51 | I54: =IF(League[[#This Row],[Gender]]="M",RANK(League[Total Points],mrank),"") ->  | J54: =IF(League[[#This Row],[Gender]]="F",RANK(League[Total Points],wrank),"") -> 17 | K54: =SUM(League[[#This Row],[XC]:[Thunder Run]]) -> 120 | L54: =IFERROR(VLOOKUP(League[[#This Row],[Memberno]],XC[[Mem]:[Total Points]],5,0),"") -> 46 | M54: =IFERROR(VLOOKUP(League[[#This Row],[Parkrun '#]],Parkrun[],7,FALSE),"") ->  | N54: =IFERROR(VLOOKUP(League[[#This Row],[Memberno]],Club5k[],5,FALSE),"") -> 30 | O54: =IFERROR(VLOOKUP(League[[#This Row],[Memberno]],Halfmarathon[Mem]:Halfmarathon[Points],4,0),"") -> 44 | P54: =IFERROR(VLOOKUP(League[[#This Row],[Memberno]],Marathon[],4,FALSE),"") ->  | Q54: =IFERROR(VLOOKUP(League[[#This Row],[Memberno]],Table18[],5,FALSE),"") ->  | R54: =IFERROR(VLOOKUP(League[[#This Row],[Memberno]],tenK[[Member '#]:[Total Points]],2,FALSE),"") ->  | S54: =IFERROR(VLOOKUP(League[[#This Row],[Memberno]],Thunderrun[],3,FALSE),"") -> 
B55: Justin Busby | C55: =IFERROR(VLOOKUP(League[[#This Row],[Name]],members,2,FALSE),"") -> 292 | E55: =COUNT(League[[#This Row],[XC]:[Thunder Run]]) -> 4 | F55: M | G55: =VLOOKUP(League[[#This Row],[Memberno]],Allmembers[],7,FALSE) -> MS | H55: =RANK(League[[#This Row],[Total Points]],League[Total Points]) -> 52 | I55: =IF(League[[#This Row],[Gender]]="M",RANK(League[Total Points],mrank),"") -> 35 | J55: =IF(League[[#This Row],[Gender]]="F",RANK(League[Total Points],wrank),"") ->  | K55: =SUM(League[[#This Row],[XC]:[Thunder Run]]) -> 114 | L55: =IFERROR(VLOOKUP(League[[#This Row],[Memberno]],XC[[Mem]:[Total Points]],5,0),"") -> 38 | M55: =IFERROR(VLOOKUP(League[[#This Row],[Parkrun '#]],Parkrun[],7,FALSE),"") ->  | N55: =IFERROR(VLOOKUP(League[[#This Row],[Memberno]],Club5k[],5,FALSE),"") -> 5 | O55: =IFERROR(VLOOKUP(League[[#This Row],[Memberno]],Halfmarathon[Mem]:Halfmarathon[Points],4,0),"") -> 35 | P55: =IFERROR(VLOOKUP(League[[#This Row],[Memberno]],Marathon[],4,FALSE),"") ->  | Q55: =IFERROR(VLOOKUP(League[[#This Row],[Memberno]],Table18[],5,FALSE),"") ->  | R55: =IFERROR(VLOOKUP(League[[#This Row],[Memberno]],tenK[[Member '#]:[Total Points]],2,FALSE),"") -> 36 | S55: =IFERROR(VLOOKUP(League[[#This Row],[Memberno]],Thunderrun[],3,FALSE),"") -> 
B56: Ian Smart | C56: =IFERROR(VLOOKUP(League[[#This Row],[Name]],members,2,FALSE),"") -> 60 | E56: =COUNT(League[[#This Row],[XC]:[Thunder Run]]) -> 3 | F56: M | G56: =VLOOKUP(League[[#This Row],[Memberno]],Allmembers[],7,FALSE) -> MV50 | H56: =RANK(League[[#This Row],[Total Points]],League[Total Points]) -> 53 | I56: =IF(League[[#This Row],[Gender]]="M",RANK(League[Total Points],mrank),"") -> 36 | J56: =IF(League[[#This Row],[Gender]]="F",RANK(League[Total Points],wrank),"") ->  | K56: =SUM(League[[#This Row],[XC]:[Thunder Run]]) -> 110 | L56: =IFERROR(VLOOKUP(League[[#This Row],[Memberno]],XC[[Mem]:[Total Points]],5,0),"") ->  | M56: =IFERROR(VLOOKUP(League[[#This Row],[Parkrun '#]],Parkrun[],7,FALSE),"") ->  | N56: =IFERROR(VLOOKUP(League[[#This Row],[Memberno]],Club5k[],5,FALSE),"") ->  | O56: =IFERROR(VLOOKUP(League[[#This Row],[Memberno]],Halfmarathon[Mem]:Halfmarathon[Points],4,0),"") -> 38 | P56: =IFERROR(VLOOKUP(League[[#This Row],[Memberno]],Marathon[],4,FALSE),"") ->  | Q56: =IFERROR(VLOOKUP(League[[#This Row],[Memberno]],Table18[],5,FALSE),"") -> 40 | R56: =IFERROR(VLOOKUP(League[[#This Row],[Memberno]],tenK[[Member '#]:[Total Points]],2,FALSE),"") -> 32 | S56: =IFERROR(VLOOKUP(League[[#This Row],[Memberno]],Thunderrun[],3,FALSE),"") -> 
B57: Georgia Dench | C57: =IFERROR(VLOOKUP(League[[#This Row],[Name]],members,2,FALSE),"") -> 254 | E57: =COUNT(League[[#This Row],[XC]:[Thunder Run]]) -> 1 | F57: F | G57: =VLOOKUP(League[[#This Row],[Memberno]],Allmembers[],7,FALSE) -> FV35 | H57: =RANK(League[[#This Row],[Total Points]],League[Total Points]) -> 54 | I57: =IF(League[[#This Row],[Gender]]="M",RANK(League[Total Points],mrank),"") ->  | J57: =IF(League[[#This Row],[Gender]]="F",RANK(League[Total Points],wrank),"") -> 18 | K57: =SUM(League[[#This Row],[XC]:[Thunder Run]]) -> 99 | L57: =IFERROR(VLOOKUP(League[[#This Row],[Memberno]],XC[[Mem]:[Total Points]],5,0),"") -> 99 | M57: =IFERROR(VLOOKUP(League[[#This Row],[Parkrun '#]],Parkrun[],7,FALSE),"") ->  | N57: =IFERROR(VLOOKUP(League[[#This Row],[Memberno]],Club5k[],5,FALSE),"") ->  | O57: =IFERROR(VLOOKUP(League[[#This Row],[Memberno]],Halfmarathon[Mem]:Halfmarathon[Points],4,0),"") ->  | P57: =IFERROR(VLOOKUP(League[[#This Row],[Memberno]],Marathon[],4,FALSE),"") ->  | Q57: =IFERROR(VLOOKUP(League[[#This Row],[Memberno]],Table18[],5,FALSE),"") ->  | R57: =IFERROR(VLOOKUP(League[[#This Row],[Memberno]],tenK[[Member '#]:[Total Points]],2,FALSE),"") ->  | S57: =IFERROR(VLOOKUP(League[[#This Row],[Memberno]],Thunderrun[],3,FALSE),"") -> 
B58: Riana Walsh | C58: 316 | E58: =COUNT(League[[#This Row],[XC]:[Thunder Run]]) -> 2 | F58: F | G58: =VLOOKUP(League[[#This Row],[Memberno]],Allmembers[],7,FALSE) -> FV35 | H58: =RANK(League[[#This Row],[Total Points]],League[Total Points]) -> 55 | I58: =IF(League[[#This Row],[Gender]]="M",RANK(League[Total Points],mrank),"") ->  | J58: =IF(League[[#This Row],[Gender]]="F",RANK(League[Total Points],wrank),"") -> 19 | K58: =SUM(League[[#This Row],[XC]:[Thunder Run]]) -> 96 | L58: =IFERROR(VLOOKUP(League[[#This Row],[Memberno]],XC[[Mem]:[Total Points]],5,0),"") -> 91 | M58: =IFERROR(VLOOKUP(League[[#This Row],[Parkrun '#]],Parkrun[],7,FALSE),"") ->  | N58: =IFERROR(VLOOKUP(League[[#This Row],[Memberno]],Club5k[],5,FALSE),"") -> 5 | O58: =IFERROR(VLOOKUP(League[[#This Row],[Memberno]],Halfmarathon[Mem]:Halfmarathon[Points],4,0),"") ->  | P58: =IFERROR(VLOOKUP(League[[#This Row],[Memberno]],Marathon[],4,FALSE),"") ->  | Q58: =IFERROR(VLOOKUP(League[[#This Row],[Memberno]],Table18[],5,FALSE),"") ->  | R58: =IFERROR(VLOOKUP(League[[#This Row],[Memberno]],tenK[[Member '#]:[Total Points]],2,FALSE),"") ->  | S58: =IFERROR(VLOOKUP(League[[#This Row],[Memberno]],Thunderrun[],3,FALSE),"") -> 
B59: James Chasen | C59: =IFERROR(VLOOKUP(League[[#This Row],[Name]],members,2,FALSE),"") -> 294 | E59: =COUNT(League[[#This Row],[XC]:[Thunder Run]]) -> 2 | F59: M | G59: =VLOOKUP(League[[#This Row],[Memberno]],Allmembers[],7,FALSE) -> MS | H59: =RANK(League[[#This Row],[Total Points]],League[Total Points]) -> 56 | I59: =IF(League[[#This Row],[Gender]]="M",RANK(League[Total Points],mrank),"") -> 37 | J59: =IF(League[[#This Row],[Gender]]="F",RANK(League[Total Points],wrank),"") ->  | K59: =SUM(League[[#This Row],[XC]:[Thunder Run]]) -> 95 | L59: =IFERROR(VLOOKUP(League[[#This Row],[Memberno]],XC[[Mem]:[Total Points]],5,0),"") -> 46 | M59: =IFERROR(VLOOKUP(League[[#This Row],[Parkrun '#]],Parkrun[],7,FALSE),"") ->  | N59: =IFERROR(VLOOKUP(League[[#This Row],[Memberno]],Club5k[],5,FALSE),"") ->  | O59: =IFERROR(VLOOKUP(League[[#This Row],[Memberno]],Halfmarathon[Mem]:Halfmarathon[Points],4,0),"") ->  | P59: =IFERROR(VLOOKUP(League[[#This Row],[Memberno]],Marathon[],4,FALSE),"") ->  | Q59: =IFERROR(VLOOKUP(League[[#This Row],[Memberno]],Table18[],5,FALSE),"") ->  | R59: =IFERROR(VLOOKUP(League[[#This Row],[Memberno]],tenK[[Member '#]:[Total Points]],2,FALSE),"") -> 49 | S59: =IFERROR(VLOOKUP(League[[#This Row],[Memberno]],Thunderrun[],3,FALSE),"") -> 
B60: Jason W Smith | C60: =IFERROR(VLOOKUP(League[[#This Row],[Name]],members,2,FALSE),"") -> 263 | E60: =COUNT(League[[#This Row],[XC]:[Thunder Run]]) -> 3 | F60: M | G60: =VLOOKUP(League[[#This Row],[Memberno]],Allmembers[],7,FALSE) -> MV40 | H60: =RANK(League[[#This Row],[Total Points]],League[Total Points]) -> 57 | I60: =IF(League[[#This Row],[Gender]]="M",RANK(League[Total Points],mrank),"") -> 38 | J60: =IF(League[[#This Row],[Gender]]="F",RANK(League[Total Points],wrank),"") ->  | K60: =SUM(League[[#This Row],[XC]:[Thunder Run]]) -> 90 | L60: =IFERROR(VLOOKUP(League[[#This Row],[Memberno]],XC[[Mem]:[Total Points]],5,0),"") ->  | M60: =IFERROR(VLOOKUP(League[[#This Row],[Parkrun '#]],Parkrun[],7,FALSE),"") ->  | N60: =IFERROR(VLOOKUP(League[[#This Row],[Memberno]],Club5k[],5,FALSE),"") -> 15 | O60: =IFERROR(VLOOKUP(League[[#This Row],[Memberno]],Halfmarathon[Mem]:Halfmarathon[Points],4,0),"") -> 45 | P60: =IFERROR(VLOOKUP(League[[#This Row],[Memberno]],Marathon[],4,FALSE),"") ->  | Q60: =IFERROR(VLOOKUP(League[[#This Row],[Memberno]],Table18[],5,FALSE),"") ->  | R60: =IFERROR(VLOOKUP(League[[#This Row],[Memberno]],tenK[[Member '#]:[Total Points]],2,FALSE),"") -> 30 | S60: =IFERROR(VLOOKUP(League[[#This Row],[Memberno]],Thunderrun[],3,FALSE),"") -> 
B61: Iain Tucker | C61: =IFERROR(VLOOKUP(League[[#This Row],[Name]],members,2,FALSE),"") -> 302 | D61: 653726 | E61: =COUNT(League[[#This Row],[XC]:[Thunder Run]]) -> 2 | F61: M | G61: =VLOOKUP(League[[#This Row],[Memberno]],Allmembers[],7,FALSE) -> MS | H61: =RANK(League[[#This Row],[Total Points]],League[Total Points]) -> 58 | I61: =IF(League[[#This Row],[Gender]]="M",RANK(League[Total Points],mrank),"") -> 39 | J61: =IF(League[[#This Row],[Gender]]="F",RANK(League[Total Points],wrank),"") ->  | K61: =SUM(League[[#This Row],[XC]:[Thunder Run]]) -> 89 | L61: =IFERROR(VLOOKUP(League[[#This Row],[Memberno]],XC[[Mem]:[Total Points]],5,0),"") ->  | M61: =IFERROR(VLOOKUP(League[[#This Row],[Parkrun '#]],Parkrun[],7,FALSE),"") -> 44 | N61: =IFERROR(VLOOKUP(League[[#This Row],[Memberno]],Club5k[],5,FALSE),"") ->  | O61: =IFERROR(VLOOKUP(League[[#This Row],[Memberno]],Halfmarathon[Mem]:Halfmarathon[Points],4,0),"") ->  | P61: =IFERROR(VLOOKUP(League[[#This Row],[Memberno]],Marathon[],4,FALSE),"") ->  | Q61: =IFERROR(VLOOKUP(League[[#This Row],[Memberno]],Table18[],5,FALSE),"") ->  | R61: =IFERROR(VLOOKUP(League[[#This Row],[Memberno]],tenK[[Member '#]:[Total Points]],2,FALSE),"") -> 45 | S61: =IFERROR(VLOOKUP(League[[#This Row],[Memberno]],Thunderrun[],3,FALSE),"") -> 
B62: Norman Whitwood | C62: =IFERROR(VLOOKUP(League[[#This Row],[Name]],members,2,FALSE),"") -> 93 | D62: 645231 | E62: =COUNT(League[[#This Row],[XC]:[Thunder Run]]) -> 4 | F62: M | G62: =VLOOKUP(League[[#This Row],[Memberno]],Allmembers[],7,FALSE) -> MV60 | H62: =RANK(League[[#This Row],[Total Points]],League[Total Points]) -> 58 | I62: =IF(League[[#This Row],[Gender]]="M",RANK(League[Total Points],mrank),"") -> 39 | J62: =IF(League[[#This Row],[Gender]]="F",RANK(League[Total Points],wrank),"") ->  | K62: =SUM(League[[#This Row],[XC]:[Thunder Run]]) -> 89 | L62: =IFERROR(VLOOKUP(League[[#This Row],[Memberno]],XC[[Mem]:[Total Points]],5,0),"") -> 51 | M62: =IFERROR(VLOOKUP(League[[#This Row],[Parkrun '#]],Parkrun[],7,FALSE),"") -> 16 | N62: =IFERROR(VLOOKUP(League[[#This Row],[Memberno]],Club5k[],5,FALSE),"") -> 5 | O62: =IFERROR(VLOOKUP(League[[#This Row],[Memberno]],Halfmarathon[Mem]:Halfmarathon[Points],4,0),"") ->  | P62: =IFERROR(VLOOKUP(League[[#This Row],[Memberno]],Marathon[],4,FALSE),"") ->  | Q62: =IFERROR(VLOOKUP(League[[#This Row],[Memberno]],Table18[],5,FALSE),"") ->  | R62: =IFERROR(VLOOKUP(League[[#This Row],[Memberno]],tenK[[Member '#]:[Total Points]],2,FALSE),"") -> 17 | S62: =IFERROR(VLOOKUP(League[[#This Row],[Memberno]],Thunderrun[],3,FALSE),"") -> 
B63: David Moritz | C63: 214 | D63: 235751 | E63: =COUNT(League[[#This Row],[XC]:[Thunder Run]]) -> 2 | F63: M | G63: =VLOOKUP(League[[#This Row],[Memberno]],Allmembers[],7,FALSE) -> MS | H63: =RANK(League[[#This Row],[Total Points]],League[Total Points]) -> 60 | I63: =IF(League[[#This Row],[Gender]]="M",RANK(League[Total Points],mrank),"") -> 41 | J63: =IF(League[[#This Row],[Gender]]="F",RANK(League[Total Points],wrank),"") ->  | K63: =SUM(League[[#This Row],[XC]:[Thunder Run]]) -> 88 | L63: =IFERROR(VLOOKUP(League[[#This Row],[Memberno]],XC[[Mem]:[Total Points]],5,0),"") ->  | M63: =IFERROR(VLOOKUP(League[[#This Row],[Parkrun '#]],Parkrun[],7,FALSE),"") -> 45 | N63: =IFERROR(VLOOKUP(League[[#This Row],[Memberno]],Club5k[],5,FALSE),"") ->  | O63: =IFERROR(VLOOKUP(League[[#This Row],[Memberno]],Halfmarathon[Mem]:Halfmarathon[Points],4,0),"") ->  | P63: =IFERROR(VLOOKUP(League[[#This Row],[Memberno]],Marathon[],4,FALSE),"") ->  | Q63: =IFERROR(VLOOKUP(League[[#This Row],[Memberno]],Table18[],5,FALSE),"") ->  | R63: =IFERROR(VLOOKUP(League[[#This Row],[Memberno]],tenK[[Member '#]:[Total Points]],2,FALSE),"") -> 43 | S63: =IFERROR(VLOOKUP(League[[#This Row],[Memberno]],Thunderrun[],3,FALSE),"") -> 
B64: Fiona Price | C64: 248 | E64: =COUNT(League[[#This Row],[XC]:[Thunder Run]]) -> 1 | F64: F | G64: =VLOOKUP(League[[#This Row],[Memberno]],Allmembers[],7,FALSE) -> FV35 | H64: =RANK(League[[#This Row],[Total Points]],League[Total Points]) -> 60 | I64: =IF(League[[#This Row],[Gender]]="M",RANK(League[Total Points],mrank),"") ->  | J64: =IF(League[[#This Row],[Gender]]="F",RANK(League[Total Points],wrank),"") -> 20 | K64: =SUM(League[[#This Row],[XC]:[Thunder Run]]) -> 88 | L64: =IFERROR(VLOOKUP(League[[#This Row],[Memberno]],XC[[Mem]:[Total Points]],5,0),"") ->  | M64: =IFERROR(VLOOKUP(League[[#This Row],[Parkrun '#]],Parkrun[],7,FALSE),"") ->  | N64: =IFERROR(VLOOKUP(League[[#This Row],[Memberno]],Club5k[],5,FALSE),"") ->  | O64: =IFERROR(VLOOKUP(League[[#This Row],[Memberno]],Halfmarathon[Mem]:Halfmarathon[Points],4,0),"") ->  | P64: =IFERROR(VLOOKUP(League[[#This Row],[Memberno]],Marathon[],4,FALSE),"") ->  | Q64: =IFERROR(VLOOKUP(League[[#This Row],[Memberno]],Table18[],5,FALSE),"") ->  | R64: =IFERROR(VLOOKUP(League[[#This Row],[Memberno]],tenK[[Member '#]:[Total Points]],2,FALSE),"") -> 88 | S64: =IFERROR(VLOOKUP(League[[#This Row],[Memberno]],Thunderrun[],3,FALSE),"") -> 
B65: Chris Cottle | C65: =IFERROR(VLOOKUP(League[[#This Row],[Name]],members,2,FALSE),"") -> 227 | D65: 755680 | E65: =COUNT(League[[#This Row],[XC]:[Thunder Run]]) -> 3 | F65: M | G65: =VLOOKUP(League[[#This Row],[Memberno]],Allmembers[],7,FALSE) -> MS | H65: =RANK(League[[#This Row],[Total Points]],League[Total Points]) -> 62 | I65: =IF(League[[#This Row],[Gender]]="M",RANK(League[Total Points],mrank),"") -> 42 | J65: =IF(League[[#This Row],[Gender]]="F",RANK(League[Total Points],wrank),"") ->  | K65: =SUM(League[[#This Row],[XC]:[Thunder Run]]) -> 87 | L65: =IFERROR(VLOOKUP(League[[#This Row],[Memberno]],XC[[Mem]:[Total Points]],5,0),"") ->  | M65: =IFERROR(VLOOKUP(League[[#This Row],[Parkrun '#]],Parkrun[],7,FALSE),"") -> 31 | N65: =IFERROR(VLOOKUP(League[[#This Row],[Memberno]],Club5k[],5,FALSE),"") -> 15 | O65: =IFERROR(VLOOKUP(League[[#This Row],[Memberno]],Halfmarathon[Mem]:Halfmarathon[Points],4,0),"") -> 41 | P65: =IFERROR(VLOOKUP(League[[#This Row],[Memberno]],Marathon[],4,FALSE),"") ->  | Q65: =IFERROR(VLOOKUP(League[[#This Row],[Memberno]],Table18[],5,FALSE),"") ->  | R65: =IFERROR(VLOOKUP(League[[#This Row],[Memberno]],tenK[[Member '#]:[Total Points]],2,FALSE),"") ->  | S65: =IFERROR(VLOOKUP(League[[#This Row],[Memberno]],Thunderrun[],3,FALSE),"") -> 
B66: Dee Bretnall | C66: =IFERROR(VLOOKUP(League[[#This Row],[Name]],members,2,FALSE),"") -> 230 | E66: =COUNT(League[[#This Row],[XC]:[Thunder Run]]) -> 2 | F66: F | G66: =VLOOKUP(League[[#This Row],[Memberno]],Allmembers[],7,FALSE) -> FV35 | H66: =RANK(League[[#This Row],[Total Points]],League[Total Points]) -> 62 | I66: =IF(League[[#This Row],[Gender]]="M",RANK(League[Total Points],mrank),"") ->  | J66: =IF(League[[#This Row],[Gender]]="F",RANK(League[Total Points],wrank),"") -> 21 | K66: =SUM(League[[#This Row],[XC]:[Thunder Run]]) -> 87 | L66: =IFERROR(VLOOKUP(League[[#This Row],[Memberno]],XC[[Mem]:[Total Points]],5,0),"") ->  | M66: =IFERROR(VLOOKUP(League[[#This Row],[Parkrun '#]],Parkrun[],7,FALSE),"") ->  | N66: =IFERROR(VLOOKUP(League[[#This Row],[Memberno]],Club5k[],5,FALSE),"") ->  | O66: =IFERROR(VLOOKUP(League[[#This Row],[Memberno]],Halfmarathon[Mem]:Halfmarathon[Points],4,0),"") -> 44 | P66: =IFERROR(VLOOKUP(League[[#This Row],[Memberno]],Marathon[],4,FALSE),"") ->  | Q66: =IFERROR(VLOOKUP(League[[#This Row],[Memberno]],Table18[],5,FALSE),"") -> 43 | R66: =IFERROR(VLOOKUP(League[[#This Row],[Memberno]],tenK[[Member '#]:[Total Points]],2,FALSE),"") ->  | S66: =IFERROR(VLOOKUP(League[[#This Row],[Memberno]],Thunderrun[],3,FALSE),"") -> 
B67: Lorna Townsend | C67: =IFERROR(VLOOKUP(League[[#This Row],[Name]],members,2,FALSE),"") -> 242 | E67: =COUNT(League[[#This Row],[XC]:[Thunder Run]]) -> 1 | F67: F | G67: =VLOOKUP(League[[#This Row],[Memberno]],Allmembers[],7,FALSE) -> F | H67: =RANK(League[[#This Row],[Total Points]],League[Total Points]) -> 64 | I67: =IF(League[[#This Row],[Gender]]="M",RANK(League[Total Points],mrank),"") ->  | J67: =IF(League[[#This Row],[Gender]]="F",RANK(League[Total Points],wrank),"") -> 22 | K67: =SUM(League[[#This Row],[XC]:[Thunder Run]]) -> 86 | L67: =IFERROR(VLOOKUP(League[[#This Row],[Memberno]],XC[[Mem]:[Total Points]],5,0),"") -> 86 | M67: =IFERROR(VLOOKUP(League[[#This Row],[Parkrun '#]],Parkrun[],7,FALSE),"") ->  | N67: =IFERROR(VLOOKUP(League[[#This Row],[Memberno]],Club5k[],5,FALSE),"") ->  | O67: =IFERROR(VLOOKUP(League[[#This Row],[Memberno]],Halfmarathon[Mem]:Halfmarathon[Points],4,0),"") ->  | P67: =IFERROR(VLOOKUP(League[[#This Row],[Memberno]],Marathon[],4,FALSE),"") ->  | Q67: =IFERROR(VLOOKUP(League[[#This Row],[Memberno]],Table18[],5,FALSE),"") ->  | R67: =IFERROR(VLOOKUP(League[[#This Row],[Memberno]],tenK[[Member '#]:[Total Points]],2,FALSE),"") ->  | S67: =IFERROR(VLOOKUP(League[[#This Row],[Memberno]],Thunderrun[],3,FALSE),"") -> 
B68: Janice Nisbet | C68: 307 | E68: =COUNT(League[[#This Row],[XC]:[Thunder Run]]) -> 1 | F68: F | G68: =VLOOKUP(League[[#This Row],[Memberno]],Allmembers[],7,FALSE) -> FV55 | H68: =RANK(League[[#This Row],[Total Points]],League[Total Points]) -> 65 | I68: =IF(League[[#This Row],[Gender]]="M",RANK(League[Total Points],mrank),"") ->  | J68: =IF(League[[#This Row],[Gender]]="F",RANK(League[Total Points],wrank),"") -> 23 | K68: =SUM(League[[#This Row],[XC]:[Thunder Run]]) -> 83 | L68: =IFERROR(VLOOKUP(League[[#This Row],[Memberno]],XC[[Mem]:[Total Points]],5,0),"") -> 83 | M68: =IFERROR(VLOOKUP(League[[#This Row],[Parkrun '#]],Parkrun[],7,FALSE),"") ->  | N68: =IFERROR(VLOOKUP(League[[#This Row],[Memberno]],Club5k[],5,FALSE),"") ->  | O68: =IFERROR(VLOOKUP(League[[#This Row],[Memberno]],Halfmarathon[Mem]:Halfmarathon[Points],4,0),"") ->  | P68: =IFERROR(VLOOKUP(League[[#This Row],[Memberno]],Marathon[],4,FALSE),"") ->  | Q68: =IFERROR(VLOOKUP(League[[#This Row],[Memberno]],Table18[],5,FALSE),"") ->  | R68: =IFERROR(VLOOKUP(League[[#This Row],[Memberno]],tenK[[Member '#]:[Total Points]],2,FALSE),"") ->  | S68: =IFERROR(VLOOKUP(League[[#This Row],[Memberno]],Thunderrun[],3,FALSE),"") -> 
B69: Annette Godfrey | C69: =IFERROR(VLOOKUP(League[[#This Row],[Name]],members,2,FALSE),"") -> 51 | E69: =COUNT(League[[#This Row],[XC]:[Thunder Run]]) -> 2 | F69: F | G69: =VLOOKUP(League[[#This Row],[Memberno]],Allmembers[],7,FALSE) -> FV45 | H69: =RANK(League[[#This Row],[Total Points]],League[Total Points]) -> 66 | I69: =IF(League[[#This Row],[Gender]]="M",RANK(League[Total Points],mrank),"") ->  | J69: =IF(League[[#This Row],[Gender]]="F",RANK(League[Total Points],wrank),"") -> 24 | K69: =SUM(League[[#This Row],[XC]:[Thunder Run]]) -> 82 | L69: =IFERROR(VLOOKUP(League[[#This Row],[Memberno]],XC[[Mem]:[Total Points]],5,0),"") ->  | M69: =IFERROR(VLOOKUP(League[[#This Row],[Parkrun '#]],Parkrun[],7,FALSE),"") ->  | N69: =IFERROR(VLOOKUP(League[[#This Row],[Memberno]],Club5k[],5,FALSE),"") ->  | O69: =IFERROR(VLOOKUP(League[[#This Row],[Memberno]],Halfmarathon[Mem]:Halfmarathon[Points],4,0),"") ->  | P69: =IFERROR(VLOOKUP(League[[#This Row],[Memberno]],Marathon[],4,FALSE),"") ->  | Q69: =IFERROR(VLOOKUP(League[[#This Row],[Memberno]],Table18[],5,FALSE),"") -> 39 | R69: =IFERROR(VLOOKUP(League[[#This Row],[Memberno]],tenK[[Member '#]:[Total Points]],2,FALSE),"") -> 43 | S69: =IFERROR(VLOOKUP(League[[#This Row],[Memberno]],Thunderrun[],3,FALSE),"") -> 
B70: Simon Kitchener | C70: =IFERROR(VLOOKUP(League[[#This Row],[Name]],members,2,FALSE),"") -> 9 | E70: =COUNT(League[[#This Row],[XC]:[Thunder Run]]) -> 2 | F70: M | G70: =VLOOKUP(League[[#This Row],[Memberno]],Allmembers[],7,FALSE) -> MV60 | H70: =RANK(League[[#This Row],[Total Points]],League[Total Points]) -> 67 | I70: =IF(League[[#This Row],[Gender]]="M",RANK(League[Total Points],mrank),"") -> 43 | J70: =IF(League[[#This Row],[Gender]]="F",RANK(League[Total Points],wrank),"") ->  | K70: =SUM(League[[#This Row],[XC]:[Thunder Run]]) -> 78 | L70: =IFERROR(VLOOKUP(League[[#This Row],[Memberno]],XC[[Mem]:[Total Points]],5,0),"") -> 63 | M70: =IFERROR(VLOOKUP(League[[#This Row],[Parkrun '#]],Parkrun[],7,FALSE),"") ->  | N70: =IFERROR(VLOOKUP(League[[#This Row],[Memberno]],Club5k[],5,FALSE),"") -> 15 | O70: =IFERROR(VLOOKUP(League[[#This Row],[Memberno]],Halfmarathon[Mem]:Halfmarathon[Points],4,0),"") ->  | P70: =IFERROR(VLOOKUP(League[[#This Row],[Memberno]],Marathon[],4,FALSE),"") ->  | Q70: =IFERROR(VLOOKUP(League[[#This Row],[Memberno]],Table18[],5,FALSE),"") ->  | R70: =IFERROR(VLOOKUP(League[[#This Row],[Memberno]],tenK[[Member '#]:[Total Points]],2,FALSE),"") ->  | S70: =IFERROR(VLOOKUP(League[[#This Row],[Memberno]],Thunderrun[],3,FALSE),"") -> 
B71: Andrew Hazley-Payne | C71: =IFERROR(VLOOKUP(League[[#This Row],[Name]],members,2,FALSE),"") -> 237 | E71: =COUNT(League[[#This Row],[XC]:[Thunder Run]]) -> 3 | F71: M | G71: =VLOOKUP(League[[#This Row],[Memberno]],Allmembers[],7,FALSE) -> MV40 | H71: =RANK(League[[#This Row],[Total Points]],League[Total Points]) -> 68 | I71: =IF(League[[#This Row],[Gender]]="M",RANK(League[Total Points],mrank),"") -> 44 | J71: =IF(League[[#This Row],[Gender]]="F",RANK(League[Total Points],wrank),"") ->  | K71: =SUM(League[[#This Row],[XC]:[Thunder Run]]) -> 76 | L71: =IFERROR(VLOOKUP(League[[#This Row],[Memberno]],XC[[Mem]:[Total Points]],5,0),"") -> 38 | M71: =IFERROR(VLOOKUP(League[[#This Row],[Parkrun '#]],Parkrun[],7,FALSE),"") ->  | N71: =IFERROR(VLOOKUP(League[[#This Row],[Memberno]],Club5k[],5,FALSE),"") -> 5 | O71: =IFERROR(VLOOKUP(League[[#This Row],[Memberno]],Halfmarathon[Mem]:Halfmarathon[Points],4,0),"") ->  | P71: =IFERROR(VLOOKUP(League[[#This Row],[Memberno]],Marathon[],4,FALSE),"") ->  | Q71: =IFERROR(VLOOKUP(League[[#This Row],[Memberno]],Table18[],5,FALSE),"") ->  | R71: =IFERROR(VLOOKUP(League[[#This Row],[Memberno]],tenK[[Member '#]:[Total Points]],2,FALSE),"") -> 33 | S71: =IFERROR(VLOOKUP(League[[#This Row],[Memberno]],Thunderrun[],3,FALSE),"") -> 
B72: Jenny Birch | C72: 94 | E72: =COUNT(League[[#This Row],[XC]:[Thunder Run]]) -> 2 | F72: F | G72: =VLOOKUP(League[[#This Row],[Memberno]],Allmembers[],7,FALSE) -> FV35 | H72: =RANK(League[[#This Row],[Total Points]],League[Total Points]) -> 68 | I72: =IF(League[[#This Row],[Gender]]="M",RANK(League[Total Points],mrank),"") ->  | J72: =IF(League[[#This Row],[Gender]]="F",RANK(League[Total Points],wrank),"") -> 25 | K72: =SUM(League[[#This Row],[XC]:[Thunder Run]]) -> 76 | L72: =IFERROR(VLOOKUP(League[[#This Row],[Memberno]],XC[[Mem]:[Total Points]],5,0),"") -> 41 | M72: =IFERROR(VLOOKUP(League[[#This Row],[Parkrun '#]],Parkrun[],7,FALSE),"") ->  | N72: =IFERROR(VLOOKUP(League[[#This Row],[Memberno]],Club5k[],5,FALSE),"") -> 35 | O72: =IFERROR(VLOOKUP(League[[#This Row],[Memberno]],Halfmarathon[Mem]:Halfmarathon[Points],4,0),"") ->  | P72: =IFERROR(VLOOKUP(League[[#This Row],[Memberno]],Marathon[],4,FALSE),"") ->  | Q72: =IFERROR(VLOOKUP(League[[#This Row],[Memberno]],Table18[],5,FALSE),"") ->  | R72: =IFERROR(VLOOKUP(League[[#This Row],[Memberno]],tenK[[Member '#]:[Total Points]],2,FALSE),"") ->  | S72: =IFERROR(VLOOKUP(League[[#This Row],[Memberno]],Thunderrun[],3,FALSE),"") -> 
B73: Tina Pidgeon | C73: =IFERROR(VLOOKUP(League[[#This Row],[Name]],members,2,FALSE),"") -> 123 | D73: 425723 | E73: =COUNT(League[[#This Row],[XC]:[Thunder Run]]) -> 3 | F73: F | G73: =VLOOKUP(League[[#This Row],[Memberno]],Allmembers[],7,FALSE) -> FV35 | H73: =RANK(League[[#This Row],[Total Points]],League[Total Points]) -> 68 | I73: =IF(League[[#This Row],[Gender]]="M",RANK(League[Total Points],mrank),"") ->  | J73: =IF(League[[#This Row],[Gender]]="F",RANK(League[Total Points],wrank),"") -> 25 | K73: =SUM(League[[#This Row],[XC]:[Thunder Run]]) -> 76 | L73: =IFERROR(VLOOKUP(League[[#This Row],[Memberno]],XC[[Mem]:[Total Points]],5,0),"") ->  | M73: =IFERROR(VLOOKUP(League[[#This Row],[Parkrun '#]],Parkrun[],7,FALSE),"") -> 36 | N73: =IFERROR(VLOOKUP(League[[#This Row],[Memberno]],Club5k[],5,FALSE),"") -> 5 | O73: =IFERROR(VLOOKUP(League[[#This Row],[Memberno]],Halfmarathon[Mem]:Halfmarathon[Points],4,0),"") ->  | P73: =IFERROR(VLOOKUP(League[[#This Row],[Memberno]],Marathon[],4,FALSE),"") ->  | Q73: =IFERROR(VLOOKUP(League[[#This Row],[Memberno]],Table18[],5,FALSE),"") ->  | R73: =IFERROR(VLOOKUP(League[[#This Row],[Memberno]],tenK[[Member '#]:[Total Points]],2,FALSE),"") -> 35 | S73: =IFERROR(VLOOKUP(League[[#This Row],[Memberno]],Thunderrun[],3,FALSE),"") -> 
B74: Vicki Moran | C74: =IFERROR(VLOOKUP(League[[#This Row],[Name]],members,2,FALSE),"") -> 228 | E74: =COUNT(League[[#This Row],[XC]:[Thunder Run]]) -> 2 | F74: F | G74: =VLOOKUP(League[[#This Row],[Memberno]],Allmembers[],7,FALSE) -> FS | H74: =RANK(League[[#This Row],[Total Points]],League[Total Points]) -> 68 | I74: =IF(League[[#This Row],[Gender]]="M",RANK(League[Total Points],mrank),"") ->  | J74: =IF(League[[#This Row],[Gender]]="F",RANK(League[Total Points],wrank),"") -> 25 | K74: =SUM(League[[#This Row],[XC]:[Thunder Run]]) -> 76 | L74: =IFERROR(VLOOKUP(League[[#This Row],[Memberno]],XC[[Mem]:[Total Points]],5,0),"") ->  | M74: =IFERROR(VLOOKUP(League[[#This Row],[Parkrun '#]],Parkrun[],7,FALSE),"") ->  | N74: =IFERROR(VLOOKUP(League[[#This Row],[Memberno]],Club5k[],5,FALSE),"") ->  | O74: =IFERROR(VLOOKUP(League[[#This Row],[Memberno]],Halfmarathon[Mem]:Halfmarathon[Points],4,0),"") ->  | P74: =IFERROR(VLOOKUP(League[[#This Row],[Memberno]],Marathon[],4,FALSE),"") ->  | Q74: =IFERROR(VLOOKUP(League[[#This Row],[Memberno]],Table18[],5,FALSE),"") -> 37 | R74: =IFERROR(VLOOKUP(League[[#This Row],[Memberno]],tenK[[Member '#]:[Total Points]],2,FALSE),"") -> 39 | S74: =IFERROR(VLOOKUP(League[[#This Row],[Memberno]],Thunderrun[],3,FALSE),"") -> 
B75: Johanna Wood | C75: =IFERROR(VLOOKUP(League[[#This Row],[Name]],members,2,FALSE),"") -> 143 | E75: =COUNT(League[[#This Row],[XC]:[Thunder Run]]) -> 2 | F75: F | G75: =VLOOKUP(League[[#This Row],[Memberno]],Allmembers[],7,FALSE) -> FV45 | H75: =RANK(League[[#This Row],[Total Points]],League[Total Points]) -> 72 | I75: =IF(League[[#This Row],[Gender]]="M",RANK(League[Total Points],mrank),"") ->  | J75: =IF(League[[#This Row],[Gender]]="F",RANK(League[Total Points],wrank),"") -> 28 | K75: =SUM(League[[#This Row],[XC]:[Thunder Run]]) -> 66 | L75: =IFERROR(VLOOKUP(League[[#This Row],[Memberno]],XC[[Mem]:[Total Points]],5,0),"") ->  | M75: =IFERROR(VLOOKUP(League[[#This Row],[Parkrun '#]],Parkrun[],7,FALSE),"") ->  | N75: =IFERROR(VLOOKUP(League[[#This Row],[Memberno]],Club5k[],5,FALSE),"") -> 25 | O75: =IFERROR(VLOOKUP(League[[#This Row],[Memberno]],Halfmarathon[Mem]:Halfmarathon[Points],4,0),"") ->  | P75: =IFERROR(VLOOKUP(League[[#This Row],[Memberno]],Marathon[],4,FALSE),"") ->  | Q75: =IFERROR(VLOOKUP(League[[#This Row],[Memberno]],Table18[],5,FALSE),"") ->  | R75: =IFERROR(VLOOKUP(League[[#This Row],[Memberno]],tenK[[Member '#]:[Total Points]],2,FALSE),"") -> 41 | S75: =IFERROR(VLOOKUP(League[[#This Row],[Memberno]],Thunderrun[],3,FALSE),"") -> 
B76: Robert Goldhawk | C76: =IFERROR(VLOOKUP(League[[#This Row],[Name]],members,2,FALSE),"") -> 258 | E76: =COUNT(League[[#This Row],[XC]:[Thunder Run]]) -> 2 | F76: M | G76: =VLOOKUP(League[[#This Row],[Memberno]],Allmembers[],7,FALSE) -> MV40 | H76: =RANK(League[[#This Row],[Total Points]],League[Total Points]) -> 72 | I76: =IF(League[[#This Row],[Gender]]="M",RANK(League[Total Points],mrank),"") -> 45 | J76: =IF(League[[#This Row],[Gender]]="F",RANK(League[Total Points],wrank),"") ->  | K76: =SUM(League[[#This Row],[XC]:[Thunder Run]]) -> 66 | L76: =IFERROR(VLOOKUP(League[[#This Row],[Memberno]],XC[[Mem]:[Total Points]],5,0),"") ->  | M76: =IFERROR(VLOOKUP(League[[#This Row],[Parkrun '#]],Parkrun[],7,FALSE),"") ->  | N76: =IFERROR(VLOOKUP(League[[#This Row],[Memberno]],Club5k[],5,FALSE),"") ->  | O76: =IFERROR(VLOOKUP(League[[#This Row],[Memberno]],Halfmarathon[Mem]:Halfmarathon[Points],4,0),"") -> 43 | P76: =IFERROR(VLOOKUP(League[[#This Row],[Memberno]],Marathon[],4,FALSE),"") ->  | Q76: =IFERROR(VLOOKUP(League[[#This Row],[Memberno]],Table18[],5,FALSE),"") ->  | R76: =IFERROR(VLOOKUP(League[[#This Row],[Memberno]],tenK[[Member '#]:[Total Points]],2,FALSE),"") -> 23 | S76: =IFERROR(VLOOKUP(League[[#This Row],[Memberno]],Thunderrun[],3,FALSE),"") -> 
B77: Jon Stagg | C77: =IFERROR(VLOOKUP(League[[#This Row],[Name]],members,2,FALSE),"") -> 273 | E77: =COUNT(League[[#This Row],[XC]:[Thunder Run]]) -> 2 | F77: M | G77: =VLOOKUP(League[[#This Row],[Memberno]],Allmembers[],7,FALSE) -> MS | H77: =RANK(League[[#This Row],[Total Points]],League[Total Points]) -> 74 | I77: =IF(League[[#This Row],[Gender]]="M",RANK(League[Total Points],mrank),"") -> 46 | J77: =IF(League[[#This Row],[Gender]]="F",RANK(League[Total Points],wrank),"") ->  | K77: =SUM(League[[#This Row],[XC]:[Thunder Run]]) -> 64 | L77: =IFERROR(VLOOKUP(League[[#This Row],[Memberno]],XC[[Mem]:[Total Points]],5,0),"") ->  | M77: =IFERROR(VLOOKUP(League[[#This Row],[Parkrun '#]],Parkrun[],7,FALSE),"") ->  | N77: =IFERROR(VLOOKUP(League[[#This Row],[Memberno]],Club5k[],5,FALSE),"") ->  | O77: =IFERROR(VLOOKUP(League[[#This Row],[Memberno]],Halfmarathon[Mem]:Halfmarathon[Points],4,0),"") -> 33 | P77: =IFERROR(VLOOKUP(League[[#This Row],[Memberno]],Marathon[],4,FALSE),"") ->  | Q77: =IFERROR(VLOOKUP(League[[#This Row],[Memberno]],Table18[],5,FALSE),"") ->  | R77: =IFERROR(VLOOKUP(League[[#This Row],[Memberno]],tenK[[Member '#]:[Total Points]],2,FALSE),"") -> 31 | S77: =IFERROR(VLOOKUP(League[[#This Row],[Memberno]],Thunderrun[],3,FALSE),"") -> 
B78: Paul Brewster | C78: 194 | E78: =COUNT(League[[#This Row],[XC]:[Thunder Run]]) -> 2 | F78: M | G78: =VLOOKUP(League[[#This Row],[Memberno]],Allmembers[],7,FALSE) -> MV50 | H78: =RANK(League[[#This Row],[Total Points]],League[Total Points]) -> 75 | I78: =IF(League[[#This Row],[Gender]]="M",RANK(League[Total Points],mrank),"") -> 47 | J78: =IF(League[[#This Row],[Gender]]="F",RANK(League[Total Points],wrank),"") ->  | K78: =SUM(League[[#This Row],[XC]:[Thunder Run]]) -> 60 | L78: =IFERROR(VLOOKUP(League[[#This Row],[Memberno]],XC[[Mem]:[Total Points]],5,0),"") ->  | M78: =IFERROR(VLOOKUP(League[[#This Row],[Parkrun '#]],Parkrun[],7,FALSE),"") ->  | N78: =IFERROR(VLOOKUP(League[[#This Row],[Memberno]],Club5k[],5,FALSE),"") -> 5 | O78: =IFERROR(VLOOKUP(League[[#This Row],[Memberno]],Halfmarathon[Mem]:Halfmarathon[Points],4,0),"") ->  | P78: =IFERROR(VLOOKUP(League[[#This Row],[Memberno]],Marathon[],4,FALSE),"") ->  | Q78: =IFERROR(VLOOKUP(League[[#This Row],[Memberno]],Table18[],5,FALSE),"") ->  | R78: =IFERROR(VLOOKUP(League[[#This Row],[Memberno]],tenK[[Member '#]:[Total Points]],2,FALSE),"") -> 55 | S78: =IFERROR(VLOOKUP(League[[#This Row],[Memberno]],Thunderrun[],3,FALSE),"") -> 
B79: Alison Cole | C79: 256 | E79: =COUNT(League[[#This Row],[XC]:[Thunder Run]]) -> 2 | F79: F | G79: =VLOOKUP(League[[#This Row],[Memberno]],Allmembers[],7,FALSE) -> FV35 | H79: =RANK(League[[#This Row],[Total Points]],League[Total Points]) -> 76 | I79: =IF(League[[#This Row],[Gender]]="M",RANK(League[Total Points],mrank),"") ->  | J79: =IF(League[[#This Row],[Gender]]="F",RANK(League[Total Points],wrank),"") -> 29 | K79: =SUM(League[[#This Row],[XC]:[Thunder Run]]) -> 59 | L79: =IFERROR(VLOOKUP(League[[#This Row],[Memberno]],XC[[Mem]:[Total Points]],5,0),"") ->  | M79: =IFERROR(VLOOKUP(League[[#This Row],[Parkrun '#]],Parkrun[],7,FALSE),"") ->  | N79: =IFERROR(VLOOKUP(League[[#This Row],[Memberno]],Club5k[],5,FALSE),"") -> 10 | O79: =IFERROR(VLOOKUP(League[[#This Row],[Memberno]],Halfmarathon[Mem]:Halfmarathon[Points],4,0),"") ->  | P79: =IFERROR(VLOOKUP(League[[#This Row],[Memberno]],Marathon[],4,FALSE),"") ->  | Q79: =IFERROR(VLOOKUP(League[[#This Row],[Memberno]],Table18[],5,FALSE),"") ->  | R79: =IFERROR(VLOOKUP(League[[#This Row],[Memberno]],tenK[[Member '#]:[Total Points]],2,FALSE),"") -> 49 | S79: =IFERROR(VLOOKUP(League[[#This Row],[Memberno]],Thunderrun[],3,FALSE),"") -> 
B80: Catriona Davis | C80: =IFERROR(VLOOKUP(League[[#This Row],[Name]],members,2,FALSE),"") -> 234 | E80: =COUNT(League[[#This Row],[XC]:[Thunder Run]]) -> 2 | F80: F | G80: =VLOOKUP(League[[#This Row],[Memberno]],Allmembers[],7,FALSE) -> FV35 | H80: =RANK(League[[#This Row],[Total Points]],League[Total Points]) -> 77 | I80: =IF(League[[#This Row],[Gender]]="M",RANK(League[Total Points],mrank),"") ->  | J80: =IF(League[[#This Row],[Gender]]="F",RANK(League[Total Points],wrank),"") -> 30 | K80: =SUM(League[[#This Row],[XC]:[Thunder Run]]) -> 55 | L80: =IFERROR(VLOOKUP(League[[#This Row],[Memberno]],XC[[Mem]:[Total Points]],5,0),"") ->  | M80: =IFERROR(VLOOKUP(League[[#This Row],[Parkrun '#]],Parkrun[],7,FALSE),"") ->  | N80: =IFERROR(VLOOKUP(League[[#This Row],[Memberno]],Club5k[],5,FALSE),"") -> 5 | O80: =IFERROR(VLOOKUP(League[[#This Row],[Memberno]],Halfmarathon[Mem]:Halfmarathon[Points],4,0),"") ->  | P80: =IFERROR(VLOOKUP(League[[#This Row],[Memberno]],Marathon[],4,FALSE),"") ->  | Q80: =IFERROR(VLOOKUP(League[[#This Row],[Memberno]],Table18[],5,FALSE),"") ->  | R80: =IFERROR(VLOOKUP(League[[#This Row],[Memberno]],tenK[[Member '#]:[Total Points]],2,FALSE),"") -> 50 | S80: =IFERROR(VLOOKUP(League[[#This Row],[Memberno]],Thunderrun[],3,FALSE),"") -> 
B81: Victoria Johns | C81: 275 | E81: =COUNT(League[[#This Row],[XC]:[Thunder Run]]) -> 2 | F81: F | G81: =VLOOKUP(League[[#This Row],[Memberno]],Allmembers[],7,FALSE) -> FS | H81: =RANK(League[[#This Row],[Total Points]],League[Total Points]) -> 77 | I81: =IF(League[[#This Row],[Gender]]="M",RANK(League[Total Points],mrank),"") ->  | J81: =IF(League[[#This Row],[Gender]]="F",RANK(League[Total Points],wrank),"") -> 30 | K81: =SUM(League[[#This Row],[XC]:[Thunder Run]]) -> 55 | L81: =IFERROR(VLOOKUP(League[[#This Row],[Memberno]],XC[[Mem]:[Total Points]],5,0),"") ->  | M81: =IFERROR(VLOOKUP(League[[#This Row],[Parkrun '#]],Parkrun[],7,FALSE),"") ->  | N81: =IFERROR(VLOOKUP(League[[#This Row],[Memberno]],Club5k[],5,FALSE),"") -> 15 | O81: =IFERROR(VLOOKUP(League[[#This Row],[Memberno]],Halfmarathon[Mem]:Halfmarathon[Points],4,0),"") ->  | P81: =IFERROR(VLOOKUP(League[[#This Row],[Memberno]],Marathon[],4,FALSE),"") ->  | Q81: =IFERROR(VLOOKUP(League[[#This Row],[Memberno]],Table18[],5,FALSE),"") ->  | R81: =IFERROR(VLOOKUP(League[[#This Row],[Memberno]],tenK[[Member '#]:[Total Points]],2,FALSE),"") -> 40 | S81: =IFERROR(VLOOKUP(League[[#This Row],[Memberno]],Thunderrun[],3,FALSE),"") -> 
B82: Christine Esson | C82: =IFERROR(VLOOKUP(League[[#This Row],[Name]],members,2,FALSE),"") -> 270 | D82: 430429 | E82: =COUNT(League[[#This Row],[XC]:[Thunder Run]]) -> 2 | F82: F | G82: =VLOOKUP(League[[#This Row],[Memberno]],Allmembers[],7,FALSE) -> FV45 | H82: =RANK(League[[#This Row],[Total Points]],League[Total Points]) -> 79 | I82: =IF(League[[#This Row],[Gender]]="M",RANK(League[Total Points],mrank),"") ->  | J82: =IF(League[[#This Row],[Gender]]="F",RANK(League[Total Points],wrank),"") -> 32 | K82: =SUM(League[[#This Row],[XC]:[Thunder Run]]) -> 52 | L82: =IFERROR(VLOOKUP(League[[#This Row],[Memberno]],XC[[Mem]:[Total Points]],5,0),"") ->  | M82: =IFERROR(VLOOKUP(League[[#This Row],[Parkrun '#]],Parkrun[],7,FALSE),"") -> 37 | N82: =IFERROR(VLOOKUP(League[[#This Row],[Memberno]],Club5k[],5,FALSE),"") -> 15 | O82: =IFERROR(VLOOKUP(League[[#This Row],[Memberno]],Halfmarathon[Mem]:Halfmarathon[Points],4,0),"") ->  | P82: =IFERROR(VLOOKUP(League[[#This Row],[Memberno]],Marathon[],4,FALSE),"") ->  | Q82: =IFERROR(VLOOKUP(League[[#This Row],[Memberno]],Table18[],5,FALSE),"") ->  | R82: =IFERROR(VLOOKUP(League[[#This Row],[Memberno]],tenK[[Member '#]:[Total Points]],2,FALSE),"") ->  | S82: =IFERROR(VLOOKUP(League[[#This Row],[Memberno]],Thunderrun[],3,FALSE),"") -> 
B83: Helen MacFarlane | C83: 282 | E83: =COUNT(League[[#This Row],[XC]:[Thunder Run]]) -> 2 | F83: F | G83: =VLOOKUP(League[[#This Row],[Memberno]],Allmembers[],7,FALSE) -> FV35 | H83: =RANK(League[[#This Row],[Total Points]],League[Total Points]) -> 79 | I83: =IF(League[[#This Row],[Gender]]="M",RANK(League[Total Points],mrank),"") ->  | J83: =IF(League[[#This Row],[Gender]]="F",RANK(League[Total Points],wrank),"") -> 32 | K83: =SUM(League[[#This Row],[XC]:[Thunder Run]]) -> 52 | L83: =IFERROR(VLOOKUP(League[[#This Row],[Memberno]],XC[[Mem]:[Total Points]],5,0),"") ->  | M83: =IFERROR(VLOOKUP(League[[#This Row],[Parkrun '#]],Parkrun[],7,FALSE),"") ->  | N83: =IFERROR(VLOOKUP(League[[#This Row],[Memberno]],Club5k[],5,FALSE),"") -> 5 | O83: =IFERROR(VLOOKUP(League[[#This Row],[Memberno]],Halfmarathon[Mem]:Halfmarathon[Points],4,0),"") ->  | P83: =IFERROR(VLOOKUP(League[[#This Row],[Memberno]],Marathon[],4,FALSE),"") ->  | Q83: =IFERROR(VLOOKUP(League[[#This Row],[Memberno]],Table18[],5,FALSE),"") -> 47 | R83: =IFERROR(VLOOKUP(League[[#This Row],[Memberno]],tenK[[Member '#]:[Total Points]],2,FALSE),"") ->  | S83: =IFERROR(VLOOKUP(League[[#This Row],[Memberno]],Thunderrun[],3,FALSE),"") -> 
B84: Ben Turner | C84: 189 | D84: 516185 | E84: =COUNT(League[[#This Row],[XC]:[Thunder Run]]) -> 2 | F84: M | G84: =VLOOKUP(League[[#This Row],[Memberno]],Allmembers[],7,FALSE) -> MV40 | H84: =RANK(League[[#This Row],[Total Points]],League[Total Points]) -> 81 | I84: =IF(League[[#This Row],[Gender]]="M",RANK(League[Total Points],mrank),"") -> 48 | J84: =IF(League[[#This Row],[Gender]]="F",RANK(League[Total Points],wrank),"") ->  | K84: =SUM(League[[#This Row],[XC]:[Thunder Run]]) -> 50 | L84: =IFERROR(VLOOKUP(League[[#This Row],[Memberno]],XC[[Mem]:[Total Points]],5,0),"") -> 31 | M84: =IFERROR(VLOOKUP(League[[#This Row],[Parkrun '#]],Parkrun[],7,FALSE),"") -> 19 | N84: =IFERROR(VLOOKUP(League[[#This Row],[Memberno]],Club5k[],5,FALSE),"") ->  | O84: =IFERROR(VLOOKUP(League[[#This Row],[Memberno]],Halfmarathon[Mem]:Halfmarathon[Points],4,0),"") ->  | P84: =IFERROR(VLOOKUP(League[[#This Row],[Memberno]],Marathon[],4,FALSE),"") ->  | Q84: =IFERROR(VLOOKUP(League[[#This Row],[Memberno]],Table18[],5,FALSE),"") ->  | R84: =IFERROR(VLOOKUP(League[[#This Row],[Memberno]],tenK[[Member '#]:[Total Points]],2,FALSE),"") ->  | S84: =IFERROR(VLOOKUP(League[[#This Row],[Memberno]],Thunderrun[],3,FALSE),"") -> 
B85: Tim Mauchline | C85: =IFERROR(VLOOKUP(League[[#This Row],[Name]],members,2,FALSE),"") -> 103 | E85: =COUNT(League[[#This Row],[XC]:[Thunder Run]]) -> 1 | F85: M | G85: =VLOOKUP(League[[#This Row],[Memberno]],Allmembers[],7,FALSE) -> MS | H85: =RANK(League[[#This Row],[Total Points]],League[Total Points]) -> 81 | I85: =IF(League[[#This Row],[Gender]]="M",RANK(League[Total Points],mrank),"") -> 48 | J85: =IF(League[[#This Row],[Gender]]="F",RANK(League[Total Points],wrank),"") ->  | K85: =SUM(League[[#This Row],[XC]:[Thunder Run]]) -> 50 | L85: =IFERROR(VLOOKUP(League[[#This Row],[Memberno]],XC[[Mem]:[Total Points]],5,0),"") -> 50 | M85: =IFERROR(VLOOKUP(League[[#This Row],[Parkrun '#]],Parkrun[],7,FALSE),"") ->  | N85: =IFERROR(VLOOKUP(League[[#This Row],[Memberno]],Club5k[],5,FALSE),"") ->  | O85: =IFERROR(VLOOKUP(League[[#This Row],[Memberno]],Halfmarathon[Mem]:Halfmarathon[Points],4,0),"") ->  | P85: =IFERROR(VLOOKUP(League[[#This Row],[Memberno]],Marathon[],4,FALSE),"") ->  | Q85: =IFERROR(VLOOKUP(League[[#This Row],[Memberno]],Table18[],5,FALSE),"") ->  | R85: =IFERROR(VLOOKUP(League[[#This Row],[Memberno]],tenK[[Member '#]:[Total Points]],2,FALSE),"") ->  | S85: =IFERROR(VLOOKUP(League[[#This Row],[Memberno]],Thunderrun[],3,FALSE),"") -> 
B86: Pierre-Louis Gatti | C86: =IFERROR(VLOOKUP(League[[#This Row],[Name]],members,2,FALSE),"") -> 233 | D86: 351148 | E86: =COUNT(League[[#This Row],[XC]:[Thunder Run]]) -> 3 | F86: M | G86: =VLOOKUP(League[[#This Row],[Memberno]],Allmembers[],7,FALSE) -> MS | H86: =RANK(League[[#This Row],[Total Points]],League[Total Points]) -> 83 | I86: =IF(League[[#This Row],[Gender]]="M",RANK(League[Total Points],mrank),"") -> 50 | J86: =IF(League[[#This Row],[Gender]]="F",RANK(League[Total Points],wrank),"") ->  | K86: =SUM(League[[#This Row],[XC]:[Thunder Run]]) -> 49 | L86: =IFERROR(VLOOKUP(League[[#This Row],[Memberno]],XC[[Mem]:[Total Points]],5,0),"") ->  | M86: =IFERROR(VLOOKUP(League[[#This Row],[Parkrun '#]],Parkrun[],7,FALSE),"") -> 18 | N86: =IFERROR(VLOOKUP(League[[#This Row],[Memberno]],Club5k[],5,FALSE),"") -> 5 | O86: =IFERROR(VLOOKUP(League[[#This Row],[Memberno]],Halfmarathon[Mem]:Halfmarathon[Points],4,0),"") -> 26 | P86: =IFERROR(VLOOKUP(League[[#This Row],[Memberno]],Marathon[],4,FALSE),"") ->  | Q86: =IFERROR(VLOOKUP(League[[#This Row],[Memberno]],Table18[],5,FALSE),"") ->  | R86: =IFERROR(VLOOKUP(League[[#This Row],[Memberno]],tenK[[Member '#]:[Total Points]],2,FALSE),"") ->  | S86: =IFERROR(VLOOKUP(League[[#This Row],[Memberno]],Thunderrun[],3,FALSE),"") -> 
B87: Alexandra O'DONOVAN | C87: =IFERROR(VLOOKUP(League[[#This Row],[Name]],members,2,FALSE),"") -> 250 | D87: 407032 | E87: =COUNT(League[[#This Row],[XC]:[Thunder Run]]) -> 1 | F87: F | G87: =VLOOKUP(League[[#This Row],[Memberno]],Allmembers[],7,FALSE) -> FS | H87: =RANK(League[[#This Row],[Total Points]],League[Total Points]) -> 84 | I87: =IF(League[[#This Row],[Gender]]="M",RANK(League[Total Points],mrank),"") ->  | J87: =IF(League[[#This Row],[Gender]]="F",RANK(League[Total Points],wrank),"") -> 34 | K87: =SUM(League[[#This Row],[XC]:[Thunder Run]]) -> 48 | L87: =IFERROR(VLOOKUP(League[[#This Row],[Memberno]],XC[[Mem]:[Total Points]],5,0),"") ->  | M87: =IFERROR(VLOOKUP(League[[#This Row],[Parkrun '#]],Parkrun[],7,FALSE),"") -> 48 | N87: =IFERROR(VLOOKUP(League[[#This Row],[Memberno]],Club5k[],5,FALSE),"") ->  | O87: =IFERROR(VLOOKUP(League[[#This Row],[Memberno]],Halfmarathon[Mem]:Halfmarathon[Points],4,0),"") ->  | P87: =IFERROR(VLOOKUP(League[[#This Row],[Memberno]],Marathon[],4,FALSE),"") ->  | Q87: =IFERROR(VLOOKUP(League[[#This Row],[Memberno]],Table18[],5,FALSE),"") ->  | R87: =IFERROR(VLOOKUP(League[[#This Row],[Memberno]],tenK[[Member '#]:[Total Points]],2,FALSE),"") ->  | S87: =IFERROR(VLOOKUP(League[[#This Row],[Memberno]],Thunderrun[],3,FALSE),"") -> 
B88: Philip Wigg | C88: 285 | E88: =COUNT(League[[#This Row],[XC]:[Thunder Run]]) -> 2 | F88: M | G88: =VLOOKUP(League[[#This Row],[Memberno]],Allmembers[],7,FALSE) -> MS | H88: =RANK(League[[#This Row],[Total Points]],League[Total Points]) -> 84 | I88: =IF(League[[#This Row],[Gender]]="M",RANK(League[Total Points],mrank),"") -> 51 | J88: =IF(League[[#This Row],[Gender]]="F",RANK(League[Total Points],wrank),"") ->  | K88: =SUM(League[[#This Row],[XC]:[Thunder Run]]) -> 48 | L88: =IFERROR(VLOOKUP(League[[#This Row],[Memberno]],XC[[Mem]:[Total Points]],5,0),"") ->  | M88: =IFERROR(VLOOKUP(League[[#This Row],[Parkrun '#]],Parkrun[],7,FALSE),"") ->  | N88: =IFERROR(VLOOKUP(League[[#This Row],[Memberno]],Club5k[],5,FALSE),"") -> 20 | O88: =IFERROR(VLOOKUP(League[[#This Row],[Memberno]],Halfmarathon[Mem]:Halfmarathon[Points],4,0),"") ->  | P88: =IFERROR(VLOOKUP(League[[#This Row],[Memberno]],Marathon[],4,FALSE),"") ->  | Q88: =IFERROR(VLOOKUP(League[[#This Row],[Memberno]],Table18[],5,FALSE),"") ->  | R88: =IFERROR(VLOOKUP(League[[#This Row],[Memberno]],tenK[[Member '#]:[Total Points]],2,FALSE),"") -> 28 | S88: =IFERROR(VLOOKUP(League[[#This Row],[Memberno]],Thunderrun[],3,FALSE),"") -> 
B89: Katherine Caris-Harris | C89: 314 | E89: =COUNT(League[[#This Row],[XC]:[Thunder Run]]) -> 1 | F89: F | G89: =VLOOKUP(League[[#This Row],[Memberno]],Allmembers[],7,FALSE) -> FV35 | H89: =RANK(League[[#This Row],[Total Points]],League[Total Points]) -> 86 | I89: =IF(League[[#This Row],[Gender]]="M",RANK(League[Total Points],mrank),"") ->  | J89: =IF(League[[#This Row],[Gender]]="F",RANK(League[Total Points],wrank),"") -> 35 | K89: =SUM(League[[#This Row],[XC]:[Thunder Run]]) -> 47 | L89: =IFERROR(VLOOKUP(League[[#This Row],[Memberno]],XC[[Mem]:[Total Points]],5,0),"") -> 47 | M89: =IFERROR(VLOOKUP(League[[#This Row],[Parkrun '#]],Parkrun[],7,FALSE),"") ->  | N89: =IFERROR(VLOOKUP(League[[#This Row],[Memberno]],Club5k[],5,FALSE),"") ->  | O89: =IFERROR(VLOOKUP(League[[#This Row],[Memberno]],Halfmarathon[Mem]:Halfmarathon[Points],4,0),"") ->  | P89: =IFERROR(VLOOKUP(League[[#This Row],[Memberno]],Marathon[],4,FALSE),"") ->  | Q89: =IFERROR(VLOOKUP(League[[#This Row],[Memberno]],Table18[],5,FALSE),"") ->  | R89: =IFERROR(VLOOKUP(League[[#This Row],[Memberno]],tenK[[Member '#]:[Total Points]],2,FALSE),"") ->  | S89: =IFERROR(VLOOKUP(League[[#This Row],[Memberno]],Thunderrun[],3,FALSE),"") -> 
B90: Thomas Hallam | C90: 280 | E90: =COUNT(League[[#This Row],[XC]:[Thunder Run]]) -> 1 | F90: M | G90: =VLOOKUP(League[[#This Row],[Memberno]],Allmembers[],7,FALSE) -> MS | H90: =RANK(League[[#This Row],[Total Points]],League[Total Points]) -> 86 | I90: =IF(League[[#This Row],[Gender]]="M",RANK(League[Total Points],mrank),"") -> 52 | J90: =IF(League[[#This Row],[Gender]]="F",RANK(League[Total Points],wrank),"") ->  | K90: =SUM(League[[#This Row],[XC]:[Thunder Run]]) -> 47 | L90: =IFERROR(VLOOKUP(League[[#This Row],[Memberno]],XC[[Mem]:[Total Points]],5,0),"") ->  | M90: =IFERROR(VLOOKUP(League[[#This Row],[Parkrun '#]],Parkrun[],7,FALSE),"") ->  | N90: =IFERROR(VLOOKUP(League[[#This Row],[Memberno]],Club5k[],5,FALSE),"") ->  | O90: =IFERROR(VLOOKUP(League[[#This Row],[Memberno]],Halfmarathon[Mem]:Halfmarathon[Points],4,0),"") ->  | P90: =IFERROR(VLOOKUP(League[[#This Row],[Memberno]],Marathon[],4,FALSE),"") ->  | Q90: =IFERROR(VLOOKUP(League[[#This Row],[Memberno]],Table18[],5,FALSE),"") ->  | R90: =IFERROR(VLOOKUP(League[[#This Row],[Memberno]],tenK[[Member '#]:[Total Points]],2,FALSE),"") -> 47 | S90: =IFERROR(VLOOKUP(League[[#This Row],[Memberno]],Thunderrun[],3,FALSE),"") -> 
B91: Jonathan Budge | C91: 279 | E91: =COUNT(League[[#This Row],[XC]:[Thunder Run]]) -> 2 | F91: M | G91: =VLOOKUP(League[[#This Row],[Memberno]],Allmembers[],7,FALSE) -> MS | H91: =RANK(League[[#This Row],[Total Points]],League[Total Points]) -> 88 | I91: =IF(League[[#This Row],[Gender]]="M",RANK(League[Total Points],mrank),"") -> 53 | J91: =IF(League[[#This Row],[Gender]]="F",RANK(League[Total Points],wrank),"") ->  | K91: =SUM(League[[#This Row],[XC]:[Thunder Run]]) -> 44 | L91: =IFERROR(VLOOKUP(League[[#This Row],[Memberno]],XC[[Mem]:[Total Points]],5,0),"") ->  | M91: =IFERROR(VLOOKUP(League[[#This Row],[Parkrun '#]],Parkrun[],7,FALSE),"") ->  | N91: =IFERROR(VLOOKUP(League[[#This Row],[Memberno]],Club5k[],5,FALSE),"") -> 5 | O91: =IFERROR(VLOOKUP(League[[#This Row],[Memberno]],Halfmarathon[Mem]:Halfmarathon[Points],4,0),"") ->  | P91: =IFERROR(VLOOKUP(League[[#This Row],[Memberno]],Marathon[],4,FALSE),"") ->  | Q91: =IFERROR(VLOOKUP(League[[#This Row],[Memberno]],Table18[],5,FALSE),"") ->  | R91: =IFERROR(VLOOKUP(League[[#This Row],[Memberno]],tenK[[Member '#]:[Total Points]],2,FALSE),"") -> 39 | S91: =IFERROR(VLOOKUP(League[[#This Row],[Memberno]],Thunderrun[],3,FALSE),"") -> 
B92: Colin Wareham | C92: 1 | D92: 403208 | E92: =COUNT(League[[#This Row],[XC]:[Thunder Run]]) -> 2 | F92: M | G92: =VLOOKUP(League[[#This Row],[Memberno]],Allmembers[],7,FALSE) -> MV40 | H92: =RANK(League[[#This Row],[Total Points]],League[Total Points]) -> 89 | I92: =IF(League[[#This Row],[Gender]]="M",RANK(League[Total Points],mrank),"") -> 54 | J92: =IF(League[[#This Row],[Gender]]="F",RANK(League[Total Points],wrank),"") ->  | K92: =SUM(League[[#This Row],[XC]:[Thunder Run]]) -> 40 | L92: =IFERROR(VLOOKUP(League[[#This Row],[Memberno]],XC[[Mem]:[Total Points]],5,0),"") ->  | M92: =IFERROR(VLOOKUP(League[[#This Row],[Parkrun '#]],Parkrun[],7,FALSE),"") ->  | N92: =IFERROR(VLOOKUP(League[[#This Row],[Memberno]],Club5k[],5,FALSE),"") -> 5 | O92: =IFERROR(VLOOKUP(League[[#This Row],[Memberno]],Halfmarathon[Mem]:Halfmarathon[Points],4,0),"") ->  | P92: =IFERROR(VLOOKUP(League[[#This Row],[Memberno]],Marathon[],4,FALSE),"") ->  | Q92: =IFERROR(VLOOKUP(League[[#This Row],[Memberno]],Table18[],5,FALSE),"") ->  | R92: =IFERROR(VLOOKUP(League[[#This Row],[Memberno]],tenK[[Member '#]:[Total Points]],2,FALSE),"") -> 35 | S92: =IFERROR(VLOOKUP(League[[#This Row],[Memberno]],Thunderrun[],3,FALSE),"") -> 
B93: Jamie Nathan | C93: =IFERROR(VLOOKUP(League[[#This Row],[Name]],members,2,FALSE),"") -> 203 | D93: 287837 | E93: =COUNT(League[[#This Row],[XC]:[Thunder Run]]) -> 2 | F93: M | G93: =VLOOKUP(League[[#This Row],[Memberno]],Allmembers[],7,FALSE) -> MS | H93: =RANK(League[[#This Row],[Total Points]],League[Total Points]) -> 89 | I93: =IF(League[[#This Row],[Gender]]="M",RANK(League[Total Points],mrank),"") -> 54 | J93: =IF(League[[#This Row],[Gender]]="F",RANK(League[Total Points],wrank),"") ->  | K93: =SUM(League[[#This Row],[XC]:[Thunder Run]]) -> 40 | L93: =IFERROR(VLOOKUP(League[[#This Row],[Memberno]],XC[[Mem]:[Total Points]],5,0),"") ->  | M93: =IFERROR(VLOOKUP(League[[#This Row],[Parkrun '#]],Parkrun[],7,FALSE),"") ->  | N93: =IFERROR(VLOOKUP(League[[#This Row],[Memberno]],Club5k[],5,FALSE),"") -> 10 | O93: =IFERROR(VLOOKUP(League[[#This Row],[Memberno]],Halfmarathon[Mem]:Halfmarathon[Points],4,0),"") ->  | P93: =IFERROR(VLOOKUP(League[[#This Row],[Memberno]],Marathon[],4,FALSE),"") -> 30 | Q93: =IFERROR(VLOOKUP(League[[#This Row],[Memberno]],Table18[],5,FALSE),"") ->  | R93: =IFERROR(VLOOKUP(League[[#This Row],[Memberno]],tenK[[Member '#]:[Total Points]],2,FALSE),"") ->  | S93: =IFERROR(VLOOKUP(League[[#This Row],[Memberno]],Thunderrun[],3,FALSE),"") -> 
B94: Stephanie Heard | C94: 113 | E94: =COUNT(League[[#This Row],[XC]:[Thunder Run]]) -> 1 | F94: F | G94: =VLOOKUP(League[[#This Row],[Memberno]],Allmembers[],7,FALSE) -> FS | H94: =RANK(League[[#This Row],[Total Points]],League[Total Points]) -> 89 | I94: =IF(League[[#This Row],[Gender]]="M",RANK(League[Total Points],mrank),"") ->  | J94: =IF(League[[#This Row],[Gender]]="F",RANK(League[Total Points],wrank),"") -> 36 | K94: =SUM(League[[#This Row],[XC]:[Thunder Run]]) -> 40 | L94: =IFERROR(VLOOKUP(League[[#This Row],[Memberno]],XC[[Mem]:[Total Points]],5,0),"") ->  | M94: =IFERROR(VLOOKUP(League[[#This Row],[Parkrun '#]],Parkrun[],7,FALSE),"") ->  | N94: =IFERROR(VLOOKUP(League[[#This Row],[Memberno]],Club5k[],5,FALSE),"") ->  | O94: =IFERROR(VLOOKUP(League[[#This Row],[Memberno]],Halfmarathon[Mem]:Halfmarathon[Points],4,0),"") ->  | P94: =IFERROR(VLOOKUP(League[[#This Row],[Memberno]],Marathon[],4,FALSE),"") ->  | Q94: =IFERROR(VLOOKUP(League[[#This Row],[Memberno]],Table18[],5,FALSE),"") ->  | R94: =IFERROR(VLOOKUP(League[[#This Row],[Memberno]],tenK[[Member '#]:[Total Points]],2,FALSE),"") -> 40 | S94: =IFERROR(VLOOKUP(League[[#This Row],[Memberno]],Thunderrun[],3,FALSE),"") -> 
B95: Susan Smith | C95: =IFERROR(VLOOKUP(League[[#This Row],[Name]],members,2,FALSE),"") -> 176 | E95: =COUNT(League[[#This Row],[XC]:[Thunder Run]]) -> 1 | F95: F | G95: =VLOOKUP(League[[#This Row],[Memberno]],Allmembers[],7,FALSE) -> FV45 | H95: =RANK(League[[#This Row],[Total Points]],League[Total Points]) -> 92 | I95: =IF(League[[#This Row],[Gender]]="M",RANK(League[Total Points],mrank),"") ->  | J95: =IF(League[[#This Row],[Gender]]="F",RANK(League[Total Points],wrank),"") -> 37 | K95: =SUM(League[[#This Row],[XC]:[Thunder Run]]) -> 39 | L95: =IFERROR(VLOOKUP(League[[#This Row],[Memberno]],XC[[Mem]:[Total Points]],5,0),"") ->  | M95: =IFERROR(VLOOKUP(League[[#This Row],[Parkrun '#]],Parkrun[],7,FALSE),"") ->  | N95: =IFERROR(VLOOKUP(League[[#This Row],[Memberno]],Club5k[],5,FALSE),"") ->  | O95: =IFERROR(VLOOKUP(League[[#This Row],[Memberno]],Halfmarathon[Mem]:Halfmarathon[Points],4,0),"") ->  | P95: =IFERROR(VLOOKUP(League[[#This Row],[Memberno]],Marathon[],4,FALSE),"") ->  | Q95: =IFERROR(VLOOKUP(League[[#This Row],[Memberno]],Table18[],5,FALSE),"") ->  | R95: =IFERROR(VLOOKUP(League[[#This Row],[Memberno]],tenK[[Member '#]:[Total Points]],2,FALSE),"") -> 39 | S95: =IFERROR(VLOOKUP(League[[#This Row],[Memberno]],Thunderrun[],3,FALSE),"") -> 
B96: Helen Pearson | C96: =IFERROR(VLOOKUP(League[[#This Row],[Name]],members,2,FALSE),"") -> 205 | E96: =COUNT(League[[#This Row],[XC]:[Thunder Run]]) -> 1 | F96: F | G96: =VLOOKUP(League[[#This Row],[Memberno]],Allmembers[],7,FALSE) -> FV45 | H96: =RANK(League[[#This Row],[Total Points]],League[Total Points]) -> 93 | I96: =IF(League[[#This Row],[Gender]]="M",RANK(League[Total Points],mrank),"") ->  | J96: =IF(League[[#This Row],[Gender]]="F",RANK(League[Total Points],wrank),"") -> 38 | K96: =SUM(League[[#This Row],[XC]:[Thunder Run]]) -> 38 | L96: =IFERROR(VLOOKUP(League[[#This Row],[Memberno]],XC[[Mem]:[Total Points]],5,0),"") ->  | M96: =IFERROR(VLOOKUP(League[[#This Row],[Parkrun '#]],Parkrun[],7,FALSE),"") ->  | N96: =IFERROR(VLOOKUP(League[[#This Row],[Memberno]],Club5k[],5,FALSE),"") ->  | O96: =IFERROR(VLOOKUP(League[[#This Row],[Memberno]],Halfmarathon[Mem]:Halfmarathon[Points],4,0),"") ->  | P96: =IFERROR(VLOOKUP(League[[#This Row],[Memberno]],Marathon[],4,FALSE),"") ->  | Q96: =IFERROR(VLOOKUP(League[[#This Row],[Memberno]],Table18[],5,FALSE),"") ->  | R96: =IFERROR(VLOOKUP(League[[#This Row],[Memberno]],tenK[[Member '#]:[Total Points]],2,FALSE),"") -> 38 | S96: =IFERROR(VLOOKUP(League[[#This Row],[Memberno]],Thunderrun[],3,FALSE),"") -> 
B97: Kay Greenway | C97: =IFERROR(VLOOKUP(League[[#This Row],[Name]],members,2,FALSE),"") -> 268 | D97: 687568 | E97: =COUNT(League[[#This Row],[XC]:[Thunder Run]]) -> 1 | F97: F | G97: =VLOOKUP(League[[#This Row],[Memberno]],Allmembers[],7,FALSE) -> FV45 | H97: =RANK(League[[#This Row],[Total Points]],League[Total Points]) -> 93 | I97: =IF(League[[#This Row],[Gender]]="M",RANK(League[Total Points],mrank),"") ->  | J97: =IF(League[[#This Row],[Gender]]="F",RANK(League[Total Points],wrank),"") -> 38 | K97: =SUM(League[[#This Row],[XC]:[Thunder Run]]) -> 38 | L97: =IFERROR(VLOOKUP(League[[#This Row],[Memberno]],XC[[Mem]:[Total Points]],5,0),"") ->  | M97: =IFERROR(VLOOKUP(League[[#This Row],[Parkrun '#]],Parkrun[],7,FALSE),"") -> 38 | N97: =IFERROR(VLOOKUP(League[[#This Row],[Memberno]],Club5k[],5,FALSE),"") ->  | O97: =IFERROR(VLOOKUP(League[[#This Row],[Memberno]],Halfmarathon[Mem]:Halfmarathon[Points],4,0),"") ->  | P97: =IFERROR(VLOOKUP(League[[#This Row],[Memberno]],Marathon[],4,FALSE),"") ->  | Q97: =IFERROR(VLOOKUP(League[[#This Row],[Memberno]],Table18[],5,FALSE),"") ->  | R97: =IFERROR(VLOOKUP(League[[#This Row],[Memberno]],tenK[[Member '#]:[Total Points]],2,FALSE),"") ->  | S97: =IFERROR(VLOOKUP(League[[#This Row],[Memberno]],Thunderrun[],3,FALSE),"") -> 
B98: Paul Hermsen | C98: =IFERROR(VLOOKUP(League[[#This Row],[Name]],members,2,FALSE),"") -> 216 | E98: =COUNT(League[[#This Row],[XC]:[Thunder Run]]) -> 1 | F98: M | G98: =VLOOKUP(League[[#This Row],[Memberno]],Allmembers[],7,FALSE) -> MS | H98: =RANK(League[[#This Row],[Total Points]],League[Total Points]) -> 95 | I98: =IF(League[[#This Row],[Gender]]="M",RANK(League[Total Points],mrank),"") -> 56 | J98: =IF(League[[#This Row],[Gender]]="F",RANK(League[Total Points],wrank),"") ->  | K98: =SUM(League[[#This Row],[XC]:[Thunder Run]]) -> 37 | L98: =IFERROR(VLOOKUP(League[[#This Row],[Memberno]],XC[[Mem]:[Total Points]],5,0),"") -> 37 | M98: =IFERROR(VLOOKUP(League[[#This Row],[Parkrun '#]],Parkrun[],7,FALSE),"") ->  | N98: =IFERROR(VLOOKUP(League[[#This Row],[Memberno]],Club5k[],5,FALSE),"") ->  | O98: =IFERROR(VLOOKUP(League[[#This Row],[Memberno]],Halfmarathon[Mem]:Halfmarathon[Points],4,0),"") ->  | P98: =IFERROR(VLOOKUP(League[[#This Row],[Memberno]],Marathon[],4,FALSE),"") ->  | Q98: =IFERROR(VLOOKUP(League[[#This Row],[Memberno]],Table18[],5,FALSE),"") ->  | R98: =IFERROR(VLOOKUP(League[[#This Row],[Memberno]],tenK[[Member '#]:[Total Points]],2,FALSE),"") ->  | S98: =IFERROR(VLOOKUP(League[[#This Row],[Memberno]],Thunderrun[],3,FALSE),"") -> 
B99: Sarah Thomas | C99: =IFERROR(VLOOKUP(League[[#This Row],[Name]],members,2,FALSE),"") -> 201 | E99: =COUNT(League[[#This Row],[XC]:[Thunder Run]]) -> 1 | F99: F | G99: =VLOOKUP(League[[#This Row],[Memberno]],Allmembers[],7,FALSE) -> F | H99: =RANK(League[[#This Row],[Total Points]],League[Total Points]) -> 96 | I99: =IF(League[[#This Row],[Gender]]="M",RANK(League[Total Points],mrank),"") ->  | J99: =IF(League[[#This Row],[Gender]]="F",RANK(League[Total Points],wrank),"") -> 40 | K99: =SUM(League[[#This Row],[XC]:[Thunder Run]]) -> 36 | L99: =IFERROR(VLOOKUP(League[[#This Row],[Memberno]],XC[[Mem]:[Total Points]],5,0),"") ->  | M99: =IFERROR(VLOOKUP(League[[#This Row],[Parkrun '#]],Parkrun[],7,FALSE),"") ->  | N99: =IFERROR(VLOOKUP(League[[#This Row],[Memberno]],Club5k[],5,FALSE),"") ->  | O99: =IFERROR(VLOOKUP(League[[#This Row],[Memberno]],Halfmarathon[Mem]:Halfmarathon[Points],4,0),"") ->  | P99: =IFERROR(VLOOKUP(League[[#This Row],[Memberno]],Marathon[],4,FALSE),"") ->  | Q99: =IFERROR(VLOOKUP(League[[#This Row],[Memberno]],Table18[],5,FALSE),"") ->  | R99: =IFERROR(VLOOKUP(League[[#This Row],[Memberno]],tenK[[Member '#]:[Total Points]],2,FALSE),"") -> 36 | S99: =IFERROR(VLOOKUP(League[[#This Row],[Memberno]],Thunderrun[],3,FALSE),"") -> 
B100: Lisa Long | C100: =IFERROR(VLOOKUP(League[[#This Row],[Name]],members,2,FALSE),"") -> 219 | D100: 220225 | E100: =COUNT(League[[#This Row],[XC]:[Thunder Run]]) -> 2 | F100: F | G100: =VLOOKUP(League[[#This Row],[Memberno]],Allmembers[],7,FALSE) -> FV35 | H100: =RANK(League[[#This Row],[Total Points]],League[Total Points]) -> 97 | I100: =IF(League[[#This Row],[Gender]]="M",RANK(League[Total Points],mrank),"") ->  | J100: =IF(League[[#This Row],[Gender]]="F",RANK(League[Total Points],wrank),"") -> 41 | K100: =SUM(League[[#This Row],[XC]:[Thunder Run]]) -> 35 | L100: =IFERROR(VLOOKUP(League[[#This Row],[Memberno]],XC[[Mem]:[Total Points]],5,0),"") ->  | M100: =IFERROR(VLOOKUP(League[[#This Row],[Parkrun '#]],Parkrun[],7,FALSE),"") ->  | N100: =IFERROR(VLOOKUP(League[[#This Row],[Memberno]],Club5k[],5,FALSE),"") -> 5 | O100: =IFERROR(VLOOKUP(League[[#This Row],[Memberno]],Halfmarathon[Mem]:Halfmarathon[Points],4,0),"") ->  | P100: =IFERROR(VLOOKUP(League[[#This Row],[Memberno]],Marathon[],4,FALSE),"") -> 30 | Q100: =IFERROR(VLOOKUP(League[[#This Row],[Memberno]],Table18[],5,FALSE),"") ->  | R100: =IFERROR(VLOOKUP(League[[#This Row],[Memberno]],tenK[[Member '#]:[Total Points]],2,FALSE),"") ->  | S100: =IFERROR(VLOOKUP(League[[#This Row],[Memberno]],Thunderrun[],3,FALSE),"") -> 
B101: Ben Sweeting | C101: =IFERROR(VLOOKUP(League[[#This Row],[Name]],members,2,FALSE),"") -> 260 | E101: =COUNT(League[[#This Row],[XC]:[Thunder Run]]) -> 2 | F101: M | G101: =VLOOKUP(League[[#This Row],[Memberno]],Allmembers[],7,FALSE) -> MS | H101: =RANK(League[[#This Row],[Total Points]],League[Total Points]) -> 98 | I101: =IF(League[[#This Row],[Gender]]="M",RANK(League[Total Points],mrank),"") -> 57 | J101: =IF(League[[#This Row],[Gender]]="F",RANK(League[Total Points],wrank),"") ->  | K101: =SUM(League[[#This Row],[XC]:[Thunder Run]]) -> 34 | L101: =IFERROR(VLOOKUP(League[[#This Row],[Memberno]],XC[[Mem]:[Total Points]],5,0),"") ->  | M101: =IFERROR(VLOOKUP(League[[#This Row],[Parkrun '#]],Parkrun[],7,FALSE),"") ->  | N101: =IFERROR(VLOOKUP(League[[#This Row],[Memberno]],Club5k[],5,FALSE),"") -> 5 | O101: =IFERROR(VLOOKUP(League[[#This Row],[Memberno]],Halfmarathon[Mem]:Halfmarathon[Points],4,0),"") ->  | P101: =IFERROR(VLOOKUP(League[[#This Row],[Memberno]],Marathon[],4,FALSE),"") ->  | Q101: =IFERROR(VLOOKUP(League[[#This Row],[Memberno]],Table18[],5,FALSE),"") ->  | R101: =IFERROR(VLOOKUP(League[[#This Row],[Memberno]],tenK[[Member '#]:[Total Points]],2,FALSE),"") -> 29 | S101: =IFERROR(VLOOKUP(League[[#This Row],[Memberno]],Thunderrun[],3,FALSE),"") -> 
B102: Theo Green | C102: =IFERROR(VLOOKUP(League[[#This Row],[Name]],members,2,FALSE),"") -> 288 | D102: 580161 | E102: =COUNT(League[[#This Row],[XC]:[Thunder Run]]) -> 2 | F102: M | G102: =VLOOKUP(League[[#This Row],[Memberno]],Allmembers[],7,FALSE) -> M | H102: =RANK(League[[#This Row],[Total Points]],League[Total Points]) -> 98 | I102: =IF(League[[#This Row],[Gender]]="M",RANK(League[Total Points],mrank),"") -> 57 | J102: =IF(League[[#This Row],[Gender]]="F",RANK(League[Total Points],wrank),"") ->  | K102: =SUM(League[[#This Row],[XC]:[Thunder Run]]) -> 34 | L102: =IFERROR(VLOOKUP(League[[#This Row],[Memberno]],XC[[Mem]:[Total Points]],5,0),"") ->  | M102: =IFERROR(VLOOKUP(League[[#This Row],[Parkrun '#]],Parkrun[],7,FALSE),"") -> 29 | N102: =IFERROR(VLOOKUP(League[[#This Row],[Memberno]],Club5k[],5,FALSE),"") -> 5 | O102: =IFERROR(VLOOKUP(League[[#This Row],[Memberno]],Halfmarathon[Mem]:Halfmarathon[Points],4,0),"") ->  | P102: =IFERROR(VLOOKUP(League[[#This Row],[Memberno]],Marathon[],4,FALSE),"") ->  | Q102: =IFERROR(VLOOKUP(League[[#This Row],[Memberno]],Table18[],5,FALSE),"") ->  | R102: =IFERROR(VLOOKUP(League[[#This Row],[Memberno]],tenK[[Member '#]:[Total Points]],2,FALSE),"") ->  | S102: =IFERROR(VLOOKUP(League[[#This Row],[Memberno]],Thunderrun[],3,FALSE),"") -> 
B103: Jamie Fisher | C103: =IFERROR(VLOOKUP(League[[#This Row],[Name]],members,2,FALSE),"") -> 99 | D103: 157874 | E103: =COUNT(League[[#This Row],[XC]:[Thunder Run]]) -> 1 | F103: M | G103: =VLOOKUP(League[[#This Row],[Memberno]],Allmembers[],7,FALSE) -> MV40 | H103: =RANK(League[[#This Row],[Total Points]],League[Total Points]) -> 100 | I103: =IF(League[[#This Row],[Gender]]="M",RANK(League[Total Points],mrank),"") -> 59 | J103: =IF(League[[#This Row],[Gender]]="F",RANK(League[Total Points],wrank),"") ->  | K103: =SUM(League[[#This Row],[XC]:[Thunder Run]]) -> 33 | L103: =IFERROR(VLOOKUP(League[[#This Row],[Memberno]],XC[[Mem]:[Total Points]],5,0),"") ->  | M103: =IFERROR(VLOOKUP(League[[#This Row],[Parkrun '#]],Parkrun[],7,FALSE),"") -> 33 | N103: =IFERROR(VLOOKUP(League[[#This Row],[Memberno]],Club5k[],5,FALSE),"") ->  | O103: =IFERROR(VLOOKUP(League[[#This Row],[Memberno]],Halfmarathon[Mem]:Halfmarathon[Points],4,0),"") ->  | P103: =IFERROR(VLOOKUP(League[[#This Row],[Memberno]],Marathon[],4,FALSE),"") ->  | Q103: =IFERROR(VLOOKUP(League[[#This Row],[Memberno]],Table18[],5,FALSE),"") ->  | R103: =IFERROR(VLOOKUP(League[[#This Row],[Memberno]],tenK[[Member '#]:[Total Points]],2,FALSE),"") ->  | S103: =IFERROR(VLOOKUP(League[[#This Row],[Memberno]],Thunderrun[],3,FALSE),"") -> 
B104: Ken Murray | C104: 310 | E104: =COUNT(League[[#This Row],[XC]:[Thunder Run]]) -> 1 | F104: M | G104: =VLOOKUP(League[[#This Row],[Memberno]],Allmembers[],7,FALSE) -> MV40 | H104: =RANK(League[[#This Row],[Total Points]],League[Total Points]) -> 101 | I104: =IF(League[[#This Row],[Gender]]="M",RANK(League[Total Points],mrank),"") -> 60 | J104: =IF(League[[#This Row],[Gender]]="F",RANK(League[Total Points],wrank),"") ->  | K104: =SUM(League[[#This Row],[XC]:[Thunder Run]]) -> 32 | L104: =IFERROR(VLOOKUP(League[[#This Row],[Memberno]],XC[[Mem]:[Total Points]],5,0),"") -> 32 | M104: =IFERROR(VLOOKUP(League[[#This Row],[Parkrun '#]],Parkrun[],7,FALSE),"") ->  | N104: =IFERROR(VLOOKUP(League[[#This Row],[Memberno]],Club5k[],5,FALSE),"") ->  | O104: =IFERROR(VLOOKUP(League[[#This Row],[Memberno]],Halfmarathon[Mem]:Halfmarathon[Points],4,0),"") ->  | P104: =IFERROR(VLOOKUP(League[[#This Row],[Memberno]],Marathon[],4,FALSE),"") ->  | Q104: =IFERROR(VLOOKUP(League[[#This Row],[Memberno]],Table18[],5,FALSE),"") ->  | R104: =IFERROR(VLOOKUP(League[[#This Row],[Memberno]],tenK[[Member '#]:[Total Points]],2,FALSE),"") ->  | S104: =IFERROR(VLOOKUP(League[[#This Row],[Memberno]],Thunderrun[],3,FALSE),"") -> 
B105: Gordon Ray | C105: =IFERROR(VLOOKUP(League[[#This Row],[Name]],members,2,FALSE),"") -> 289 | E105: =COUNT(League[[#This Row],[XC]:[Thunder Run]]) -> 2 | F105: M | G105: =VLOOKUP(League[[#This Row],[Memberno]],Allmembers[],7,FALSE) -> MS | H105: =RANK(League[[#This Row],[Total Points]],League[Total Points]) -> 102 | I105: =IF(League[[#This Row],[Gender]]="M",RANK(League[Total Points],mrank),"") -> 61 | J105: =IF(League[[#This Row],[Gender]]="F",RANK(League[Total Points],wrank),"") ->  | K105: =SUM(League[[#This Row],[XC]:[Thunder Run]]) -> 31 | L105: =IFERROR(VLOOKUP(League[[#This Row],[Memberno]],XC[[Mem]:[Total Points]],5,0),"") ->  | M105: =IFERROR(VLOOKUP(League[[#This Row],[Parkrun '#]],Parkrun[],7,FALSE),"") ->  | N105: =IFERROR(VLOOKUP(League[[#This Row],[Memberno]],Club5k[],5,FALSE),"") -> 5 | O105: =IFERROR(VLOOKUP(League[[#This Row],[Memberno]],Halfmarathon[Mem]:Halfmarathon[Points],4,0),"") ->  | P105: =IFERROR(VLOOKUP(League[[#This Row],[Memberno]],Marathon[],4,FALSE),"") ->  | Q105: =IFERROR(VLOOKUP(League[[#This Row],[Memberno]],Table18[],5,FALSE),"") ->  | R105: =IFERROR(VLOOKUP(League[[#This Row],[Memberno]],tenK[[Member '#]:[Total Points]],2,FALSE),"") -> 26 | S105: =IFERROR(VLOOKUP(League[[#This Row],[Memberno]],Thunderrun[],3,FALSE),"") -> 
B106: Nigel Marsden | C106: =IFERROR(VLOOKUP(League[[#This Row],[Name]],members,2,FALSE),"") -> 96 | E106: =COUNT(League[[#This Row],[XC]:[Thunder Run]]) -> 1 | F106: M | G106: =VLOOKUP(League[[#This Row],[Memberno]],Allmembers[],7,FALSE) -> MV40 | H106: =RANK(League[[#This Row],[Total Points]],League[Total Points]) -> 102 | I106: =IF(League[[#This Row],[Gender]]="M",RANK(League[Total Points],mrank),"") -> 61 | J106: =IF(League[[#This Row],[Gender]]="F",RANK(League[Total Points],wrank),"") ->  | K106: =SUM(League[[#This Row],[XC]:[Thunder Run]]) -> 31 | L106: =IFERROR(VLOOKUP(League[[#This Row],[Memberno]],XC[[Mem]:[Total Points]],5,0),"") ->  | M106: =IFERROR(VLOOKUP(League[[#This Row],[Parkrun '#]],Parkrun[],7,FALSE),"") ->  | N106: =IFERROR(VLOOKUP(League[[#This Row],[Memberno]],Club5k[],5,FALSE),"") ->  | O106: =IFERROR(VLOOKUP(League[[#This Row],[Memberno]],Halfmarathon[Mem]:Halfmarathon[Points],4,0),"") ->  | P106: =IFERROR(VLOOKUP(League[[#This Row],[Memberno]],Marathon[],4,FALSE),"") ->  | Q106: =IFERROR(VLOOKUP(League[[#This Row],[Memberno]],Table18[],5,FALSE),"") ->  | R106: =IFERROR(VLOOKUP(League[[#This Row],[Memberno]],tenK[[Member '#]:[Total Points]],2,FALSE),"") -> 31 | S106: =IFERROR(VLOOKUP(League[[#This Row],[Memberno]],Thunderrun[],3,FALSE),"") -> 
B107: Paul Hill | C107: 287 | E107: =COUNT(League[[#This Row],[XC]:[Thunder Run]]) -> 2 | F107: M | G107: =VLOOKUP(League[[#This Row],[Memberno]],Allmembers[],7,FALSE) -> MV40 | H107: =RANK(League[[#This Row],[Total Points]],League[Total Points]) -> 104 | I107: =IF(League[[#This Row],[Gender]]="M",RANK(League[Total Points],mrank),"") -> 63 | J107: =IF(League[[#This Row],[Gender]]="F",RANK(League[Total Points],wrank),"") ->  | K107: =SUM(League[[#This Row],[XC]:[Thunder Run]]) -> 29 | L107: =IFERROR(VLOOKUP(League[[#This Row],[Memberno]],XC[[Mem]:[Total Points]],5,0),"") ->  | N107: =IFERROR(VLOOKUP(League[[#This Row],[Memberno]],Club5k[],5,FALSE),"") -> 5 | O107: =IFERROR(VLOOKUP(League[[#This Row],[Memberno]],Halfmarathon[Mem]:Halfmarathon[Points],4,0),"") ->  | P107: =IFERROR(VLOOKUP(League[[#This Row],[Memberno]],Marathon[],4,FALSE),"") ->  | Q107: =IFERROR(VLOOKUP(League[[#This Row],[Memberno]],Table18[],5,FALSE),"") ->  | R107: =IFERROR(VLOOKUP(League[[#This Row],[Memberno]],tenK[[Member '#]:[Total Points]],2,FALSE),"") -> 24 | S107: =IFERROR(VLOOKUP(League[[#This Row],[Memberno]],Thunderrun[],3,FALSE),"") -> 
B108: Clive Borthwick | C108: =IFERROR(VLOOKUP(League[[#This Row],[Name]],members,2,FALSE),"") -> 79 | E108: =COUNT(League[[#This Row],[XC]:[Thunder Run]]) -> 1 | F108: M | G108: =VLOOKUP(League[[#This Row],[Memberno]],Allmembers[],7,FALSE) -> MV60 | H108: =RANK(League[[#This Row],[Total Points]],League[Total Points]) -> 105 | I108: =IF(League[[#This Row],[Gender]]="M",RANK(League[Total Points],mrank),"") -> 64 | J108: =IF(League[[#This Row],[Gender]]="F",RANK(League[Total Points],wrank),"") ->  | K108: =SUM(League[[#This Row],[XC]:[Thunder Run]]) -> 25 | L108: =IFERROR(VLOOKUP(League[[#This Row],[Memberno]],XC[[Mem]:[Total Points]],5,0),"") ->  | M108: =IFERROR(VLOOKUP(League[[#This Row],[Parkrun '#]],Parkrun[],7,FALSE),"") ->  | N108: =IFERROR(VLOOKUP(League[[#This Row],[Memberno]],Club5k[],5,FALSE),"") -> 25 | O108: =IFERROR(VLOOKUP(League[[#This Row],[Memberno]],Halfmarathon[Mem]:Halfmarathon[Points],4,0),"") ->  | P108: =IFERROR(VLOOKUP(League[[#This Row],[Memberno]],Marathon[],4,FALSE),"") ->  | Q108: =IFERROR(VLOOKUP(League[[#This Row],[Memberno]],Table18[],5,FALSE),"") ->  | R108: =IFERROR(VLOOKUP(League[[#This Row],[Memberno]],tenK[[Member '#]:[Total Points]],2,FALSE),"") ->  | S108: =IFERROR(VLOOKUP(League[[#This Row],[Memberno]],Thunderrun[],3,FALSE),"") -> 
B109: Joanne Curtis | C109: =IFERROR(VLOOKUP(League[[#This Row],[Name]],members,2,FALSE),"") -> 267 | E109: =COUNT(League[[#This Row],[XC]:[Thunder Run]]) -> 1 | F109: F | G109: =VLOOKUP(League[[#This Row],[Memberno]],Allmembers[],7,FALSE) -> FV35 | H109: =RANK(League[[#This Row],[Total Points]],League[Total Points]) -> 105 | I109: =IF(League[[#This Row],[Gender]]="M",RANK(League[Total Points],mrank),"") ->  | J109: =IF(League[[#This Row],[Gender]]="F",RANK(League[Total Points],wrank),"") -> 42 | K109: =SUM(League[[#This Row],[XC]:[Thunder Run]]) -> 25 | L109: =IFERROR(VLOOKUP(League[[#This Row],[Memberno]],XC[[Mem]:[Total Points]],5,0),"") ->  | M109: =IFERROR(VLOOKUP(League[[#This Row],[Parkrun '#]],Parkrun[],7,FALSE),"") ->  | N109: =IFERROR(VLOOKUP(League[[#This Row],[Memberno]],Club5k[],5,FALSE),"") -> 25 | O109: =IFERROR(VLOOKUP(League[[#This Row],[Memberno]],Halfmarathon[Mem]:Halfmarathon[Points],4,0),"") ->  | P109: =IFERROR(VLOOKUP(League[[#This Row],[Memberno]],Marathon[],4,FALSE),"") ->  | Q109: =IFERROR(VLOOKUP(League[[#This Row],[Memberno]],Table18[],5,FALSE),"") ->  | R109: =IFERROR(VLOOKUP(League[[#This Row],[Memberno]],tenK[[Member '#]:[Total Points]],2,FALSE),"") ->  | S109: =IFERROR(VLOOKUP(League[[#This Row],[Memberno]],Thunderrun[],3,FALSE),"") -> 
B110: Tom Flett | C110: =IFERROR(VLOOKUP(League[[#This Row],[Name]],members,2,FALSE),"") -> 293 | E110: =COUNT(League[[#This Row],[XC]:[Thunder Run]]) -> 2 | F110: M | G110: =VLOOKUP(League[[#This Row],[Memberno]],Allmembers[],7,FALSE) -> MV70 | H110: =RANK(League[[#This Row],[Total Points]],League[Total Points]) -> 107 | I110: =IF(League[[#This Row],[Gender]]="M",RANK(League[Total Points],mrank),"") -> 65 | J110: =IF(League[[#This Row],[Gender]]="F",RANK(League[Total Points],wrank),"") ->  | K110: =SUM(League[[#This Row],[XC]:[Thunder Run]]) -> 24 | L110: =IFERROR(VLOOKUP(League[[#This Row],[Memberno]],XC[[Mem]:[Total Points]],5,0),"") ->  | M110: =IFERROR(VLOOKUP(League[[#This Row],[Parkrun '#]],Parkrun[],7,FALSE),"") ->  | N110: =IFERROR(VLOOKUP(League[[#This Row],[Memberno]],Club5k[],5,FALSE),"") -> 5 | O110: =IFERROR(VLOOKUP(League[[#This Row],[Memberno]],Halfmarathon[Mem]:Halfmarathon[Points],4,0),"") ->  | P110: =IFERROR(VLOOKUP(League[[#This Row],[Memberno]],Marathon[],4,FALSE),"") ->  | Q110: =IFERROR(VLOOKUP(League[[#This Row],[Memberno]],Table18[],5,FALSE),"") ->  | R110: =IFERROR(VLOOKUP(League[[#This Row],[Memberno]],tenK[[Member '#]:[Total Points]],2,FALSE),"") -> 19 | S110: =IFERROR(VLOOKUP(League[[#This Row],[Memberno]],Thunderrun[],3,FALSE),"") -> 
B111: Derek Lambert | C111: =IFERROR(VLOOKUP(League[[#This Row],[Name]],members,2,FALSE),"") -> 264 | E111: =COUNT(League[[#This Row],[XC]:[Thunder Run]]) -> 1 | F111: M | G111: =VLOOKUP(League[[#This Row],[Memberno]],Allmembers[],7,FALSE) -> MV50 | H111: =RANK(League[[#This Row],[Total Points]],League[Total Points]) -> 108 | I111: =IF(League[[#This Row],[Gender]]="M",RANK(League[Total Points],mrank),"") -> 66 | J111: =IF(League[[#This Row],[Gender]]="F",RANK(League[Total Points],wrank),"") ->  | K111: =SUM(League[[#This Row],[XC]:[Thunder Run]]) -> 20 | L111: =IFERROR(VLOOKUP(League[[#This Row],[Memberno]],XC[[Mem]:[Total Points]],5,0),"") ->  | M111: =IFERROR(VLOOKUP(League[[#This Row],[Parkrun '#]],Parkrun[],7,FALSE),"") ->  | N111: =IFERROR(VLOOKUP(League[[#This Row],[Memberno]],Club5k[],5,FALSE),"") -> 20 | O111: =IFERROR(VLOOKUP(League[[#This Row],[Memberno]],Halfmarathon[Mem]:Halfmarathon[Points],4,0),"") ->  | P111: =IFERROR(VLOOKUP(League[[#This Row],[Memberno]],Marathon[],4,FALSE),"") ->  | Q111: =IFERROR(VLOOKUP(League[[#This Row],[Memberno]],Table18[],5,FALSE),"") ->  | R111: =IFERROR(VLOOKUP(League[[#This Row],[Memberno]],tenK[[Member '#]:[Total Points]],2,FALSE),"") ->  | S111: =IFERROR(VLOOKUP(League[[#This Row],[Memberno]],Thunderrun[],3,FALSE),"") -> 
B112: David Salmon | C112: =IFERROR(VLOOKUP(League[[#This Row],[Name]],members,2,FALSE),"") -> 290 | E112: =COUNT(League[[#This Row],[XC]:[Thunder Run]]) -> 1 | F112: M | G112: =VLOOKUP(League[[#This Row],[Memberno]],Allmembers[],7,FALSE) -> MV50 | H112: =RANK(League[[#This Row],[Total Points]],League[Total Points]) -> 109 | I112: =IF(League[[#This Row],[Gender]]="M",RANK(League[Total Points],mrank),"") -> 67 | J112: =IF(League[[#This Row],[Gender]]="F",RANK(League[Total Points],wrank),"") ->  | K112: =SUM(League[[#This Row],[XC]:[Thunder Run]]) -> 15 | L112: =IFERROR(VLOOKUP(League[[#This Row],[Memberno]],XC[[Mem]:[Total Points]],5,0),"") ->  | M112: =IFERROR(VLOOKUP(League[[#This Row],[Parkrun '#]],Parkrun[],7,FALSE),"") ->  | N112: =IFERROR(VLOOKUP(League[[#This Row],[Memberno]],Club5k[],5,FALSE),"") -> 15 | O112: =IFERROR(VLOOKUP(League[[#This Row],[Memberno]],Halfmarathon[Mem]:Halfmarathon[Points],4,0),"") ->  | P112: =IFERROR(VLOOKUP(League[[#This Row],[Memberno]],Marathon[],4,FALSE),"") ->  | Q112: =IFERROR(VLOOKUP(League[[#This Row],[Memberno]],Table18[],5,FALSE),"") ->  | R112: =IFERROR(VLOOKUP(League[[#This Row],[Memberno]],tenK[[Member '#]:[Total Points]],2,FALSE),"") ->  | S112: =IFERROR(VLOOKUP(League[[#This Row],[Memberno]],Thunderrun[],3,FALSE),"") -> 
B113: Steff Bailey | C113: 204 | E113: =COUNT(League[[#This Row],[XC]:[Thunder Run]]) -> 1 | F113: F | G113: =VLOOKUP(League[[#This Row],[Memberno]],Allmembers[],7,FALSE) -> FS | H113: =RANK(League[[#This Row],[Total Points]],League[Total Points]) -> 109 | I113: =IF(League[[#This Row],[Gender]]="M",RANK(League[Total Points],mrank),"") ->  | J113: =IF(League[[#This Row],[Gender]]="F",RANK(League[Total Points],wrank),"") -> 43 | K113: =SUM(League[[#This Row],[XC]:[Thunder Run]]) -> 15 | L113: =IFERROR(VLOOKUP(League[[#This Row],[Memberno]],XC[[Mem]:[Total Points]],5,0),"") ->  | M113: =IFERROR(VLOOKUP(League[[#This Row],[Parkrun '#]],Parkrun[],7,FALSE),"") ->  | N113: =IFERROR(VLOOKUP(League[[#This Row],[Memberno]],Club5k[],5,FALSE),"") -> 15 | O113: =IFERROR(VLOOKUP(League[[#This Row],[Memberno]],Halfmarathon[Mem]:Halfmarathon[Points],4,0),"") ->  | P113: =IFERROR(VLOOKUP(League[[#This Row],[Memberno]],Marathon[],4,FALSE),"") ->  | Q113: =IFERROR(VLOOKUP(League[[#This Row],[Memberno]],Table18[],5,FALSE),"") ->  | R113: =IFERROR(VLOOKUP(League[[#This Row],[Memberno]],tenK[[Member '#]:[Total Points]],2,FALSE),"") ->  | S113: =IFERROR(VLOOKUP(League[[#This Row],[Memberno]],Thunderrun[],3,FALSE),"") -> 
B114: Amy Curtis | C114: =IFERROR(VLOOKUP(League[[#This Row],[Name]],members,2,FALSE),"") -> 171 | E114: =COUNT(League[[#This Row],[XC]:[Thunder Run]]) -> 1 | F114: F | G114: =VLOOKUP(League[[#This Row],[Memberno]],Allmembers[],7,FALSE) -> FS | H114: =RANK(League[[#This Row],[Total Points]],League[Total Points]) -> 111 | I114: =IF(League[[#This Row],[Gender]]="M",RANK(League[Total Points],mrank),"") ->  | J114: =IF(League[[#This Row],[Gender]]="F",RANK(League[Total Points],wrank),"") -> 44 | K114: =SUM(League[[#This Row],[XC]:[Thunder Run]]) -> 10 | L114: =IFERROR(VLOOKUP(League[[#This Row],[Memberno]],XC[[Mem]:[Total Points]],5,0),"") ->  | M114: =IFERROR(VLOOKUP(League[[#This Row],[Parkrun '#]],Parkrun[],7,FALSE),"") ->  | N114: =IFERROR(VLOOKUP(League[[#This Row],[Memberno]],Club5k[],5,FALSE),"") -> 10 | O114: =IFERROR(VLOOKUP(League[[#This Row],[Memberno]],Halfmarathon[Mem]:Halfmarathon[Points],4,0),"") ->  | P114: =IFERROR(VLOOKUP(League[[#This Row],[Memberno]],Marathon[],4,FALSE),"") ->  | Q114: =IFERROR(VLOOKUP(League[[#This Row],[Memberno]],Table18[],5,FALSE),"") ->  | R114: =IFERROR(VLOOKUP(League[[#This Row],[Memberno]],tenK[[Member '#]:[Total Points]],2,FALSE),"") ->  | S114: =IFERROR(VLOOKUP(League[[#This Row],[Memberno]],Thunderrun[],3,FALSE),"") -> 
B115: Ellen Colebrook | C115: =IFERROR(VLOOKUP(League[[#This Row],[Name]],members,2,FALSE),"") -> 266 | E115: =COUNT(League[[#This Row],[XC]:[Thunder Run]]) -> 1 | F115: F | G115: =VLOOKUP(League[[#This Row],[Memberno]],Allmembers[],7,FALSE) -> FS | H115: =RANK(League[[#This Row],[Total Points]],League[Total Points]) -> 111 | I115: =IF(League[[#This Row],[Gender]]="M",RANK(League[Total Points],mrank),"") ->  | J115: =IF(League[[#This Row],[Gender]]="F",RANK(League[Total Points],wrank),"") -> 44 | K115: =SUM(League[[#This Row],[XC]:[Thunder Run]]) -> 10 | L115: =IFERROR(VLOOKUP(League[[#This Row],[Memberno]],XC[[Mem]:[Total Points]],5,0),"") ->  | M115: =IFERROR(VLOOKUP(League[[#This Row],[Parkrun '#]],Parkrun[],7,FALSE),"") ->  | N115: =IFERROR(VLOOKUP(League[[#This Row],[Memberno]],Club5k[],5,FALSE),"") -> 10 | O115: =IFERROR(VLOOKUP(League[[#This Row],[Memberno]],Halfmarathon[Mem]:Halfmarathon[Points],4,0),"") ->  | P115: =IFERROR(VLOOKUP(League[[#This Row],[Memberno]],Marathon[],4,FALSE),"") ->  | Q115: =IFERROR(VLOOKUP(League[[#This Row],[Memberno]],Table18[],5,FALSE),"") ->  | R115: =IFERROR(VLOOKUP(League[[#This Row],[Memberno]],tenK[[Member '#]:[Total Points]],2,FALSE),"") ->  | S115: =IFERROR(VLOOKUP(League[[#This Row],[Memberno]],Thunderrun[],3,FALSE),"") -> 
B116: Iona Aitken | C116: 284 | E116: =COUNT(League[[#This Row],[XC]:[Thunder Run]]) -> 1 | F116: F | G116: =VLOOKUP(League[[#This Row],[Memberno]],Allmembers[],7,FALSE) -> FV35 | H116: =RANK(League[[#This Row],[Total Points]],League[Total Points]) -> 111 | I116: =IF(League[[#This Row],[Gender]]="M",RANK(League[Total Points],mrank),"") ->  | J116: =IF(League[[#This Row],[Gender]]="F",RANK(League[Total Points],wrank),"") -> 44 | K116: =SUM(League[[#This Row],[XC]:[Thunder Run]]) -> 10 | L116: =IFERROR(VLOOKUP(League[[#This Row],[Memberno]],XC[[Mem]:[Total Points]],5,0),"") ->  | M116: =IFERROR(VLOOKUP(League[[#This Row],[Parkrun '#]],Parkrun[],7,FALSE),"") ->  | N116: =IFERROR(VLOOKUP(League[[#This Row],[Memberno]],Club5k[],5,FALSE),"") -> 10 | O116: =IFERROR(VLOOKUP(League[[#This Row],[Memberno]],Halfmarathon[Mem]:Halfmarathon[Points],4,0),"") ->  | P116: =IFERROR(VLOOKUP(League[[#This Row],[Memberno]],Marathon[],4,FALSE),"") ->  | Q116: =IFERROR(VLOOKUP(League[[#This Row],[Memberno]],Table18[],5,FALSE),"") ->  | R116: =IFERROR(VLOOKUP(League[[#This Row],[Memberno]],tenK[[Member '#]:[Total Points]],2,FALSE),"") ->  | S116: =IFERROR(VLOOKUP(League[[#This Row],[Memberno]],Thunderrun[],3,FALSE),"") -> 
B117: Alex Butterworth | C117: =IFERROR(VLOOKUP(League[[#This Row],[Name]],members,2,FALSE),"") -> 259 | E117: =COUNT(League[[#This Row],[XC]:[Thunder Run]]) -> 1 | F117: M | G117: =VLOOKUP(League[[#This Row],[Memberno]],Allmembers[],7,FALSE) -> MV40 | H117: =RANK(League[[#This Row],[Total Points]],League[Total Points]) -> 114 | I117: =IF(League[[#This Row],[Gender]]="M",RANK(League[Total Points],mrank),"") -> 68 | J117: =IF(League[[#This Row],[Gender]]="F",RANK(League[Total Points],wrank),"") ->  | K117: =SUM(League[[#This Row],[XC]:[Thunder Run]]) -> 5 | L117: =IFERROR(VLOOKUP(League[[#This Row],[Memberno]],XC[[Mem]:[Total Points]],5,0),"") ->  | M117: =IFERROR(VLOOKUP(League[[#This Row],[Parkrun '#]],Parkrun[],7,FALSE),"") ->  | N117: =IFERROR(VLOOKUP(League[[#This Row],[Memberno]],Club5k[],5,FALSE),"") -> 5 | O117: =IFERROR(VLOOKUP(League[[#This Row],[Memberno]],Halfmarathon[Mem]:Halfmarathon[Points],4,0),"") ->  | P117: =IFERROR(VLOOKUP(League[[#This Row],[Memberno]],Marathon[],4,FALSE),"") ->  | Q117: =IFERROR(VLOOKUP(League[[#This Row],[Memberno]],Table18[],5,FALSE),"") ->  | R117: =IFERROR(VLOOKUP(League[[#This Row],[Memberno]],tenK[[Member '#]:[Total Points]],2,FALSE),"") ->  | S117: =IFERROR(VLOOKUP(League[[#This Row],[Memberno]],Thunderrun[],3,FALSE),"") -> 
B118: Carl Batchelder | C118: =IFERROR(VLOOKUP(League[[#This Row],[Name]],members,2,FALSE),"") -> 253 | E118: =COUNT(League[[#This Row],[XC]:[Thunder Run]]) -> 1 | F118: M | G118: =VLOOKUP(League[[#This Row],[Memberno]],Allmembers[],7,FALSE) -> M | H118: =RANK(League[[#This Row],[Total Points]],League[Total Points]) -> 114 | I118: =IF(League[[#This Row],[Gender]]="M",RANK(League[Total Points],mrank),"") -> 68 | J118: =IF(League[[#This Row],[Gender]]="F",RANK(League[Total Points],wrank),"") ->  | K118: =SUM(League[[#This Row],[XC]:[Thunder Run]]) -> 5 | L118: =IFERROR(VLOOKUP(League[[#This Row],[Memberno]],XC[[Mem]:[Total Points]],5,0),"") ->  | M118: =IFERROR(VLOOKUP(League[[#This Row],[Parkrun '#]],Parkrun[],7,FALSE),"") ->  | N118: =IFERROR(VLOOKUP(League[[#This Row],[Memberno]],Club5k[],5,FALSE),"") -> 5 | O118: =IFERROR(VLOOKUP(League[[#This Row],[Memberno]],Halfmarathon[Mem]:Halfmarathon[Points],4,0),"") ->  | P118: =IFERROR(VLOOKUP(League[[#This Row],[Memberno]],Marathon[],4,FALSE),"") ->  | Q118: =IFERROR(VLOOKUP(League[[#This Row],[Memberno]],Table18[],5,FALSE),"") ->  | R118: =IFERROR(VLOOKUP(League[[#This Row],[Memberno]],tenK[[Member '#]:[Total Points]],2,FALSE),"") ->  | S118: =IFERROR(VLOOKUP(League[[#This Row],[Memberno]],Thunderrun[],3,FALSE),"") -> 
B119: Colette Gissane | C119: =IFERROR(VLOOKUP(League[[#This Row],[Name]],members,2,FALSE),"") -> 295 | E119: =COUNT(League[[#This Row],[XC]:[Thunder Run]]) -> 1 | F119: F | G119: =VLOOKUP(League[[#This Row],[Memberno]],Allmembers[],7,FALSE) -> FS | H119: =RANK(League[[#This Row],[Total Points]],League[Total Points]) -> 114 | I119: =IF(League[[#This Row],[Gender]]="M",RANK(League[Total Points],mrank),"") ->  | J119: =IF(League[[#This Row],[Gender]]="F",RANK(League[Total Points],wrank),"") -> 47 | K119: =SUM(League[[#This Row],[XC]:[Thunder Run]]) -> 5 | L119: =IFERROR(VLOOKUP(League[[#This Row],[Memberno]],XC[[Mem]:[Total Points]],5,0),"") ->  | M119: =IFERROR(VLOOKUP(League[[#This Row],[Parkrun '#]],Parkrun[],7,FALSE),"") ->  | N119: =IFERROR(VLOOKUP(League[[#This Row],[Memberno]],Club5k[],5,FALSE),"") -> 5 | O119: =IFERROR(VLOOKUP(League[[#This Row],[Memberno]],Halfmarathon[Mem]:Halfmarathon[Points],4,0),"") ->  | P119: =IFERROR(VLOOKUP(League[[#This Row],[Memberno]],Marathon[],4,FALSE),"") ->  | Q119: =IFERROR(VLOOKUP(League[[#This Row],[Memberno]],Table18[],5,FALSE),"") ->  | R119: =IFERROR(VLOOKUP(League[[#This Row],[Memberno]],tenK[[Member '#]:[Total Points]],2,FALSE),"") ->  | S119: =IFERROR(VLOOKUP(League[[#This Row],[Memberno]],Thunderrun[],3,FALSE),"") -> 
B120: Dan Winfield | C120: =IFERROR(VLOOKUP(League[[#This Row],[Name]],members,2,FALSE),"") -> 298 | E120: =COUNT(League[[#This Row],[XC]:[Thunder Run]]) -> 1 | F120: M | G120: =VLOOKUP(League[[#This Row],[Memberno]],Allmembers[],7,FALSE) -> MV40 | H120: =RANK(League[[#This Row],[Total Points]],League[Total Points]) -> 114 | I120: =IF(League[[#This Row],[Gender]]="M",RANK(League[Total Points],mrank),"") -> 68 | J120: =IF(League[[#This Row],[Gender]]="F",RANK(League[Total Points],wrank),"") ->  | K120: =SUM(League[[#This Row],[XC]:[Thunder Run]]) -> 5 | L120: =IFERROR(VLOOKUP(League[[#This Row],[Memberno]],XC[[Mem]:[Total Points]],5,0),"") ->  | M120: =IFERROR(VLOOKUP(League[[#This Row],[Parkrun '#]],Parkrun[],7,FALSE),"") ->  | N120: =IFERROR(VLOOKUP(League[[#This Row],[Memberno]],Club5k[],5,FALSE),"") -> 5 | O120: =IFERROR(VLOOKUP(League[[#This Row],[Memberno]],Halfmarathon[Mem]:Halfmarathon[Points],4,0),"") ->  | P120: =IFERROR(VLOOKUP(League[[#This Row],[Memberno]],Marathon[],4,FALSE),"") ->  | Q120: =IFERROR(VLOOKUP(League[[#This Row],[Memberno]],Table18[],5,FALSE),"") ->  | R120: =IFERROR(VLOOKUP(League[[#This Row],[Memberno]],tenK[[Member '#]:[Total Points]],2,FALSE),"") ->  | S120: =IFERROR(VLOOKUP(League[[#This Row],[Memberno]],Thunderrun[],3,FALSE),"") -> 
B121: Dennis Van Goldberdinge | C121: =IFERROR(VLOOKUP(League[[#This Row],[Name]],members,2,FALSE),"") -> 134 | E121: =COUNT(League[[#This Row],[XC]:[Thunder Run]]) -> 1 | F121: M | G121: =VLOOKUP(League[[#This Row],[Memberno]],Allmembers[],7,FALSE) -> MV40 | H121: =RANK(League[[#This Row],[Total Points]],League[Total Points]) -> 114 | I121: =IF(League[[#This Row],[Gender]]="M",RANK(League[Total Points],mrank),"") -> 68 | J121: =IF(League[[#This Row],[Gender]]="F",RANK(League[Total Points],wrank),"") ->  | K121: =SUM(League[[#This Row],[XC]:[Thunder Run]]) -> 5 | L121: =IFERROR(VLOOKUP(League[[#This Row],[Memberno]],XC[[Mem]:[Total Points]],5,0),"") ->  | M121: =IFERROR(VLOOKUP(League[[#This Row],[Parkrun '#]],Parkrun[],7,FALSE),"") ->  | N121: =IFERROR(VLOOKUP(League[[#This Row],[Memberno]],Club5k[],5,FALSE),"") -> 5 | O121: =IFERROR(VLOOKUP(League[[#This Row],[Memberno]],Halfmarathon[Mem]:Halfmarathon[Points],4,0),"") ->  | P121: =IFERROR(VLOOKUP(League[[#This Row],[Memberno]],Marathon[],4,FALSE),"") ->  | Q121: =IFERROR(VLOOKUP(League[[#This Row],[Memberno]],Table18[],5,FALSE),"") ->  | R121: =IFERROR(VLOOKUP(League[[#This Row],[Memberno]],tenK[[Member '#]:[Total Points]],2,FALSE),"") ->  | S121: =IFERROR(VLOOKUP(League[[#This Row],[Memberno]],Thunderrun[],3,FALSE),"") -> 
B122: Iain O'Kane | C122: =IFERROR(VLOOKUP(League[[#This Row],[Name]],members,2,FALSE),"") -> 291 | E122: =COUNT(League[[#This Row],[XC]:[Thunder Run]]) -> 1 | F122: M | G122: =VLOOKUP(League[[#This Row],[Memberno]],Allmembers[],7,FALSE) -> MS | H122: =RANK(League[[#This Row],[Total Points]],League[Total Points]) -> 114 | I122: =IF(League[[#This Row],[Gender]]="M",RANK(League[Total Points],mrank),"") -> 68 | J122: =IF(League[[#This Row],[Gender]]="F",RANK(League[Total Points],wrank),"") ->  | K122: =SUM(League[[#This Row],[XC]:[Thunder Run]]) -> 5 | L122: =IFERROR(VLOOKUP(League[[#This Row],[Memberno]],XC[[Mem]:[Total Points]],5,0),"") ->  | M122: =IFERROR(VLOOKUP(League[[#This Row],[Parkrun '#]],Parkrun[],7,FALSE),"") ->  | N122: =IFERROR(VLOOKUP(League[[#This Row],[Memberno]],Club5k[],5,FALSE),"") -> 5 | O122: =IFERROR(VLOOKUP(League[[#This Row],[Memberno]],Halfmarathon[Mem]:Halfmarathon[Points],4,0),"") ->  | P122: =IFERROR(VLOOKUP(League[[#This Row],[Memberno]],Marathon[],4,FALSE),"") ->  | Q122: =IFERROR(VLOOKUP(League[[#This Row],[Memberno]],Table18[],5,FALSE),"") ->  | R122: =IFERROR(VLOOKUP(League[[#This Row],[Memberno]],tenK[[Member '#]:[Total Points]],2,FALSE),"") ->  | S122: =IFERROR(VLOOKUP(League[[#This Row],[Memberno]],Thunderrun[],3,FALSE),"") -> 
B123: Kate Kitchener | C123: =IFERROR(VLOOKUP(League[[#This Row],[Name]],members,2,FALSE),"") -> 306 | E123: =COUNT(League[[#This Row],[XC]:[Thunder Run]]) -> 1 | F123: F | G123: =VLOOKUP(League[[#This Row],[Memberno]],Allmembers[],7,FALSE) -> FV55 | H123: =RANK(League[[#This Row],[Total Points]],League[Total Points]) -> 114 | I123: =IF(League[[#This Row],[Gender]]="M",RANK(League[Total Points],mrank),"") ->  | J123: =IF(League[[#This Row],[Gender]]="F",RANK(League[Total Points],wrank),"") -> 47 | K123: =SUM(League[[#This Row],[XC]:[Thunder Run]]) -> 5 | L123: =IFERROR(VLOOKUP(League[[#This Row],[Memberno]],XC[[Mem]:[Total Points]],5,0),"") ->  | M123: =IFERROR(VLOOKUP(League[[#This Row],[Parkrun '#]],Parkrun[],7,FALSE),"") ->  | N123: =IFERROR(VLOOKUP(League[[#This Row],[Memberno]],Club5k[],5,FALSE),"") -> 5 | O123: =IFERROR(VLOOKUP(League[[#This Row],[Memberno]],Halfmarathon[Mem]:Halfmarathon[Points],4,0),"") ->  | P123: =IFERROR(VLOOKUP(League[[#This Row],[Memberno]],Marathon[],4,FALSE),"") ->  | Q123: =IFERROR(VLOOKUP(League[[#This Row],[Memberno]],Table18[],5,FALSE),"") ->  | R123: =IFERROR(VLOOKUP(League[[#This Row],[Memberno]],tenK[[Member '#]:[Total Points]],2,FALSE),"") ->  | S123: =IFERROR(VLOOKUP(League[[#This Row],[Memberno]],Thunderrun[],3,FALSE),"") -> 
B124: Richard Saunders | C124: =IFERROR(VLOOKUP(League[[#This Row],[Name]],members,2,FALSE),"") -> 255 | E124: =COUNT(League[[#This Row],[XC]:[Thunder Run]]) -> 1 | F124: M | G124: =VLOOKUP(League[[#This Row],[Memberno]],Allmembers[],7,FALSE) -> MV40 | H124: =RANK(League[[#This Row],[Total Points]],League[Total Points]) -> 114 | I124: =IF(League[[#This Row],[Gender]]="M",RANK(League[Total Points],mrank),"") -> 68 | J124: =IF(League[[#This Row],[Gender]]="F",RANK(League[Total Points],wrank),"") ->  | K124: =SUM(League[[#This Row],[XC]:[Thunder Run]]) -> 5 | L124: =IFERROR(VLOOKUP(League[[#This Row],[Memberno]],XC[[Mem]:[Total Points]],5,0),"") ->  | M124: =IFERROR(VLOOKUP(League[[#This Row],[Parkrun '#]],Parkrun[],7,FALSE),"") ->  | N124: =IFERROR(VLOOKUP(League[[#This Row],[Memberno]],Club5k[],5,FALSE),"") -> 5 | O124: =IFERROR(VLOOKUP(League[[#This Row],[Memberno]],Halfmarathon[Mem]:Halfmarathon[Points],4,0),"") ->  | P124: =IFERROR(VLOOKUP(League[[#This Row],[Memberno]],Marathon[],4,FALSE),"") ->  | Q124: =IFERROR(VLOOKUP(League[[#This Row],[Memberno]],Table18[],5,FALSE),"") ->  | R124: =IFERROR(VLOOKUP(League[[#This Row],[Memberno]],tenK[[Member '#]:[Total Points]],2,FALSE),"") ->  | S124: =IFERROR(VLOOKUP(League[[#This Row],[Memberno]],Thunderrun[],3,FALSE),"") -> 
B125: Robin Harris | C125: 309 | E125: =COUNT(League[[#This Row],[XC]:[Thunder Run]]) -> 1 | F125: M | G125: =VLOOKUP(League[[#This Row],[Memberno]],Allmembers[],7,FALSE) -> MV40 | H125: =RANK(League[[#This Row],[Total Points]],League[Total Points]) -> 114 | I125: =IF(League[[#This Row],[Gender]]="M",RANK(League[Total Points],mrank),"") -> 68 | J125: =IF(League[[#This Row],[Gender]]="F",RANK(League[Total Points],wrank),"") ->  | K125: =SUM(League[[#This Row],[XC]:[Thunder Run]]) -> 5 | L125: =IFERROR(VLOOKUP(League[[#This Row],[Memberno]],XC[[Mem]:[Total Points]],5,0),"") ->  | M125: =IFERROR(VLOOKUP(League[[#This Row],[Parkrun '#]],Parkrun[],7,FALSE),"") ->  | N125: =IFERROR(VLOOKUP(League[[#This Row],[Memberno]],Club5k[],5,FALSE),"") -> 5 | O125: =IFERROR(VLOOKUP(League[[#This Row],[Memberno]],Halfmarathon[Mem]:Halfmarathon[Points],4,0),"") ->  | P125: =IFERROR(VLOOKUP(League[[#This Row],[Memberno]],Marathon[],4,FALSE),"") ->  | Q125: =IFERROR(VLOOKUP(League[[#This Row],[Memberno]],Table18[],5,FALSE),"") ->  | R125: =IFERROR(VLOOKUP(League[[#This Row],[Memberno]],tenK[[Member '#]:[Total Points]],2,FALSE),"") ->  | S125: =IFERROR(VLOOKUP(League[[#This Row],[Memberno]],Thunderrun[],3,FALSE),"") -> 
B126: Ross Gissane | C126: =IFERROR(VLOOKUP(League[[#This Row],[Name]],members,2,FALSE),"") -> 303 | E126: =COUNT(League[[#This Row],[XC]:[Thunder Run]]) -> 1 | F126: M | G126: =VLOOKUP(League[[#This Row],[Memberno]],Allmembers[],7,FALSE) -> MS | H126: =RANK(League[[#This Row],[Total Points]],League[Total Points]) -> 114 | I126: =IF(League[[#This Row],[Gender]]="M",RANK(League[Total Points],mrank),"") -> 68 | J126: =IF(League[[#This Row],[Gender]]="F",RANK(League[Total Points],wrank),"") ->  | K126: =SUM(League[[#This Row],[XC]:[Thunder Run]]) -> 5 | L126: =IFERROR(VLOOKUP(League[[#This Row],[Memberno]],XC[[Mem]:[Total Points]],5,0),"") ->  | M126: =IFERROR(VLOOKUP(League[[#This Row],[Parkrun '#]],Parkrun[],7,FALSE),"") ->  | N126: =IFERROR(VLOOKUP(League[[#This Row],[Memberno]],Club5k[],5,FALSE),"") -> 5 | O126: =IFERROR(VLOOKUP(League[[#This Row],[Memberno]],Halfmarathon[Mem]:Halfmarathon[Points],4,0),"") ->  | P126: =IFERROR(VLOOKUP(League[[#This Row],[Memberno]],Marathon[],4,FALSE),"") ->  | Q126: =IFERROR(VLOOKUP(League[[#This Row],[Memberno]],Table18[],5,FALSE),"") ->  | R126: =IFERROR(VLOOKUP(League[[#This Row],[Memberno]],tenK[[Member '#]:[Total Points]],2,FALSE),"") ->  | S126: =IFERROR(VLOOKUP(League[[#This Row],[Memberno]],Thunderrun[],3,FALSE),"") -> 
B127: Warrick Raath | C127: 315 | E127: =COUNT(League[[#This Row],[XC]:[Thunder Run]]) -> 1 | F127: M | G127: =VLOOKUP(League[[#This Row],[Memberno]],Allmembers[],7,FALSE) -> MS | H127: =RANK(League[[#This Row],[Total Points]],League[Total Points]) -> 114 | I127: =IF(League[[#This Row],[Gender]]="M",RANK(League[Total Points],mrank),"") -> 68 | J127: =IF(League[[#This Row],[Gender]]="F",RANK(League[Total Points],wrank),"") ->  | K127: =SUM(League[[#This Row],[XC]:[Thunder Run]]) -> 5 | L127: =IFERROR(VLOOKUP(League[[#This Row],[Memberno]],XC[[Mem]:[Total Points]],5,0),"") ->  | M127: =IFERROR(VLOOKUP(League[[#This Row],[Parkrun '#]],Parkrun[],7,FALSE),"") ->  | N127: =IFERROR(VLOOKUP(League[[#This Row],[Memberno]],Club5k[],5,FALSE),"") -> 5 | O127: =IFERROR(VLOOKUP(League[[#This Row],[Memberno]],Halfmarathon[Mem]:Halfmarathon[Points],4,0),"") ->  | P127: =IFERROR(VLOOKUP(League[[#This Row],[Memberno]],Marathon[],4,FALSE),"") ->  | Q127: =IFERROR(VLOOKUP(League[[#This Row],[Memberno]],Table18[],5,FALSE),"") ->  | R127: =IFERROR(VLOOKUP(League[[#This Row],[Memberno]],tenK[[Member '#]:[Total Points]],2,FALSE),"") ->  | S127: =IFERROR(VLOOKUP(League[[#This Row],[Memberno]],Thunderrun[],3,FALSE),"") -> 
B128: Andy Hill | C128: =IFERROR(VLOOKUP(League[[#This Row],[Name]],members,2,FALSE),"") -> 163 | E128: =COUNT(League[[#This Row],[XC]:[Thunder Run]]) -> 0 | F128: M | G128: =VLOOKUP(League[[#This Row],[Memberno]],Allmembers[],7,FALSE) -> MV40 | H128: =RANK(League[[#This Row],[Total Points]],League[Total Points]) -> 125 | I128: =IF(League[[#This Row],[Gender]]="M",RANK(League[Total Points],mrank),"") -> 77 | J128: =IF(League[[#This Row],[Gender]]="F",RANK(League[Total Points],wrank),"") ->  | K128: =SUM(League[[#This Row],[XC]:[Thunder Run]]) -> 0 | L128: =IFERROR(VLOOKUP(League[[#This Row],[Memberno]],XC[[Mem]:[Total Points]],5,0),"") ->  | M128: =IFERROR(VLOOKUP(League[[#This Row],[Parkrun '#]],Parkrun[],7,FALSE),"") ->  | N128: =IFERROR(VLOOKUP(League[[#This Row],[Memberno]],Club5k[],5,FALSE),"") ->  | O128: =IFERROR(VLOOKUP(League[[#This Row],[Memberno]],Halfmarathon[Mem]:Halfmarathon[Points],4,0),"") ->  | P128: =IFERROR(VLOOKUP(League[[#This Row],[Memberno]],Marathon[],4,FALSE),"") ->  | Q128: =IFERROR(VLOOKUP(League[[#This Row],[Memberno]],Table18[],5,FALSE),"") ->  | R128: =IFERROR(VLOOKUP(League[[#This Row],[Memberno]],tenK[[Member '#]:[Total Points]],2,FALSE),"") ->  | S128: =IFERROR(VLOOKUP(League[[#This Row],[Memberno]],Thunderrun[],3,FALSE),"") -> 
B129: Annabel Taylor | C129: 318 | E129: =COUNT(League[[#This Row],[XC]:[Thunder Run]]) -> 0 | F129: F | G129: =VLOOKUP(League[[#This Row],[Memberno]],Allmembers[],7,FALSE) -> FV35 | H129: =RANK(League[[#This Row],[Total Points]],League[Total Points]) -> 125 | I129: =IF(League[[#This Row],[Gender]]="M",RANK(League[Total Points],mrank),"") ->  | J129: =IF(League[[#This Row],[Gender]]="F",RANK(League[Total Points],wrank),"") -> 49 | K129: =SUM(League[[#This Row],[XC]:[Thunder Run]]) -> 0 | L129: =IFERROR(VLOOKUP(League[[#This Row],[Memberno]],XC[[Mem]:[Total Points]],5,0),"") ->  | M129: =IFERROR(VLOOKUP(League[[#This Row],[Parkrun '#]],Parkrun[],7,FALSE),"") ->  | N129: =IFERROR(VLOOKUP(League[[#This Row],[Memberno]],Club5k[],5,FALSE),"") ->  | O129: =IFERROR(VLOOKUP(League[[#This Row],[Memberno]],Halfmarathon[Mem]:Halfmarathon[Points],4,0),"") ->  | P129: =IFERROR(VLOOKUP(League[[#This Row],[Memberno]],Marathon[],4,FALSE),"") ->  | Q129: =IFERROR(VLOOKUP(League[[#This Row],[Memberno]],Table18[],5,FALSE),"") ->  | R129: =IFERROR(VLOOKUP(League[[#This Row],[Memberno]],tenK[[Member '#]:[Total Points]],2,FALSE),"") ->  | S129: =IFERROR(VLOOKUP(League[[#This Row],[Memberno]],Thunderrun[],3,FALSE),"") -> 
B130: Beverley Gosling | C130: 320 | E130: =COUNT(League[[#This Row],[XC]:[Thunder Run]]) -> 0 | F130: F | G130: =VLOOKUP(League[[#This Row],[Memberno]],Allmembers[],7,FALSE) -> FV45 | H130: =RANK(League[[#This Row],[Total Points]],League[Total Points]) -> 125 | I130: =IF(League[[#This Row],[Gender]]="M",RANK(League[Total Points],mrank),"") ->  | J130: =IF(League[[#This Row],[Gender]]="F",RANK(League[Total Points],wrank),"") -> 49 | K130: =SUM(League[[#This Row],[XC]:[Thunder Run]]) -> 0 | L130: =IFERROR(VLOOKUP(League[[#This Row],[Memberno]],XC[[Mem]:[Total Points]],5,0),"") ->  | M130: =IFERROR(VLOOKUP(League[[#This Row],[Parkrun '#]],Parkrun[],7,FALSE),"") ->  | N130: =IFERROR(VLOOKUP(League[[#This Row],[Memberno]],Club5k[],5,FALSE),"") ->  | O130: =IFERROR(VLOOKUP(League[[#This Row],[Memberno]],Halfmarathon[Mem]:Halfmarathon[Points],4,0),"") ->  | P130: =IFERROR(VLOOKUP(League[[#This Row],[Memberno]],Marathon[],4,FALSE),"") ->  | Q130: =IFERROR(VLOOKUP(League[[#This Row],[Memberno]],Table18[],5,FALSE),"") ->  | R130: =IFERROR(VLOOKUP(League[[#This Row],[Memberno]],tenK[[Member '#]:[Total Points]],2,FALSE),"") ->  | S130: =IFERROR(VLOOKUP(League[[#This Row],[Memberno]],Thunderrun[],3,FALSE),"") -> 
B131: Charlotte Walsh | C131: =IFERROR(VLOOKUP(League[[#This Row],[Name]],members,2,FALSE),"") -> 297 | E131: =COUNT(League[[#This Row],[XC]:[Thunder Run]]) -> 0 | F131: F | G131: =VLOOKUP(League[[#This Row],[Memberno]],Allmembers[],7,FALSE) -> FS | H131: =RANK(League[[#This Row],[Total Points]],League[Total Points]) -> 125 | I131: =IF(League[[#This Row],[Gender]]="M",RANK(League[Total Points],mrank),"") ->  | J131: =IF(League[[#This Row],[Gender]]="F",RANK(League[Total Points],wrank),"") -> 49 | K131: =SUM(League[[#This Row],[XC]:[Thunder Run]]) -> 0 | L131: =IFERROR(VLOOKUP(League[[#This Row],[Memberno]],XC[[Mem]:[Total Points]],5,0),"") ->  | M131: =IFERROR(VLOOKUP(League[[#This Row],[Parkrun '#]],Parkrun[],7,FALSE),"") ->  | N131: =IFERROR(VLOOKUP(League[[#This Row],[Memberno]],Club5k[],5,FALSE),"") ->  | O131: =IFERROR(VLOOKUP(League[[#This Row],[Memberno]],Halfmarathon[Mem]:Halfmarathon[Points],4,0),"") ->  | P131: =IFERROR(VLOOKUP(League[[#This Row],[Memberno]],Marathon[],4,FALSE),"") ->  | Q131: =IFERROR(VLOOKUP(League[[#This Row],[Memberno]],Table18[],5,FALSE),"") ->  | R131: =IFERROR(VLOOKUP(League[[#This Row],[Memberno]],tenK[[Member '#]:[Total Points]],2,FALSE),"") ->  | S131: =IFERROR(VLOOKUP(League[[#This Row],[Memberno]],Thunderrun[],3,FALSE),"") -> 
B132: Chris Mayne | C132: =IFERROR(VLOOKUP(League[[#This Row],[Name]],members,2,FALSE),"") -> 112 | E132: =COUNT(League[[#This Row],[XC]:[Thunder Run]]) -> 0 | F132: M | G132: =VLOOKUP(League[[#This Row],[Memberno]],Allmembers[],7,FALSE) -> MV80 | H132: =RANK(League[[#This Row],[Total Points]],League[Total Points]) -> 125 | I132: =IF(League[[#This Row],[Gender]]="M",RANK(League[Total Points],mrank),"") -> 77 | J132: =IF(League[[#This Row],[Gender]]="F",RANK(League[Total Points],wrank),"") ->  | K132: =SUM(League[[#This Row],[XC]:[Thunder Run]]) -> 0 | L132: =IFERROR(VLOOKUP(League[[#This Row],[Memberno]],XC[[Mem]:[Total Points]],5,0),"") ->  | M132: =IFERROR(VLOOKUP(League[[#This Row],[Parkrun '#]],Parkrun[],7,FALSE),"") ->  | N132: =IFERROR(VLOOKUP(League[[#This Row],[Memberno]],Club5k[],5,FALSE),"") ->  | O132: =IFERROR(VLOOKUP(League[[#This Row],[Memberno]],Halfmarathon[Mem]:Halfmarathon[Points],4,0),"") ->  | P132: =IFERROR(VLOOKUP(League[[#This Row],[Memberno]],Marathon[],4,FALSE),"") ->  | Q132: =IFERROR(VLOOKUP(League[[#This Row],[Memberno]],Table18[],5,FALSE),"") ->  | R132: =IFERROR(VLOOKUP(League[[#This Row],[Memberno]],tenK[[Member '#]:[Total Points]],2,FALSE),"") ->  | S132: =IFERROR(VLOOKUP(League[[#This Row],[Memberno]],Thunderrun[],3,FALSE),"") -> 
B133: Dan Day | C133: =IFERROR(VLOOKUP(League[[#This Row],[Name]],members,2,FALSE),"") -> 166 | E133: =COUNT(League[[#This Row],[XC]:[Thunder Run]]) -> 0 | F133: M | G133: =VLOOKUP(League[[#This Row],[Memberno]],Allmembers[],7,FALSE) -> MS | H133: =RANK(League[[#This Row],[Total Points]],League[Total Points]) -> 125 | I133: =IF(League[[#This Row],[Gender]]="M",RANK(League[Total Points],mrank),"") -> 77 | J133: =IF(League[[#This Row],[Gender]]="F",RANK(League[Total Points],wrank),"") ->  | K133: =SUM(League[[#This Row],[XC]:[Thunder Run]]) -> 0 | L133: =IFERROR(VLOOKUP(League[[#This Row],[Memberno]],XC[[Mem]:[Total Points]],5,0),"") ->  | M133: =IFERROR(VLOOKUP(League[[#This Row],[Parkrun '#]],Parkrun[],7,FALSE),"") ->  | N133: =IFERROR(VLOOKUP(League[[#This Row],[Memberno]],Club5k[],5,FALSE),"") ->  | O133: =IFERROR(VLOOKUP(League[[#This Row],[Memberno]],Halfmarathon[Mem]:Halfmarathon[Points],4,0),"") ->  | P133: =IFERROR(VLOOKUP(League[[#This Row],[Memberno]],Marathon[],4,FALSE),"") ->  | Q133: =IFERROR(VLOOKUP(League[[#This Row],[Memberno]],Table18[],5,FALSE),"") ->  | R133: =IFERROR(VLOOKUP(League[[#This Row],[Memberno]],tenK[[Member '#]:[Total Points]],2,FALSE),"") ->  | S133: =IFERROR(VLOOKUP(League[[#This Row],[Memberno]],Thunderrun[],3,FALSE),"") -> 
B134: Debbi James | C134: =IFERROR(VLOOKUP(League[[#This Row],[Name]],members,2,FALSE),"") -> 304 | E134: =COUNT(League[[#This Row],[XC]:[Thunder Run]]) -> 0 | F134: F | G134: =VLOOKUP(League[[#This Row],[Memberno]],Allmembers[],7,FALSE) -> FS | H134: =RANK(League[[#This Row],[Total Points]],League[Total Points]) -> 125 | I134: =IF(League[[#This Row],[Gender]]="M",RANK(League[Total Points],mrank),"") ->  | J134: =IF(League[[#This Row],[Gender]]="F",RANK(League[Total Points],wrank),"") -> 49 | K134: =SUM(League[[#This Row],[XC]:[Thunder Run]]) -> 0 | L134: =IFERROR(VLOOKUP(League[[#This Row],[Memberno]],XC[[Mem]:[Total Points]],5,0),"") ->  | M134: =IFERROR(VLOOKUP(League[[#This Row],[Parkrun '#]],Parkrun[],7,FALSE),"") ->  | N134: =IFERROR(VLOOKUP(League[[#This Row],[Memberno]],Club5k[],5,FALSE),"") ->  | O134: =IFERROR(VLOOKUP(League[[#This Row],[Memberno]],Halfmarathon[Mem]:Halfmarathon[Points],4,0),"") ->  | P134: =IFERROR(VLOOKUP(League[[#This Row],[Memberno]],Marathon[],4,FALSE),"") ->  | Q134: =IFERROR(VLOOKUP(League[[#This Row],[Memberno]],Table18[],5,FALSE),"") ->  | R134: =IFERROR(VLOOKUP(League[[#This Row],[Memberno]],tenK[[Member '#]:[Total Points]],2,FALSE),"") ->  | S134: =IFERROR(VLOOKUP(League[[#This Row],[Memberno]],Thunderrun[],3,FALSE),"") -> 
B135: Jim Robinson | C135: 286 | E135: =COUNT(League[[#This Row],[XC]:[Thunder Run]]) -> 0 | F135: M | G135: =VLOOKUP(League[[#This Row],[Memberno]],Allmembers[],7,FALSE) -> MV40 | H135: =RANK(League[[#This Row],[Total Points]],League[Total Points]) -> 125 | I135: =IF(League[[#This Row],[Gender]]="M",RANK(League[Total Points],mrank),"") -> 77 | J135: =IF(League[[#This Row],[Gender]]="F",RANK(League[Total Points],wrank),"") ->  | K135: =SUM(League[[#This Row],[XC]:[Thunder Run]]) -> 0 | L135: =IFERROR(VLOOKUP(League[[#This Row],[Memberno]],XC[[Mem]:[Total Points]],5,0),"") ->  | M135: =IFERROR(VLOOKUP(League[[#This Row],[Parkrun '#]],Parkrun[],7,FALSE),"") ->  | N135: =IFERROR(VLOOKUP(League[[#This Row],[Memberno]],Club5k[],5,FALSE),"") ->  | O135: =IFERROR(VLOOKUP(League[[#This Row],[Memberno]],Halfmarathon[Mem]:Halfmarathon[Points],4,0),"") ->  | P135: =IFERROR(VLOOKUP(League[[#This Row],[Memberno]],Marathon[],4,FALSE),"") ->  | Q135: =IFERROR(VLOOKUP(League[[#This Row],[Memberno]],Table18[],5,FALSE),"") ->  | R135: =IFERROR(VLOOKUP(League[[#This Row],[Memberno]],tenK[[Member '#]:[Total Points]],2,FALSE),"") ->  | S135: =IFERROR(VLOOKUP(League[[#This Row],[Memberno]],Thunderrun[],3,FALSE),"") -> 
B136: Jon Carr | C136: =IFERROR(VLOOKUP(League[[#This Row],[Name]],members,2,FALSE),"") -> 246 | E136: =COUNT(League[[#This Row],[XC]:[Thunder Run]]) -> 0 | F136: M | G136: =VLOOKUP(League[[#This Row],[Memberno]],Allmembers[],7,FALSE) -> MV50 | H136: =RANK(League[[#This Row],[Total Points]],League[Total Points]) -> 125 | I136: =IF(League[[#This Row],[Gender]]="M",RANK(League[Total Points],mrank),"") -> 77 | J136: =IF(League[[#This Row],[Gender]]="F",RANK(League[Total Points],wrank),"") ->  | K136: =SUM(League[[#This Row],[XC]:[Thunder Run]]) -> 0 | L136: =IFERROR(VLOOKUP(League[[#This Row],[Memberno]],XC[[Mem]:[Total Points]],5,0),"") ->  | M136: =IFERROR(VLOOKUP(League[[#This Row],[Parkrun '#]],Parkrun[],7,FALSE),"") ->  | N136: =IFERROR(VLOOKUP(League[[#This Row],[Memberno]],Club5k[],5,FALSE),"") ->  | O136: =IFERROR(VLOOKUP(League[[#This Row],[Memberno]],Halfmarathon[Mem]:Halfmarathon[Points],4,0),"") ->  | P136: =IFERROR(VLOOKUP(League[[#This Row],[Memberno]],Marathon[],4,FALSE),"") ->  | Q136: =IFERROR(VLOOKUP(League[[#This Row],[Memberno]],Table18[],5,FALSE),"") ->  | R136: =IFERROR(VLOOKUP(League[[#This Row],[Memberno]],tenK[[Member '#]:[Total Points]],2,FALSE),"") ->  | S136: =IFERROR(VLOOKUP(League[[#This Row],[Memberno]],Thunderrun[],3,FALSE),"") -> 
B137: Jordan Thomas | C137: 313 | E137: =COUNT(League[[#This Row],[XC]:[Thunder Run]]) -> 0 | F137: M | G137: =VLOOKUP(League[[#This Row],[Memberno]],Allmembers[],7,FALSE) -> M | H137: =RANK(League[[#This Row],[Total Points]],League[Total Points]) -> 125 | I137: =IF(League[[#This Row],[Gender]]="M",RANK(League[Total Points],mrank),"") -> 77 | J137: =IF(League[[#This Row],[Gender]]="F",RANK(League[Total Points],wrank),"") ->  | K137: =SUM(League[[#This Row],[XC]:[Thunder Run]]) -> 0 | L137: =IFERROR(VLOOKUP(League[[#This Row],[Memberno]],XC[[Mem]:[Total Points]],5,0),"") ->  | M137: =IFERROR(VLOOKUP(League[[#This Row],[Parkrun '#]],Parkrun[],7,FALSE),"") ->  | N137: =IFERROR(VLOOKUP(League[[#This Row],[Memberno]],Club5k[],5,FALSE),"") ->  | O137: =IFERROR(VLOOKUP(League[[#This Row],[Memberno]],Halfmarathon[Mem]:Halfmarathon[Points],4,0),"") ->  | P137: =IFERROR(VLOOKUP(League[[#This Row],[Memberno]],Marathon[],4,FALSE),"") ->  | Q137: =IFERROR(VLOOKUP(League[[#This Row],[Memberno]],Table18[],5,FALSE),"") ->  | R137: =IFERROR(VLOOKUP(League[[#This Row],[Memberno]],tenK[[Member '#]:[Total Points]],2,FALSE),"") ->  | S137: =IFERROR(VLOOKUP(League[[#This Row],[Memberno]],Thunderrun[],3,FALSE),"") -> 
B138: Julie-Anne Moors | C138: =IFERROR(VLOOKUP(League[[#This Row],[Name]],members,2,FALSE),"") -> 305 | E138: =COUNT(League[[#This Row],[XC]:[Thunder Run]]) -> 0 | F138: F | G138: =VLOOKUP(League[[#This Row],[Memberno]],Allmembers[],7,FALSE) -> FV45 | H138: =RANK(League[[#This Row],[Total Points]],League[Total Points]) -> 125 | I138: =IF(League[[#This Row],[Gender]]="M",RANK(League[Total Points],mrank),"") ->  | J138: =IF(League[[#This Row],[Gender]]="F",RANK(League[Total Points],wrank),"") -> 49 | K138: =SUM(League[[#This Row],[XC]:[Thunder Run]]) -> 0 | L138: =IFERROR(VLOOKUP(League[[#This Row],[Memberno]],XC[[Mem]:[Total Points]],5,0),"") ->  | M138: =IFERROR(VLOOKUP(League[[#This Row],[Parkrun '#]],Parkrun[],7,FALSE),"") ->  | N138: =IFERROR(VLOOKUP(League[[#This Row],[Memberno]],Club5k[],5,FALSE),"") ->  | O138: =IFERROR(VLOOKUP(League[[#This Row],[Memberno]],Halfmarathon[Mem]:Halfmarathon[Points],4,0),"") ->  | P138: =IFERROR(VLOOKUP(League[[#This Row],[Memberno]],Marathon[],4,FALSE),"") ->  | Q138: =IFERROR(VLOOKUP(League[[#This Row],[Memberno]],Table18[],5,FALSE),"") ->  | R138: =IFERROR(VLOOKUP(League[[#This Row],[Memberno]],tenK[[Member '#]:[Total Points]],2,FALSE),"") ->  | S138: =IFERROR(VLOOKUP(League[[#This Row],[Memberno]],Thunderrun[],3,FALSE),"") -> 
B139: Juliet Jacobs | C139: =IFERROR(VLOOKUP(League[[#This Row],[Name]],members,2,FALSE),"") -> 213 | D139: 349306 | E139: =COUNT(League[[#This Row],[XC]:[Thunder Run]]) -> 0 | F139: F | G139: =VLOOKUP(League[[#This Row],[Memberno]],Allmembers[],7,FALSE) -> FV35 | H139: =RANK(League[[#This Row],[Total Points]],League[Total Points]) -> 125 | I139: =IF(League[[#This Row],[Gender]]="M",RANK(League[Total Points],mrank),"") ->  | J139: =IF(League[[#This Row],[Gender]]="F",RANK(League[Total Points],wrank),"") -> 49 | K139: =SUM(League[[#This Row],[XC]:[Thunder Run]]) -> 0 | L139: =IFERROR(VLOOKUP(League[[#This Row],[Memberno]],XC[[Mem]:[Total Points]],5,0),"") ->  | M139: =IFERROR(VLOOKUP(League[[#This Row],[Parkrun '#]],Parkrun[],7,FALSE),"") ->  | N139: =IFERROR(VLOOKUP(League[[#This Row],[Memberno]],Club5k[],5,FALSE),"") ->  | O139: =IFERROR(VLOOKUP(League[[#This Row],[Memberno]],Halfmarathon[Mem]:Halfmarathon[Points],4,0),"") ->  | P139: =IFERROR(VLOOKUP(League[[#This Row],[Memberno]],Marathon[],4,FALSE),"") ->  | Q139: =IFERROR(VLOOKUP(League[[#This Row],[Memberno]],Table18[],5,FALSE),"") ->  | R139: =IFERROR(VLOOKUP(League[[#This Row],[Memberno]],tenK[[Member '#]:[Total Points]],2,FALSE),"") ->  | S139: =IFERROR(VLOOKUP(League[[#This Row],[Memberno]],Thunderrun[],3,FALSE),"") -> 
B140: Kate Speirs | C140: =IFERROR(VLOOKUP(League[[#This Row],[Name]],members,2,FALSE),"") -> 139 | D140: 214864 | E140: =COUNT(League[[#This Row],[XC]:[Thunder Run]]) -> 0 | F140: F | G140: =VLOOKUP(League[[#This Row],[Memberno]],Allmembers[],7,FALSE) -> FV35 | H140: =RANK(League[[#This Row],[Total Points]],League[Total Points]) -> 125 | I140: =IF(League[[#This Row],[Gender]]="M",RANK(League[Total Points],mrank),"") ->  | J140: =IF(League[[#This Row],[Gender]]="F",RANK(League[Total Points],wrank),"") -> 49 | K140: =SUM(League[[#This Row],[XC]:[Thunder Run]]) -> 0 | L140: =IFERROR(VLOOKUP(League[[#This Row],[Memberno]],XC[[Mem]:[Total Points]],5,0),"") ->  | M140: =IFERROR(VLOOKUP(League[[#This Row],[Parkrun '#]],Parkrun[],7,FALSE),"") ->  | N140: =IFERROR(VLOOKUP(League[[#This Row],[Memberno]],Club5k[],5,FALSE),"") ->  | O140: =IFERROR(VLOOKUP(League[[#This Row],[Memberno]],Halfmarathon[Mem]:Halfmarathon[Points],4,0),"") ->  | P140: =IFERROR(VLOOKUP(League[[#This Row],[Memberno]],Marathon[],4,FALSE),"") ->  | Q140: =IFERROR(VLOOKUP(League[[#This Row],[Memberno]],Table18[],5,FALSE),"") ->  | R140: =IFERROR(VLOOKUP(League[[#This Row],[Memberno]],tenK[[Member '#]:[Total Points]],2,FALSE),"") ->  | S140: =IFERROR(VLOOKUP(League[[#This Row],[Memberno]],Thunderrun[],3,FALSE),"") -> 
B141: Katie Fox | C141: 281 | E141: =COUNT(League[[#This Row],[XC]:[Thunder Run]]) -> 0 | F141: F | G141: =VLOOKUP(League[[#This Row],[Memberno]],Allmembers[],7,FALSE) -> FS | H141: =RANK(League[[#This Row],[Total Points]],League[Total Points]) -> 125 | I141: =IF(League[[#This Row],[Gender]]="M",RANK(League[Total Points],mrank),"") ->  | J141: =IF(League[[#This Row],[Gender]]="F",RANK(League[Total Points],wrank),"") -> 49 | K141: =SUM(League[[#This Row],[XC]:[Thunder Run]]) -> 0 | L141: =IFERROR(VLOOKUP(League[[#This Row],[Memberno]],XC[[Mem]:[Total Points]],5,0),"") ->  | M141: =IFERROR(VLOOKUP(League[[#This Row],[Parkrun '#]],Parkrun[],7,FALSE),"") ->  | N141: =IFERROR(VLOOKUP(League[[#This Row],[Memberno]],Club5k[],5,FALSE),"") ->  | O141: =IFERROR(VLOOKUP(League[[#This Row],[Memberno]],Halfmarathon[Mem]:Halfmarathon[Points],4,0),"") ->  | P141: =IFERROR(VLOOKUP(League[[#This Row],[Memberno]],Marathon[],4,FALSE),"") ->  | Q141: =IFERROR(VLOOKUP(League[[#This Row],[Memberno]],Table18[],5,FALSE),"") ->  | R141: =IFERROR(VLOOKUP(League[[#This Row],[Memberno]],tenK[[Member '#]:[Total Points]],2,FALSE),"") ->  | S141: =IFERROR(VLOOKUP(League[[#This Row],[Memberno]],Thunderrun[],3,FALSE),"") -> 
B142: Laura Hicks | C142: 319 | E142: =COUNT(League[[#This Row],[XC]:[Thunder Run]]) -> 0 | F142: F | G142: =VLOOKUP(League[[#This Row],[Memberno]],Allmembers[],7,FALSE) -> F | H142: =RANK(League[[#This Row],[Total Points]],League[Total Points]) -> 125 | I142: =IF(League[[#This Row],[Gender]]="M",RANK(League[Total Points],mrank),"") ->  | J142: =IF(League[[#This Row],[Gender]]="F",RANK(League[Total Points],wrank),"") -> 49 | K142: =SUM(League[[#This Row],[XC]:[Thunder Run]]) -> 0 | L142: =IFERROR(VLOOKUP(League[[#This Row],[Memberno]],XC[[Mem]:[Total Points]],5,0),"") ->  | M142: =IFERROR(VLOOKUP(League[[#This Row],[Parkrun '#]],Parkrun[],7,FALSE),"") ->  | N142: =IFERROR(VLOOKUP(League[[#This Row],[Memberno]],Club5k[],5,FALSE),"") ->  | O142: =IFERROR(VLOOKUP(League[[#This Row],[Memberno]],Halfmarathon[Mem]:Halfmarathon[Points],4,0),"") ->  | P142: =IFERROR(VLOOKUP(League[[#This Row],[Memberno]],Marathon[],4,FALSE),"") ->  | Q142: =IFERROR(VLOOKUP(League[[#This Row],[Memberno]],Table18[],5,FALSE),"") ->  | R142: =IFERROR(VLOOKUP(League[[#This Row],[Memberno]],tenK[[Member '#]:[Total Points]],2,FALSE),"") ->  | S142: =IFERROR(VLOOKUP(League[[#This Row],[Memberno]],Thunderrun[],3,FALSE),"") -> 
B143: Lloyd Watson | C143: =IFERROR(VLOOKUP(League[[#This Row],[Name]],members,2,FALSE),"") -> 175 | E143: =COUNT(League[[#This Row],[XC]:[Thunder Run]]) -> 0 | F143: M | G143: =VLOOKUP(League[[#This Row],[Memberno]],Allmembers[],7,FALSE) -> MV50 | H143: =RANK(League[[#This Row],[Total Points]],League[Total Points]) -> 125 | I143: =IF(League[[#This Row],[Gender]]="M",RANK(League[Total Points],mrank),"") -> 77 | J143: =IF(League[[#This Row],[Gender]]="F",RANK(League[Total Points],wrank),"") ->  | K143: =SUM(League[[#This Row],[XC]:[Thunder Run]]) -> 0 | L143: =IFERROR(VLOOKUP(League[[#This Row],[Memberno]],XC[[Mem]:[Total Points]],5,0),"") ->  | M143: =IFERROR(VLOOKUP(League[[#This Row],[Parkrun '#]],Parkrun[],7,FALSE),"") ->  | N143: =IFERROR(VLOOKUP(League[[#This Row],[Memberno]],Club5k[],5,FALSE),"") ->  | O143: =IFERROR(VLOOKUP(League[[#This Row],[Memberno]],Halfmarathon[Mem]:Halfmarathon[Points],4,0),"") ->  | P143: =IFERROR(VLOOKUP(League[[#This Row],[Memberno]],Marathon[],4,FALSE),"") ->  | Q143: =IFERROR(VLOOKUP(League[[#This Row],[Memberno]],Table18[],5,FALSE),"") ->  | R143: =IFERROR(VLOOKUP(League[[#This Row],[Memberno]],tenK[[Member '#]:[Total Points]],2,FALSE),"") ->  | S143: =IFERROR(VLOOKUP(League[[#This Row],[Memberno]],Thunderrun[],3,FALSE),"") -> 
B144: Maria Niembro | C144: =IFERROR(VLOOKUP(League[[#This Row],[Name]],members,2,FALSE),"") -> 265 | E144: =COUNT(League[[#This Row],[XC]:[Thunder Run]]) -> 0 | F144: F | G144: =VLOOKUP(League[[#This Row],[Memberno]],Allmembers[],7,FALSE) -> FS | H144: =RANK(League[[#This Row],[Total Points]],League[Total Points]) -> 125 | I144: =IF(League[[#This Row],[Gender]]="M",RANK(League[Total Points],mrank),"") ->  | J144: =IF(League[[#This Row],[Gender]]="F",RANK(League[Total Points],wrank),"") -> 49 | K144: =SUM(League[[#This Row],[XC]:[Thunder Run]]) -> 0 | L144: =IFERROR(VLOOKUP(League[[#This Row],[Memberno]],XC[[Mem]:[Total Points]],5,0),"") ->  | M144: =IFERROR(VLOOKUP(League[[#This Row],[Parkrun '#]],Parkrun[],7,FALSE),"") ->  | N144: =IFERROR(VLOOKUP(League[[#This Row],[Memberno]],Club5k[],5,FALSE),"") ->  | O144: =IFERROR(VLOOKUP(League[[#This Row],[Memberno]],Halfmarathon[Mem]:Halfmarathon[Points],4,0),"") ->  | P144: =IFERROR(VLOOKUP(League[[#This Row],[Memberno]],Marathon[],4,FALSE),"") ->  | Q144: =IFERROR(VLOOKUP(League[[#This Row],[Memberno]],Table18[],5,FALSE),"") ->  | R144: =IFERROR(VLOOKUP(League[[#This Row],[Memberno]],tenK[[Member '#]:[Total Points]],2,FALSE),"") ->  | S144: =IFERROR(VLOOKUP(League[[#This Row],[Memberno]],Thunderrun[],3,FALSE),"") -> 
B145: Martin Leach | C145: =IFERROR(VLOOKUP(League[[#This Row],[Name]],members,2,FALSE),"") -> 301 | E145: =COUNT(League[[#This Row],[XC]:[Thunder Run]]) -> 0 | F145: M | G145: =VLOOKUP(League[[#This Row],[Memberno]],Allmembers[],7,FALSE) -> MV40 | H145: =RANK(League[[#This Row],[Total Points]],League[Total Points]) -> 125 | I145: =IF(League[[#This Row],[Gender]]="M",RANK(League[Total Points],mrank),"") -> 77 | J145: =IF(League[[#This Row],[Gender]]="F",RANK(League[Total Points],wrank),"") ->  | K145: =SUM(League[[#This Row],[XC]:[Thunder Run]]) -> 0 | L145: =IFERROR(VLOOKUP(League[[#This Row],[Memberno]],XC[[Mem]:[Total Points]],5,0),"") ->  | M145: =IFERROR(VLOOKUP(League[[#This Row],[Parkrun '#]],Parkrun[],7,FALSE),"") ->  | N145: =IFERROR(VLOOKUP(League[[#This Row],[Memberno]],Club5k[],5,FALSE),"") ->  | O145: =IFERROR(VLOOKUP(League[[#This Row],[Memberno]],Halfmarathon[Mem]:Halfmarathon[Points],4,0),"") ->  | P145: =IFERROR(VLOOKUP(League[[#This Row],[Memberno]],Marathon[],4,FALSE),"") ->  | Q145: =IFERROR(VLOOKUP(League[[#This Row],[Memberno]],Table18[],5,FALSE),"") ->  | R145: =IFERROR(VLOOKUP(League[[#This Row],[Memberno]],tenK[[Member '#]:[Total Points]],2,FALSE),"") ->  | S145: =IFERROR(VLOOKUP(League[[#This Row],[Memberno]],Thunderrun[],3,FALSE),"") -> 
B146: Olivia Hessey | C146: 278 | E146: =COUNT(League[[#This Row],[XC]:[Thunder Run]]) -> 0 | F146: F | G146: =VLOOKUP(League[[#This Row],[Memberno]],Allmembers[],7,FALSE) -> F | H146: =RANK(League[[#This Row],[Total Points]],League[Total Points]) -> 125 | I146: =IF(League[[#This Row],[Gender]]="M",RANK(League[Total Points],mrank),"") ->  | J146: =IF(League[[#This Row],[Gender]]="F",RANK(League[Total Points],wrank),"") -> 49 | K146: =SUM(League[[#This Row],[XC]:[Thunder Run]]) -> 0 | L146: =IFERROR(VLOOKUP(League[[#This Row],[Memberno]],XC[[Mem]:[Total Points]],5,0),"") ->  | M146: =IFERROR(VLOOKUP(League[[#This Row],[Parkrun '#]],Parkrun[],7,FALSE),"") ->  | N146: =IFERROR(VLOOKUP(League[[#This Row],[Memberno]],Club5k[],5,FALSE),"") ->  | O146: =IFERROR(VLOOKUP(League[[#This Row],[Memberno]],Halfmarathon[Mem]:Halfmarathon[Points],4,0),"") ->  | P146: =IFERROR(VLOOKUP(League[[#This Row],[Memberno]],Marathon[],4,FALSE),"") ->  | Q146: =IFERROR(VLOOKUP(League[[#This Row],[Memberno]],Table18[],5,FALSE),"") ->  | R146: =IFERROR(VLOOKUP(League[[#This Row],[Memberno]],tenK[[Member '#]:[Total Points]],2,FALSE),"") ->  | S146: =IFERROR(VLOOKUP(League[[#This Row],[Memberno]],Thunderrun[],3,FALSE),"") -> 
B147: Oswald Kawache | C147: =IFERROR(VLOOKUP(League[[#This Row],[Name]],members,2,FALSE),"") -> 296 | E147: =COUNT(League[[#This Row],[XC]:[Thunder Run]]) -> 0 | F147: M | G147: =VLOOKUP(League[[#This Row],[Memberno]],Allmembers[],7,FALSE) -> M | H147: =RANK(League[[#This Row],[Total Points]],League[Total Points]) -> 125 | I147: =IF(League[[#This Row],[Gender]]="M",RANK(League[Total Points],mrank),"") -> 77 | J147: =IF(League[[#This Row],[Gender]]="F",RANK(League[Total Points],wrank),"") ->  | K147: =SUM(League[[#This Row],[XC]:[Thunder Run]]) -> 0 | L147: =IFERROR(VLOOKUP(League[[#This Row],[Memberno]],XC[[Mem]:[Total Points]],5,0),"") ->  | M147: =IFERROR(VLOOKUP(League[[#This Row],[Parkrun '#]],Parkrun[],7,FALSE),"") ->  | N147: =IFERROR(VLOOKUP(League[[#This Row],[Memberno]],Club5k[],5,FALSE),"") ->  | O147: =IFERROR(VLOOKUP(League[[#This Row],[Memberno]],Halfmarathon[Mem]:Halfmarathon[Points],4,0),"") ->  | P147: =IFERROR(VLOOKUP(League[[#This Row],[Memberno]],Marathon[],4,FALSE),"") ->  | Q147: =IFERROR(VLOOKUP(League[[#This Row],[Memberno]],Table18[],5,FALSE),"") ->  | R147: =IFERROR(VLOOKUP(League[[#This Row],[Memberno]],tenK[[Member '#]:[Total Points]],2,FALSE),"") ->  | S147: =IFERROR(VLOOKUP(League[[#This Row],[Memberno]],Thunderrun[],3,FALSE),"") -> 
B148: Ravi Chandarana | C148: =IFERROR(VLOOKUP(League[[#This Row],[Name]],members,2,FALSE),"") -> 300 | E148: =COUNT(League[[#This Row],[XC]:[Thunder Run]]) -> 0 | F148: M | G148: =VLOOKUP(League[[#This Row],[Memberno]],Allmembers[],7,FALSE) -> M | H148: =RANK(League[[#This Row],[Total Points]],League[Total Points]) -> 125 | I148: =IF(League[[#This Row],[Gender]]="M",RANK(League[Total Points],mrank),"") -> 77 | J148: =IF(League[[#This Row],[Gender]]="F",RANK(League[Total Points],wrank),"") ->  | K148: =SUM(League[[#This Row],[XC]:[Thunder Run]]) -> 0 | L148: =IFERROR(VLOOKUP(League[[#This Row],[Memberno]],XC[[Mem]:[Total Points]],5,0),"") ->  | M148: =IFERROR(VLOOKUP(League[[#This Row],[Parkrun '#]],Parkrun[],7,FALSE),"") ->  | N148: =IFERROR(VLOOKUP(League[[#This Row],[Memberno]],Club5k[],5,FALSE),"") ->  | O148: =IFERROR(VLOOKUP(League[[#This Row],[Memberno]],Halfmarathon[Mem]:Halfmarathon[Points],4,0),"") ->  | P148: =IFERROR(VLOOKUP(League[[#This Row],[Memberno]],Marathon[],4,FALSE),"") ->  | Q148: =IFERROR(VLOOKUP(League[[#This Row],[Memberno]],Table18[],5,FALSE),"") ->  | R148: =IFERROR(VLOOKUP(League[[#This Row],[Memberno]],tenK[[Member '#]:[Total Points]],2,FALSE),"") ->  | S148: =IFERROR(VLOOKUP(League[[#This Row],[Memberno]],Thunderrun[],3,FALSE),"") -> 
B149: Sarah England | C149: =IFERROR(VLOOKUP(League[[#This Row],[Name]],members,2,FALSE),"") -> 150 | E149: =COUNT(League[[#This Row],[XC]:[Thunder Run]]) -> 0 | F149: F | G149: =VLOOKUP(League[[#This Row],[Memberno]],Allmembers[],7,FALSE) -> FS | H149: =RANK(League[[#This Row],[Total Points]],League[Total Points]) -> 125 | I149: =IF(League[[#This Row],[Gender]]="M",RANK(League[Total Points],mrank),"") ->  | J149: =IF(League[[#This Row],[Gender]]="F",RANK(League[Total Points],wrank),"") -> 49 | K149: =SUM(League[[#This Row],[XC]:[Thunder Run]]) -> 0 | L149: =IFERROR(VLOOKUP(League[[#This Row],[Memberno]],XC[[Mem]:[Total Points]],5,0),"") ->  | M149: =IFERROR(VLOOKUP(League[[#This Row],[Parkrun '#]],Parkrun[],7,FALSE),"") ->  | N149: =IFERROR(VLOOKUP(League[[#This Row],[Memberno]],Club5k[],5,FALSE),"") ->  | O149: =IFERROR(VLOOKUP(League[[#This Row],[Memberno]],Halfmarathon[Mem]:Halfmarathon[Points],4,0),"") ->  | P149: =IFERROR(VLOOKUP(League[[#This Row],[Memberno]],Marathon[],4,FALSE),"") ->  | Q149: =IFERROR(VLOOKUP(League[[#This Row],[Memberno]],Table18[],5,FALSE),"") ->  | R149: =IFERROR(VLOOKUP(League[[#This Row],[Memberno]],tenK[[Member '#]:[Total Points]],2,FALSE),"") ->  | S149: =IFERROR(VLOOKUP(League[[#This Row],[Memberno]],Thunderrun[],3,FALSE),"") -> 
B150: Tammy Clarkson | C150: =IFERROR(VLOOKUP(League[[#This Row],[Name]],members,2,FALSE),"") -> 261 | E150: =COUNT(League[[#This Row],[XC]:[Thunder Run]]) -> 0 | F150: F | G150: =VLOOKUP(League[[#This Row],[Memberno]],Allmembers[],7,FALSE) -> FV35 | H150: =RANK(League[[#This Row],[Total Points]],League[Total Points]) -> 125 | I150: =IF(League[[#This Row],[Gender]]="M",RANK(League[Total Points],mrank),"") ->  | J150: =IF(League[[#This Row],[Gender]]="F",RANK(League[Total Points],wrank),"") -> 49 | K150: =SUM(League[[#This Row],[XC]:[Thunder Run]]) -> 0 | L150: =IFERROR(VLOOKUP(League[[#This Row],[Memberno]],XC[[Mem]:[Total Points]],5,0),"") ->  | M150: =IFERROR(VLOOKUP(League[[#This Row],[Parkrun '#]],Parkrun[],7,FALSE),"") ->  | N150: =IFERROR(VLOOKUP(League[[#This Row],[Memberno]],Club5k[],5,FALSE),"") ->  | O150: =IFERROR(VLOOKUP(League[[#This Row],[Memberno]],Halfmarathon[Mem]:Halfmarathon[Points],4,0),"") ->  | P150: =IFERROR(VLOOKUP(League[[#This Row],[Memberno]],Marathon[],4,FALSE),"") ->  | Q150: =IFERROR(VLOOKUP(League[[#This Row],[Memberno]],Table18[],5,FALSE),"") ->  | R150: =IFERROR(VLOOKUP(League[[#This Row],[Memberno]],tenK[[Member '#]:[Total Points]],2,FALSE),"") ->  | S150: =IFERROR(VLOOKUP(League[[#This Row],[Memberno]],Thunderrun[],3,FALSE),"") -> 
B151: Tanya Bruce | C151: 317 | E151: =COUNT(League[[#This Row],[XC]:[Thunder Run]]) -> 0 | F151: F | G151: =VLOOKUP(League[[#This Row],[Memberno]],Allmembers[],7,FALSE) -> FV35 | H151: =RANK(League[[#This Row],[Total Points]],League[Total Points]) -> 125 | I151: =IF(League[[#This Row],[Gender]]="M",RANK(League[Total Points],mrank),"") ->  | J151: =IF(League[[#This Row],[Gender]]="F",RANK(League[Total Points],wrank),"") -> 49 | K151: =SUM(League[[#This Row],[XC]:[Thunder Run]]) -> 0 | L151: =IFERROR(VLOOKUP(League[[#This Row],[Memberno]],XC[[Mem]:[Total Points]],5,0),"") ->  | M151: =IFERROR(VLOOKUP(League[[#This Row],[Parkrun '#]],Parkrun[],7,FALSE),"") ->  | N151: =IFERROR(VLOOKUP(League[[#This Row],[Memberno]],Club5k[],5,FALSE),"") ->  | O151: =IFERROR(VLOOKUP(League[[#This Row],[Memberno]],Halfmarathon[Mem]:Halfmarathon[Points],4,0),"") ->  | P151: =IFERROR(VLOOKUP(League[[#This Row],[Memberno]],Marathon[],4,FALSE),"") ->  | Q151: =IFERROR(VLOOKUP(League[[#This Row],[Memberno]],Table18[],5,FALSE),"") ->  | R151: =IFERROR(VLOOKUP(League[[#This Row],[Memberno]],tenK[[Member '#]:[Total Points]],2,FALSE),"") ->  | S151: =IFERROR(VLOOKUP(League[[#This Row],[Memberno]],Thunderrun[],3,FALSE),"") -> 
B152: Tracey Devine | C152: 312 | E152: =COUNT(League[[#This Row],[XC]:[Thunder Run]]) -> 0 | F152: F | G152: =VLOOKUP(League[[#This Row],[Memberno]],Allmembers[],7,FALSE) -> FV35 | H152: =RANK(League[[#This Row],[Total Points]],League[Total Points]) -> 125 | I152: =IF(League[[#This Row],[Gender]]="M",RANK(League[Total Points],mrank),"") ->  | J152: =IF(League[[#This Row],[Gender]]="F",RANK(League[Total Points],wrank),"") -> 49 | K152: =SUM(League[[#This Row],[XC]:[Thunder Run]]) -> 0 | L152: =IFERROR(VLOOKUP(League[[#This Row],[Memberno]],XC[[Mem]:[Total Points]],5,0),"") ->  | M152: =IFERROR(VLOOKUP(League[[#This Row],[Parkrun '#]],Parkrun[],7,FALSE),"") ->  | N152: =IFERROR(VLOOKUP(League[[#This Row],[Memberno]],Club5k[],5,FALSE),"") ->  | O152: =IFERROR(VLOOKUP(League[[#This Row],[Memberno]],Halfmarathon[Mem]:Halfmarathon[Points],4,0),"") ->  | P152: =IFERROR(VLOOKUP(League[[#This Row],[Memberno]],Marathon[],4,FALSE),"") ->  | Q152: =IFERROR(VLOOKUP(League[[#This Row],[Memberno]],Table18[],5,FALSE),"") ->  | R152: =IFERROR(VLOOKUP(League[[#This Row],[Memberno]],tenK[[Member '#]:[Total Points]],2,FALSE),"") ->  | S152: =IFERROR(VLOOKUP(League[[#This Row],[Memberno]],Thunderrun[],3,FALSE),"") -> 
B153: Victoria Blythe | C153: =IFERROR(VLOOKUP(League[[#This Row],[Name]],members,2,FALSE),"") -> 271 | E153: =COUNT(League[[#This Row],[XC]:[Thunder Run]]) -> 0 | F153: F | G153: =VLOOKUP(League[[#This Row],[Memberno]],Allmembers[],7,FALSE) -> FS | H153: =RANK(League[[#This Row],[Total Points]],League[Total Points]) -> 125 | I153: =IF(League[[#This Row],[Gender]]="M",RANK(League[Total Points],mrank),"") ->  | J153: =IF(League[[#This Row],[Gender]]="F",RANK(League[Total Points],wrank),"") -> 49 | K153: =SUM(League[[#This Row],[XC]:[Thunder Run]]) -> 0 | L153: =IFERROR(VLOOKUP(League[[#This Row],[Memberno]],XC[[Mem]:[Total Points]],5,0),"") ->  | M153: =IFERROR(VLOOKUP(League[[#This Row],[Parkrun '#]],Parkrun[],7,FALSE),"") ->  | N153: =IFERROR(VLOOKUP(League[[#This Row],[Memberno]],Club5k[],5,FALSE),"") ->  | O153: =IFERROR(VLOOKUP(League[[#This Row],[Memberno]],Halfmarathon[Mem]:Halfmarathon[Points],4,0),"") ->  | P153: =IFERROR(VLOOKUP(League[[#This Row],[Memberno]],Marathon[],4,FALSE),"") ->  | Q153: =IFERROR(VLOOKUP(League[[#This Row],[Memberno]],Table18[],5,FALSE),"") ->  | R153: =IFERROR(VLOOKUP(League[[#This Row],[Memberno]],tenK[[Member '#]:[Total Points]],2,FALSE),"") ->  | S153: =IFERROR(VLOOKUP(League[[#This Row],[Memberno]],Thunderrun[],3,FALSE),"") -> 
B154: Total | C154: =SUBTOTAL(103,League[Memberno]) -> 150 | D154: =SUBTOTAL(102,League[Parkrun '#]) -> 59 | F154: =SUBTOTAL(103,League[Gender]) -> 150 | H154: =SUBTOTAL(103,League[Club Rank]) -> 150 | K154: =COUNTIF(League[Total Points],'Controls Page'!B1) -> 124 | L154: =COUNTIF(League[XC],'Controls Page'!B1) -> 62 | M154: =COUNTIF(League[Parkrun],'Controls Page'!$B$1) -> 50 | N154: =SUBTOTAL(102,League[Club5K]) -> 88 | O154: =SUBTOTAL(102,League[HalfMarathon]) -> 40 | P154: =SUBTOTAL(102,League[Marathon or Ultra]) -> 30 | Q154: =SUBTOTAL(102,League[10 Miles]) -> 32 | R154: =SUBTOTAL(102,League[10K]) -> 72 | S154: =SUBTOTAL(102,League[Thunder Run]) -> 7

Sheet XC Results
D1: All XC Results
B3: N1 | C3: N2 | D3: Name | E3: G | F3: Mem | G3: Gender | H3: Group | I3: # Events | J3: Total Points | K3: Royston Race Position | L3: Royston Time | M3: Royston Seconds | N3: Royston Mens Time | O3: Royston Ladies Times | P3: Royston Mens Points | Q3: Royston Ladies Points | R3: Royston Time2 | S3: Watford Race Position | T3: WTime | U3: Watford Seconds | V3: Watford Mens Time | W3: Watford Ladies Time | X3: Watford Mens Points | Y3: Waftord Ladies Points | Z3: Watford Time | AA3: Cheshunt wtime | AB3: Cheshut place | AC3: Cheshunt Second | AD3: Cheshunt Mens Time | AE3: Cheshunt ladies Time | AF3: Cheshunt Mens Points | AG3: Cheshunt Ladies Point | AH3: Watford Challenge Place | AI3: Watford Challenge Mens Points | AJ3: Watford Challenge Ladies Points | AK3: Watford Challenge Time | AL3: Grovelands place | AM3: Grovelands Mens Time | AN3: Grovelands Ladies Time | AO3: Glands Mens Secs | AP3: Gland Ladies Secs | AQ3: Gland Mens Points | AR3: Gland Ladies Points | AS3: Trent Park Pos | AT3: Trent Park Mens Points | AU3: Trent Park Ladies Points | AV3: Trent Park Mens Time | AW3: Trent Park Ladies Time | AX3: TP Mens Secs | AY3: TP Ladies Secs
B4: Simon | C4: Kitchener | D4: =TRIM(XC[[#This Row],[N1]])&" "&TRIM(XC[[#This Row],[N2]]) -> Simon Kitchener | F4: =VLOOKUP(XC[[#This Row],[Name]],members,2,0) -> 9 | G4: M | H4: =VLOOKUP(XC[[#This Row],[Mem]],Allmembers[],7,FALSE) -> MV60 | I4: =COUNT(XC[[#This Row],[Royston Race Position]],XC[[#This Row],[Watford Race Position]],XC[[#This Row],[Cheshut place]],XC[[#This Row],[Watford Challenge Place]],XC[[#This Row],[Grovelands place]],XC[[#This Row],[Trent Park Pos]]) -> 2 | J4: =IF(XC[[#This Row],[Gender]]="M",XC[[#This Row],[Royston Mens Points]]+XC[[#This Row],[Watford Mens Points]]+XC[[#This Row],[Cheshunt Mens Points]]+XC[[#This Row],[Watford Challenge Mens Points]]+XC[[#This Row],[Gland Mens Points]]+XC[[#This Row],[Trent Park Mens Points]],XC[[#This Row],[Royston Ladies Points]]+XC[[#This Row],[Waftord Ladies Points]]+XC[[#This Row],[Cheshunt Ladies Point]]+XC[[#This Row],[Watford Challenge Ladies Points]]+XC[[#This Row],[Gland Ladies Points]]+XC[[#This Row],[Trent Park Ladies Points]]) -> 63 | K4: 171 | L4: 46:53 | M4: =IF(XC[[#This Row],[Royston Time2]]>" ",(HOUR(XC[[#This Row],[Royston Time2]])*3600)+MINUTE(XC[[#This Row],[Royston Time2]])*60+SECOND(XC[[#This Row],[Royston Time2]]),"") -> 2813 | N4: =IFERROR(IF(FIND("M",XC[[#This Row],[Group]])>0,XC[[#This Row],[Royston Seconds]],"errorif"),"") -> 2813 | O4: =IFERROR(IF(FIND("F",XC[[#This Row],[Group]])>0,XC[[#This Row],[Royston Seconds]],"errorif"),"") ->  | P4: =IF(ISNUMBER(XC[[#This Row],[Royston Mens Time]]),50-(RANK(XC[[#This Row],[Royston Mens Time]],XC[Royston Mens Time],1))+1,0) -> 34 | Q4: =IF(ISNUMBER(XC[[#This Row],[Royston Ladies Times]]),50-(RANK(XC[[#This Row],[Royston Ladies Times]],XC[Royston Ladies Times],1))+1,0) -> 0 | R4: =Hatime(XC[[#This Row],[Royston Time]]) -> 00:46:53 | U4: =IFERROR((HOUR(XC[[#This Row],[Watford Time]])*3600)+MINUTE(XC[[#This Row],[Watford Time]])*60+SECOND(XC[[#This Row],[Watford Time]]),"") ->  | V4: =IFERROR(IF(FIND("M",XC[[#This Row],[Group]])>0,XC[[#This Row],[Watford Seconds]],"errorif"),"") ->  | W4: =IFERROR(IF(FIND("F",XC[[#This Row],[Group]])>0,XC[[#This Row],[Watford Seconds]],"errorif"),"") ->  | X4: =IF(ISNUMBER(XC[[#This Row],[Watford Mens Time]]),50-(RANK(XC[[#This Row],[Watford Mens Time]],XC[Watford Mens Time],1))+1,0) -> 0 | Y4: =IF(ISNUMBER(XC[[#This Row],[Watford Ladies Time]]),50-(RANK(XC[[#This Row],[Watford Ladies Time]],XC[Watford Ladies Time],1))+1,0) -> 0 | Z4: =Hatime(XC[[#This Row],[WTime]]) ->  | AA4: 00:40:33 | AB4: 211 | AC4: =(HOUR(XC[[#This Row],[Cheshunt wtime]])*3600)+MINUTE(XC[[#This Row],[Cheshunt wtime]])*60+SECOND(XC[[#This Row],[Cheshunt wtime]]) -> 2433 | AD4: =IFERROR(IF(FIND("M",XC[[#This Row],[Group]])>0,XC[[#This Row],[Cheshunt Second]],"errorif"),"") -> 2433 | AE4: =IFERROR(IF(FIND("F",XC[[#This Row],[Group]])>0,XC[[#This Row],[Cheshunt Second]],"errorif"),"") ->  | AF4: =IF(ISNUMBER(XC[[#This Row],[Cheshunt Mens Time]]),50-(RANK(XC[[#This Row],[Cheshunt Mens Time]],XC[Cheshunt Mens Time],1))+1,0) -> 29 | AG4: =IF(ISNUMBER(XC[[#This Row],[Cheshunt ladies Time]]),50-(RANK(XC[[#This Row],[Cheshunt ladies Time]],XC[Cheshunt ladies Time],1))+1,0) -> 0 | AQ4: =IF(ISNUMBER(XC[[#This Row],[Glands Mens Secs]]),50-(RANK(XC[[#This Row],[Glands Mens Secs]],XC[Glands Mens Secs],1))+1,0) -> 0 | AR4: =IF(ISNUMBER(XC[[#This Row],[Gland Ladies Secs]]),50-(RANK(XC[[#This Row],[Gland Ladies Secs]],XC[Gland Ladies Secs],1))+1,0) -> 0 | AT4: =IF(ISNUMBER(XC[[#This Row],[TP Mens Secs]]),50-_xlfn.RANK.EQ(XC[[#This Row],[TP Mens Secs]],XC[TP Mens Secs],1)+1,0) -> 0 | AU4: =IF(ISNUMBER(XC[[#This Row],[TP Ladies Secs]]),50-_xlfn.RANK.EQ(XC[[#This Row],[TP Ladies Secs]],XC[TP Ladies Secs],1)+1,0) -> 0
B5: Georgie | C5: Hamilton | D5: =TRIM(XC[[#This Row],[N1]])&" "&TRIM(XC[[#This Row],[N2]]) -> Georgie Hamilton | E5: 1 | F5: =VLOOKUP(XC[[#This Row],[Name]],members,2,0) -> 12 | G5: W | H5: =VLOOKUP(XC[[#This Row],[Mem]],Allmembers[],7,FALSE) -> FV65 | I5: =COUNT(XC[[#This Row],[Royston Race Position]],XC[[#This Row],[Watford Race Position]],XC[[#This Row],[Cheshut place]],XC[[#This Row],[Watford Challenge Place]],XC[[#This Row],[Grovelands place]],XC[[#This Row],[Trent Park Pos]]) -> 4 | J5: =IF(XC[[#This Row],[Gender]]="M",XC[[#This Row],[Royston Mens Points]]+XC[[#This Row],[Watford Mens Points]]+XC[[#This Row],[Cheshunt Mens Points]]+XC[[#This Row],[Watford Challenge Mens Points]]+XC[[#This Row],[Gland Mens Points]]+XC[[#This Row],[Trent Park Mens Points]],XC[[#This Row],[Royston Ladies Points]]+XC[[#This Row],[Waftord Ladies Points]]+XC[[#This Row],[Cheshunt Ladies Point]]+XC[[#This Row],[Watford Challenge Ladies Points]]+XC[[#This Row],[Gland Ladies Points]]+XC[[#This Row],[Trent Park Ladies Points]]) -> 163 | K5: 304 | L5: 60:30 | M5: =IF(XC[[#This Row],[Royston Time2]]>" ",(HOUR(XC[[#This Row],[Royston Time2]])*3600)+MINUTE(XC[[#This Row],[Royston Time2]])*60+SECOND(XC[[#This Row],[Royston Time2]]),"") -> 3630 | N5: =IFERROR(IF(FIND("M",XC[[#This Row],[Group]])>0,XC[[#This Row],[Royston Seconds]],"errorif"),"") ->  | O5: =IFERROR(IF(FIND("F",XC[[#This Row],[Group]])>0,XC[[#This Row],[Royston Seconds]],"errorif"),"") -> 3630 | P5: =IF(ISNUMBER(XC[[#This Row],[Royston Mens Time]]),50-(RANK(XC[[#This Row],[Royston Mens Time]],XC[Royston Mens Time],1))+1,0) -> 0 | Q5: =IF(ISNUMBER(XC[[#This Row],[Royston Ladies Times]]),50-(RANK(XC[[#This Row],[Royston Ladies Times]],XC[Royston Ladies Times],1))+1,"") -> 40 | R5: =Hatime(XC[[#This Row],[Royston Time]]) -> 01:00:30 | S5: 284 | T5: 64:39 | U5: =IFERROR((HOUR(XC[[#This Row],[Watford Time]])*3600)+MINUTE(XC[[#This Row],[Watford Time]])*60+SECOND(XC[[#This Row],[Watford Time]]),"") -> 3879 | V5: =IFERROR(IF(FIND("M",XC[[#This Row],[Group]])>0,XC[[#This Row],[Watford Seconds]],"errorif"),"") ->  | W5: =IFERROR(IF(FIND("F",XC[[#This Row],[Group]])>0,XC[[#This Row],[Watford Seconds]],"errorif"),"") -> 3879 | X5: =IF(ISNUMBER(XC[[#This Row],[Watford Mens Time]]),50-(RANK(XC[[#This Row],[Watford Mens Time]],XC[Watford Mens Time],1))+1,0) -> 0 | Y5: =IF(ISNUMBER(XC[[#This Row],[Watford Ladies Time]]),50-(RANK(XC[[#This Row],[Watford Ladies Time]],XC[Watford Ladies Time],1))+1,0) -> 42 | Z5: =Hatime(XC[[#This Row],[WTime]]) -> 01:04:39 | AD5: =IFERROR(IF(FIND("M",XC[[#This Row],[Group]])>0,XC[[#This Row],[Cheshunt Second]],"errorif"),"") ->  | AE5: =IFERROR(IF(FIND("F",XC[[#This Row],[Group]])>0,XC[[#This Row],[Cheshunt Second]],"errorif"),"") ->  | AF5: =IF(ISNUMBER(XC[[#This Row],[Cheshunt Mens Time]]),50-(RANK(XC[[#This Row],[Cheshunt Mens Time]],XC[Cheshunt Mens Time],1))+1,0) -> 0 | AG5: =IF(ISNUMBER(XC[[#This Row],[Cheshunt ladies Time]]),50-(RANK(XC[[#This Row],[Cheshunt ladies Time]],XC[Cheshunt ladies Time],1))+1,0) -> 0 | AL5: 345 | AN5: 00:45:54 | AP5: =(HOUR(XC[[#This Row],[Grovelands Ladies Time]])*3600)+MINUTE(XC[[#This Row],[Grovelands Ladies Time]])*60+SECOND(XC[[#This Row],[Grovelands Ladies Time]]) -> 2754 | AQ5: =IF(ISNUMBER(XC[[#This Row],[Glands Mens Secs]]),50-(RANK(XC[[#This Row],[Glands Mens Secs]],XC[Glands Mens Secs],1))+1,0) -> 0 | AR5: =IF(ISNUMBER(XC[[#This Row],[Gland Ladies Secs]]),50-(RANK(XC[[#This Row],[Gland Ladies Secs]],XC[Gland Ladies Secs],1))+1,0) -> 42 | AS5: 300 | AT5: =IF(ISNUMBER(XC[[#This Row],[TP Mens Secs]]),50-_xlfn.RANK.EQ(XC[[#This Row],[TP Mens Secs]],XC[TP Mens Secs],1)+1,0) -> 0 | AU5: =IF(ISNUMBER(XC[[#This Row],[TP Ladies Secs]]),50-_xlfn.RANK.EQ(XC[[#This Row],[TP Ladies Secs]],XC[TP Ladies Secs],1)+1,0) -> 39 | AW5: 00:43:34 | AY5: 2614
B6: Laura | C6: Nathan | D6: =TRIM(XC[[#This Row],[N1]])&" "&TRIM(XC[[#This Row],[N2]]) -> Laura Nathan | F6: =VLOOKUP(XC[[#This Row],[Name]],members,2,0) -> 13 | G6: W | H6: =VLOOKUP(XC[[#This Row],[Mem]],Allmembers[],7,FALSE) -> FV35 | I6: =COUNT(XC[[#This Row],[Royston Race Position]],XC[[#This Row],[Watford Race Position]],XC[[#This Row],[Cheshut place]],XC[[#This Row],[Watford Challenge Place]],XC[[#This Row],[Grovelands place]],XC[[#This Row],[Trent Park Pos]]) -> 1 | J6: =IF(XC[[#This Row],[Gender]]="M",XC[[#This Row],[Royston Mens Points]]+XC[[#This Row],[Watford Mens Points]]+XC[[#This Row],[Cheshunt Mens Points]]+XC[[#This Row],[Watford Challenge Mens Points]]+XC[[#This Row],[Gland Mens Points]]+XC[[#This Row],[Trent Park Mens Points]],XC[[#This Row],[Royston Ladies Points]]+XC[[#This Row],[Waftord Ladies Points]]+XC[[#This Row],[Cheshunt Ladies Point]]+XC[[#This Row],[Watford Challenge Ladies Points]]+XC[[#This Row],[Gland Ladies Points]]+XC[[#This Row],[Trent Park Ladies Points]]) -> 45 | M6: =IF(XC[[#This Row],[Royston Time2]]>" ",(HOUR(XC[[#This Row],[Royston Time2]])*3600)+MINUTE(XC[[#This Row],[Royston Time2]])*60+SECOND(XC[[#This Row],[Royston Time2]]),"") ->  | O6: =IFERROR(IF(FIND("F",XC[[#This Row],[Group]])>0,XC[[#This Row],[Royston Seconds]],"errorif"),"") ->  | P6: =IF(ISNUMBER(XC[[#This Row],[Royston Mens Time]]),50-(RANK(XC[[#This Row],[Royston Mens Time]],XC[Royston Mens Time],1))+1,0) -> 0 | Q6: =IF(ISNUMBER(XC[[#This Row],[Royston Ladies Times]]),50-(RANK(XC[[#This Row],[Royston Ladies Times]],XC[Royston Ladies Times],1))+1,0) -> 0 | S6: 247 | T6: 56:59 | U6: =IFERROR((HOUR(XC[[#This Row],[Watford Time]])*3600)+MINUTE(XC[[#This Row],[Watford Time]])*60+SECOND(XC[[#This Row],[Watford Time]]),"") -> 3419 | V6: =IFERROR(IF(FIND("M",XC[[#This Row],[Group]])>0,XC[[#This Row],[Watford Seconds]],"errorif"),"") ->  | W6: =IFERROR(IF(FIND("F",XC[[#This Row],[Group]])>0,XC[[#This Row],[Watford Seconds]],"errorif"),"") -> 3419 | X6: =IF(ISNUMBER(XC[[#This Row],[Watford Mens Time]]),50-(RANK(XC[[#This Row],[Watford Mens Time]],XC[Watford Mens Time],1))+1,0) -> 0 | Y6: =IF(ISNUMBER(XC[[#This Row],[Watford Ladies Time]]),50-(RANK(XC[[#This Row],[Watford Ladies Time]],XC[Watford Ladies Time],1))+1,0) -> 45 | Z6: =Hatime(XC[[#This Row],[WTime]]) -> 00:56:59 | AD6: =IFERROR(IF(FIND("M",XC[[#This Row],[Group]])>0,XC[[#This Row],[Cheshunt Second]],"errorif"),"") ->  | AF6: =IF(ISNUMBER(XC[[#This Row],[Cheshunt Mens Time]]),50-(RANK(XC[[#This Row],[Cheshunt Mens Time]],XC[Cheshunt Mens Time],1))+1,0) -> 0 | AG6: =IF(ISNUMBER(XC[[#This Row],[Cheshunt ladies Time]]),50-(RANK(XC[[#This Row],[Cheshunt ladies Time]],XC[Cheshunt ladies Time],1))+1,0) -> 0 | AQ6: =IF(ISNUMBER(XC[[#This Row],[Glands Mens Secs]]),50-(RANK(XC[[#This Row],[Glands Mens Secs]],XC[Glands Mens Secs],1))+1,0) -> 0 | AR6: =IF(ISNUMBER(XC[[#This Row],[Gland Ladies Secs]]),50-(RANK(XC[[#This Row],[Gland Ladies Secs]],XC[Gland Ladies Secs],1))+1,0) -> 0 | AT6: =IF(ISNUMBER(XC[[#This Row],[TP Mens Secs]]),50-_xlfn.RANK.EQ(XC[[#This Row],[TP Mens Secs]],XC[TP Mens Secs],1)+1,0) -> 0 | AU6: =IF(ISNUMBER(XC[[#This Row],[TP Ladies Secs]]),50-_xlfn.RANK.EQ(XC[[#This Row],[TP Ladies Secs]],XC[TP Ladies Secs],1)+1,0) -> 0
B7: Darren | C7: McGrath | D7: =TRIM(XC[[#This Row],[N1]])&" "&TRIM(XC[[#This Row],[N2]]) -> Darren McGrath | E7: 1 | F7: =VLOOKUP(XC[[#This Row],[Name]],members,2,0) -> 28 | G7: M | H7: =VLOOKUP(XC[[#This Row],[Mem]],Allmembers[],7,FALSE) -> MV40 | I7: =COUNT(XC[[#This Row],[Royston Race Position]],XC[[#This Row],[Watford Race Position]],XC[[#This Row],[Cheshut place]],XC[[#This Row],[Watford Challenge Place]],XC[[#This Row],[Grovelands place]],XC[[#This Row],[Trent Park Pos]]) -> 4 | J7: =IF(XC[[#This Row],[Gender]]="M",XC[[#This Row],[Royston Mens Points]]+XC[[#This Row],[Watford Mens Points]]+XC[[#This Row],[Cheshunt Mens Points]]+XC[[#This Row],[Watford Challenge Mens Points]]+XC[[#This Row],[Gland Mens Points]]+XC[[#This Row],[Trent Park Mens Points]],XC[[#This Row],[Royston Ladies Points]]+XC[[#This Row],[Waftord Ladies Points]]+XC[[#This Row],[Cheshunt Ladies Point]]+XC[[#This Row],[Watford Challenge Ladies Points]]+XC[[#This Row],[Gland Ladies Points]]+XC[[#This Row],[Trent Park Ladies Points]]) -> 177 | M7: =IF(XC[[#This Row],[Royston Time2]]>" ",(HOUR(XC[[#This Row],[Royston Time2]])*3600)+MINUTE(XC[[#This Row],[Royston Time2]])*60+SECOND(XC[[#This Row],[Royston Time2]]),"") ->  | O7: =IFERROR(IF(FIND("F",XC[[#This Row],[Group]])>0,XC[[#This Row],[Royston Seconds]],"errorif"),"") ->  | P7: =IF(ISNUMBER(XC[[#This Row],[Royston Mens Time]]),50-(RANK(XC[[#This Row],[Royston Mens Time]],XC[Royston Mens Time],1))+1,0) -> 0 | Q7: =IF(ISNUMBER(XC[[#This Row],[Royston Ladies Times]]),50-(RANK(XC[[#This Row],[Royston Ladies Times]],XC[Royston Ladies Times],1))+1,0) -> 0 | S7: 90 | T7: 44:14 | U7: =IFERROR((HOUR(XC[[#This Row],[Watford Time]])*3600)+MINUTE(XC[[#This Row],[Watford Time]])*60+SECOND(XC[[#This Row],[Watford Time]]),"") -> 2654 | V7: =IFERROR(IF(FIND("M",XC[[#This Row],[Group]])>0,XC[[#This Row],[Watford Seconds]],"errorif"),"") -> 2654 | W7: =IFERROR(IF(FIND("F",XC[[#This Row],[Group]])>0,XC[[#This Row],[Watford Seconds]],"errorif"),"") ->  | X7: =IF(ISNUMBER(XC[[#This Row],[Watford Mens Time]]),50-(RANK(XC[[#This Row],[Watford Mens Time]],XC[Watford Mens Time],1))+1,0) -> 44 | Y7: =IF(ISNUMBER(XC[[#This Row],[Watford Ladies Time]]),50-(RANK(XC[[#This Row],[Watford Ladies Time]],XC[Watford Ladies Time],1))+1,0) -> 0 | Z7: =Hatime(XC[[#This Row],[WTime]]) -> 00:44:14 | AA7: 00:33:22 | AB7: 49 | AC7: =(HOUR(XC[[#This Row],[Cheshunt wtime]])*3600)+MINUTE(XC[[#This Row],[Cheshunt wtime]])*60+SECOND(XC[[#This Row],[Cheshunt wtime]]) -> 2002 | AD7: =IFERROR(IF(FIND("M",XC[[#This Row],[Group]])>0,XC[[#This Row],[Cheshunt Second]],"errorif"),"") -> 2002 | AE7: =IFERROR(IF(FIND("F",XC[[#This Row],[Group]])>0,XC[[#This Row],[Cheshunt Second]],"errorif"),"") ->  | AF7: =IF(ISNUMBER(XC[[#This Row],[Cheshunt Mens Time]]),50-(RANK(XC[[#This Row],[Cheshunt Mens Time]],XC[Cheshunt Mens Time],1))+1,0) -> 45 | AG7: =IF(ISNUMBER(XC[[#This Row],[Cheshunt ladies Time]]),50-(RANK(XC[[#This Row],[Cheshunt ladies Time]],XC[Cheshunt ladies Time],1))+1,0) -> 0 | AL7: 66 | AM7: 00:32:08 | AO7: =(HOUR(XC[[#This Row],[Grovelands Mens Time]])*3600)+MINUTE(XC[[#This Row],[Grovelands Mens Time]])*60+SECOND(XC[[#This Row],[Grovelands Mens Time]]) -> 1928 | AQ7: =IF(ISNUMBER(XC[[#This Row],[Glands Mens Secs]]),50-(RANK(XC[[#This Row],[Glands Mens Secs]],XC[Glands Mens Secs],1))+1,0) -> 44 | AR7: =IF(ISNUMBER(XC[[#This Row],[Gland Ladies Secs]]),50-(RANK(XC[[#This Row],[Gland Ladies Secs]],XC[Gland Ladies Secs],1))+1,0) -> 0 | AS7: 41 | AT7: =IF(ISNUMBER(XC[[#This Row],[TP Mens Secs]]),50-_xlfn.RANK.EQ(XC[[#This Row],[TP Mens Secs]],XC[TP Mens Secs],1)+1,0) -> 44 | AU7: =IF(ISNUMBER(XC[[#This Row],[TP Ladies Secs]]),50-_xlfn.RANK.EQ(XC[[#This Row],[TP Ladies Secs]],XC[TP Ladies Secs],1)+1,0) -> 0 | AV7: 00:31:59 | AX7: 1919
B8: Michael | C8: Hessey | D8: =TRIM(XC[[#This Row],[N1]])&" "&TRIM(XC[[#This Row],[N2]]) -> Michael Hessey | F8: =VLOOKUP(XC[[#This Row],[Name]],members,2,0) -> 32 | G8: M | H8: =VLOOKUP(XC[[#This Row],[Mem]],Allmembers[],7,FALSE) -> MV40 | I8: =COUNT(XC[[#This Row],[Royston Race Position]],XC[[#This Row],[Watford Race Position]],XC[[#This Row],[Cheshut place]],XC[[#This Row],[Watford Challenge Place]],XC[[#This Row],[Grovelands place]],XC[[#This Row],[Trent Park Pos]]) -> 1 | J8: =IF(XC[[#This Row],[Gender]]="M",XC[[#This Row],[Royston Mens Points]]+XC[[#This Row],[Watford Mens Points]]+XC[[#This Row],[Cheshunt Mens Points]]+XC[[#This Row],[Watford Challenge Mens Points]]+XC[[#This Row],[Gland Mens Points]]+XC[[#This Row],[Trent Park Mens Points]],XC[[#This Row],[Royston Ladies Points]]+XC[[#This Row],[Waftord Ladies Points]]+XC[[#This Row],[Cheshunt Ladies Point]]+XC[[#This Row],[Watford Challenge Ladies Points]]+XC[[#This Row],[Gland Ladies Points]]+XC[[#This Row],[Trent Park Ladies Points]]) -> 32 | M8: =IF(XC[[#This Row],[Royston Time2]]>" ",(HOUR(XC[[#This Row],[Royston Time2]])*3600)+MINUTE(XC[[#This Row],[Royston Time2]])*60+SECOND(XC[[#This Row],[Royston Time2]]),"") ->  | N8: =IFERROR(IF(FIND("M",XC[[#This Row],[Group]])>0,XC[[#This Row],[Royston Seconds]],"errorif"),"") ->  | O8: =IFERROR(IF(FIND("F",XC[[#This Row],[Group]])>0,XC[[#This Row],[Royston Seconds]],"errorif"),"") ->  | P8: 0 | Q8: =IF(ISNUMBER(XC[[#This Row],[Royston Ladies Times]]),50-(RANK(XC[[#This Row],[Royston Ladies Times]],XC[Royston Ladies Times],1))+1,0) -> 0 | U8: =IFERROR((HOUR(XC[[#This Row],[Watford Time]])*3600)+MINUTE(XC[[#This Row],[Watford Time]])*60+SECOND(XC[[#This Row],[Watford Time]]),"") ->  | V8: =IFERROR(IF(FIND("M",XC[[#This Row],[Group]])>0,XC[[#This Row],[Watford Seconds]],"errorif"),"") ->  | W8: =IFERROR(IF(FIND("F",XC[[#This Row],[Group]])>0,XC[[#This Row],[Watford Seconds]],"errorif"),"") ->  | X8: =IF(ISNUMBER(XC[[#This Row],[Watford Mens Time]]),50-(RANK(XC[[#This Row],[Watford Mens Time]],XC[Watford Mens Time],1))+1,0) -> 0 | Z8: =Hatime(XC[[#This Row],[WTime]]) ->  | AA8: 00:38:30 | AB8: 168 | AC8: =(HOUR(XC[[#This Row],[Cheshunt wtime]])*3600)+MINUTE(XC[[#This Row],[Cheshunt wtime]])*60+SECOND(XC[[#This Row],[Cheshunt wtime]]) -> 2310 | AD8: =IFERROR(IF(FIND("M",XC[[#This Row],[Group]])>0,XC[[#This Row],[Cheshunt Second]],"errorif"),"") -> 2310 | AE8: =IFERROR(IF(FIND("F",XC[[#This Row],[Group]])>0,XC[[#This Row],[Cheshunt Second]],"errorif"),"") ->  | AF8: =IF(ISNUMBER(XC[[#This Row],[Cheshunt Mens Time]]),50-(RANK(XC[[#This Row],[Cheshunt Mens Time]],XC[Cheshunt Mens Time],1))+1,0) -> 32 | AG8: =IF(ISNUMBER(XC[[#This Row],[Cheshunt ladies Time]]),50-(RANK(XC[[#This Row],[Cheshunt ladies Time]],XC[Cheshunt ladies Time],1))+1,0) -> 0 | AQ8: =IF(ISNUMBER(XC[[#This Row],[Glands Mens Secs]]),50-(RANK(XC[[#This Row],[Glands Mens Secs]],XC[Glands Mens Secs],1))+1,0) -> 0 | AR8: =IF(ISNUMBER(XC[[#This Row],[Gland Ladies Secs]]),50-(RANK(XC[[#This Row],[Gland Ladies Secs]],XC[Gland Ladies Secs],1))+1,0) -> 0 | AT8: =IF(ISNUMBER(XC[[#This Row],[TP Mens Secs]]),50-_xlfn.RANK.EQ(XC[[#This Row],[TP Mens Secs]],XC[TP Mens Secs],1)+1,0) -> 0 | AU8: =IF(ISNUMBER(XC[[#This Row],[TP Ladies Secs]]),50-_xlfn.RANK.EQ(XC[[#This Row],[TP Ladies Secs]],XC[TP Ladies Secs],1)+1,0) -> 0
B9: Graham | C9: Harper | D9: =TRIM(XC[[#This Row],[N1]])&" "&TRIM(XC[[#This Row],[N2]]) -> Graham Harper | E9: 1 | F9: =VLOOKUP(XC[[#This Row],[Name]],members,2,0) -> 39 | G9: M | H9: =VLOOKUP(XC[[#This Row],[Mem]],Allmembers[],7,FALSE) -> MV50 | I9: =COUNT(XC[[#This Row],[Royston Race Position]],XC[[#This Row],[Watford Race Position]],XC[[#This Row],[Cheshut place]],XC[[#This Row],[Watford Challenge Place]],XC[[#This Row],[Grovelands place]],XC[[#This Row],[Trent Park Pos]]) -> 4 | J9: =IF(XC[[#This Row],[Gender]]="M",XC[[#This Row],[Royston Mens Points]]+XC[[#This Row],[Watford Mens Points]]+XC[[#This Row],[Cheshunt Mens Points]]+XC[[#This Row],[Watford Challenge Mens Points]]+XC[[#This Row],[Gland Mens Points]]+XC[[#This Row],[Trent Park Mens Points]],XC[[#This Row],[Royston Ladies Points]]+XC[[#This Row],[Waftord Ladies Points]]+XC[[#This Row],[Cheshunt Ladies Point]]+XC[[#This Row],[Watford Challenge Ladies Points]]+XC[[#This Row],[Gland Ladies Points]]+XC[[#This Row],[Trent Park Ladies Points]]) -> 127 | M9: =IF(XC[[#This Row],[Royston Time2]]>" ",(HOUR(XC[[#This Row],[Royston Time2]])*3600)+MINUTE(XC[[#This Row],[Royston Time2]])*60+SECOND(XC[[#This Row],[Royston Time2]]),"") ->  | N9: =IFERROR(IF(FIND("M",XC[[#This Row],[Group]])>0,XC[[#This Row],[Royston Seconds]],"errorif"),"") ->  | O9: =IFERROR(IF(FIND("F",XC[[#This Row],[Group]])>0,XC[[#This Row],[Royston Seconds]],"errorif"),"") ->  | P9: =IF(ISNUMBER(XC[[#This Row],[Royston Mens Time]]),50-(RANK(XC[[#This Row],[Royston Mens Time]],XC[Royston Mens Time],1))+1,0) -> 0 | Q9: =IF(ISNUMBER(XC[[#This Row],[Royston Ladies Times]]),50-(RANK(XC[[#This Row],[Royston Ladies Times]],XC[Royston Ladies Times],1))+1,0) -> 0 | S9: 227 | T9: 54:58 | U9: =IFERROR((HOUR(XC[[#This Row],[Watford Time]])*3600)+MINUTE(XC[[#This Row],[Watford Time]])*60+SECOND(XC[[#This Row],[Watford Time]]),"") -> 3298 | V9: =IFERROR(IF(FIND("M",XC[[#This Row],[Group]])>0,XC[[#This Row],[Watford Seconds]],"errorif"),"") -> 3298 | W9: =IFERROR(IF(FIND("F",XC[[#This Row],[Group]])>0,XC[[#This Row],[Watford Seconds]],"errorif"),"") ->  | X9: =IF(ISNUMBER(XC[[#This Row],[Watford Mens Time]]),50-(RANK(XC[[#This Row],[Watford Mens Time]],XC[Watford Mens Time],1))+1,0) -> 34 | Y9: =IF(ISNUMBER(XC[[#This Row],[Watford Ladies Time]]),50-(RANK(XC[[#This Row],[Watford Ladies Time]],XC[Watford Ladies Time],1))+1,0) -> 0 | Z9: =Hatime(XC[[#This Row],[WTime]]) -> 00:54:58 | AA9: 00:40:34 | AB9: 212 | AC9: =(HOUR(XC[[#This Row],[Cheshunt wtime]])*3600)+MINUTE(XC[[#This Row],[Cheshunt wtime]])*60+SECOND(XC[[#This Row],[Cheshunt wtime]]) -> 2434 | AD9: =IFERROR(IF(FIND("M",XC[[#This Row],[Group]])>0,XC[[#This Row],[Cheshunt Second]],"errorif"),"") -> 2434 | AE9: =IFERROR(IF(FIND("F",XC[[#This Row],[Group]])>0,XC[[#This Row],[Cheshunt Second]],"errorif"),"") ->  | AF9: =IF(ISNUMBER(XC[[#This Row],[Cheshunt Mens Time]]),50-(RANK(XC[[#This Row],[Cheshunt Mens Time]],XC[Cheshunt Mens Time],1))+1,0) -> 28 | AG9: =IF(ISNUMBER(XC[[#This Row],[Cheshunt ladies Time]]),50-(RANK(XC[[#This Row],[Cheshunt ladies Time]],XC[Cheshunt ladies Time],1))+1,0) -> 0 | AL9: 241 | AM9: 00:39:33 | AO9: =(HOUR(XC[[#This Row],[Grovelands Mens Time]])*3600)+MINUTE(XC[[#This Row],[Grovelands Mens Time]])*60+SECOND(XC[[#This Row],[Grovelands Mens Time]]) -> 2373 | AQ9: =IF(ISNUMBER(XC[[#This Row],[Glands Mens Secs]]),50-(RANK(XC[[#This Row],[Glands Mens Secs]],XC[Glands Mens Secs],1))+1,0) -> 30 | AR9: =IF(ISNUMBER(XC[[#This Row],[Gland Ladies Secs]]),50-(RANK(XC[[#This Row],[Gland Ladies Secs]],XC[Gland Ladies Secs],1))+1,0) -> 0 | AS9: 204 | AT9: =IF(ISNUMBER(XC[[#This Row],[TP Mens Secs]]),50-_xlfn.RANK.EQ(XC[[#This Row],[TP Mens Secs]],XC[TP Mens Secs],1)+1,0) -> 35 | AU9: =IF(ISNUMBER(XC[[#This Row],[TP Ladies Secs]]),50-_xlfn.RANK.EQ(XC[[#This Row],[TP Ladies Secs]],XC[TP Ladies Secs],1)+1,0) -> 0 | AV9: 00:39:45 | AX9: 2385
B10: Jillian | C10: Russell | D10: Jillian Russell | E10: 1 | F10: =VLOOKUP(XC[[#This Row],[Name]],members,2,0) -> 44 | G10: W | H10: =VLOOKUP(XC[[#This Row],[Mem]],Allmembers[],7,FALSE) -> FV45 | I10: =COUNT(XC[[#This Row],[Royston Race Position]],XC[[#This Row],[Watford Race Position]],XC[[#This Row],[Cheshut place]],XC[[#This Row],[Watford Challenge Place]],XC[[#This Row],[Grovelands place]],XC[[#This Row],[Trent Park Pos]]) -> 1 | J10: =IF(XC[[#This Row],[Gender]]="M",XC[[#This Row],[Royston Mens Points]]+XC[[#This Row],[Watford Mens Points]]+XC[[#This Row],[Cheshunt Mens Points]]+XC[[#This Row],[Watford Challenge Mens Points]]+XC[[#This Row],[Gland Mens Points]]+XC[[#This Row],[Trent Park Mens Points]],XC[[#This Row],[Royston Ladies Points]]+XC[[#This Row],[Waftord Ladies Points]]+XC[[#This Row],[Cheshunt Ladies Point]]+XC[[#This Row],[Watford Challenge Ladies Points]]+XC[[#This Row],[Gland Ladies Points]]+XC[[#This Row],[Trent Park Ladies Points]]) -> 44 | M10: =IF(XC[[#This Row],[Royston Time2]]>" ",(HOUR(XC[[#This Row],[Royston Time2]])*3600)+MINUTE(XC[[#This Row],[Royston Time2]])*60+SECOND(XC[[#This Row],[Royston Time2]]),"") ->  | N10: =IFERROR(IF(FIND("M",XC[[#This Row],[Group]])>0,XC[[#This Row],[Royston Seconds]],"errorif"),"") ->  | O10: =IFERROR(IF(FIND("F",XC[[#This Row],[Group]])>0,XC[[#This Row],[Royston Seconds]],"errorif"),"") ->  | P10: =IF(ISNUMBER(XC[[#This Row],[Royston Mens Time]]),50-(RANK(XC[[#This Row],[Royston Mens Time]],XC[Royston Mens Time],1))+1,0) -> 0 | Q10: =IF(ISNUMBER(XC[[#This Row],[Royston Ladies Times]]),50-(RANK(XC[[#This Row],[Royston Ladies Times]],XC[Royston Ladies Times],1))+1,0) -> 0 | U10: =IFERROR((HOUR(XC[[#This Row],[Watford Time]])*3600)+MINUTE(XC[[#This Row],[Watford Time]])*60+SECOND(XC[[#This Row],[Watford Time]]),"") ->  | V10: =IFERROR(IF(FIND("M",XC[[#This Row],[Group]])>0,XC[[#This Row],[Watford Seconds]],"errorif"),"") ->  | W10: =IFERROR(IF(FIND("F",XC[[#This Row],[Group]])>0,XC[[#This Row],[Watford Seconds]],"errorif"),"") ->  | X10: =IF(ISNUMBER(XC[[#This Row],[Watford Mens Time]]),50-(RANK(XC[[#This Row],[Watford Mens Time]],XC[Watford Mens Time],1))+1,0) -> 0 | Z10: =Hatime(XC[[#This Row],[WTime]]) ->  | AD10: =IFERROR(IF(FIND("M",XC[[#This Row],[Group]])>0,XC[[#This Row],[Cheshunt Second]],"errorif"),"") ->  | AE10: =IFERROR(IF(FIND("F",XC[[#This Row],[Group]])>0,XC[[#This Row],[Cheshunt Second]],"errorif"),"") ->  | AF10: =IF(ISNUMBER(XC[[#This Row],[Cheshunt Mens Time]]),50-(RANK(XC[[#This Row],[Cheshunt Mens Time]],XC[Cheshunt Mens Time],1))+1,0) -> 0 | AG10: =IF(ISNUMBER(XC[[#This Row],[Cheshunt ladies Time]]),50-(RANK(XC[[#This Row],[Cheshunt ladies Time]],XC[Cheshunt ladies Time],1))+1,0) -> 0 | AL10: 322 | AN10: 00:44:02 | AP10: =(HOUR(XC[[#This Row],[Grovelands Ladies Time]])*3600)+MINUTE(XC[[#This Row],[Grovelands Ladies Time]])*60+SECOND(XC[[#This Row],[Grovelands Ladies Time]]) -> 2642 | AQ10: =IF(ISNUMBER(XC[[#This Row],[Glands Mens Secs]]),50-(RANK(XC[[#This Row],[Glands Mens Secs]],XC[Glands Mens Secs],1))+1,0) -> 0 | AR10: =IF(ISNUMBER(XC[[#This Row],[Gland Ladies Secs]]),50-(RANK(XC[[#This Row],[Gland Ladies Secs]],XC[Gland Ladies Secs],1))+1,0) -> 44 | AT10: =IF(ISNUMBER(XC[[#This Row],[TP Mens Secs]]),50-_xlfn.RANK.EQ(XC[[#This Row],[TP Mens Secs]],XC[TP Mens Secs],1)+1,0) -> 0 | AU10: =IF(ISNUMBER(XC[[#This Row],[TP Ladies Secs]]),50-_xlfn.RANK.EQ(XC[[#This Row],[TP Ladies Secs]],XC[TP Ladies Secs],1)+1,0) -> 0
B11: Simon | C11: Speirs | D11: =TRIM(XC[[#This Row],[N1]])&" "&TRIM(XC[[#This Row],[N2]]) -> Simon Speirs | E11: 1 | F11: =VLOOKUP(XC[[#This Row],[Name]],members,2,0) -> 53 | G11: M | H11: =VLOOKUP(XC[[#This Row],[Mem]],Allmembers[],7,FALSE) -> MV40 | I11: =COUNT(XC[[#This Row],[Royston Race Position]],XC[[#This Row],[Watford Race Position]],XC[[#This Row],[Cheshut place]],XC[[#This Row],[Watford Challenge Place]],XC[[#This Row],[Grovelands place]],XC[[#This Row],[Trent Park Pos]]) -> 5 | J11: =IF(XC[[#This Row],[Gender]]="M",XC[[#This Row],[Royston Mens Points]]+XC[[#This Row],[Watford Mens Points]]+XC[[#This Row],[Cheshunt Mens Points]]+XC[[#This Row],[Watford Challenge Mens Points]]+XC[[#This Row],[Gland Mens Points]]+XC[[#This Row],[Trent Park Mens Points]],XC[[#This Row],[Royston Ladies Points]]+XC[[#This Row],[Waftord Ladies Points]]+XC[[#This Row],[Cheshunt Ladies Point]]+XC[[#This Row],[Watford Challenge Ladies Points]]+XC[[#This Row],[Gland Ladies Points]]+XC[[#This Row],[Trent Park Ladies Points]]) -> 249 | K11: 10 | L11: 34:04 | M11: =IF(XC[[#This Row],[Royston Time2]]>" ",(HOUR(XC[[#This Row],[Royston Time2]])*3600)+MINUTE(XC[[#This Row],[Royston Time2]])*60+SECOND(XC[[#This Row],[Royston Time2]]),"") -> 2044 | N11: =IFERROR(IF(FIND("M",XC[[#This Row],[Group]])>0,XC[[#This Row],[Royston Seconds]],"errorif"),"") -> 2044 | O11: =IFERROR(IF(FIND("F",XC[[#This Row],[Group]])>0,XC[[#This Row],[Royston Seconds]],"errorif"),"") ->  | P11: =IF(ISNUMBER(XC[[#This Row],[Royston Mens Time]]),50-(RANK(XC[[#This Row],[Royston Mens Time]],XC[Royston Mens Time],1))+1,0) -> 50 | Q11: =IF(ISNUMBER(XC[[#This Row],[Royston Ladies Times]]),50-(RANK(XC[[#This Row],[Royston Ladies Times]],XC[Royston Ladies Times],1))+1,0) -> 0 | R11: =Hatime(XC[[#This Row],[Royston Time]]) -> 00:34:04 | U11: =IFERROR((HOUR(XC[[#This Row],[Watford Time]])*3600)+MINUTE(XC[[#This Row],[Watford Time]])*60+SECOND(XC[[#This Row],[Watford Time]]),"") ->  | V11: =IFERROR(IF(FIND("M",XC[[#This Row],[Group]])>0,XC[[#This Row],[Watford Seconds]],"errorif"),"") ->  | W11: =IFERROR(IF(FIND("F",XC[[#This Row],[Group]])>0,XC[[#This Row],[Watford Seconds]],"errorif"),"") ->  | X11: =IF(ISNUMBER(XC[[#This Row],[Watford Mens Time]]),50-(RANK(XC[[#This Row],[Watford Mens Time]],XC[Watford Mens Time],1))+1,0) -> 0 | Y11: =IF(ISNUMBER(XC[[#This Row],[Watford Ladies Time]]),50-(RANK(XC[[#This Row],[Watford Ladies Time]],XC[Watford Ladies Time],1))+1,0) -> 0 | Z11: =Hatime(XC[[#This Row],[WTime]]) ->  | AA11: 00:31:28 | AB11: 24 | AC11: =(HOUR(XC[[#This Row],[Cheshunt wtime]])*3600)+MINUTE(XC[[#This Row],[Cheshunt wtime]])*60+SECOND(XC[[#This Row],[Cheshunt wtime]]) -> 1888 | AD11: =IFERROR(IF(FIND("M",XC[[#This Row],[Group]])>0,XC[[#This Row],[Cheshunt Second]],"errorif"),"") -> 1888 | AE11: =IFERROR(IF(FIND("F",XC[[#This Row],[Group]])>0,XC[[#This Row],[Cheshunt Second]],"errorif"),"") ->  | AF11: =IF(ISNUMBER(XC[[#This Row],[Cheshunt Mens Time]]),50-(RANK(XC[[#This Row],[Cheshunt Mens Time]],XC[Cheshunt Mens Time],1))+1,0) -> 50 | AG11: =IF(ISNUMBER(XC[[#This Row],[Cheshunt ladies Time]]),50-(RANK(XC[[#This Row],[Cheshunt ladies Time]],XC[Cheshunt ladies Time],1))+1,0) -> 0 | AH11: 6 | AI11: 50 | AK11: 0.0218287037 | AL11: 26 | AM11: 00:30:10 | AO11: =(HOUR(XC[[#This Row],[Grovelands Mens Time]])*3600)+MINUTE(XC[[#This Row],[Grovelands Mens Time]])*60+SECOND(XC[[#This Row],[Grovelands Mens Time]]) -> 1810 | AQ11: =IF(ISNUMBER(XC[[#This Row],[Glands Mens Secs]]),50-(RANK(XC[[#This Row],[Glands Mens Secs]],XC[Glands Mens Secs],1))+1,0) -> 50 | AR11: =IF(ISNUMBER(XC[[#This Row],[Gland Ladies Secs]]),50-(RANK(XC[[#This Row],[Gland Ladies Secs]],XC[Gland Ladies Secs],1))+1,0) -> 0 | AS11: 21 | AT11: =IF(ISNUMBER(XC[[#This Row],[TP Mens Secs]]),50-_xlfn.RANK.EQ(XC[[#This Row],[TP Mens Secs]],XC[TP Mens Secs],1)+1,0) -> 49 | AU11: =IF(ISNUMBER(XC[[#This Row],[TP Ladies Secs]]),50-_xlfn.RANK.EQ(XC[[#This Row],[TP Ladies Secs]],XC[TP Ladies Secs],1)+1,0) -> 0 | AV11: 00:30:35 | AX11: 1835
B12: Hannah | C12: Turner | D12: =TRIM(XC[[#This Row],[N1]])&" "&TRIM(XC[[#This Row],[N2]]) -> Hannah Turner | E12: 1 | F12: =VLOOKUP(XC[[#This Row],[Name]],members,2,0) -> 54 | G12: W | H12: =VLOOKUP(XC[[#This Row],[Mem]],Allmembers[],7,FALSE) -> FV35 | I12: =COUNT(XC[[#This Row],[Royston Race Position]],XC[[#This Row],[Watford Race Position]],XC[[#This Row],[Cheshut place]],XC[[#This Row],[Watford Challenge Place]],XC[[#This Row],[Grovelands place]],XC[[#This Row],[Trent Park Pos]]) -> 5 | J12: =IF(XC[[#This Row],[Gender]]="M",XC[[#This Row],[Royston Mens Points]]+XC[[#This Row],[Watford Mens Points]]+XC[[#This Row],[Cheshunt Mens Points]]+XC[[#This Row],[Watford Challenge Mens Points]]+XC[[#This Row],[Gland Mens Points]]+XC[[#This Row],[Trent Park Mens Points]],XC[[#This Row],[Royston Ladies Points]]+XC[[#This Row],[Waftord Ladies Points]]+XC[[#This Row],[Cheshunt Ladies Point]]+XC[[#This Row],[Watford Challenge Ladies Points]]+XC[[#This Row],[Gland Ladies Points]]+XC[[#This Row],[Trent Park Ladies Points]]) -> 249 | K12: 70 | L12: 40:27 | M12: =IF(XC[[#This Row],[Royston Time2]]>" ",(HOUR(XC[[#This Row],[Royston Time2]])*3600)+MINUTE(XC[[#This Row],[Royston Time2]])*60+SECOND(XC[[#This Row],[Royston Time2]]),"") -> 2427 | N12: =IFERROR(IF(FIND("M",XC[[#This Row],[Group]])>0,XC[[#This Row],[Royston Seconds]],"errorif"),"") ->  | O12: =IFERROR(IF(FIND("F",XC[[#This Row],[Group]])>0,XC[[#This Row],[Royston Seconds]],"errorif"),"") -> 2427 | P12: =IF(ISNUMBER(XC[[#This Row],[Royston Mens Time]]),50-(RANK(XC[[#This Row],[Royston Mens Time]],XC[Royston Mens Time],1))+1,0) -> 0 | Q12: =IF(ISNUMBER(XC[[#This Row],[Royston Ladies Times]]),50-(RANK(XC[[#This Row],[Royston Ladies Times]],XC[Royston Ladies Times],1))+1,"") -> 49 | R12: =Hatime(XC[[#This Row],[Royston Time]]) -> 00:40:27 | S12: 69 | T12: 42:58 | U12: =IFERROR((HOUR(XC[[#This Row],[Watford Time]])*3600)+MINUTE(XC[[#This Row],[Watford Time]])*60+SECOND(XC[[#This Row],[Watford Time]]),"") -> 2578 | V12: =IFERROR(IF(FIND("M",XC[[#This Row],[Group]])>0,XC[[#This Row],[Watford Seconds]],"errorif"),"") ->  | W12: =IFERROR(IF(FIND("F",XC[[#This Row],[Group]])>0,XC[[#This Row],[Watford Seconds]],"errorif"),"") -> 2578 | X12: =IF(ISNUMBER(XC[[#This Row],[Watford Mens Time]]),50-(RANK(XC[[#This Row],[Watford Mens Time]],XC[Watford Mens Time],1))+1,0) -> 0 | Y12: =IF(ISNUMBER(XC[[#This Row],[Watford Ladies Time]]),50-(RANK(XC[[#This Row],[Watford Ladies Time]],XC[Watford Ladies Time],1))+1,0) -> 50 | Z12: =Hatime(XC[[#This Row],[WTime]]) -> 00:42:58 | AA12: 00:35:14 | AB12: 95 | AC12: =(HOUR(XC[[#This Row],[Cheshunt wtime]])*3600)+MINUTE(XC[[#This Row],[Cheshunt wtime]])*60+SECOND(XC[[#This Row],[Cheshunt wtime]]) -> 2114 | AD12: =IFERROR(IF(FIND("M",XC[[#This Row],[Group]])>0,XC[[#This Row],[Cheshunt Second]],"errorif"),"") ->  | AE12: =IFERROR(IF(FIND("F",XC[[#This Row],[Group]])>0,XC[[#This Row],[Cheshunt Second]],"errorif"),"") -> 2114 | AF12: =IF(ISNUMBER(XC[[#This Row],[Cheshunt Mens Time]]),50-(RANK(XC[[#This Row],[Cheshunt Mens Time]],XC[Cheshunt Mens Time],1))+1,0) -> 0 | AG12: =IF(ISNUMBER(XC[[#This Row],[Cheshunt ladies Time]]),50-(RANK(XC[[#This Row],[Cheshunt ladies Time]],XC[Cheshunt ladies Time],1))+1,0) -> 50 | AL12: 85 | AN12: 00:33:09 | AP12: =(HOUR(XC[[#This Row],[Grovelands Ladies Time]])*3600)+MINUTE(XC[[#This Row],[Grovelands Ladies Time]])*60+SECOND(XC[[#This Row],[Grovelands Ladies Time]]) -> 1989 | AQ12: =IF(ISNUMBER(XC[[#This Row],[Glands Mens Secs]]),50-(RANK(XC[[#This Row],[Glands Mens Secs]],XC[Glands Mens Secs],1))+1,0) -> 0 | AR12: =IF(ISNUMBER(XC[[#This Row],[Gland Ladies Secs]]),50-(RANK(XC[[#This Row],[Gland Ladies Secs]],XC[Gland Ladies Secs],1))+1,0) -> 50 | AS12: 62 | AT12: =IF(ISNUMBER(XC[[#This Row],[TP Mens Secs]]),50-_xlfn.RANK.EQ(XC[[#This Row],[TP Mens Secs]],XC[TP Mens Secs],1)+1,0) -> 0 | AU12: =IF(ISNUMBER(XC[[#This Row],[TP Ladies Secs]]),50-_xlfn.RANK.EQ(XC[[#This Row],[TP Ladies Secs]],XC[TP Ladies Secs],1)+1,0) -> 50 | AW12: 00:32:57 | AY12: 1977
B13: Lee | C13: Scott | D13: =TRIM(XC[[#This Row],[N1]])&" "&TRIM(XC[[#This Row],[N2]]) -> Lee Scott | E13: 1 | F13: =VLOOKUP(XC[[#This Row],[Name]],members,2,0) -> 57 | G13: M | H13: =VLOOKUP(XC[[#This Row],[Mem]],Allmembers[],7,FALSE) -> MV40 | I13: =COUNT(XC[[#This Row],[Royston Race Position]],XC[[#This Row],[Watford Race Position]],XC[[#This Row],[Cheshut place]],XC[[#This Row],[Watford Challenge Place]],XC[[#This Row],[Grovelands place]],XC[[#This Row],[Trent Park Pos]]) -> 3 | J13: =IF(XC[[#This Row],[Gender]]="M",XC[[#This Row],[Royston Mens Points]]+XC[[#This Row],[Watford Mens Points]]+XC[[#This Row],[Cheshunt Mens Points]]+XC[[#This Row],[Watford Challenge Mens Points]]+XC[[#This Row],[Gland Mens Points]]+XC[[#This Row],[Trent Park Mens Points]],XC[[#This Row],[Royston Ladies Points]]+XC[[#This Row],[Waftord Ladies Points]]+XC[[#This Row],[Cheshunt Ladies Point]]+XC[[#This Row],[Watford Challenge Ladies Points]]+XC[[#This Row],[Gland Ladies Points]]+XC[[#This Row],[Trent Park Ladies Points]]) -> 133 | K13: 65 | L13: 40:18 | M13: =IF(XC[[#This Row],[Royston Time2]]>" ",(HOUR(XC[[#This Row],[Royston Time2]])*3600)+MINUTE(XC[[#This Row],[Royston Time2]])*60+SECOND(XC[[#This Row],[Royston Time2]]),"") -> 2418 | N13: =IFERROR(IF(FIND("M",XC[[#This Row],[Group]])>0,XC[[#This Row],[Royston Seconds]],"errorif"),"") -> 2418 | O13: =IFERROR(IF(FIND("F",XC[[#This Row],[Group]])>0,XC[[#This Row],[Royston Seconds]],"errorif"),"") ->  | P13: =IF(ISNUMBER(XC[[#This Row],[Royston Mens Time]]),50-(RANK(XC[[#This Row],[Royston Mens Time]],XC[Royston Mens Time],1))+1,0) -> 41 | Q13: =IF(ISNUMBER(XC[[#This Row],[Royston Ladies Times]]),50-(RANK(XC[[#This Row],[Royston Ladies Times]],XC[Royston Ladies Times],1))+1,0) -> 0 | R13: =Hatime(XC[[#This Row],[Royston Time]]) -> 00:40:18 | U13: =IFERROR((HOUR(XC[[#This Row],[Watford Time]])*3600)+MINUTE(XC[[#This Row],[Watford Time]])*60+SECOND(XC[[#This Row],[Watford Time]]),"") ->  | V13: =IFERROR(IF(FIND("M",XC[[#This Row],[Group]])>0,XC[[#This Row],[Watford Seconds]],"errorif"),"") ->  | W13: =IFERROR(IF(FIND("F",XC[[#This Row],[Group]])>0,XC[[#This Row],[Watford Seconds]],"errorif"),"") ->  | X13: =IF(ISNUMBER(XC[[#This Row],[Watford Mens Time]]),50-(RANK(XC[[#This Row],[Watford Mens Time]],XC[Watford Mens Time],1))+1,0) -> 0 | Y13: =IF(ISNUMBER(XC[[#This Row],[Watford Ladies Time]]),50-(RANK(XC[[#This Row],[Watford Ladies Time]],XC[Watford Ladies Time],1))+1,0) -> 0 | Z13: =Hatime(XC[[#This Row],[WTime]]) ->  | AA13: 00:32:29 | AB13: 37 | AC13: =(HOUR(XC[[#This Row],[Cheshunt wtime]])*3600)+MINUTE(XC[[#This Row],[Cheshunt wtime]])*60+SECOND(XC[[#This Row],[Cheshunt wtime]]) -> 1949 | AD13: =IFERROR(IF(FIND("M",XC[[#This Row],[Group]])>0,XC[[#This Row],[Cheshunt Second]],"errorif"),"") -> 1949 | AE13: =IFERROR(IF(FIND("F",XC[[#This Row],[Group]])>0,XC[[#This Row],[Cheshunt Second]],"errorif"),"") ->  | AF13: =IF(ISNUMBER(XC[[#This Row],[Cheshunt Mens Time]]),50-(RANK(XC[[#This Row],[Cheshunt Mens Time]],XC[Cheshunt Mens Time],1))+1,0) -> 49 | AG13: =IF(ISNUMBER(XC[[#This Row],[Cheshunt ladies Time]]),50-(RANK(XC[[#This Row],[Cheshunt ladies Time]],XC[Cheshunt ladies Time],1))+1,0) -> 0 | AL13: 70 | AM13: 00:32:14 | AO13: =(HOUR(XC[[#This Row],[Grovelands Mens Time]])*3600)+MINUTE(XC[[#This Row],[Grovelands Mens Time]])*60+SECOND(XC[[#This Row],[Grovelands Mens Time]]) -> 1934 | AQ13: =IF(ISNUMBER(XC[[#This Row],[Glands Mens Secs]]),50-(RANK(XC[[#This Row],[Glands Mens Secs]],XC[Glands Mens Secs],1))+1,0) -> 43 | AR13: =IF(ISNUMBER(XC[[#This Row],[Gland Ladies Secs]]),50-(RANK(XC[[#This Row],[Gland Ladies Secs]],XC[Gland Ladies Secs],1))+1,0) -> 0 | AT13: =IF(ISNUMBER(XC[[#This Row],[TP Mens Secs]]),50-_xlfn.RANK.EQ(XC[[#This Row],[TP Mens Secs]],XC[TP Mens Secs],1)+1,0) -> 0 | AU13: =IF(ISNUMBER(XC[[#This Row],[TP Ladies Secs]]),50-_xlfn.RANK.EQ(XC[[#This Row],[TP Ladies Secs]],XC[TP Ladies Secs],1)+1,0) -> 0
B14: Ron | C14: Chakraverty | D14: =TRIM(XC[[#This Row],[N1]])&" "&TRIM(XC[[#This Row],[N2]]) -> Ron Chakraverty | E14: 1 | F14: =VLOOKUP(XC[[#This Row],[Name]],members,2,0) -> 72 | G14: M | H14: =VLOOKUP(XC[[#This Row],[Mem]],Allmembers[],7,FALSE) -> MV40 | I14: =COUNT(XC[[#This Row],[Royston Race Position]],XC[[#This Row],[Watford Race Position]],XC[[#This Row],[Cheshut place]],XC[[#This Row],[Watford Challenge Place]],XC[[#This Row],[Grovelands place]],XC[[#This Row],[Trent Park Pos]]) -> 2 | J14: =IF(XC[[#This Row],[Gender]]="M",XC[[#This Row],[Royston Mens Points]]+XC[[#This Row],[Watford Mens Points]]+XC[[#This Row],[Cheshunt Mens Points]]+XC[[#This Row],[Watford Challenge Mens Points]]+XC[[#This Row],[Gland Mens Points]]+XC[[#This Row],[Trent Park Mens Points]],XC[[#This Row],[Royston Ladies Points]]+XC[[#This Row],[Waftord Ladies Points]]+XC[[#This Row],[Cheshunt Ladies Point]]+XC[[#This Row],[Watford Challenge Ladies Points]]+XC[[#This Row],[Gland Ladies Points]]+XC[[#This Row],[Trent Park Ladies Points]]) -> 69 | M14: =IF(XC[[#This Row],[Royston Time2]]>" ",(HOUR(XC[[#This Row],[Royston Time2]])*3600)+MINUTE(XC[[#This Row],[Royston Time2]])*60+SECOND(XC[[#This Row],[Royston Time2]]),"") ->  | N14: =IFERROR(IF(FIND("M",XC[[#This Row],[Group]])>0,XC[[#This Row],[Royston Seconds]],"errorif"),"") ->  | O14: =IFERROR(IF(FIND("F",XC[[#This Row],[Group]])>0,XC[[#This Row],[Royston Seconds]],"errorif"),"") ->  | P14: 0 | Q14: =IF(ISNUMBER(XC[[#This Row],[Royston Ladies Times]]),50-(RANK(XC[[#This Row],[Royston Ladies Times]],XC[Royston Ladies Times],1))+1,0) -> 0 | U14: =IFERROR((HOUR(XC[[#This Row],[Watford Time]])*3600)+MINUTE(XC[[#This Row],[Watford Time]])*60+SECOND(XC[[#This Row],[Watford Time]]),"") ->  | V14: =IFERROR(IF(FIND("M",XC[[#This Row],[Group]])>0,XC[[#This Row],[Watford Seconds]],"errorif"),"") ->  | W14: =IFERROR(IF(FIND("F",XC[[#This Row],[Group]])>0,XC[[#This Row],[Watford Seconds]],"errorif"),"") ->  | X14: =IF(ISNUMBER(XC[[#This Row],[Watford Mens Time]]),50-(RANK(XC[[#This Row],[Watford Mens Time]],XC[Watford Mens Time],1))+1,0) -> 0 | Z14: =Hatime(XC[[#This Row],[WTime]]) ->  | AA14: 00:36:35 | AB14: 123 | AC14: =(HOUR(XC[[#This Row],[Cheshunt wtime]])*3600)+MINUTE(XC[[#This Row],[Cheshunt wtime]])*60+SECOND(XC[[#This Row],[Cheshunt wtime]]) -> 2195 | AD14: =IFERROR(IF(FIND("M",XC[[#This Row],[Group]])>0,XC[[#This Row],[Cheshunt Second]],"errorif"),"") -> 2195 | AE14: =IFERROR(IF(FIND("F",XC[[#This Row],[Group]])>0,XC[[#This Row],[Cheshunt Second]],"errorif"),"") ->  | AF14: =IF(ISNUMBER(XC[[#This Row],[Cheshunt Mens Time]]),50-(RANK(XC[[#This Row],[Cheshunt Mens Time]],XC[Cheshunt Mens Time],1))+1,0) -> 35 | AG14: =IF(ISNUMBER(XC[[#This Row],[Cheshunt ladies Time]]),50-(RANK(XC[[#This Row],[Cheshunt ladies Time]],XC[Cheshunt ladies Time],1))+1,0) -> 0 | AL14: 150 | AM14: 00:35:45 | AO14: =(HOUR(XC[[#This Row],[Grovelands Mens Time]])*3600)+MINUTE(XC[[#This Row],[Grovelands Mens Time]])*60+SECOND(XC[[#This Row],[Grovelands Mens Time]]) -> 2145 | AQ14: =IF(ISNUMBER(XC[[#This Row],[Glands Mens Secs]]),50-(RANK(XC[[#This Row],[Glands Mens Secs]],XC[Glands Mens Secs],1))+1,0) -> 34 | AR14: =IF(ISNUMBER(XC[[#This Row],[Gland Ladies Secs]]),50-(RANK(XC[[#This Row],[Gland Ladies Secs]],XC[Gland Ladies Secs],1))+1,0) -> 0 | AT14: =IF(ISNUMBER(XC[[#This Row],[TP Mens Secs]]),50-_xlfn.RANK.EQ(XC[[#This Row],[TP Mens Secs]],XC[TP Mens Secs],1)+1,0) -> 0 | AU14: =IF(ISNUMBER(XC[[#This Row],[TP Ladies Secs]]),50-_xlfn.RANK.EQ(XC[[#This Row],[TP Ladies Secs]],XC[TP Ladies Secs],1)+1,0) -> 0
B15: David | C15: Green | D15: =TRIM(XC[[#This Row],[N1]])&" "&TRIM(XC[[#This Row],[N2]]) -> David Green | E15: 1 | F15: =VLOOKUP(XC[[#This Row],[Name]],members,2,0) -> 73 | G15: M | H15: =VLOOKUP(XC[[#This Row],[Mem]],Allmembers[],7,FALSE) -> MV50 | I15: =COUNT(XC[[#This Row],[Royston Race Position]],XC[[#This Row],[Watford Race Position]],XC[[#This Row],[Cheshut place]],XC[[#This Row],[Watford Challenge Place]],XC[[#This Row],[Grovelands place]],XC[[#This Row],[Trent Park Pos]]) -> 4 | J15: =IF(XC[[#This Row],[Gender]]="M",XC[[#This Row],[Royston Mens Points]]+XC[[#This Row],[Watford Mens Points]]+XC[[#This Row],[Cheshunt Mens Points]]+XC[[#This Row],[Watford Challenge Mens Points]]+XC[[#This Row],[Gland Mens Points]]+XC[[#This Row],[Trent Park Mens Points]],XC[[#This Row],[Royston Ladies Points]]+XC[[#This Row],[Waftord Ladies Points]]+XC[[#This Row],[Cheshunt Ladies Point]]+XC[[#This Row],[Watford Challenge Ladies Points]]+XC[[#This Row],[Gland Ladies Points]]+XC[[#This Row],[Trent Park Ladies Points]]) -> 194 | K15: 15 | L15: 35:28 | M15: =IF(XC[[#This Row],[Royston Time2]]>" ",(HOUR(XC[[#This Row],[Royston Time2]])*3600)+MINUTE(XC[[#This Row],[Royston Time2]])*60+SECOND(XC[[#This Row],[Royston Time2]]),"") -> 2128 | N15: =IFERROR(IF(FIND("M",XC[[#This Row],[Group]])>0,XC[[#This Row],[Royston Seconds]],"errorif"),"") -> 2128 | O15: =IFERROR(IF(FIND("F",XC[[#This Row],[Group]])>0,XC[[#This Row],[Royston Seconds]],"errorif"),"") ->  | P15: =IF(ISNUMBER(XC[[#This Row],[Royston Mens Time]]),50-(RANK(XC[[#This Row],[Royston Mens Time]],XC[Royston Mens Time],1))+1,0) -> 49 | Q15: =IF(ISNUMBER(XC[[#This Row],[Royston Ladies Times]]),50-(RANK(XC[[#This Row],[Royston Ladies Times]],XC[Royston Ladies Times],1))+1,0) -> 0 | R15: =Hatime(XC[[#This Row],[Royston Time]]) -> 00:35:28 | U15: =IFERROR((HOUR(XC[[#This Row],[Watford Time]])*3600)+MINUTE(XC[[#This Row],[Watford Time]])*60+SECOND(XC[[#This Row],[Watford Time]]),"") ->  | V15: =IFERROR(IF(FIND("M",XC[[#This Row],[Group]])>0,XC[[#This Row],[Watford Seconds]],"errorif"),"") ->  | W15: =IFERROR(IF(FIND("F",XC[[#This Row],[Group]])>0,XC[[#This Row],[Watford Seconds]],"errorif"),"") ->  | X15: =IF(ISNUMBER(XC[[#This Row],[Watford Mens Time]]),50-(RANK(XC[[#This Row],[Watford Mens Time]],XC[Watford Mens Time],1))+1,0) -> 0 | Y15: =IF(ISNUMBER(XC[[#This Row],[Watford Ladies Time]]),50-(RANK(XC[[#This Row],[Watford Ladies Time]],XC[Watford Ladies Time],1))+1,0) -> 0 | Z15: =Hatime(XC[[#This Row],[WTime]]) ->  | AA15: 00:32:41 | AB15: 40 | AC15: =(HOUR(XC[[#This Row],[Cheshunt wtime]])*3600)+MINUTE(XC[[#This Row],[Cheshunt wtime]])*60+SECOND(XC[[#This Row],[Cheshunt wtime]]) -> 1961 | AD15: =IFERROR(IF(FIND("M",XC[[#This Row],[Group]])>0,XC[[#This Row],[Cheshunt Second]],"errorif"),"") -> 1961 | AE15: =IFERROR(IF(FIND("F",XC[[#This Row],[Group]])>0,XC[[#This Row],[Cheshunt Second]],"errorif"),"") ->  | AF15: =IF(ISNUMBER(XC[[#This Row],[Cheshunt Mens Time]]),50-(RANK(XC[[#This Row],[Cheshunt Mens Time]],XC[Cheshunt Mens Time],1))+1,0) -> 48 | AG15: =IF(ISNUMBER(XC[[#This Row],[Cheshunt ladies Time]]),50-(RANK(XC[[#This Row],[Cheshunt ladies Time]],XC[Cheshunt ladies Time],1))+1,0) -> 0 | AL15: 34 | AM15: 00:30:35 | AO15: =(HOUR(XC[[#This Row],[Grovelands Mens Time]])*3600)+MINUTE(XC[[#This Row],[Grovelands Mens Time]])*60+SECOND(XC[[#This Row],[Grovelands Mens Time]]) -> 1835 | AQ15: =IF(ISNUMBER(XC[[#This Row],[Glands Mens Secs]]),50-(RANK(XC[[#This Row],[Glands Mens Secs]],XC[Glands Mens Secs],1))+1,0) -> 49 | AR15: =IF(ISNUMBER(XC[[#This Row],[Gland Ladies Secs]]),50-(RANK(XC[[#This Row],[Gland Ladies Secs]],XC[Gland Ladies Secs],1))+1,0) -> 0 | AS15: 31 | AT15: =IF(ISNUMBER(XC[[#This Row],[TP Mens Secs]]),50-_xlfn.RANK.EQ(XC[[#This Row],[TP Mens Secs]],XC[TP Mens Secs],1)+1,0) -> 48 | AU15: =IF(ISNUMBER(XC[[#This Row],[TP Ladies Secs]]),50-_xlfn.RANK.EQ(XC[[#This Row],[TP Ladies Secs]],XC[TP Ladies Secs],1)+1,0) -> 0 | AV15: 00:31:13 | AX15: 1873
B16: Camilla | C16: Davidson | D16: =TRIM(XC[[#This Row],[N1]])&" "&TRIM(XC[[#This Row],[N2]]) -> Camilla Davidson | F16: =VLOOKUP(XC[[#This Row],[Name]],members,2,0) -> 74 | G16: W | H16: =VLOOKUP(XC[[#This Row],[Mem]],Allmembers[],7,FALSE) -> FS | I16: =COUNT(XC[[#This Row],[Royston Race Position]],XC[[#This Row],[Watford Race Position]],XC[[#This Row],[Cheshut place]],XC[[#This Row],[Watford Challenge Place]],XC[[#This Row],[Grovelands place]],XC[[#This Row],[Trent Park Pos]]) -> 1 | J16: =IF(XC[[#This Row],[Gender]]="M",XC[[#This Row],[Royston Mens Points]]+XC[[#This Row],[Watford Mens Points]]+XC[[#This Row],[Cheshunt Mens Points]]+XC[[#This Row],[Watford Challenge Mens Points]]+XC[[#This Row],[Gland Mens Points]]+XC[[#This Row],[Trent Park Mens Points]],XC[[#This Row],[Royston Ladies Points]]+XC[[#This Row],[Waftord Ladies Points]]+XC[[#This Row],[Cheshunt Ladies Point]]+XC[[#This Row],[Watford Challenge Ladies Points]]+XC[[#This Row],[Gland Ladies Points]]+XC[[#This Row],[Trent Park Ladies Points]]) -> 50 | M16: =IF(XC[[#This Row],[Royston Time2]]>" ",(HOUR(XC[[#This Row],[Royston Time2]])*3600)+MINUTE(XC[[#This Row],[Royston Time2]])*60+SECOND(XC[[#This Row],[Royston Time2]]),"") ->  | N16: =IFERROR(IF(FIND("M",XC[[#This Row],[Group]])>0,XC[[#This Row],[Royston Seconds]],"errorif"),"") ->  | O16: =IFERROR(IF(FIND("F",XC[[#This Row],[Group]])>0,XC[[#This Row],[Royston Seconds]],"errorif"),"") ->  | P16: =IF(ISNUMBER(XC[[#This Row],[Royston Mens Time]]),50-(RANK(XC[[#This Row],[Royston Mens Time]],XC[Royston Mens Time],1))+1,0) -> 0 | Q16: =IF(ISNUMBER(XC[[#This Row],[Royston Ladies Times]]),50-(RANK(XC[[#This Row],[Royston Ladies Times]],XC[Royston Ladies Times],1))+1,0) -> 0 | U16: =IFERROR((HOUR(XC[[#This Row],[Watford Time]])*3600)+MINUTE(XC[[#This Row],[Watford Time]])*60+SECOND(XC[[#This Row],[Watford Time]]),"") ->  | V16: =IFERROR(IF(FIND("M",XC[[#This Row],[Group]])>0,XC[[#This Row],[Watford Seconds]],"errorif"),"") ->  | W16: =IFERROR(IF(FIND("F",XC[[#This Row],[Group]])>0,XC[[#This Row],[Watford Seconds]],"errorif"),"") ->  | X16: =IF(ISNUMBER(XC[[#This Row],[Watford Mens Time]]),50-(RANK(XC[[#This Row],[Watford Mens Time]],XC[Watford Mens Time],1))+1,0) -> 0 | Y16: 0 | Z16: =Hatime(XC[[#This Row],[WTime]]) ->  | AD16: =IFERROR(IF(FIND("M",XC[[#This Row],[Group]])>0,XC[[#This Row],[Cheshunt Second]],"errorif"),"") ->  | AE16: =IFERROR(IF(FIND("F",XC[[#This Row],[Group]])>0,XC[[#This Row],[Cheshunt Second]],"errorif"),"") ->  | AF16: =IF(ISNUMBER(XC[[#This Row],[Cheshunt Mens Time]]),50-(RANK(XC[[#This Row],[Cheshunt Mens Time]],XC[Cheshunt Mens Time],1))+1,0) -> 0 | AG16: =IF(ISNUMBER(XC[[#This Row],[Cheshunt ladies Time]]),50-(RANK(XC[[#This Row],[Cheshunt ladies Time]],XC[Cheshunt ladies Time],1))+1,0) -> 0 | AH16: 12 | AJ16: 50 | AK16: 0.02322916667 | AQ16: =IF(ISNUMBER(XC[[#This Row],[Glands Mens Secs]]),50-(RANK(XC[[#This Row],[Glands Mens Secs]],XC[Glands Mens Secs],1))+1,0) -> 0 | AR16: =IF(ISNUMBER(XC[[#This Row],[Gland Ladies Secs]]),50-(RANK(XC[[#This Row],[Gland Ladies Secs]],XC[Gland Ladies Secs],1))+1,0) -> 0 | AT16: =IF(ISNUMBER(XC[[#This Row],[TP Mens Secs]]),50-_xlfn.RANK.EQ(XC[[#This Row],[TP Mens Secs]],XC[TP Mens Secs],1)+1,0) -> 0 | AU16: =IF(ISNUMBER(XC[[#This Row],[TP Ladies Secs]]),50-_xlfn.RANK.EQ(XC[[#This Row],[TP Ladies Secs]],XC[TP Ladies Secs],1)+1,0) -> 0
B17: Sarah | C17: Dumbrill | D17: =TRIM(XC[[#This Row],[N1]])&" "&TRIM(XC[[#This Row],[N2]]) -> Sarah Dumbrill | F17: =VLOOKUP(XC[[#This Row],[Name]],members,2,0) -> 77 | G17: W | H17: =VLOOKUP(XC[[#This Row],[Mem]],Allmembers[],7,FALSE) -> FV35 | I17: =COUNT(XC[[#This Row],[Royston Race Position]],XC[[#This Row],[Watford Race Position]],XC[[#This Row],[Cheshut place]],XC[[#This Row],[Watford Challenge Place]],XC[[#This Row],[Grovelands place]],XC[[#This Row],[Trent Park Pos]]) -> 2 | J17: =IF(XC[[#This Row],[Gender]]="M",XC[[#This Row],[Royston Mens Points]]+XC[[#This Row],[Watford Mens Points]]+XC[[#This Row],[Cheshunt Mens Points]]+XC[[#This Row],[Watford Challenge Mens Points]]+XC[[#This Row],[Gland Mens Points]]+XC[[#This Row],[Trent Park Mens Points]],XC[[#This Row],[Royston Ladies Points]]+XC[[#This Row],[Waftord Ladies Points]]+XC[[#This Row],[Cheshunt Ladies Point]]+XC[[#This Row],[Watford Challenge Ladies Points]]+XC[[#This Row],[Gland Ladies Points]]+XC[[#This Row],[Trent Park Ladies Points]]) -> 95 | M17: =IF(XC[[#This Row],[Royston Time2]]>" ",(HOUR(XC[[#This Row],[Royston Time2]])*3600)+MINUTE(XC[[#This Row],[Royston Time2]])*60+SECOND(XC[[#This Row],[Royston Time2]]),"") ->  | N17: =IFERROR(IF(FIND("M",XC[[#This Row],[Group]])>0,XC[[#This Row],[Royston Seconds]],"errorif"),"") ->  | O17: =IFERROR(IF(FIND("F",XC[[#This Row],[Group]])>0,XC[[#This Row],[Royston Seconds]],"errorif"),"") ->  | P17: =IF(ISNUMBER(XC[[#This Row],[Royston Mens Time]]),50-(RANK(XC[[#This Row],[Royston Mens Time]],XC[Royston Mens Time],1))+1,0) -> 0 | Q17: =IF(ISNUMBER(XC[[#This Row],[Royston Ladies Times]]),50-(RANK(XC[[#This Row],[Royston Ladies Times]],XC[Royston Ladies Times],1))+1,0) -> 0 | U17: =IFERROR((HOUR(XC[[#This Row],[Watford Time]])*3600)+MINUTE(XC[[#This Row],[Watford Time]])*60+SECOND(XC[[#This Row],[Watford Time]]),"") ->  | V17: =IFERROR(IF(FIND("M",XC[[#This Row],[Group]])>0,XC[[#This Row],[Watford Seconds]],"errorif"),"") ->  | W17: =IFERROR(IF(FIND("F",XC[[#This Row],[Group]])>0,XC[[#This Row],[Watford Seconds]],"errorif"),"") ->  | X17: =IF(ISNUMBER(XC[[#This Row],[Watford Mens Time]]),50-(RANK(XC[[#This Row],[Watford Mens Time]],XC[Watford Mens Time],1))+1,0) -> 0 | Z17: =Hatime(XC[[#This Row],[WTime]]) ->  | AA17: 00:41:52 | AB17: 245 | AC17: =(HOUR(XC[[#This Row],[Cheshunt wtime]])*3600)+MINUTE(XC[[#This Row],[Cheshunt wtime]])*60+SECOND(XC[[#This Row],[Cheshunt wtime]]) -> 2512 | AD17: =IFERROR(IF(FIND("M",XC[[#This Row],[Group]])>0,XC[[#This Row],[Cheshunt Second]],"errorif"),"") ->  | AE17: =IFERROR(IF(FIND("F",XC[[#This Row],[Group]])>0,XC[[#This Row],[Cheshunt Second]],"errorif"),"") -> 2512 | AF17: =IF(ISNUMBER(XC[[#This Row],[Cheshunt Mens Time]]),50-(RANK(XC[[#This Row],[Cheshunt Mens Time]],XC[Cheshunt Mens Time],1))+1,0) -> 0 | AG17: =IF(ISNUMBER(XC[[#This Row],[Cheshunt ladies Time]]),50-(RANK(XC[[#This Row],[Cheshunt ladies Time]],XC[Cheshunt ladies Time],1))+1,0) -> 47 | AQ17: =IF(ISNUMBER(XC[[#This Row],[Glands Mens Secs]]),50-(RANK(XC[[#This Row],[Glands Mens Secs]],XC[Glands Mens Secs],1))+1,0) -> 0 | AR17: =IF(ISNUMBER(XC[[#This Row],[Gland Ladies Secs]]),50-(RANK(XC[[#This Row],[Gland Ladies Secs]],XC[Gland Ladies Secs],1))+1,0) -> 0 | AS17: 165 | AT17: =IF(ISNUMBER(XC[[#This Row],[TP Mens Secs]]),50-_xlfn.RANK.EQ(XC[[#This Row],[TP Mens Secs]],XC[TP Mens Secs],1)+1,0) -> 0 | AU17: =IF(ISNUMBER(XC[[#This Row],[TP Ladies Secs]]),50-_xlfn.RANK.EQ(XC[[#This Row],[TP Ladies Secs]],XC[TP Ladies Secs],1)+1,0) -> 48 | AW17: 00:37:41 | AY17: 2261
B18: Norman | C18: Whitwood | D18: =TRIM(XC[[#This Row],[N1]])&" "&TRIM(XC[[#This Row],[N2]]) -> Norman Whitwood | E18: 1 | F18: =VLOOKUP(XC[[#This Row],[Name]],members,2,0) -> 93 | G18: M | H18: =VLOOKUP(XC[[#This Row],[Mem]],Allmembers[],7,FALSE) -> MV60 | I18: =COUNT(XC[[#This Row],[Royston Race Position]],XC[[#This Row],[Watford Race Position]],XC[[#This Row],[Cheshut place]],XC[[#This Row],[Watford Challenge Place]],XC[[#This Row],[Grovelands place]],XC[[#This Row],[Trent Park Pos]]) -> 2 | J18: =IF(XC[[#This Row],[Gender]]="M",XC[[#This Row],[Royston Mens Points]]+XC[[#This Row],[Watford Mens Points]]+XC[[#This Row],[Cheshunt Mens Points]]+XC[[#This Row],[Watford Challenge Mens Points]]+XC[[#This Row],[Gland Mens Points]]+XC[[#This Row],[Trent Park Mens Points]],XC[[#This Row],[Royston Ladies Points]]+XC[[#This Row],[Waftord Ladies Points]]+XC[[#This Row],[Cheshunt Ladies Point]]+XC[[#This Row],[Watford Challenge Ladies Points]]+XC[[#This Row],[Gland Ladies Points]]+XC[[#This Row],[Trent Park Ladies Points]]) -> 51 | M18: =IF(XC[[#This Row],[Royston Time2]]>" ",(HOUR(XC[[#This Row],[Royston Time2]])*3600)+MINUTE(XC[[#This Row],[Royston Time2]])*60+SECOND(XC[[#This Row],[Royston Time2]]),"") ->  | N18: =IFERROR(IF(FIND("M",XC[[#This Row],[Group]])>0,XC[[#This Row],[Royston Seconds]],"errorif"),"") ->  | O18: =IFERROR(IF(FIND("F",XC[[#This Row],[Group]])>0,XC[[#This Row],[Royston Seconds]],"errorif"),"") ->  | P18: 0 | Q18: =IF(ISNUMBER(XC[[#This Row],[Royston Ladies Times]]),50-(RANK(XC[[#This Row],[Royston Ladies Times]],XC[Royston Ladies Times],1))+1,0) -> 0 | U18: =IFERROR((HOUR(XC[[#This Row],[Watford Time]])*3600)+MINUTE(XC[[#This Row],[Watford Time]])*60+SECOND(XC[[#This Row],[Watford Time]]),"") ->  | V18: =IFERROR(IF(FIND("M",XC[[#This Row],[Group]])>0,XC[[#This Row],[Watford Seconds]],"errorif"),"") ->  | W18: =IFERROR(IF(FIND("F",XC[[#This Row],[Group]])>0,XC[[#This Row],[Watford Seconds]],"errorif"),"") ->  | X18: =IF(ISNUMBER(XC[[#This Row],[Watford Mens Time]]),50-(RANK(XC[[#This Row],[Watford Mens Time]],XC[Watford Mens Time],1))+1,0) -> 0 | Z18: =Hatime(XC[[#This Row],[WTime]]) ->  | AA18: 00:55:00 | AB18: 378 | AC18: =(HOUR(XC[[#This Row],[Cheshunt wtime]])*3600)+MINUTE(XC[[#This Row],[Cheshunt wtime]])*60+SECOND(XC[[#This Row],[Cheshunt wtime]]) -> 3300 | AD18: =IFERROR(IF(FIND("M",XC[[#This Row],[Group]])>0,XC[[#This Row],[Cheshunt Second]],"errorif"),"") -> 3300 | AE18: =IFERROR(IF(FIND("F",XC[[#This Row],[Group]])>0,XC[[#This Row],[Cheshunt Second]],"errorif"),"") ->  | AF18: =IF(ISNUMBER(XC[[#This Row],[Cheshunt Mens Time]]),50-(RANK(XC[[#This Row],[Cheshunt Mens Time]],XC[Cheshunt Mens Time],1))+1,0) -> 25 | AG18: =IF(ISNUMBER(XC[[#This Row],[Cheshunt ladies Time]]),50-(RANK(XC[[#This Row],[Cheshunt ladies Time]],XC[Cheshunt ladies Time],1))+1,0) -> 0 | AL18: 384 | AM18: 00:50:24 | AO18: =(HOUR(XC[[#This Row],[Grovelands Mens Time]])*3600)+MINUTE(XC[[#This Row],[Grovelands Mens Time]])*60+SECOND(XC[[#This Row],[Grovelands Mens Time]]) -> 3024 | AQ18: =IF(ISNUMBER(XC[[#This Row],[Glands Mens Secs]]),50-(RANK(XC[[#This Row],[Glands Mens Secs]],XC[Glands Mens Secs],1))+1,0) -> 26 | AR18: =IF(ISNUMBER(XC[[#This Row],[Gland Ladies Secs]]),50-(RANK(XC[[#This Row],[Gland Ladies Secs]],XC[Gland Ladies Secs],1))+1,0) -> 0 | AT18: =IF(ISNUMBER(XC[[#This Row],[TP Mens Secs]]),50-_xlfn.RANK.EQ(XC[[#This Row],[TP Mens Secs]],XC[TP Mens Secs],1)+1,0) -> 0 | AU18: =IF(ISNUMBER(XC[[#This Row],[TP Ladies Secs]]),50-_xlfn.RANK.EQ(XC[[#This Row],[TP Ladies Secs]],XC[TP Ladies Secs],1)+1,0) -> 0
B19: Jenny | C19: Birch | D19: =TRIM(XC[[#This Row],[N1]])&" "&TRIM(XC[[#This Row],[N2]]) -> Jenny Birch | F19: =VLOOKUP(XC[[#This Row],[Name]],members,2,0) -> 94 | G19: W | H19: =VLOOKUP(XC[[#This Row],[Mem]],Allmembers[],7,FALSE) -> FV35 | I19: =COUNT(XC[[#This Row],[Royston Race Position]],XC[[#This Row],[Watford Race Position]],XC[[#This Row],[Cheshut place]],XC[[#This Row],[Watford Challenge Place]],XC[[#This Row],[Grovelands place]],XC[[#This Row],[Trent Park Pos]]) -> 1 | J19: =IF(XC[[#This Row],[Gender]]="M",XC[[#This Row],[Royston Mens Points]]+XC[[#This Row],[Watford Mens Points]]+XC[[#This Row],[Cheshunt Mens Points]]+XC[[#This Row],[Watford Challenge Mens Points]]+XC[[#This Row],[Gland Mens Points]]+XC[[#This Row],[Trent Park Mens Points]],XC[[#This Row],[Royston Ladies Points]]+XC[[#This Row],[Waftord Ladies Points]]+XC[[#This Row],[Cheshunt Ladies Point]]+XC[[#This Row],[Watford Challenge Ladies Points]]+XC[[#This Row],[Gland Ladies Points]]+XC[[#This Row],[Trent Park Ladies Points]]) -> 41 | K19: 292 | L19: 58:31 | M19: =IF(XC[[#This Row],[Royston Time2]]>" ",(HOUR(XC[[#This Row],[Royston Time2]])*3600)+MINUTE(XC[[#This Row],[Royston Time2]])*60+SECOND(XC[[#This Row],[Royston Time2]]),"") -> 3511 | N19: =IFERROR(IF(FIND("M",XC[[#This Row],[Group]])>0,XC[[#This Row],[Royston Seconds]],"errorif"),"") ->  | O19: =IFERROR(IF(FIND("F",XC[[#This Row],[Group]])>0,XC[[#This Row],[Royston Seconds]],"errorif"),"") -> 3511 | P19: =IF(ISNUMBER(XC[[#This Row],[Royston Mens Time]]),50-(RANK(XC[[#This Row],[Royston Mens Time]],XC[Royston Mens Time],1))+1,0) -> 0 | Q19: =IF(ISNUMBER(XC[[#This Row],[Royston Ladies Times]]),50-(RANK(XC[[#This Row],[Royston Ladies Times]],XC[Royston Ladies Times],1))+1,"") -> 41 | R19: =Hatime(XC[[#This Row],[Royston Time]]) -> 00:58:31 | U19: =IFERROR((HOUR(XC[[#This Row],[Watford Time]])*3600)+MINUTE(XC[[#This Row],[Watford Time]])*60+SECOND(XC[[#This Row],[Watford Time]]),"") ->  | V19: =IFERROR(IF(FIND("M",XC[[#This Row],[Group]])>0,XC[[#This Row],[Watford Seconds]],"errorif"),"") ->  | W19: =IFERROR(IF(FIND("F",XC[[#This Row],[Group]])>0,XC[[#This Row],[Watford Seconds]],"errorif"),"") ->  | X19: =IF(ISNUMBER(XC[[#This Row],[Watford Mens Time]]),50-(RANK(XC[[#This Row],[Watford Mens Time]],XC[Watford Mens Time],1))+1,0) -> 0 | Y19: =IF(ISNUMBER(XC[[#This Row],[Watford Ladies Time]]),50-(RANK(XC[[#This Row],[Watford Ladies Time]],XC[Watford Ladies Time],1))+1,0) -> 0 | Z19: =Hatime(XC[[#This Row],[WTime]]) ->  | AD19: =IFERROR(IF(FIND("M",XC[[#This Row],[Group]])>0,XC[[#This Row],[Cheshunt Second]],"errorif"),"") ->  | AE19: =IFERROR(IF(FIND("F",XC[[#This Row],[Group]])>0,XC[[#This Row],[Cheshunt Second]],"errorif"),"") ->  | AF19: =IF(ISNUMBER(XC[[#This Row],[Cheshunt Mens Time]]),50-(RANK(XC[[#This Row],[Cheshunt Mens Time]],XC[Cheshunt Mens Time],1))+1,0) -> 0 | AG19: =IF(ISNUMBER(XC[[#This Row],[Cheshunt ladies Time]]),50-(RANK(XC[[#This Row],[Cheshunt ladies Time]],XC[Cheshunt ladies Time],1))+1,0) -> 0 | AQ19: =IF(ISNUMBER(XC[[#This Row],[Glands Mens Secs]]),50-(RANK(XC[[#This Row],[Glands Mens Secs]],XC[Glands Mens Secs],1))+1,0) -> 0 | AR19: =IF(ISNUMBER(XC[[#This Row],[Gland Ladies Secs]]),50-(RANK(XC[[#This Row],[Gland Ladies Secs]],XC[Gland Ladies Secs],1))+1,0) -> 0 | AT19: =IF(ISNUMBER(XC[[#This Row],[TP Mens Secs]]),50-_xlfn.RANK.EQ(XC[[#This Row],[TP Mens Secs]],XC[TP Mens Secs],1)+1,0) -> 0 | AU19: =IF(ISNUMBER(XC[[#This Row],[TP Ladies Secs]]),50-_xlfn.RANK.EQ(XC[[#This Row],[TP Ladies Secs]],XC[TP Ladies Secs],1)+1,0) -> 0
B20: Jennifer | C20: Finlay | D20: =TRIM(XC[[#This Row],[N1]])&" "&TRIM(XC[[#This Row],[N2]]) -> Jennifer Finlay | E20: 1 | F20: =VLOOKUP(XC[[#This Row],[Name]],members,2,0) -> 97 | G20: W | H20: =VLOOKUP(XC[[#This Row],[Mem]],Allmembers[],7,FALSE) -> FV35 | I20: =COUNT(XC[[#This Row],[Royston Race Position]],XC[[#This Row],[Watford Race Position]],XC[[#This Row],[Cheshut place]],XC[[#This Row],[Watford Challenge Place]],XC[[#This Row],[Grovelands place]],XC[[#This Row],[Trent Park Pos]]) -> 5 | J20: =IF(XC[[#This Row],[Gender]]="M",XC[[#This Row],[Royston Mens Points]]+XC[[#This Row],[Watford Mens Points]]+XC[[#This Row],[Cheshunt Mens Points]]+XC[[#This Row],[Watford Challenge Mens Points]]+XC[[#This Row],[Gland Mens Points]]+XC[[#This Row],[Trent Park Mens Points]],XC[[#This Row],[Royston Ladies Points]]+XC[[#This Row],[Waftord Ladies Points]]+XC[[#This Row],[Cheshunt Ladies Point]]+XC[[#This Row],[Watford Challenge Ladies Points]]+XC[[#This Row],[Gland Ladies Points]]+XC[[#This Row],[Trent Park Ladies Points]]) -> 241 | K20: 152 | L20: 45:51 | M20: =IF(XC[[#This Row],[Royston Time2]]>" ",(HOUR(XC[[#This Row],[Royston Time2]])*3600)+MINUTE(XC[[#This Row],[Royston Time2]])*60+SECOND(XC[[#This Row],[Royston Time2]]),"") -> 2751 | N20: =IFERROR(IF(FIND("M",XC[[#This Row],[Group]])>0,XC[[#This Row],[Royston Seconds]],"errorif"),"") ->  | O20: =IFERROR(IF(FIND("F",XC[[#This Row],[Group]])>0,XC[[#This Row],[Royston Seconds]],"errorif"),"") -> 2751 | P20: =IF(ISNUMBER(XC[[#This Row],[Royston Mens Time]]),50-(RANK(XC[[#This Row],[Royston Mens Time]],XC[Royston Mens Time],1))+1,0) -> 0 | Q20: =IF(ISNUMBER(XC[[#This Row],[Royston Ladies Times]]),50-(RANK(XC[[#This Row],[Royston Ladies Times]],XC[Royston Ladies Times],1))+1,"") -> 48 | R20: =Hatime(XC[[#This Row],[Royston Time]]) -> 00:45:51 | S20: 157 | T20: 48:32 | U20: =IFERROR((HOUR(XC[[#This Row],[Watford Time]])*3600)+MINUTE(XC[[#This Row],[Watford Time]])*60+SECOND(XC[[#This Row],[Watford Time]]),"") -> 2912 | V20: =IFERROR(IF(FIND("M",XC[[#This Row],[Group]])>0,XC[[#This Row],[Watford Seconds]],"errorif"),"") ->  | W20: =IFERROR(IF(FIND("F",XC[[#This Row],[Group]])>0,XC[[#This Row],[Watford Seconds]],"errorif"),"") -> 2912 | X20: =IF(ISNUMBER(XC[[#This Row],[Watford Mens Time]]),50-(RANK(XC[[#This Row],[Watford Mens Time]],XC[Watford Mens Time],1))+1,0) -> 0 | Y20: =IF(ISNUMBER(XC[[#This Row],[Watford Ladies Time]]),50-(RANK(XC[[#This Row],[Watford Ladies Time]],XC[Watford Ladies Time],1))+1,0) -> 47 | Z20: =Hatime(XC[[#This Row],[WTime]]) -> 00:48:32 | AA20: 00:39:31 | AB20: 191 | AC20: =(HOUR(XC[[#This Row],[Cheshunt wtime]])*3600)+MINUTE(XC[[#This Row],[Cheshunt wtime]])*60+SECOND(XC[[#This Row],[Cheshunt wtime]]) -> 2371 | AD20: =IFERROR(IF(FIND("M",XC[[#This Row],[Group]])>0,XC[[#This Row],[Cheshunt Second]],"errorif"),"") ->  | AE20: =IFERROR(IF(FIND("F",XC[[#This Row],[Group]])>0,XC[[#This Row],[Cheshunt Second]],"errorif"),"") -> 2371 | AF20: =IF(ISNUMBER(XC[[#This Row],[Cheshunt Mens Time]]),50-(RANK(XC[[#This Row],[Cheshunt Mens Time]],XC[Cheshunt Mens Time],1))+1,0) -> 0 | AG20: =IF(ISNUMBER(XC[[#This Row],[Cheshunt ladies Time]]),50-(RANK(XC[[#This Row],[Cheshunt ladies Time]],XC[Cheshunt ladies Time],1))+1,0) -> 48 | AL20: 173 | AN20: 00:36:50 | AP20: =(HOUR(XC[[#This Row],[Grovelands Ladies Time]])*3600)+MINUTE(XC[[#This Row],[Grovelands Ladies Time]])*60+SECOND(XC[[#This Row],[Grovelands Ladies Time]]) -> 2210 | AQ20: =IF(ISNUMBER(XC[[#This Row],[Glands Mens Secs]]),50-(RANK(XC[[#This Row],[Glands Mens Secs]],XC[Glands Mens Secs],1))+1,0) -> 0 | AR20: =IF(ISNUMBER(XC[[#This Row],[Gland Ladies Secs]]),50-(RANK(XC[[#This Row],[Gland Ladies Secs]],XC[Gland Ladies Secs],1))+1,0) -> 49 | AS20: 143 | AT20: =IF(ISNUMBER(XC[[#This Row],[TP Mens Secs]]),50-_xlfn.RANK.EQ(XC[[#This Row],[TP Mens Secs]],XC[TP Mens Secs],1)+1,0) -> 0 | AU20: =IF(ISNUMBER(XC[[#This Row],[TP Ladies Secs]]),50-_xlfn.RANK.EQ(XC[[#This Row],[TP Ladies Secs]],XC[TP Ladies Secs],1)+1,0) -> 49 | AW20: 00:36:54 | AY20: 2214
B21: Phil | C21: Jacobs | D21: =TRIM(XC[[#This Row],[N1]])&" "&TRIM(XC[[#This Row],[N2]]) -> Phil Jacobs | E21: 1 | F21: =VLOOKUP(XC[[#This Row],[Name]],members,2,0) -> 100 | G21: M | H21: =VLOOKUP(XC[[#This Row],[Mem]],Allmembers[],7,FALSE) -> MV40 | I21: =COUNT(XC[[#This Row],[Royston Race Position]],XC[[#This Row],[Watford Race Position]],XC[[#This Row],[Cheshut place]],XC[[#This Row],[Watford Challenge Place]],XC[[#This Row],[Grovelands place]],XC[[#This Row],[Trent Park Pos]]) -> 5 | J21: =IF(XC[[#This Row],[Gender]]="M",XC[[#This Row],[Royston Mens Points]]+XC[[#This Row],[Watford Mens Points]]+XC[[#This Row],[Cheshunt Mens Points]]+XC[[#This Row],[Watford Challenge Mens Points]]+XC[[#This Row],[Gland Mens Points]]+XC[[#This Row],[Trent Park Mens Points]],XC[[#This Row],[Royston Ladies Points]]+XC[[#This Row],[Waftord Ladies Points]]+XC[[#This Row],[Cheshunt Ladies Point]]+XC[[#This Row],[Watford Challenge Ladies Points]]+XC[[#This Row],[Gland Ladies Points]]+XC[[#This Row],[Trent Park Ladies Points]]) -> 213 | K21: 47 | L21: 39:16 | M21: =IF(XC[[#This Row],[Royston Time2]]>" ",(HOUR(XC[[#This Row],[Royston Time2]])*3600)+MINUTE(XC[[#This Row],[Royston Time2]])*60+SECOND(XC[[#This Row],[Royston Time2]]),"") -> 2356 | N21: =IFERROR(IF(FIND("M",XC[[#This Row],[Group]])>0,XC[[#This Row],[Royston Seconds]],"errorif"),"") -> 2356 | O21: =IFERROR(IF(FIND("F",XC[[#This Row],[Group]])>0,XC[[#This Row],[Royston Seconds]],"errorif"),"") ->  | P21: =IF(ISNUMBER(XC[[#This Row],[Royston Mens Time]]),50-(RANK(XC[[#This Row],[Royston Mens Time]],XC[Royston Mens Time],1))+1,0) -> 46 | Q21: =IF(ISNUMBER(XC[[#This Row],[Royston Ladies Times]]),50-(RANK(XC[[#This Row],[Royston Ladies Times]],XC[Royston Ladies Times],1))+1,0) -> 0 | R21: =Hatime(XC[[#This Row],[Royston Time]]) -> 00:39:16 | S21: 53 | T21: 41:58 | U21: =IFERROR((HOUR(XC[[#This Row],[Watford Time]])*3600)+MINUTE(XC[[#This Row],[Watford Time]])*60+SECOND(XC[[#This Row],[Watford Time]]),"") -> 2518 | V21: =IFERROR(IF(FIND("M",XC[[#This Row],[Group]])>0,XC[[#This Row],[Watford Seconds]],"errorif"),"") -> 2518 | W21: =IFERROR(IF(FIND("F",XC[[#This Row],[Group]])>0,XC[[#This Row],[Watford Seconds]],"errorif"),"") ->  | X21: =IF(ISNUMBER(XC[[#This Row],[Watford Mens Time]]),50-(RANK(XC[[#This Row],[Watford Mens Time]],XC[Watford Mens Time],1))+1,0) -> 49 | Y21: =IF(ISNUMBER(XC[[#This Row],[Watford Ladies Time]]),50-(RANK(XC[[#This Row],[Watford Ladies Time]],XC[Watford Ladies Time],1))+1,0) -> 0 | Z21: =Hatime(XC[[#This Row],[WTime]]) -> 00:41:58 | AA21: 00:35:28 | AB21: 98 | AC21: =(HOUR(XC[[#This Row],[Cheshunt wtime]])*3600)+MINUTE(XC[[#This Row],[Cheshunt wtime]])*60+SECOND(XC[[#This Row],[Cheshunt wtime]]) -> 2128 | AD21: =IFERROR(IF(FIND("M",XC[[#This Row],[Group]])>0,XC[[#This Row],[Cheshunt Second]],"errorif"),"") -> 2128 | AE21: =IFERROR(IF(FIND("F",XC[[#This Row],[Group]])>0,XC[[#This Row],[Cheshunt Second]],"errorif"),"") ->  | AF21: =IF(ISNUMBER(XC[[#This Row],[Cheshunt Mens Time]]),50-(RANK(XC[[#This Row],[Cheshunt Mens Time]],XC[Cheshunt Mens Time],1))+1,0) -> 38 | AG21: =IF(ISNUMBER(XC[[#This Row],[Cheshunt ladies Time]]),50-(RANK(XC[[#This Row],[Cheshunt ladies Time]],XC[Cheshunt ladies Time],1))+1,0) -> 0 | AH21: 13 | AI21: 49 | AK21: 0.02340277778 | AL21: 178 | AM21: 00:37:00 | AO21: =(HOUR(XC[[#This Row],[Grovelands Mens Time]])*3600)+MINUTE(XC[[#This Row],[Grovelands Mens Time]])*60+SECOND(XC[[#This Row],[Grovelands Mens Time]]) -> 2220 | AQ21: =IF(ISNUMBER(XC[[#This Row],[Glands Mens Secs]]),50-(RANK(XC[[#This Row],[Glands Mens Secs]],XC[Glands Mens Secs],1))+1,0) -> 31 | AR21: =IF(ISNUMBER(XC[[#This Row],[Gland Ladies Secs]]),50-(RANK(XC[[#This Row],[Gland Ladies Secs]],XC[Gland Ladies Secs],1))+1,0) -> 0 | AT21: =IF(ISNUMBER(XC[[#This Row],[TP Mens Secs]]),50-_xlfn.RANK.EQ(XC[[#This Row],[TP Mens Secs]],XC[TP Mens Secs],1)+1,0) -> 0 | AU21: =IF(ISNUMBER(XC[[#This Row],[TP Ladies Secs]]),50-_xlfn.RANK.EQ(XC[[#This Row],[TP Ladies Secs]],XC[TP Ladies Secs],1)+1,0) -> 0
B22: Tim | C22: Mauchline | D22: =TRIM(XC[[#This Row],[N1]])&" "&TRIM(XC[[#This Row],[N2]]) -> Tim Mauchline | F22: =VLOOKUP(XC[[#This Row],[Name]],members,2,0) -> 103 | G22: M | H22: =VLOOKUP(XC[[#This Row],[Mem]],Allmembers[],7,FALSE) -> MS | I22: =COUNT(XC[[#This Row],[Royston Race Position]],XC[[#This Row],[Watford Race Position]],XC[[#This Row],[Cheshut place]],XC[[#This Row],[Watford Challenge Place]],XC[[#This Row],[Grovelands place]],XC[[#This Row],[Trent Park Pos]]) -> 1 | J22: =IF(XC[[#This Row],[Gender]]="M",XC[[#This Row],[Royston Mens Points]]+XC[[#This Row],[Watford Mens Points]]+XC[[#This Row],[Cheshunt Mens Points]]+XC[[#This Row],[Watford Challenge Mens Points]]+XC[[#This Row],[Gland Mens Points]]+XC[[#This Row],[Trent Park Mens Points]],XC[[#This Row],[Royston Ladies Points]]+XC[[#This Row],[Waftord Ladies Points]]+XC[[#This Row],[Cheshunt Ladies Point]]+XC[[#This Row],[Watford Challenge Ladies Points]]+XC[[#This Row],[Gland Ladies Points]]+XC[[#This Row],[Trent Park Ladies Points]]) -> 50 | M22: =IF(XC[[#This Row],[Royston Time2]]>" ",(HOUR(XC[[#This Row],[Royston Time2]])*3600)+MINUTE(XC[[#This Row],[Royston Time2]])*60+SECOND(XC[[#This Row],[Royston Time2]]),"") ->  | N22: =IFERROR(IF(FIND("M",XC[[#This Row],[Group]])>0,XC[[#This Row],[Royston Seconds]],"errorif"),"") ->  | O22: =IFERROR(IF(FIND("F",XC[[#This Row],[Group]])>0,XC[[#This Row],[Royston Seconds]],"errorif"),"") ->  | P22: =IF(ISNUMBER(XC[[#This Row],[Royston Mens Time]]),50-(RANK(XC[[#This Row],[Royston Mens Time]],XC[Royston Mens Time],1))+1,0) -> 0 | Q22: =IF(ISNUMBER(XC[[#This Row],[Royston Ladies Times]]),50-(RANK(XC[[#This Row],[Royston Ladies Times]],XC[Royston Ladies Times],1))+1,0) -> 0 | U22: =IFERROR((HOUR(XC[[#This Row],[Watford Time]])*3600)+MINUTE(XC[[#This Row],[Watford Time]])*60+SECOND(XC[[#This Row],[Watford Time]]),"") ->  | V22: =IFERROR(IF(FIND("M",XC[[#This Row],[Group]])>0,XC[[#This Row],[Watford Seconds]],"errorif"),"") ->  | W22: =IFERROR(IF(FIND("F",XC[[#This Row],[Group]])>0,XC[[#This Row],[Watford Seconds]],"errorif"),"") ->  | X22: =IF(ISNUMBER(XC[[#This Row],[Watford Mens Time]]),50-(RANK(XC[[#This Row],[Watford Mens Time]],XC[Watford Mens Time],1))+1,0) -> 0 | Y22: 0 | Z22: =Hatime(XC[[#This Row],[WTime]]) ->  | AE22: =IFERROR(IF(FIND("F",XC[[#This Row],[Group]])>0,XC[[#This Row],[Cheshunt Second]],"errorif"),"") ->  | AF22: =IF(ISNUMBER(XC[[#This Row],[Cheshunt Mens Time]]),50-(RANK(XC[[#This Row],[Cheshunt Mens Time]],XC[Cheshunt Mens Time],1))+1,0) -> 0 | AG22: =IF(ISNUMBER(XC[[#This Row],[Cheshunt ladies Time]]),50-(RANK(XC[[#This Row],[Cheshunt ladies Time]],XC[Cheshunt ladies Time],1))+1,0) -> 0 | AQ22: =IF(ISNUMBER(XC[[#This Row],[Glands Mens Secs]]),50-(RANK(XC[[#This Row],[Glands Mens Secs]],XC[Glands Mens Secs],1))+1,0) -> 0 | AR22: =IF(ISNUMBER(XC[[#This Row],[Gland Ladies Secs]]),50-(RANK(XC[[#This Row],[Gland Ladies Secs]],XC[Gland Ladies Secs],1))+1,0) -> 0 | AS22: 18 | AT22: =IF(ISNUMBER(XC[[#This Row],[TP Mens Secs]]),50-_xlfn.RANK.EQ(XC[[#This Row],[TP Mens Secs]],XC[TP Mens Secs],1)+1,0) -> 50 | AU22: =IF(ISNUMBER(XC[[#This Row],[TP Ladies Secs]]),50-_xlfn.RANK.EQ(XC[[#This Row],[TP Ladies Secs]],XC[TP Ladies Secs],1)+1,0) -> 0 | AV22: 00:30:05 | AX22: 1805
B23: Elliott | C23: Lamb | D23: =TRIM(XC[[#This Row],[N1]])&" "&TRIM(XC[[#This Row],[N2]]) -> Elliott Lamb | E23: 1 | F23: =VLOOKUP(XC[[#This Row],[Name]],members,2,0) -> 110 | G23: M | H23: =VLOOKUP(XC[[#This Row],[Mem]],Allmembers[],7,FALSE) -> MV50 | I23: =COUNT(XC[[#This Row],[Royston Race Position]],XC[[#This Row],[Watford Race Position]],XC[[#This Row],[Cheshut place]],XC[[#This Row],[Watford Challenge Place]],XC[[#This Row],[Grovelands place]],XC[[#This Row],[Trent Park Pos]]) -> 5 | J23: =IF(XC[[#This Row],[Gender]]="M",XC[[#This Row],[Royston Mens Points]]+XC[[#This Row],[Watford Mens Points]]+XC[[#This Row],[Cheshunt Mens Points]]+XC[[#This Row],[Watford Challenge Mens Points]]+XC[[#This Row],[Gland Mens Points]]+XC[[#This Row],[Trent Park Mens Points]],XC[[#This Row],[Royston Ladies Points]]+XC[[#This Row],[Waftord Ladies Points]]+XC[[#This Row],[Cheshunt Ladies Point]]+XC[[#This Row],[Watford Challenge Ladies Points]]+XC[[#This Row],[Gland Ladies Points]]+XC[[#This Row],[Trent Park Ladies Points]]) -> 202 | K23: 68 | L23: 40:24 | M23: =IF(XC[[#This Row],[Royston Time2]]>" ",(HOUR(XC[[#This Row],[Royston Time2]])*3600)+MINUTE(XC[[#This Row],[Royston Time2]])*60+SECOND(XC[[#This Row],[Royston Time2]]),"") -> 2424 | N23: =IFERROR(IF(FIND("M",XC[[#This Row],[Group]])>0,XC[[#This Row],[Royston Seconds]],"errorif"),"") -> 2424 | O23: =IFERROR(IF(FIND("F",XC[[#This Row],[Group]])>0,XC[[#This Row],[Royston Seconds]],"errorif"),"") ->  | P23: =IF(ISNUMBER(XC[[#This Row],[Royston Mens Time]]),50-(RANK(XC[[#This Row],[Royston Mens Time]],XC[Royston Mens Time],1))+1,0) -> 40 | Q23: =IF(ISNUMBER(XC[[#This Row],[Royston Ladies Times]]),50-(RANK(XC[[#This Row],[Royston Ladies Times]],XC[Royston Ladies Times],1))+1,0) -> 0 | R23: =Hatime(XC[[#This Row],[Royston Time]]) -> 00:40:24 | S23: 66 | T23: 42:46 | U23: =IFERROR((HOUR(XC[[#This Row],[Watford Time]])*3600)+MINUTE(XC[[#This Row],[Watford Time]])*60+SECOND(XC[[#This Row],[Watford Time]]),"") -> 2566 | V23: =IFERROR(IF(FIND("M",XC[[#This Row],[Group]])>0,XC[[#This Row],[Watford Seconds]],"errorif"),"") -> 2566 | W23: =IFERROR(IF(FIND("F",XC[[#This Row],[Group]])>0,XC[[#This Row],[Watford Seconds]],"errorif"),"") ->  | X23: =IF(ISNUMBER(XC[[#This Row],[Watford Mens Time]]),50-(RANK(XC[[#This Row],[Watford Mens Time]],XC[Watford Mens Time],1))+1,0) -> 47 | Y23: =IF(ISNUMBER(XC[[#This Row],[Watford Ladies Time]]),50-(RANK(XC[[#This Row],[Watford Ladies Time]],XC[Watford Ladies Time],1))+1,0) -> 0 | Z23: =Hatime(XC[[#This Row],[WTime]]) -> 00:42:46 | AA23: 00:35:49 | AB23: 107 | AC23: =(HOUR(XC[[#This Row],[Cheshunt wtime]])*3600)+MINUTE(XC[[#This Row],[Cheshunt wtime]])*60+SECOND(XC[[#This Row],[Cheshunt wtime]]) -> 2149 | AD23: =IFERROR(IF(FIND("M",XC[[#This Row],[Group]])>0,XC[[#This Row],[Cheshunt Second]],"errorif"),"") -> 2149 | AE23: =IFERROR(IF(FIND("F",XC[[#This Row],[Group]])>0,XC[[#This Row],[Cheshunt Second]],"errorif"),"") ->  | AF23: =IF(ISNUMBER(XC[[#This Row],[Cheshunt Mens Time]]),50-(RANK(XC[[#This Row],[Cheshunt Mens Time]],XC[Cheshunt Mens Time],1))+1,0) -> 36 | AG23: =IF(ISNUMBER(XC[[#This Row],[Cheshunt ladies Time]]),50-(RANK(XC[[#This Row],[Cheshunt ladies Time]],XC[Cheshunt ladies Time],1))+1,0) -> 0 | AL23: 98 | AM23: 00:33:30 | AO23: =(HOUR(XC[[#This Row],[Grovelands Mens Time]])*3600)+MINUTE(XC[[#This Row],[Grovelands Mens Time]])*60+SECOND(XC[[#This Row],[Grovelands Mens Time]]) -> 2010 | AQ23: =IF(ISNUMBER(XC[[#This Row],[Glands Mens Secs]]),50-(RANK(XC[[#This Row],[Glands Mens Secs]],XC[Glands Mens Secs],1))+1,0) -> 39 | AR23: =IF(ISNUMBER(XC[[#This Row],[Gland Ladies Secs]]),50-(RANK(XC[[#This Row],[Gland Ladies Secs]],XC[Gland Ladies Secs],1))+1,0) -> 0 | AS23: 75 | AT23: =IF(ISNUMBER(XC[[#This Row],[TP Mens Secs]]),50-_xlfn.RANK.EQ(XC[[#This Row],[TP Mens Secs]],XC[TP Mens Secs],1)+1,0) -> 40 | AU23: =IF(ISNUMBER(XC[[#This Row],[TP Ladies Secs]]),50-_xlfn.RANK.EQ(XC[[#This Row],[TP Ladies Secs]],XC[TP Ladies Secs],1)+1,0) -> 0 | AV23: 00:33:42 | AX23: 2022
B24: Craig | C24: Harper | D24: =TRIM(XC[[#This Row],[N1]])&" "&TRIM(XC[[#This Row],[N2]]) -> Craig Harper | E24: 1 | F24: =VLOOKUP(XC[[#This Row],[Name]],members,2,0) -> 114 | G24: M | H24: =VLOOKUP(XC[[#This Row],[Mem]],Allmembers[],7,FALSE) -> MS | I24: =COUNT(XC[[#This Row],[Royston Race Position]],XC[[#This Row],[Watford Race Position]],XC[[#This Row],[Cheshut place]],XC[[#This Row],[Watford Challenge Place]],XC[[#This Row],[Grovelands place]],XC[[#This Row],[Trent Park Pos]]) -> 2 | J24: =IF(XC[[#This Row],[Gender]]="M",XC[[#This Row],[Royston Mens Points]]+XC[[#This Row],[Watford Mens Points]]+XC[[#This Row],[Cheshunt Mens Points]]+XC[[#This Row],[Watford Challenge Mens Points]]+XC[[#This Row],[Gland Mens Points]]+XC[[#This Row],[Trent Park Mens Points]],XC[[#This Row],[Royston Ladies Points]]+XC[[#This Row],[Waftord Ladies Points]]+XC[[#This Row],[Cheshunt Ladies Point]]+XC[[#This Row],[Watford Challenge Ladies Points]]+XC[[#This Row],[Gland Ladies Points]]+XC[[#This Row],[Trent Park Ladies Points]]) -> 78 | M24: =IF(XC[[#This Row],[Royston Time2]]>" ",(HOUR(XC[[#This Row],[Royston Time2]])*3600)+MINUTE(XC[[#This Row],[Royston Time2]])*60+SECOND(XC[[#This Row],[Royston Time2]]),"") ->  | N24: =IFERROR(IF(FIND("M",XC[[#This Row],[Group]])>0,XC[[#This Row],[Royston Seconds]],"errorif"),"") ->  | O24: =IFERROR(IF(FIND("F",XC[[#This Row],[Group]])>0,XC[[#This Row],[Royston Seconds]],"errorif"),"") ->  | P24: 0 | Q24: =IF(ISNUMBER(XC[[#This Row],[Royston Ladies Times]]),50-(RANK(XC[[#This Row],[Royston Ladies Times]],XC[Royston Ladies Times],1))+1,0) -> 0 | U24: =IFERROR((HOUR(XC[[#This Row],[Watford Time]])*3600)+MINUTE(XC[[#This Row],[Watford Time]])*60+SECOND(XC[[#This Row],[Watford Time]]),"") ->  | V24: =IFERROR(IF(FIND("M",XC[[#This Row],[Group]])>0,XC[[#This Row],[Watford Seconds]],"errorif"),"") ->  | W24: =IFERROR(IF(FIND("F",XC[[#This Row],[Group]])>0,XC[[#This Row],[Watford Seconds]],"errorif"),"") ->  | X24: =IF(ISNUMBER(XC[[#This Row],[Watford Mens Time]]),50-(RANK(XC[[#This Row],[Watford Mens Time]],XC[Watford Mens Time],1))+1,0) -> 0 | Z24: =Hatime(XC[[#This Row],[WTime]]) ->  | AA24: 00:34:30 | AB24: 75 | AC24: =(HOUR(XC[[#This Row],[Cheshunt wtime]])*3600)+MINUTE(XC[[#This Row],[Cheshunt wtime]])*60+SECOND(XC[[#This Row],[Cheshunt wtime]]) -> 2070 | AD24: =IFERROR(IF(FIND("M",XC[[#This Row],[Group]])>0,XC[[#This Row],[Cheshunt Second]],"errorif"),"") -> 2070 | AE24: =IFERROR(IF(FIND("F",XC[[#This Row],[Group]])>0,XC[[#This Row],[Cheshunt Second]],"errorif"),"") ->  | AF24: =IF(ISNUMBER(XC[[#This Row],[Cheshunt Mens Time]]),50-(RANK(XC[[#This Row],[Cheshunt Mens Time]],XC[Cheshunt Mens Time],1))+1,0) -> 42 | AG24: =IF(ISNUMBER(XC[[#This Row],[Cheshunt ladies Time]]),50-(RANK(XC[[#This Row],[Cheshunt ladies Time]],XC[Cheshunt ladies Time],1))+1,0) -> 0 | AL24: 105 | AM24: 00:34:00 | AO24: =(HOUR(XC[[#This Row],[Grovelands Mens Time]])*3600)+MINUTE(XC[[#This Row],[Grovelands Mens Time]])*60+SECOND(XC[[#This Row],[Grovelands Mens Time]]) -> 2040 | AQ24: =IF(ISNUMBER(XC[[#This Row],[Glands Mens Secs]]),50-(RANK(XC[[#This Row],[Glands Mens Secs]],XC[Glands Mens Secs],1))+1,0) -> 36 | AR24: =IF(ISNUMBER(XC[[#This Row],[Gland Ladies Secs]]),50-(RANK(XC[[#This Row],[Gland Ladies Secs]],XC[Gland Ladies Secs],1))+1,0) -> 0 | AT24: =IF(ISNUMBER(XC[[#This Row],[TP Mens Secs]]),50-_xlfn.RANK.EQ(XC[[#This Row],[TP Mens Secs]],XC[TP Mens Secs],1)+1,0) -> 0 | AU24: =IF(ISNUMBER(XC[[#This Row],[TP Ladies Secs]]),50-_xlfn.RANK.EQ(XC[[#This Row],[TP Ladies Secs]],XC[TP Ladies Secs],1)+1,0) -> 0
B25: Karen | C25: Wilkins | D25: =TRIM(XC[[#This Row],[N1]])&" "&TRIM(XC[[#This Row],[N2]]) -> Karen Wilkins | F25: =VLOOKUP(XC[[#This Row],[Name]],members,2,0) -> 116 | G25: W | H25: =VLOOKUP(XC[[#This Row],[Mem]],Allmembers[],7,FALSE) -> FV35 | I25: =COUNT(XC[[#This Row],[Royston Race Position]],XC[[#This Row],[Watford Race Position]],XC[[#This Row],[Cheshut place]],XC[[#This Row],[Watford Challenge Place]],XC[[#This Row],[Grovelands place]],XC[[#This Row],[Trent Park Pos]]) -> 1 | J25: =IF(XC[[#This Row],[Gender]]="M",XC[[#This Row],[Royston Mens Points]]+XC[[#This Row],[Watford Mens Points]]+XC[[#This Row],[Cheshunt Mens Points]]+XC[[#This Row],[Watford Challenge Mens Points]]+XC[[#This Row],[Gland Mens Points]]+XC[[#This Row],[Trent Park Mens Points]],XC[[#This Row],[Royston Ladies Points]]+XC[[#This Row],[Waftord Ladies Points]]+XC[[#This Row],[Cheshunt Ladies Point]]+XC[[#This Row],[Watford Challenge Ladies Points]]+XC[[#This Row],[Gland Ladies Points]]+XC[[#This Row],[Trent Park Ladies Points]]) -> 48 | M25: =IF(XC[[#This Row],[Royston Time2]]>" ",(HOUR(XC[[#This Row],[Royston Time2]])*3600)+MINUTE(XC[[#This Row],[Royston Time2]])*60+SECOND(XC[[#This Row],[Royston Time2]]),"") ->  | O25: =IFERROR(IF(FIND("F",XC[[#This Row],[Group]])>0,XC[[#This Row],[Royston Seconds]],"errorif"),"") ->  | P25: =IF(ISNUMBER(XC[[#This Row],[Royston Mens Time]]),50-(RANK(XC[[#This Row],[Royston Mens Time]],XC[Royston Mens Time],1))+1,0) -> 0 | Q25: =IF(ISNUMBER(XC[[#This Row],[Royston Ladies Times]]),50-(RANK(XC[[#This Row],[Royston Ladies Times]],XC[Royston Ladies Times],1))+1,0) -> 0 | S25: 147 | T25: 48:03 | U25: =IFERROR((HOUR(XC[[#This Row],[Watford Time]])*3600)+MINUTE(XC[[#This Row],[Watford Time]])*60+SECOND(XC[[#This Row],[Watford Time]]),"") -> 2883 | V25: =IFERROR(IF(FIND("M",XC[[#This Row],[Group]])>0,XC[[#This Row],[Watford Seconds]],"errorif"),"") ->  | W25: =IFERROR(IF(FIND("F",XC[[#This Row],[Group]])>0,XC[[#This Row],[Watford Seconds]],"errorif"),"") -> 2883 | X25: =IF(ISNUMBER(XC[[#This Row],[Watford Mens Time]]),50-(RANK(XC[[#This Row],[Watford Mens Time]],XC[Watford Mens Time],1))+1,0) -> 0 | Y25: =IF(ISNUMBER(XC[[#This Row],[Watford Ladies Time]]),50-(RANK(XC[[#This Row],[Watford Ladies Time]],XC[Watford Ladies Time],1))+1,0) -> 48 | Z25: =Hatime(XC[[#This Row],[WTime]]) -> 00:48:03 | AD25: =IFERROR(IF(FIND("M",XC[[#This Row],[Group]])>0,XC[[#This Row],[Cheshunt Second]],"errorif"),"") ->  | AE25: =IFERROR(IF(FIND("F",XC[[#This Row],[Group]])>0,XC[[#This Row],[Cheshunt Second]],"errorif"),"") ->  | AF25: =IF(ISNUMBER(XC[[#This Row],[Cheshunt Mens Time]]),50-(RANK(XC[[#This Row],[Cheshunt Mens Time]],XC[Cheshunt Mens Time],1))+1,0) -> 0 | AG25: =IF(ISNUMBER(XC[[#This Row],[Cheshunt ladies Time]]),50-(RANK(XC[[#This Row],[Cheshunt ladies Time]],XC[Cheshunt ladies Time],1))+1,0) -> 0 | AQ25: =IF(ISNUMBER(XC[[#This Row],[Glands Mens Secs]]),50-(RANK(XC[[#This Row],[Glands Mens Secs]],XC[Glands Mens Secs],1))+1,0) -> 0 | AR25: =IF(ISNUMBER(XC[[#This Row],[Gland Ladies Secs]]),50-(RANK(XC[[#This Row],[Gland Ladies Secs]],XC[Gland Ladies Secs],1))+1,0) -> 0 | AT25: =IF(ISNUMBER(XC[[#This Row],[TP Mens Secs]]),50-_xlfn.RANK.EQ(XC[[#This Row],[TP Mens Secs]],XC[TP Mens Secs],1)+1,0) -> 0 | AU25: =IF(ISNUMBER(XC[[#This Row],[TP Ladies Secs]]),50-_xlfn.RANK.EQ(XC[[#This Row],[TP Ladies Secs]],XC[TP Ladies Secs],1)+1,0) -> 0
B26: Louise | C26: Crosby | D26: =TRIM(XC[[#This Row],[N1]])&" "&TRIM(XC[[#This Row],[N2]]) -> Louise Crosby | E26: 1 | F26: =VLOOKUP(XC[[#This Row],[Name]],members,2,0) -> 119 | G26: W | H26: =VLOOKUP(XC[[#This Row],[Mem]],Allmembers[],7,FALSE) -> FV45 | I26: =COUNT(XC[[#This Row],[Royston Race Position]],XC[[#This Row],[Watford Race Position]],XC[[#This Row],[Cheshut place]],XC[[#This Row],[Watford Challenge Place]],XC[[#This Row],[Grovelands place]],XC[[#This Row],[Trent Park Pos]]) -> 4 | J26: =IF(XC[[#This Row],[Gender]]="M",XC[[#This Row],[Royston Mens Points]]+XC[[#This Row],[Watford Mens Points]]+XC[[#This Row],[Cheshunt Mens Points]]+XC[[#This Row],[Watford Challenge Mens Points]]+XC[[#This Row],[Gland Mens Points]]+XC[[#This Row],[Trent Park Mens Points]],XC[[#This Row],[Royston Ladies Points]]+XC[[#This Row],[Waftord Ladies Points]]+XC[[#This Row],[Cheshunt Ladies Point]]+XC[[#This Row],[Watford Challenge Ladies Points]]+XC[[#This Row],[Gland Ladies Points]]+XC[[#This Row],[Trent Park Ladies Points]]) -> 181 | K26: 165 | L26: 46:30 | M26: =IF(XC[[#This Row],[Royston Time2]]>" ",(HOUR(XC[[#This Row],[Royston Time2]])*3600)+MINUTE(XC[[#This Row],[Royston Time2]])*60+SECOND(XC[[#This Row],[Royston Time2]]),"") -> 2790 | N26: =IFERROR(IF(FIND("M",XC[[#This Row],[Group]])>0,XC[[#This Row],[Royston Seconds]],"errorif"),"") ->  | O26: =IFERROR(IF(FIND("F",XC[[#This Row],[Group]])>0,XC[[#This Row],[Royston Seconds]],"errorif"),"") -> 2790 | P26: =IF(ISNUMBER(XC[[#This Row],[Royston Mens Time]]),50-(RANK(XC[[#This Row],[Royston Mens Time]],XC[Royston Mens Time],1))+1,0) -> 0 | Q26: =IF(ISNUMBER(XC[[#This Row],[Royston Ladies Times]]),50-(RANK(XC[[#This Row],[Royston Ladies Times]],XC[Royston Ladies Times],1))+1,"") -> 47 | R26: =Hatime(XC[[#This Row],[Royston Time]]) -> 00:46:30 | U26: =IFERROR((HOUR(XC[[#This Row],[Watford Time]])*3600)+MINUTE(XC[[#This Row],[Watford Time]])*60+SECOND(XC[[#This Row],[Watford Time]]),"") ->  | V26: =IFERROR(IF(FIND("M",XC[[#This Row],[Group]])>0,XC[[#This Row],[Watford Seconds]],"errorif"),"") ->  | W26: =IFERROR(IF(FIND("F",XC[[#This Row],[Group]])>0,XC[[#This Row],[Watford Seconds]],"errorif"),"") ->  | X26: =IF(ISNUMBER(XC[[#This Row],[Watford Mens Time]]),50-(RANK(XC[[#This Row],[Watford Mens Time]],XC[Watford Mens Time],1))+1,0) -> 0 | Y26: =IF(ISNUMBER(XC[[#This Row],[Watford Ladies Time]]),50-(RANK(XC[[#This Row],[Watford Ladies Time]],XC[Watford Ladies Time],1))+1,0) -> 0 | Z26: =Hatime(XC[[#This Row],[WTime]]) ->  | AA26: 00:43:15 | AB26: 270 | AC26: =(HOUR(XC[[#This Row],[Cheshunt wtime]])*3600)+MINUTE(XC[[#This Row],[Cheshunt wtime]])*60+SECOND(XC[[#This Row],[Cheshunt wtime]]) -> 2595 | AD26: =IFERROR(IF(FIND("M",XC[[#This Row],[Group]])>0,XC[[#This Row],[Cheshunt Second]],"errorif"),"") ->  | AE26: =IFERROR(IF(FIND("F",XC[[#This Row],[Group]])>0,XC[[#This Row],[Cheshunt Second]],"errorif"),"") -> 2595 | AF26: =IF(ISNUMBER(XC[[#This Row],[Cheshunt Mens Time]]),50-(RANK(XC[[#This Row],[Cheshunt Mens Time]],XC[Cheshunt Mens Time],1))+1,0) -> 0 | AG26: =IF(ISNUMBER(XC[[#This Row],[Cheshunt ladies Time]]),50-(RANK(XC[[#This Row],[Cheshunt ladies Time]],XC[Cheshunt ladies Time],1))+1,0) -> 46 | AL26: 270 | AN26: 00:41:05 | AP26: =(HOUR(XC[[#This Row],[Grovelands Ladies Time]])*3600)+MINUTE(XC[[#This Row],[Grovelands Ladies Time]])*60+SECOND(XC[[#This Row],[Grovelands Ladies Time]]) -> 2465 | AQ26: =IF(ISNUMBER(XC[[#This Row],[Glands Mens Secs]]),50-(RANK(XC[[#This Row],[Glands Mens Secs]],XC[Glands Mens Secs],1))+1,0) -> 0 | AR26: =IF(ISNUMBER(XC[[#This Row],[Gland Ladies Secs]]),50-(RANK(XC[[#This Row],[Gland Ladies Secs]],XC[Gland Ladies Secs],1))+1,0) -> 46 | AS26: 231 | AT26: =IF(ISNUMBER(XC[[#This Row],[TP Mens Secs]]),50-_xlfn.RANK.EQ(XC[[#This Row],[TP Mens Secs]],XC[TP Mens Secs],1)+1,0) -> 0 | AU26: =IF(ISNUMBER(XC[[#This Row],[TP Ladies Secs]]),50-_xlfn.RANK.EQ(XC[[#This Row],[TP Ladies Secs]],XC[TP Ladies Secs],1)+1,0) -> 42 | AW26: 00:41:05 | AY26: 2465
B27: Brian | C27: Yates | D27: =TRIM(XC[[#This Row],[N1]])&" "&TRIM(XC[[#This Row],[N2]]) -> Brian Yates | E27: 1 | F27: =VLOOKUP(XC[[#This Row],[Name]],members,2,0) -> 120 | G27: M | H27: =VLOOKUP(XC[[#This Row],[Mem]],Allmembers[],7,FALSE) -> MV60 | I27: =COUNT(XC[[#This Row],[Royston Race Position]],XC[[#This Row],[Watford Race Position]],XC[[#This Row],[Cheshut place]],XC[[#This Row],[Watford Challenge Place]],XC[[#This Row],[Grovelands place]],XC[[#This Row],[Trent Park Pos]]) -> 6 | J27: =IF(XC[[#This Row],[Gender]]="M",XC[[#This Row],[Royston Mens Points]]+XC[[#This Row],[Watford Mens Points]]+XC[[#This Row],[Cheshunt Mens Points]]+XC[[#This Row],[Watford Challenge Mens Points]]+XC[[#This Row],[Gland Mens Points]]+XC[[#This Row],[Trent Park Mens Points]],XC[[#This Row],[Royston Ladies Points]]+XC[[#This Row],[Waftord Ladies Points]]+XC[[#This Row],[Cheshunt Ladies Point]]+XC[[#This Row],[Watford Challenge Ladies Points]]+XC[[#This Row],[Gland Ladies Points]]+XC[[#This Row],[Trent Park Ladies Points]]) -> 196 | K27: 314 | L27: 63:47 | M27: =IF(XC[[#This Row],[Royston Time2]]>" ",(HOUR(XC[[#This Row],[Royston Time2]])*3600)+MINUTE(XC[[#This Row],[Royston Time2]])*60+SECOND(XC[[#This Row],[Royston Time2]]),"") -> 3827 | N27: =IFERROR(IF(FIND("M",XC[[#This Row],[Group]])>0,XC[[#This Row],[Royston Seconds]],"errorif"),"") -> 3827 | O27: =IFERROR(IF(FIND("F",XC[[#This Row],[Group]])>0,XC[[#This Row],[Royston Seconds]],"errorif"),"") ->  | P27: =IF(ISNUMBER(XC[[#This Row],[Royston Mens Time]]),50-(RANK(XC[[#This Row],[Royston Mens Time]],XC[Royston Mens Time],1))+1,0) -> 32 | Q27: =IF(ISNUMBER(XC[[#This Row],[Royston Ladies Times]]),50-(RANK(XC[[#This Row],[Royston Ladies Times]],XC[Royston Ladies Times],1))+1,0) -> 0 | R27: =Hatime(XC[[#This Row],[Royston Time]]) -> 01:03:47 | S27: 289 | T27: 65:51 | U27: =IFERROR((HOUR(XC[[#This Row],[Watford Time]])*3600)+MINUTE(XC[[#This Row],[Watford Time]])*60+SECOND(XC[[#This Row],[Watford Time]]),"") -> 3951 | V27: =IFERROR(IF(FIND("M",XC[[#This Row],[Group]])>0,XC[[#This Row],[Watford Seconds]],"errorif"),"") -> 3951 | W27: =IFERROR(IF(FIND("F",XC[[#This Row],[Group]])>0,XC[[#This Row],[Watford Seconds]],"errorif"),"") ->  | X27: =IF(ISNUMBER(XC[[#This Row],[Watford Mens Time]]),50-(RANK(XC[[#This Row],[Watford Mens Time]],XC[Watford Mens Time],1))+1,0) -> 32 | Y27: =IF(ISNUMBER(XC[[#This Row],[Watford Ladies Time]]),50-(RANK(XC[[#This Row],[Watford Ladies Time]],XC[Watford Ladies Time],1))+1,0) -> 0 | Z27: =Hatime(XC[[#This Row],[WTime]]) -> 01:05:51 | AA27: 00:53:04 | AB27: 371 | AC27: =(HOUR(XC[[#This Row],[Cheshunt wtime]])*3600)+MINUTE(XC[[#This Row],[Cheshunt wtime]])*60+SECOND(XC[[#This Row],[Cheshunt wtime]]) -> 3184 | AD27: =IFERROR(IF(FIND("M",XC[[#This Row],[Group]])>0,XC[[#This Row],[Cheshunt Second]],"errorif"),"") -> 3184 | AE27: =IFERROR(IF(FIND("F",XC[[#This Row],[Group]])>0,XC[[#This Row],[Cheshunt Second]],"errorif"),"") ->  | AF27: =IF(ISNUMBER(XC[[#This Row],[Cheshunt Mens Time]]),50-(RANK(XC[[#This Row],[Cheshunt Mens Time]],XC[Cheshunt Mens Time],1))+1,0) -> 26 | AG27: =IF(ISNUMBER(XC[[#This Row],[Cheshunt ladies Time]]),50-(RANK(XC[[#This Row],[Cheshunt ladies Time]],XC[Cheshunt ladies Time],1))+1,0) -> 0 | AH27: 101 | AI27: 46 | AK27: 0.03445601852 | AL27: 365 | AM27: 00:47:59 | AO27: =(HOUR(XC[[#This Row],[Grovelands Mens Time]])*3600)+MINUTE(XC[[#This Row],[Grovelands Mens Time]])*60+SECOND(XC[[#This Row],[Grovelands Mens Time]]) -> 2879 | AQ27: =IF(ISNUMBER(XC[[#This Row],[Glands Mens Secs]]),50-(RANK(XC[[#This Row],[Glands Mens Secs]],XC[Glands Mens Secs],1))+1,0) -> 27 | AR27: =IF(ISNUMBER(XC[[#This Row],[Gland Ladies Secs]]),50-(RANK(XC[[#This Row],[Gland Ladies Secs]],XC[Gland Ladies Secs],1))+1,0) -> 0 | AS27: 326 | AT27: =IF(ISNUMBER(XC[[#This Row],[TP Mens Secs]]),50-_xlfn.RANK.EQ(XC[[#This Row],[TP Mens Secs]],XC[TP Mens Secs],1)+1,0) -> 33 | AU27: =IF(ISNUMBER(XC[[#This Row],[TP Ladies Secs]]),50-_xlfn.RANK.EQ(XC[[#This Row],[TP Ladies Secs]],XC[TP Ladies Secs],1)+1,0) -> 0 | AV27: 00:50:29 | AX27: 3029
B28: Richard | C28: Johnstone | D28: =TRIM(XC[[#This Row],[N1]])&" "&TRIM(XC[[#This Row],[N2]]) -> Richard Johnstone | E28: 1 | F28: =VLOOKUP(XC[[#This Row],[Name]],members,2,0) -> 122 | G28: M | H28: =VLOOKUP(XC[[#This Row],[Mem]],Allmembers[],7,FALSE) -> MV40 | I28: =COUNT(XC[[#This Row],[Royston Race Position]],XC[[#This Row],[Watford Race Position]],XC[[#This Row],[Cheshut place]],XC[[#This Row],[Watford Challenge Place]],XC[[#This Row],[Grovelands place]],XC[[#This Row],[Trent Park Pos]]) -> 5 | J28: =IF(XC[[#This Row],[Gender]]="M",XC[[#This Row],[Royston Mens Points]]+XC[[#This Row],[Watford Mens Points]]+XC[[#This Row],[Cheshunt Mens Points]]+XC[[#This Row],[Watford Challenge Mens Points]]+XC[[#This Row],[Gland Mens Points]]+XC[[#This Row],[Trent Park Mens Points]],XC[[#This Row],[Royston Ladies Points]]+XC[[#This Row],[Waftord Ladies Points]]+XC[[#This Row],[Cheshunt Ladies Point]]+XC[[#This Row],[Watford Challenge Ladies Points]]+XC[[#This Row],[Gland Ladies Points]]+XC[[#This Row],[Trent Park Ladies Points]]) -> 195 | K28: 78 | L28: 40:49 | M28: =IF(XC[[#This Row],[Royston Time2]]>" ",(HOUR(XC[[#This Row],[Royston Time2]])*3600)+MINUTE(XC[[#This Row],[Royston Time2]])*60+SECOND(XC[[#This Row],[Royston Time2]]),"") -> 2449 | N28: =IFERROR(IF(FIND("M",XC[[#This Row],[Group]])>0,XC[[#This Row],[Royston Seconds]],"errorif"),"") -> 2449 | O28: =IFERROR(IF(FIND("F",XC[[#This Row],[Group]])>0,XC[[#This Row],[Royston Seconds]],"errorif"),"") ->  | P28: =IF(ISNUMBER(XC[[#This Row],[Royston Mens Time]]),50-(RANK(XC[[#This Row],[Royston Mens Time]],XC[Royston Mens Time],1))+1,0) -> 39 | Q28: =IF(ISNUMBER(XC[[#This Row],[Royston Ladies Times]]),50-(RANK(XC[[#This Row],[Royston Ladies Times]],XC[Royston Ladies Times],1))+1,0) -> 0 | R28: =Hatime(XC[[#This Row],[Royston Time]]) -> 00:40:49 | S28: 91 | T28: 44:16 | U28: =IFERROR((HOUR(XC[[#This Row],[Watford Time]])*3600)+MINUTE(XC[[#This Row],[Watford Time]])*60+SECOND(XC[[#This Row],[Watford Time]]),"") -> 2656 | V28: =IFERROR(IF(FIND("M",XC[[#This Row],[Group]])>0,XC[[#This Row],[Watford Seconds]],"errorif"),"") -> 2656 | W28: =IFERROR(IF(FIND("F",XC[[#This Row],[Group]])>0,XC[[#This Row],[Watford Seconds]],"errorif"),"") ->  | X28: =IF(ISNUMBER(XC[[#This Row],[Watford Mens Time]]),50-(RANK(XC[[#This Row],[Watford Mens Time]],XC[Watford Mens Time],1))+1,0) -> 43 | Y28: =IF(ISNUMBER(XC[[#This Row],[Watford Ladies Time]]),50-(RANK(XC[[#This Row],[Watford Ladies Time]],XC[Watford Ladies Time],1))+1,0) -> 0 | Z28: =Hatime(XC[[#This Row],[WTime]]) -> 00:44:16 | AA28: 00:35:40 | AB28: 104 | AC28: =(HOUR(XC[[#This Row],[Cheshunt wtime]])*3600)+MINUTE(XC[[#This Row],[Cheshunt wtime]])*60+SECOND(XC[[#This Row],[Cheshunt wtime]]) -> 2140 | AD28: =IFERROR(IF(FIND("M",XC[[#This Row],[Group]])>0,XC[[#This Row],[Cheshunt Second]],"errorif"),"") -> 2140 | AE28: =IFERROR(IF(FIND("F",XC[[#This Row],[Group]])>0,XC[[#This Row],[Cheshunt Second]],"errorif"),"") ->  | AF28: =IF(ISNUMBER(XC[[#This Row],[Cheshunt Mens Time]]),50-(RANK(XC[[#This Row],[Cheshunt Mens Time]],XC[Cheshunt Mens Time],1))+1,0) -> 37 | AG28: =IF(ISNUMBER(XC[[#This Row],[Cheshunt ladies Time]]),50-(RANK(XC[[#This Row],[Cheshunt ladies Time]],XC[Cheshunt ladies Time],1))+1,0) -> 0 | AL28: 101 | AM28: 00:33:36 | AO28: =(HOUR(XC[[#This Row],[Grovelands Mens Time]])*3600)+MINUTE(XC[[#This Row],[Grovelands Mens Time]])*60+SECOND(XC[[#This Row],[Grovelands Mens Time]]) -> 2016 | AQ28: =IF(ISNUMBER(XC[[#This Row],[Glands Mens Secs]]),50-(RANK(XC[[#This Row],[Glands Mens Secs]],XC[Glands Mens Secs],1))+1,0) -> 37 | AR28: =IF(ISNUMBER(XC[[#This Row],[Gland Ladies Secs]]),50-(RANK(XC[[#This Row],[Gland Ladies Secs]],XC[Gland Ladies Secs],1))+1,0) -> 0 | AS28: 77 | AT28: =IF(ISNUMBER(XC[[#This Row],[TP Mens Secs]]),50-_xlfn.RANK.EQ(XC[[#This Row],[TP Mens Secs]],XC[TP Mens Secs],1)+1,0) -> 39 | AU28: =IF(ISNUMBER(XC[[#This Row],[TP Ladies Secs]]),50-_xlfn.RANK.EQ(XC[[#This Row],[TP Ladies Secs]],XC[TP Ladies Secs],1)+1,0) -> 0 | AV28: 00:33:46 | AX28: 2026
B29: Emily | C29: Hooper | D29: =TRIM(XC[[#This Row],[N1]])&" "&TRIM(XC[[#This Row],[N2]]) -> Emily Hooper | F29: =VLOOKUP(XC[[#This Row],[Name]],members,2,0) -> 138 | G29: W | H29: =VLOOKUP(XC[[#This Row],[Mem]],Allmembers[],7,FALSE) -> FV35 | I29: =COUNT(XC[[#This Row],[Royston Race Position]],XC[[#This Row],[Watford Race Position]],XC[[#This Row],[Cheshut place]],XC[[#This Row],[Watford Challenge Place]],XC[[#This Row],[Grovelands place]],XC[[#This Row],[Trent Park Pos]]) -> 1 | J29: =IF(XC[[#This Row],[Gender]]="M",XC[[#This Row],[Royston Mens Points]]+XC[[#This Row],[Watford Mens Points]]+XC[[#This Row],[Cheshunt Mens Points]]+XC[[#This Row],[Watford Challenge Mens Points]]+XC[[#This Row],[Gland Mens Points]]+XC[[#This Row],[Trent Park Mens Points]],XC[[#This Row],[Royston Ladies Points]]+XC[[#This Row],[Waftord Ladies Points]]+XC[[#This Row],[Cheshunt Ladies Point]]+XC[[#This Row],[Watford Challenge Ladies Points]]+XC[[#This Row],[Gland Ladies Points]]+XC[[#This Row],[Trent Park Ladies Points]]) -> 45 | M29: =IF(XC[[#This Row],[Royston Time2]]>" ",(HOUR(XC[[#This Row],[Royston Time2]])*3600)+MINUTE(XC[[#This Row],[Royston Time2]])*60+SECOND(XC[[#This Row],[Royston Time2]]),"") ->  | N29: =IFERROR(IF(FIND("M",XC[[#This Row],[Group]])>0,XC[[#This Row],[Royston Seconds]],"errorif"),"") ->  | O29: =IFERROR(IF(FIND("F",XC[[#This Row],[Group]])>0,XC[[#This Row],[Royston Seconds]],"errorif"),"") ->  | P29: =IF(ISNUMBER(XC[[#This Row],[Royston Mens Time]]),50-(RANK(XC[[#This Row],[Royston Mens Time]],XC[Royston Mens Time],1))+1,0) -> 0 | Q29: =IF(ISNUMBER(XC[[#This Row],[Royston Ladies Times]]),50-(RANK(XC[[#This Row],[Royston Ladies Times]],XC[Royston Ladies Times],1))+1,0) -> 0 | U29: =IFERROR((HOUR(XC[[#This Row],[Watford Time]])*3600)+MINUTE(XC[[#This Row],[Watford Time]])*60+SECOND(XC[[#This Row],[Watford Time]]),"") ->  | V29: =IFERROR(IF(FIND("M",XC[[#This Row],[Group]])>0,XC[[#This Row],[Watford Seconds]],"errorif"),"") ->  | W29: =IFERROR(IF(FIND("F",XC[[#This Row],[Group]])>0,XC[[#This Row],[Watford Seconds]],"errorif"),"") ->  | X29: =IF(ISNUMBER(XC[[#This Row],[Watford Mens Time]]),50-(RANK(XC[[#This Row],[Watford Mens Time]],XC[Watford Mens Time],1))+1,0) -> 0 | Y29: 0 | Z29: =Hatime(XC[[#This Row],[WTime]]) ->  | AD29: =IFERROR(IF(FIND("M",XC[[#This Row],[Group]])>0,XC[[#This Row],[Cheshunt Second]],"errorif"),"") ->  | AE29: =IFERROR(IF(FIND("F",XC[[#This Row],[Group]])>0,XC[[#This Row],[Cheshunt Second]],"errorif"),"") ->  | AF29: =IF(ISNUMBER(XC[[#This Row],[Cheshunt Mens Time]]),50-(RANK(XC[[#This Row],[Cheshunt Mens Time]],XC[Cheshunt Mens Time],1))+1,0) -> 0 | AG29: =IF(ISNUMBER(XC[[#This Row],[Cheshunt ladies Time]]),50-(RANK(XC[[#This Row],[Cheshunt ladies Time]],XC[Cheshunt ladies Time],1))+1,0) -> 0 | AN29: 0 | AQ29: =IF(ISNUMBER(XC[[#This Row],[Glands Mens Secs]]),50-(RANK(XC[[#This Row],[Glands Mens Secs]],XC[Glands Mens Secs],1))+1,0) -> 0 | AR29: =IF(ISNUMBER(XC[[#This Row],[Gland Ladies Secs]]),50-(RANK(XC[[#This Row],[Gland Ladies Secs]],XC[Gland Ladies Secs],1))+1,0) -> 0 | AS29: 190 | AT29: =IF(ISNUMBER(XC[[#This Row],[TP Mens Secs]]),50-_xlfn.RANK.EQ(XC[[#This Row],[TP Mens Secs]],XC[TP Mens Secs],1)+1,0) -> 0 | AU29: =IF(ISNUMBER(XC[[#This Row],[TP Ladies Secs]]),50-_xlfn.RANK.EQ(XC[[#This Row],[TP Ladies Secs]],XC[TP Ladies Secs],1)+1,0) -> 45 | AW29: 00:38:30 | AY29: 2310
B30: Dawn | C30: Burr | D30: =TRIM(XC[[#This Row],[N1]])&" "&TRIM(XC[[#This Row],[N2]]) -> Dawn Burr | F30: =VLOOKUP(XC[[#This Row],[Name]],members,2,0) -> 140 | G30: W | H30: =VLOOKUP(XC[[#This Row],[Mem]],Allmembers[],7,FALSE) -> FV35 | I30: =COUNT(XC[[#This Row],[Royston Race Position]],XC[[#This Row],[Watford Race Position]],XC[[#This Row],[Cheshut place]],XC[[#This Row],[Watford Challenge Place]],XC[[#This Row],[Grovelands place]],XC[[#This Row],[Trent Park Pos]]) -> 1 | J30: =IF(XC[[#This Row],[Gender]]="M",XC[[#This Row],[Royston Mens Points]]+XC[[#This Row],[Watford Mens Points]]+XC[[#This Row],[Cheshunt Mens Points]]+XC[[#This Row],[Watford Challenge Mens Points]]+XC[[#This Row],[Gland Mens Points]]+XC[[#This Row],[Trent Park Mens Points]],XC[[#This Row],[Royston Ladies Points]]+XC[[#This Row],[Waftord Ladies Points]]+XC[[#This Row],[Cheshunt Ladies Point]]+XC[[#This Row],[Watford Challenge Ladies Points]]+XC[[#This Row],[Gland Ladies Points]]+XC[[#This Row],[Trent Park Ladies Points]]) -> 46 | M30: =IF(XC[[#This Row],[Royston Time2]]>" ",(HOUR(XC[[#This Row],[Royston Time2]])*3600)+MINUTE(XC[[#This Row],[Royston Time2]])*60+SECOND(XC[[#This Row],[Royston Time2]]),"") ->  | N30: =IFERROR(IF(FIND("M",XC[[#This Row],[Group]])>0,XC[[#This Row],[Royston Seconds]],"errorif"),"") ->  | O30: =IFERROR(IF(FIND("F",XC[[#This Row],[Group]])>0,XC[[#This Row],[Royston Seconds]],"errorif"),"") ->  | P30: =IF(ISNUMBER(XC[[#This Row],[Royston Mens Time]]),50-(RANK(XC[[#This Row],[Royston Mens Time]],XC[Royston Mens Time],1))+1,0) -> 0 | Q30: =IF(ISNUMBER(XC[[#This Row],[Royston Ladies Times]]),50-(RANK(XC[[#This Row],[Royston Ladies Times]],XC[Royston Ladies Times],1))+1,0) -> 0 | U30: =IFERROR((HOUR(XC[[#This Row],[Watford Time]])*3600)+MINUTE(XC[[#This Row],[Watford Time]])*60+SECOND(XC[[#This Row],[Watford Time]]),"") ->  | V30: =IFERROR(IF(FIND("M",XC[[#This Row],[Group]])>0,XC[[#This Row],[Watford Seconds]],"errorif"),"") ->  | W30: =IFERROR(IF(FIND("F",XC[[#This Row],[Group]])>0,XC[[#This Row],[Watford Seconds]],"errorif"),"") ->  | X30: =IF(ISNUMBER(XC[[#This Row],[Watford Mens Time]]),50-(RANK(XC[[#This Row],[Watford Mens Time]],XC[Watford Mens Time],1))+1,0) -> 0 | Y30: 0 | Z30: =Hatime(XC[[#This Row],[WTime]]) ->  | AD30: =IFERROR(IF(FIND("M",XC[[#This Row],[Group]])>0,XC[[#This Row],[Cheshunt Second]],"errorif"),"") ->  | AE30: =IFERROR(IF(FIND("F",XC[[#This Row],[Group]])>0,XC[[#This Row],[Cheshunt Second]],"errorif"),"") ->  | AF30: =IF(ISNUMBER(XC[[#This Row],[Cheshunt Mens Time]]),50-(RANK(XC[[#This Row],[Cheshunt Mens Time]],XC[Cheshunt Mens Time],1))+1,0) -> 0 | AG30: =IF(ISNUMBER(XC[[#This Row],[Cheshunt ladies Time]]),50-(RANK(XC[[#This Row],[Cheshunt ladies Time]],XC[Cheshunt ladies Time],1))+1,0) -> 0 | AN30: 0 | AQ30: =IF(ISNUMBER(XC[[#This Row],[Glands Mens Secs]]),50-(RANK(XC[[#This Row],[Glands Mens Secs]],XC[Glands Mens Secs],1))+1,0) -> 0 | AR30: =IF(ISNUMBER(XC[[#This Row],[Gland Ladies Secs]]),50-(RANK(XC[[#This Row],[Gland Ladies Secs]],XC[Gland Ladies Secs],1))+1,0) -> 0 | AS30: 185 | AT30: =IF(ISNUMBER(XC[[#This Row],[TP Mens Secs]]),50-_xlfn.RANK.EQ(XC[[#This Row],[TP Mens Secs]],XC[TP Mens Secs],1)+1,0) -> 0 | AU30: =IF(ISNUMBER(XC[[#This Row],[TP Ladies Secs]]),50-_xlfn.RANK.EQ(XC[[#This Row],[TP Ladies Secs]],XC[TP Ladies Secs],1)+1,0) -> 46 | AW30: 00:38:22 | AY30: 2302
B31: James | C31: Bentall | D31: =TRIM(XC[[#This Row],[N1]])&" "&TRIM(XC[[#This Row],[N2]]) -> James Bentall | F31: =VLOOKUP(XC[[#This Row],[Name]],members,2,0) -> 141 | G31: M | H31: =VLOOKUP(XC[[#This Row],[Mem]],Allmembers[],7,FALSE) -> MV40 | I31: =COUNT(XC[[#This Row],[Royston Race Position]],XC[[#This Row],[Watford Race Position]],XC[[#This Row],[Cheshut place]],XC[[#This Row],[Watford Challenge Place]],XC[[#This Row],[Grovelands place]],XC[[#This Row],[Trent Park Pos]]) -> 3 | J31: =IF(XC[[#This Row],[Gender]]="M",XC[[#This Row],[Royston Mens Points]]+XC[[#This Row],[Watford Mens Points]]+XC[[#This Row],[Cheshunt Mens Points]]+XC[[#This Row],[Watford Challenge Mens Points]]+XC[[#This Row],[Gland Mens Points]]+XC[[#This Row],[Trent Park Mens Points]],XC[[#This Row],[Royston Ladies Points]]+XC[[#This Row],[Waftord Ladies Points]]+XC[[#This Row],[Cheshunt Ladies Point]]+XC[[#This Row],[Watford Challenge Ladies Points]]+XC[[#This Row],[Gland Ladies Points]]+XC[[#This Row],[Trent Park Ladies Points]]) -> 113 | K31: 130 | L31: 44:02 | M31: =IF(XC[[#This Row],[Royston Time2]]>" ",(HOUR(XC[[#This Row],[Royston Time2]])*3600)+MINUTE(XC[[#This Row],[Royston Time2]])*60+SECOND(XC[[#This Row],[Royston Time2]]),"") -> 2642 | N31: =IFERROR(IF(FIND("M",XC[[#This Row],[Group]])>0,XC[[#This Row],[Royston Seconds]],"errorif"),"") -> 2642 | O31: =IFERROR(IF(FIND("F",XC[[#This Row],[Group]])>0,XC[[#This Row],[Royston Seconds]],"errorif"),"") ->  | P31: =IF(ISNUMBER(XC[[#This Row],[Royston Mens Time]]),50-(RANK(XC[[#This Row],[Royston Mens Time]],XC[Royston Mens Time],1))+1,0) -> 36 | Q31: =IF(ISNUMBER(XC[[#This Row],[Royston Ladies Times]]),50-(RANK(XC[[#This Row],[Royston Ladies Times]],XC[Royston Ladies Times],1))+1,0) -> 0 | R31: =Hatime(XC[[#This Row],[Royston Time]]) -> 00:44:02 | S31: 130 | T31: 46:57 | U31: =IFERROR((HOUR(XC[[#This Row],[Watford Time]])*3600)+MINUTE(XC[[#This Row],[Watford Time]])*60+SECOND(XC[[#This Row],[Watford Time]]),"") -> 2817 | V31: =IFERROR(IF(FIND("M",XC[[#This Row],[Group]])>0,XC[[#This Row],[Watford Seconds]],"errorif"),"") -> 2817 | W31: =IFERROR(IF(FIND("F",XC[[#This Row],[Group]])>0,XC[[#This Row],[Watford Seconds]],"errorif"),"") ->  | X31: =IF(ISNUMBER(XC[[#This Row],[Watford Mens Time]]),50-(RANK(XC[[#This Row],[Watford Mens Time]],XC[Watford Mens Time],1))+1,0) -> 40 | Y31: =IF(ISNUMBER(XC[[#This Row],[Watford Ladies Time]]),50-(RANK(XC[[#This Row],[Watford Ladies Time]],XC[Watford Ladies Time],1))+1,0) -> 0 | Z31: =Hatime(XC[[#This Row],[WTime]]) -> 00:46:57 | AE31: =IFERROR(IF(FIND("F",XC[[#This Row],[Group]])>0,XC[[#This Row],[Cheshunt Second]],"errorif"),"") ->  | AF31: =IF(ISNUMBER(XC[[#This Row],[Cheshunt Mens Time]]),50-(RANK(XC[[#This Row],[Cheshunt Mens Time]],XC[Cheshunt Mens Time],1))+1,0) -> 0 | AG31: =IF(ISNUMBER(XC[[#This Row],[Cheshunt ladies Time]]),50-(RANK(XC[[#This Row],[Cheshunt ladies Time]],XC[Cheshunt ladies Time],1))+1,0) -> 0 | AQ31: =IF(ISNUMBER(XC[[#This Row],[Glands Mens Secs]]),50-(RANK(XC[[#This Row],[Glands Mens Secs]],XC[Glands Mens Secs],1))+1,0) -> 0 | AR31: =IF(ISNUMBER(XC[[#This Row],[Gland Ladies Secs]]),50-(RANK(XC[[#This Row],[Gland Ladies Secs]],XC[Gland Ladies Secs],1))+1,0) -> 0 | AS31: 118 | AT31: =IF(ISNUMBER(XC[[#This Row],[TP Mens Secs]]),50-_xlfn.RANK.EQ(XC[[#This Row],[TP Mens Secs]],XC[TP Mens Secs],1)+1,0) -> 37 | AU31: =IF(ISNUMBER(XC[[#This Row],[TP Ladies Secs]]),50-_xlfn.RANK.EQ(XC[[#This Row],[TP Ladies Secs]],XC[TP Ladies Secs],1)+1,0) -> 0 | AV31: 00:35:35 | AX31: 2135
B32: Joanne | C32: Richards | D32: =TRIM(XC[[#This Row],[N1]])&" "&TRIM(XC[[#This Row],[N2]]) -> Joanne Richards | F32: =VLOOKUP(XC[[#This Row],[Name]],members,2,0) -> 149 | G32: W | H32: =VLOOKUP(XC[[#This Row],[Mem]],Allmembers[],7,FALSE) -> FV35 | I32: =COUNT(XC[[#This Row],[Royston Race Position]],XC[[#This Row],[Watford Race Position]],XC[[#This Row],[Cheshut place]],XC[[#This Row],[Watford Challenge Place]],XC[[#This Row],[Grovelands place]],XC[[#This Row],[Trent Park Pos]]) -> 4 | J32: =IF(XC[[#This Row],[Gender]]="M",XC[[#This Row],[Royston Mens Points]]+XC[[#This Row],[Watford Mens Points]]+XC[[#This Row],[Cheshunt Mens Points]]+XC[[#This Row],[Watford Challenge Mens Points]]+XC[[#This Row],[Gland Mens Points]]+XC[[#This Row],[Trent Park Mens Points]],XC[[#This Row],[Royston Ladies Points]]+XC[[#This Row],[Waftord Ladies Points]]+XC[[#This Row],[Cheshunt Ladies Point]]+XC[[#This Row],[Watford Challenge Ladies Points]]+XC[[#This Row],[Gland Ladies Points]]+XC[[#This Row],[Trent Park Ladies Points]]) -> 176 | K32: 287 | L32: 57:33 | M32: =IF(XC[[#This Row],[Royston Time2]]>" ",(HOUR(XC[[#This Row],[Royston Time2]])*3600)+MINUTE(XC[[#This Row],[Royston Time2]])*60+SECOND(XC[[#This Row],[Royston Time2]]),"") -> 3453 | N32: =IFERROR(IF(FIND("M",XC[[#This Row],[Group]])>0,XC[[#This Row],[Royston Seconds]],"errorif"),"") ->  | O32: =IFERROR(IF(FIND("F",XC[[#This Row],[Group]])>0,XC[[#This Row],[Royston Seconds]],"errorif"),"") -> 3453 | P32: =IF(ISNUMBER(XC[[#This Row],[Royston Mens Time]]),50-(RANK(XC[[#This Row],[Royston Mens Time]],XC[Royston Mens Time],1))+1,0) -> 0 | Q32: =IF(ISNUMBER(XC[[#This Row],[Royston Ladies Times]]),50-(RANK(XC[[#This Row],[Royston Ladies Times]],XC[Royston Ladies Times],1))+1,"") -> 42 | R32: =Hatime(XC[[#This Row],[Royston Time]]) -> 00:57:33 | U32: =IFERROR((HOUR(XC[[#This Row],[Watford Time]])*3600)+MINUTE(XC[[#This Row],[Watford Time]])*60+SECOND(XC[[#This Row],[Watford Time]]),"") ->  | V32: =IFERROR(IF(FIND("M",XC[[#This Row],[Group]])>0,XC[[#This Row],[Watford Seconds]],"errorif"),"") ->  | W32: =IFERROR(IF(FIND("F",XC[[#This Row],[Group]])>0,XC[[#This Row],[Watford Seconds]],"errorif"),"") ->  | X32: =IF(ISNUMBER(XC[[#This Row],[Watford Mens Time]]),50-(RANK(XC[[#This Row],[Watford Mens Time]],XC[Watford Mens Time],1))+1,0) -> 0 | Y32: =IF(ISNUMBER(XC[[#This Row],[Watford Ladies Time]]),50-(RANK(XC[[#This Row],[Watford Ladies Time]],XC[Watford Ladies Time],1))+1,0) -> 0 | Z32: =Hatime(XC[[#This Row],[WTime]]) ->  | AA32: 00:45:17 | AB32: 306 | AC32: =(HOUR(XC[[#This Row],[Cheshunt wtime]])*3600)+MINUTE(XC[[#This Row],[Cheshunt wtime]])*60+SECOND(XC[[#This Row],[Cheshunt wtime]]) -> 2717 | AD32: =IFERROR(IF(FIND("M",XC[[#This Row],[Group]])>0,XC[[#This Row],[Cheshunt Second]],"errorif"),"") ->  | AE32: =IFERROR(IF(FIND("F",XC[[#This Row],[Group]])>0,XC[[#This Row],[Cheshunt Second]],"errorif"),"") -> 2717 | AF32: =IF(ISNUMBER(XC[[#This Row],[Cheshunt Mens Time]]),50-(RANK(XC[[#This Row],[Cheshunt Mens Time]],XC[Cheshunt Mens Time],1))+1,0) -> 0 | AG32: =IF(ISNUMBER(XC[[#This Row],[Cheshunt ladies Time]]),50-(RANK(XC[[#This Row],[Cheshunt ladies Time]],XC[Cheshunt ladies Time],1))+1,0) -> 44 | AH32: 74 | AJ32: 49 | AK32: 0.03019675926 | AQ32: =IF(ISNUMBER(XC[[#This Row],[Glands Mens Secs]]),50-(RANK(XC[[#This Row],[Glands Mens Secs]],XC[Glands Mens Secs],1))+1,0) -> 0 | AR32: =IF(ISNUMBER(XC[[#This Row],[Gland Ladies Secs]]),50-(RANK(XC[[#This Row],[Gland Ladies Secs]],XC[Gland Ladies Secs],1))+1,0) -> 0 | AS32: 262 | AT32: =IF(ISNUMBER(XC[[#This Row],[TP Mens Secs]]),50-_xlfn.RANK.EQ(XC[[#This Row],[TP Mens Secs]],XC[TP Mens Secs],1)+1,0) -> 0 | AU32: =IF(ISNUMBER(XC[[#This Row],[TP Ladies Secs]]),50-_xlfn.RANK.EQ(XC[[#This Row],[TP Ladies Secs]],XC[TP Ladies Secs],1)+1,0) -> 41 | AW32: 00:43:11 | AY32: 2591
